{"text_format":"1","workbook":"xlsx","n_sheets":19,"sheets":["Ovladani_dokumentu","VYSVĚTLIVKA ","Základní údaje","Majetek_info_o_riziku","Majetek","Elektronika","odpovědnost ","Stroje","Stroje_vc_zivlu","Elektronika_vc_zivlu","Preruseni_provozu_info_PC","Preruseni_pomocny_vypocet","Preruseni_provozu_zivel","Preruseni_provozu_techn_rizika","Flotiolové pojištění ","odp. drážního dopravce","Vyrobci_distributori_dovozci","Hotely_restaurace","List_seznamy_bunky"],"not_rendered":{"charts":0,"images":8,"macros":1,"external_links":1,"defined_names":141,"comments":1,"pivot_tables":0},"unopened":[],"bounds":{"document_bytes":16777216,"sheet_cells":100000,"rows_first":2000,"rows_last":500,"rows_between":2000,"halvings":0,"cell_chars":16384,"cell_head_chars":4096},"cells_cut":0,"cells_raw":0,"read":"whole","date_system":"1900"}

{"sheet":"Ovladani_dokumentu","index":0,"n_rows":31,"n_cols":21,"rows_kept":31,"cut":false,"hidden":true,"merged":[[6,0,6,4],[8,0,8,4],[15,2,15,3],[18,2,18,3],[20,2,20,3],[10,0,10,1],[11,0,11,1],[12,0,12,1],[10,3,10,4],[11,3,11,4],[12,3,12,4]]}
[null,null,null,null,null,null,null,null,null,null,null,null,null,null,null,null,null,null,"Verze k odeslání klientovi","Verze zpracovat","Verze k odeslání do pojišťovny (skrýt nevyplněné informace)"]
[null,null,null,null,null,null,null,"s provizí makléře","měsíční",null,null,null,null,null,null,null,null,null,1,1,1]
[null,null,null,null,null,null,null,"bez provize makléře","čtvrtletní",null,null,null,null,null,null,null,null,null,1,1,1]
[null,null,null,null,null,null,null,null,"pololetní",null,null,null,null,null,null,null,null,null,1,1,1]
[null,null,null,null,null,null,null,null,"roční",null,null,null,null,null,null,null,null,null,1,1,1]
[null,null,null,null,null,null,null,null,null,null,null,null,null,null,null,null,null,null,1,1,1]
["Ovládaní profilu klienta",null,null,null,null,null,null,null,null,null,null,null,null,null,null,null,null,null,1,1,1]
[]
["Tento list před odesláním dokumentu 3. straně (klientovi, pojišťovně atd.) vždy skryjte, je určen pouze pro naši potřebu."]
[]
["IČO pojistníka/ pojištěného:",null,"17196264"]
["IČO dalšího pojištěného:"]
["IČO dalšího pojištěného:"]
[]
[]
["Chci řešit tato pojištění:",null,"- pojištění majetku (živel, odcizení, vandalismus, skla, věci během silniční přepravy)"]
[null,null,"Je u klienta k dispozici riziková zpráva?"]
[null,null,"- pojištění strojů"]
[null,null,"Je (nebo bude) pojištění živlu a odcizení pro stroje sjednáno v rámci pojištění majetku?"]
[null,null,"- pojištění elektroniky"]
[null,null,"Je (nebo bude) pojištění živlu a odcizení pro elektroniku sjednáno v rámci pojištění majetku?"]
[null,null,"- živelní přerušení provozu"]
[null,null,"- pojištění přerušení provozu z důvodu technických rizik"]
[null,null,"- pojištění odpovědnosti"]
[null,null,"Jedná se o výrobce, distributora nebo dovozce výrobků?"]
[null,null,"Jedná se o hotel, ubytovací středisko nebo restauraci?"]
[]
[]
["Chci provést s dokumentem tuto akci:",null,"- zobrazit verzi k odeslání klientovi (tato verze skryje i list Ovládání dokumentu)"]
[null,null,"- zobrazit verzi  ke zpracování"]
[null,null,"- zobrazit verzi k odeslání do pojišťoven (tato verze skryje nevyplněné údaje a list Ovládání dokumentu) "]

{"sheet":"VYSVĚTLIVKA ","index":1,"n_rows":13,"n_cols":7,"rows_kept":13,"cut":false,"hidden":false,"merged":[[9,6,11,11],[12,6,14,11],[3,1,5,5],[3,6,5,11],[3,0,5,0],[6,0,8,0],[9,0,11,0],[12,0,14,0],[6,1,8,5],[9,1,11,5],[12,1,14,5],[6,6,8,11]]}
[]
[]
[]
["1. ","ŽLUTĚ OZNAČENÉ LISTY = ČÁST A",null,null,null,null,"Pojištění majetku a odpovědnosti za škodu nebo jinou újmu"]
[]
[]
["2. ","ORANŽOVĚ OZNAČENÉ LISTY = ČÁST B",null,null,null,null,"Pojistění strojů a strojních zařízení "]
[]
[]
["3. ","ZELENĚ OZNAČENÉ LISTY = ČÁST C",null,null,null,null,"Pojištění odpovědnosti za újmu způsobenou provozem vozidla a havarijní pojištění vozidel"]
[]
[]
["4. ","MODŘE OZNAČENÉ LISTY = ČÁST D",null,null,null,null,"Odpovědnost drážního dopravce"]

{"sheet":"Základní údaje","index":2,"n_rows":69,"n_cols":22,"rows_kept":69,"cut":false,"hidden":false,"merged":[[1,0,1,5],[32,1,32,5],[27,1,27,5],[35,0,35,5],[36,0,36,1],[2,0,2,5],[6,1,6,5],[8,1,8,5],[7,1,7,5],[9,1,9,5],[4,0,4,5],[64,0,64,5],[11,1,11,5],[12,1,12,5],[19,1,19,5],[13,1,13,5],[14,1,14,5],[16,1,16,5],[17,1,17,5],[18,1,18,5],[21,1,21,5],[22,0,22,5],[28,1,28,5],[30,1,30,5],[31,1,31,5],[23,1,23,2],[25,4,25,5],[25,1,25,2],[36,2,36,5],[37,0,37,1],[43,0,43,1],[63,0,63,5],[38,0,38,1],[40,0,40,5],[41,0,41,1],[45,0,45,5],[52,2,52,3],[53,2,53,3],[54,2,54,3],[55,2,55,3],[56,2,56,3],[41,2,41,5],[43,2,43,5],[37,2,37,5],[38,2,38,5],[57,2,57,3],[58,2,58,3],[59,2,59,3],[60,2,60,3],[49,0,49,5],[42,0,42,1],[44,0,44,5],[39,0,39,5],[61,2,61,3],[45,123,45,130],[45,131,45,138],[45,139,45,146],[45,147,45,154],[45,155,45,162],[45,83,45,90],[45,91,45,98],[45,99,45,106],[45,107,45,114],[45,115,45,122],[45,43,45,50],[45,51,45,58],[45,59,45,66],[45,67,45,74],[45,75,45,82],[45,19,45,26],[45,27,45,34],[45,35,45,42],[51,0,51,5],[45,283,45,290],[45,291,45,298],[45,299,45,306],[45,307,45,314],[45,315,45,322],[45,243,45,250],[45,251,45,258],[45,259,45,266],[45,267,45,274],[45,275,45,282],[45,203,45,210],[45,211,45,218],[45,219,45,226],[45,227,45,234],[45,235,45,242],[45,163,45,170],[45,171,45,178],[45,179,45,186],[45,187,45,194],[45,195,45,202],[45,443,45,450],[45,451,45,458],[45,459,45,466],[45,467,45,474],[45,475,45,482],[45,403,45,410],[45,411,45,418],[45,419,45,426],[45,427,45,434],[45,435,45,442],[45,363,45,370],[45,371,45,378],[45,379,45,386],[45,387,45,394],[45,395,45,402],[45,323,45,330],[45,331,45,338],[45,339,45,346],[45,347,45,354],[45,355,45,362],[45,603,45,610],[45,611,45,618],[45,619,45,626],[45,627,45,634],[45,635,45,642],[45,563,45,570],[45,571,45,578],[45,579,45,586],[45,587,45,594],[45,595,45,602],[45,523,45,530],[45,531,45,538],[45,539,45,546],[45,547,45,554],[45,555,45,562],[45,483,45,490],[45,491,45,498],[45,499,45,506],[45,507,45,514],[45,515,45,522],[45,763,45,770],[45,771,45,778],[45,779,45,786],[45,787,45,794],[45,795,45,802],[45,723,45,730],[45,731,45,738],[45,739,45,746],[45,747,45,754],[45,755,45,762],[45,683,45,690],[45,691,45,698],[45,699,45,706],[45,707,45,714],[45,715,45,722],[45,643,45,650],[45,651,45,658],[45,659,45,666],[45,667,45,674],[45,675,45,682],[45,923,45,930],[45,931,45,938],[45,939,45,946],[45,947,45,954],[45,955,45,962],[45,883,45,890],[45,891,45,898],[45,899,45,906],[45,907,45,914],[45,915,45,922],[45,843,45,850],[45,851,45,858],[45,859,45,866],[45,867,45,874],[45,875,45,882],[45,803,45,810],[45,811,45,818],[45,819,45,826],[45,827,45,834],[45,835,45,842],[45,1083,45,1090],[45,1091,45,1098],[45,1099,45,1106],[45,1107,45,1114],[45,1115,45,1122],[45,1043,45,1050],[45,1051,45,1058],[45,1059,45,1066],[45,1067,45,1074],[45,1075,45,1082],[45,1003,45,1010],[45,1011,45,1018],[45,1019,45,1026],[45,1027,45,1034],[45,1035,45,1042],[45,963,45,970],[45,971,45,978],[45,979,45,986],[45,987,45,994],[45,995,45,1002],[45,1243,45,1250],[45,1251,45,1258],[45,1259,45,1266],[45,1267,45,1274],[45,1275,45,1282],[45,1203,45,1210],[45,1211,45,1218],[45,1219,45,1226],[45,1227,45,1234],[45,1235,45,1242],[45,1163,45,1170],[45,1171,45,1178],[45,1179,45,1186],[45,1187,45,1194],[45,1195,45,1202],[45,1123,45,1130],[45,1131,45,1138],[45,1139,45,1146],[45,1147,45,1154],[45,1155,45,1162],[45,1403,45,1410],[45,1411,45,1418],[45,1419,45,1426],[45,1427,45,1434],[45,1435,45,1442],[45,1363,45,1370],[45,1371,45,1378],[45,1379,45,1386],[45,1387,45,1394],[45,1395,45,1402],[45,1323,45,1330],[45,1331,45,1338],[45,1339,45,1346],[45,1347,45,1354],[45,1355,45,1362],[45,1283,45,1290],[45,1291,45,1298],[45,1299,45,1306],[45,1307,45,1314],[45,1315,45,1322],[45,1563,45,1570],[45,1571,45,1578],[45,1579,45,1586],[45,1587,45,1594],[45,1595,45,1602],[45,1523,45,1530],[45,1531,45,1538],[45,1539,45,1546],[45,1547,45,1554],[45,1555,45,1562],[45,1483,45,1490],[45,1491,45,1498],[45,1499,45,1506],[45,1507,45,1514],[45,1515,45,1522],[45,1443,45,1450],[45,1451,45,1458],[45,1459,45,1466],[45,1467,45,1474],[45,1475,45,1482],[45,1723,45,1730],[45,1731,45,1738],[45,1739,45,1746],[45,1747,45,1754],[45,1755,45,1762],[45,1683,45,1690],[45,1691,45,1698],[45,1699,45,1706],[45,1707,45,1714],[45,1715,45,1722],[45,1643,45,1650],[45,1651,45,1658],[45,1659,45,1666],[45,1667,45,1674],[45,1675,45,1682],[45,1603,45,1610],[45,1611,45,1618],[45,1619,45,1626],[45,1627,45,1634],[45,1635,45,1642],[45,1883,45,1890],[45,1891,45,1898],[45,1899,45,1906],[45,1907,45,1914],[45,1915,45,1922],[45,1843,45,1850],[45,1851,45,1858],[45,1859,45,1866],[45,1867,45,1874],[45,1875,45,1882],[45,1803,45,1810],[45,1811,45,1818],[45,1819,45,1826],[45,1827,45,1834],[45,1835,45,1842],[45,1763,45,1770],[45,1771,45,1778],[45,1779,45,1786],[45,1787,45,1794],[45,1795,45,1802],[45,2043,45,2050],[45,2051,45,2058],[45,2059,45,2066],[45,2067,45,2074],[45,2075,45,2082],[45,2003,45,2010],[45,2011,45,2018],[45,2019,45,2026],[45,2027,45,2034],[45,2035,45,2042],[45,1963,45,1970],[45,1971,45,1978],[45,1979,45,1986],[45,1987,45,1994],[45,1995,45,2002],[45,1923,45,1930],[45,1931,45,1938],[45,1939,45,1946],[45,1947,45,1954],[45,1955,45,1962],[45,2203,45,2210],[45,2211,45,2218],[45,2219,45,2226],[45,2227,45,2234],[45,2235,45,2242],[45,2163,45,2170],[45,2171,45,2178],[45,2179,45,2186],[45,2187,45,2194],[45,2195,45,2202],[45,2123,45,2130],[45,2131,45,2138],[45,2139,45,2146],[45,2147,45,2154],[45,2155,45,2162],[45,2083,45,2090],[45,2091,45,2098],[45,2099,45,2106],[45,2107,45,2114],[45,2115,45,2122],[45,2363,45,2370],[45,2371,45,2378],[45,2379,45,2386],[45,2387,45,2394],[45,2395,45,2402],[45,2323,45,2330],[45,2331,45,2338],[45,2339,45,2346],[45,2347,45,2354],[45,2355,45,2362],[45,2283,45,2290],[45,2291,45,2298],[45,2299,45,2306],[45,2307,45,2314],[45,2315,45,2322],[45,2243,45,2250],[45,2251,45,2258],[45,2259,45,2266],[45,2267,45,2274],[45,2275,45,2282],[45,2523,45,2530],[45,2531,45,2538],[45,2539,45,2546],[45,2547,45,2554],[45,2555,45,2562],[45,2483,45,2490],[45,2491,45,2498],[45,2499,45,2506],[45,2507,45,2514],[45,2515,45,2522],[45,2443,45,2450],[45,2451,45,2458],[45,2459,45,2466],[45,2467,45,2474],[45,2475,45,2482],[45,2403,45,2410],[45,2411,45,2418],[45,2419,45,2426],[45,2427,45,2434],[45,2435,45,2442],[45,2683,45,2690],[45,2691,45,2698],[45,2699,45,2706],[45,2707,45,2714],[45,2715,45,2722],[45,2643,45,2650],[45,2651,45,2658],[45,2659,45,2666],[45,2667,45,2674],[45,2675,45,2682],[45,2603,45,2610],[45,2611,45,2618],[45,2619,45,2626],[45,2627,45,2634],[45,2635,45,2642],[45,2563,45,2570],[45,2571,45,2578],[45,2579,45,2586],[45,2587,45,2594],[45,2595,45,2602],[45,2843,45,2850],[45,2851,45,2858],[45,2859,45,2866],[45,2867,45,2874],[45,2875,45,2882],[45,2803,45,2810],[45,2811,45,2818],[45,2819,45,2826],[45,2827,45,2834],[45,2835,45,2842],[45,2763,45,2770],[45,2771,45,2778],[45,2779,45,2786],[45,2787,45,2794],[45,2795,45,2802],[45,2723,45,2730],[45,2731,45,2738],[45,2739,45,2746],[45,2747,45,2754],[45,2755,45,2762],[45,3003,45,3010],[45,3011,45,3018],[45,3019,45,3026],[45,3027,45,3034],[45,3035,45,3042],[45,2963,45,2970],[45,2971,45,2978],[45,2979,45,2986],[45,2987,45,2994],[45,2995,45,3002],[45,2923,45,2930],[45,2931,45,2938],[45,2939,45,2946],[45,2947,45,2954],[45,2955,45,2962],[45,2883,45,2890],[45,2891,45,2898],[45,2899,45,2906],[45,2907,45,2914],[45,2915,45,2922],[45,3163,45,3170],[45,3171,45,3178],[45,3179,45,3186],[45,3187,45,3194],[45,3195,45,3202],[45,3123,45,3130],[45,3131,45,3138],[45,3139,45,3146],[45,3147,45,3154],[45,3155,45,3162],[45,3083,45,3090],[45,3091,45,3098],[45,3099,45,3106],[45,3107,45,3114],[45,3115,45,3122],[45,3043,45,3050],[45,3051,45,3058],[45,3059,45,3066],[45,3067,45,3074],[45,3075,45,3082],[45,3323,45,3330],[45,3331,45,3338],[45,3339,45,3346],[45,3347,45,3354],[45,3355,45,3362],[45,3283,45,3290],[45,3291,45,3298],[45,3299,45,3306],[45,3307,45,3314],[45,3315,45,3322],[45,3243,45,3250],[45,3251,45,3258],[45,3259,45,3266],[45,3267,45,3274],[45,3275,45,3282],[45,3203,45,3210],[45,3211,45,3218],[45,3219,45,3226],[45,3227,45,3234],[45,3235,45,3242],[45,3483,45,3490],[45,3491,45,3498],[45,3499,45,3506],[45,3507,45,3514],[45,3515,45,3522],[45,3443,45,3450],[45,3451,45,3458],[45,3459,45,3466],[45,3467,45,3474],[45,3475,45,3482],[45,3403,45,3410],[45,3411,45,3418],[45,3419,45,3426],[45,3427,45,3434],[45,3435,45,3442],[45,3363,45,3370],[45,3371,45,3378],[45,3379,45,3386],[45,3387,45,3394],[45,3395,45,3402],[45,3643,45,3650],[45,3651,45,3658],[45,3659,45,3666],[45,3667,45,3674],[45,3675,45,3682],[45,3603,45,3610],[45,3611,45,3618],[45,3619,45,3626],[45,3627,45,3634],[45,3635,45,3642],[45,3563,45,3570],[45,3571,45,3578],[45,3579,45,3586],[45,3587,45,3594],[45,3595,45,3602],[45,3523,45,3530],[45,3531,45,3538],[45,3539,45,3546],[45,3547,45,3554],[45,3555,45,3562],[45,3803,45,3810],[45,3811,45,3818],[45,3819,45,3826],[45,3827,45,3834],[45,3835,45,3842],[45,3763,45,3770],[45,3771,45,3778],[45,3779,45,3786],[45,3787,45,3794],[45,3795,45,3802],[45,3723,45,3730],[45,3731,45,3738],[45,3739,45,3746],[45,3747,45,3754],[45,3755,45,3762],[45,3683,45,3690],[45,3691,45,3698],[45,3699,45,3706],[45,3707,45,3714],[45,3715,45,3722],[45,3963,45,3970],[45,3971,45,3978],[45,3979,45,3986],[45,3987,45,3994],[45,3995,45,4002],[45,3923,45,3930],[45,3931,45,3938],[45,3939,45,3946],[45,3947,45,3954],[45,3955,45,3962],[45,3883,45,3890],[45,3891,45,3898],[45,3899,45,3906],[45,3907,45,3914],[45,3915,45,3922],[45,3843,45,3850],[45,3851,45,3858],[45,3859,45,3866],[45,3867,45,3874],[45,3875,45,3882],[45,4123,45,4130],[45,4131,45,4138],[45,4139,45,4146],[45,4147,45,4154],[45,4155,45,4162],[45,4083,45,4090],[45,4091,45,4098],[45,4099,45,4106],[45,4107,45,4114],[45,4115,45,4122],[45,4043,45,4050],[45,4051,45,4058],[45,4059,45,4066],[45,4067,45,4074],[45,4075,45,4082],[45,4003,45,4010],[45,4011,45,4018],[45,4019,45,4026],[45,4027,45,4034],[45,4035,45,4042],[45,4283,45,4290],[45,4291,45,4298],[45,4299,45,4306],[45,4307,45,4314],[45,4315,45,4322],[45,4243,45,4250],[45,4251,45,4258],[45,4259,45,4266],[45,4267,45,4274],[45,4275,45,4282],[45,4203,45,4210],[45,4211,45,4218],[45,4219,45,4226],[45,4227,45,4234],[45,4235,45,4242],[45,4163,45,4170],[45,4171,45,4178],[45,4179,45,4186],[45,4187,45,4194],[45,4195,45,4202],[45,4443,45,4450],[45,4451,45,4458],[45,4459,45,4466],[45,4467,45,4474],[45,4475,45,4482],[45,4403,45,4410],[45,4411,45,4418],[45,4419,45,4426],[45,4427,45,4434],[45,4435,45,4442],[45,4363,45,4370],[45,4371,45,4378],[45,4379,45,4386],[45,4387,45,4394],[45,4395,45,4402],[45,4323,45,4330],[45,4331,45,4338],[45,4339,45,4346],[45,4347,45,4354],[45,4355,45,4362],[45,4603,45,4610],[45,4611,45,4618],[45,4619,45,4626],[45,4627,45,4634],[45,4635,45,4642],[45,4563,45,4570],[45,4571,45,4578],[45,4579,45,4586],[45,4587,45,4594],[45,4595,45,4602],[45,4523,45,4530],[45,4531,45,4538],[45,4539,45,4546],[45,4547,45,4554],[45,4555,45,4562],[45,4483,45,4490],[45,4491,45,4498],[45,4499,45,4506],[45,4507,45,4514],[45,4515,45,4522],[45,4763,45,4770],[45,4771,45,4778],[45,4779,45,4786],[45,4787,45,4794],[45,4795,45,4802],[45,4723,45,4730],[45,4731,45,4738],[45,4739,45,4746],[45,4747,45,4754],[45,4755,45,4762],[45,4683,45,4690],[45,4691,45,4698],[45,4699,45,4706],[45,4707,45,4714],[45,4715,45,4722],[45,4643,45,4650],[45,4651,45,4658],[45,4659,45,4666],[45,4667,45,4674],[45,4675,45,4682],[45,4923,45,4930],[45,4931,45,4938],[45,4939,45,4946],[45,4947,45,4954],[45,4955,45,4962],[45,4883,45,4890],[45,4891,45,4898],[45,4899,45,4906],[45,4907,45,4914],[45,4915,45,4922],[45,4843,45,4850],[45,4851,45,4858],[45,4859,45,4866],[45,4867,45,4874],[45,4875,45,4882],[45,4803,45,4810],[45,4811,45,4818],[45,4819,45,4826],[45,4827,45,4834],[45,4835,45,4842],[45,5083,45,5090],[45,5091,45,5098],[45,5099,45,5106],[45,5107,45,5114],[45,5115,45,5122],[45,5043,45,5050],[45,5051,45,5058],[45,5059,45,5066],[45,5067,45,5074],[45,5075,45,5082],[45,5003,45,5010],[45,5011,45,5018],[45,5019,45,5026],[45,5027,45,5034],[45,5035,45,5042],[45,4963,45,4970],[45,4971,45,4978],[45,4979,45,4986],[45,4987,45,4994],[45,4995,45,5002],[45,5243,45,5250],[45,5251,45,5258],[45,5259,45,5266],[45,5267,45,5274],[45,5275,45,5282],[45,5203,45,5210],[45,5211,45,5218],[45,5219,45,5226],[45,5227,45,5234],[45,5235,45,5242],[45,5163,45,5170],[45,5171,45,5178],[45,5179,45,5186],[45,5187,45,5194],[45,5195,45,5202],[45,5123,45,5130],[45,5131,45,5138],[45,5139,45,5146],[45,5147,45,5154],[45,5155,45,5162],[45,5403,45,5410],[45,5411,45,5418],[45,5419,45,5426],[45,5427,45,5434],[45,5435,45,5442],[45,5363,45,5370],[45,5371,45,5378],[45,5379,45,5386],[45,5387,45,5394],[45,5395,45,5402],[45,5323,45,5330],[45,5331,45,5338],[45,5339,45,5346],[45,5347,45,5354],[45,5355,45,5362],[45,5283,45,5290],[45,5291,45,5298],[45,5299,45,5306],[45,5307,45,5314],[45,5315,45,5322],[45,5563,45,5570],[45,5571,45,5578],[45,5579,45,5586],[45,5587,45,5594],[45,5595,45,5602],[45,5523,45,5530],[45,5531,45,5538],[45,5539,45,5546],[45,5547,45,5554],[45,5555,45,5562],[45,5483,45,5490],[45,5491,45,5498],[45,5499,45,5506],[45,5507,45,5514],[45,5515,45,5522],[45,5443,45,5450],[45,5451,45,5458],[45,5459,45,5466],[45,5467,45,5474],[45,5475,45,5482],[45,5723,45,5730],[45,5731,45,5738],[45,5739,45,5746],[45,5747,45,5754],[45,5755,45,5762],[45,5683,45,5690],[45,5691,45,5698],[45,5699,45,5706],[45,5707,45,5714],[45,5715,45,5722],[45,5643,45,5650],[45,5651,45,5658],[45,5659,45,5666],[45,5667,45,5674],[45,5675,45,5682],[45,5603,45,5610],[45,5611,45,5618],[45,5619,45,5626],[45,5627,45,5634],[45,5635,45,5642],[45,5883,45,5890],[45,5891,45,5898],[45,5899,45,5906],[45,5907,45,5914],[45,5915,45,5922],[45,5843,45,5850],[45,5851,45,5858],[45,5859,45,5866],[45,5867,45,5874],[45,5875,45,5882],[45,5803,45,5810],[45,5811,45,5818],[45,5819,45,5826],[45,5827,45,5834],[45,5835,45,5842],[45,5763,45,5770],[45,5771,45,5778],[45,5779,45,5786],[45,5787,45,5794],[45,5795,45,5802],[45,6043,45,6050],[45,6051,45,6058],[45,6059,45,6066],[45,6067,45,6074],[45,6075,45,6082],[45,6003,45,6010],[45,6011,45,6018],[45,6019,45,6026],[45,6027,45,6034],[45,6035,45,6042],[45,5963,45,5970],[45,5971,45,5978],[45,5979,45,5986],[45,5987,45,5994],[45,5995,45,6002],[45,5923,45,5930],[45,5931,45,5938],[45,5939,45,5946],[45,5947,45,5954],[45,5955,45,5962],[45,6203,45,6210],[45,6211,45,6218],[45,6219,45,6226],[45,6227,45,6234],[45,6235,45,6242],[45,6163,45,6170],[45,6171,45,6178],[45,6179,45,6186],[45,6187,45,6194],[45,6195,45,6202],[45,6123,45,6130],[45,6131,45,6138],[45,6139,45,6146],[45,6147,45,6154],[45,6155,45,6162],[45,6083,45,6090],[45,6091,45,6098],[45,6099,45,6106],[45,6107,45,6114],[45,6115,45,6122],[45,6363,45,6370],[45,6371,45,6378],[45,6379,45,6386],[45,6387,45,6394],[45,6395,45,6402],[45,6323,45,6330],[45,6331,45,6338],[45,6339,45,6346],[45,6347,45,6354],[45,6355,45,6362],[45,6283,45,6290],[45,6291,45,6298],[45,6299,45,6306],[45,6307,45,6314],[45,6315,45,6322],[45,6243,45,6250],[45,6251,45,6258],[45,6259,45,6266],[45,6267,45,6274],[45,6275,45,6282],[45,6523,45,6530],[45,6531,45,6538],[45,6539,45,6546],[45,6547,45,6554],[45,6555,45,6562],[45,6483,45,6490],[45,6491,45,6498],[45,6499,45,6506],[45,6507,45,6514],[45,6515,45,6522],[45,6443,45,6450],[45,6451,45,6458],[45,6459,45,6466],[45,6467,45,6474],[45,6475,45,6482],[45,6403,45,6410],[45,6411,45,6418],[45,6419,45,6426],[45,6427,45,6434],[45,6435,45,6442],[45,6683,45,6690],[45,6691,45,6698],[45,6699,45,6706],[45,6707,45,6714],[45,6715,45,6722],[45,6643,45,6650],[45,6651,45,6658],[45,6659,45,6666],[45,6667,45,6674],[45,6675,45,6682],[45,6603,45,6610],[45,6611,45,6618],[45,6619,45,6626],[45,6627,45,6634],[45,6635,45,6642],[45,6563,45,6570],[45,6571,45,6578],[45,6579,45,6586],[45,6587,45,6594],[45,6595,45,6602],[45,6843,45,6850],[45,6851,45,6858],[45,6859,45,6866],[45,6867,45,6874],[45,6875,45,6882],[45,6803,45,6810],[45,6811,45,6818],[45,6819,45,6826],[45,6827,45,6834],[45,6835,45,6842],[45,6763,45,6770],[45,6771,45,6778],[45,6779,45,6786],[45,6787,45,6794],[45,6795,45,6802],[45,6723,45,6730],[45,6731,45,6738],[45,6739,45,6746],[45,6747,45,6754],[45,6755,45,6762],[45,7003,45,7010],[45,7011,45,7018],[45,7019,45,7026],[45,7027,45,7034],[45,7035,45,7042],[45,6963,45,6970],[45,6971,45,6978],[45,6979,45,6986],[45,6987,45,6994],[45,6995,45,7002],[45,6923,45,6930],[45,6931,45,6938],[45,6939,45,6946],[45,6947,45,6954],[45,6955,45,6962],[45,6883,45,6890],[45,6891,45,6898],[45,6899,45,6906],[45,6907,45,6914],[45,6915,45,6922],[45,7163,45,7170],[45,7171,45,7178],[45,7179,45,7186],[45,7187,45,7194],[45,7195,45,7202],[45,7123,45,7130],[45,7131,45,7138],[45,7139,45,7146],[45,7147,45,7154],[45,7155,45,7162],[45,7083,45,7090],[45,7091,45,7098],[45,7099,45,7106],[45,7107,45,7114],[45,7115,45,7122],[45,7043,45,7050],[45,7051,45,7058],[45,7059,45,7066],[45,7067,45,7074],[45,7075,45,7082],[45,7323,45,7330],[45,7331,45,7338],[45,7339,45,7346],[45,7347,45,7354],[45,7355,45,7362],[45,7283,45,7290],[45,7291,45,7298],[45,7299,45,7306],[45,7307,45,7314],[45,7315,45,7322],[45,7243,45,7250],[45,7251,45,7258],[45,7259,45,7266],[45,7267,45,7274],[45,7275,45,7282],[45,7203,45,7210],[45,7211,45,7218],[45,7219,45,7226],[45,7227,45,7234],[45,7235,45,7242],[45,7483,45,7490],[45,7491,45,7498],[45,7499,45,7506],[45,7507,45,7514],[45,7515,45,7522],[45,7443,45,7450],[45,7451,45,7458],[45,7459,45,7466],[45,7467,45,7474],[45,7475,45,7482],[45,7403,45,7410],[45,7411,45,7418],[45,7419,45,7426],[45,7427,45,7434],[45,7435,45,7442],[45,7363,45,7370],[45,7371,45,7378],[45,7379,45,7386],[45,7387,45,7394],[45,7395,45,7402],[45,7643,45,7650],[45,7651,45,7658],[45,7659,45,7666],[45,7667,45,7674],[45,7675,45,7682],[45,7603,45,7610],[45,7611,45,7618]],"merged_total":2102,"flags":["merged_cut"]}
[null,null,null,null,null,null,null,null,null,null,null,null,null,null,null,null,null,null,null,"Verze k odeslání klientovi","Verze zpracovat","Verze k odeslání do pojišťovny (skrýt nevyplněné informace)"]
["Dotazník k pojištění",null,null,null,null,null,null,null,null,null,null,null,null,null,null,null,null,null,null,1,"SKRÝT","SKRÝT"]
["Profil klienta",null,null,null,null,null,null,null,null,null,null,null,null,null,null,null,null,null,null,"SKRÝT",1,1]
[null,null,null,null,null,null,null,null,null,null,null,null,null,null,null,null,null,null,null,1,1,1]
["Cílem tohoto dokumentu je shrnout informace potřebné k vypracování návrhu pojištění. Uveďte prosím požadované informace, které se týkají Vaší společnosti, nebo veškeré další informace, které považujete v této souvislosti za důležité. V případě potřeby uvádějte informace na samostatný list. Informace uvedené v tomto dokumentu jsou důvěrné a budou použity pouze pro potřebu pojištění. Neúplnost nebo nesprávnost sdělených informací mohou ovlivnit naše doporučení týkající se pojištění a samotnou kvalitu pojištění. Děkujeme za spolupráci.",null,null,null,null,null,null,null,null,null,null,null,null,null,null,null,null,null,null,1,"SKRÝT","SKRÝT"]
[null,null,null,null,null,null,null,null,null,null,null,null,null,null,null,null,null,null,null,1,"SKRÝT","SKRÝT"]
["Pojistník / Pojištěný:","Městská doprava Teplice, p.o.",null,null,null,null,null,null,null,null,null,null,null,null,null,null,null,null,null,1,1,1]
["Sídlo:","Emilie Dvořákové 70, Trnovany, 41501 Teplice",null,null,null,null,null,null,null,null,null,null,null,null,null,null,null,null,null,1,1,1]
["IČO:","17196264",null,null,null,null,null,null,null,null,null,null,null,null,null,null,null,null,null,1,1,1]
["Webová adresa:",null,null,null,null,null,null,null,null,null,null,null,null,null,null,null,null,null,null,1,1,{"$f":"IF(ISBLANK(B10),\"SKRÝT\",1)","v":"SKRÝT"}]
[null,null,null,null,null,null,null,null,null,null,null,null,null,null,null,null,null,null,null,1,1,1]
["Další pojištěný:",null,null,null,null,null,null,null,null,null,null,null,null,null,null,null,null,null,null,1,1,{"$f":"IF(ISBLANK(B12),\"SKRÝT\",1)","v":"SKRÝT"}]
["Sídlo:",null,null,null,null,null,null,null,null,null,null,null,null,null,null,null,null,null,null,1,1,{"$f":"IF(ISBLANK(B13),\"SKRÝT\",1)","v":"SKRÝT"}]
["IČO:",null,null,null,null,null,null,null,null,null,null,null,null,null,null,null,null,null,null,1,1,{"$f":"IF(ISBLANK(B14),\"SKRÝT\",1)","v":"SKRÝT"}]
["Webová adresa:",null,null,null,null,null,null,null,null,null,null,null,null,null,null,null,null,null,null,1,1,{"$f":"IF(ISBLANK(B15),\"SKRÝT\",1)","v":"SKRÝT"}]
[null,null,null,null,null,null,null,null,null,null,null,null,null,null,null,null,null,null,null,1,1,{"$f":"IF(ISBLANK(B12),\"SKRÝT\",1)","v":"SKRÝT"}]
["Další pojištěný:",null,null,null,null,null,null,null,null,null,null,null,null,null,null,null,null,null,null,1,1,{"$f":"IF(ISBLANK(B17),\"SKRÝT\",1)","v":"SKRÝT"}]
["Sídlo:",null,null,null,null,null,null,null,null,null,null,null,null,null,null,null,null,null,null,1,1,"SKRÝT"]
["IČO:",null,null,null,null,null,null,null,null,null,null,null,null,null,null,null,null,null,null,1,1,"SKRÝT"]
["Webová adresa:",null,null,null,null,null,null,null,null,null,null,null,null,null,null,null,null,null,null,1,1,"SKRÝT"]
[null,null,null,null,null,null,null,null,null,null,null,null,null,null,null,null,null,null,null,1,1,"SKRÝT"]
["Stručný popis činnosti pojištěného/ pojištěných:",null,null,null,null,null,null,null,null,null,null,null,null,null,null,null,null,null,null,"SKRÝT",1,"SKRÝT"]
[null,null,null,null,null,null,null,null,null,null,null,null,null,null,null,null,null,null,null,"SKRÝT",1,1]
["Počátek pojištění:","Od 1.1.2025 na dobu neurčitou ",null,null,null,null,null,null,null,null,null,null,null,null,null,null,null,null,null,1,1,1]
["Výpovědní doba:","6 měsíců - požadovaná textace uvedena v dokumentu ,,základní informace\" ",null,null,null,null,null,null,null,null,null,null,null,null,null,null,null,null,null,1,1,1]
["Pojistné:","s provizí makléře",null,"Splátky pojistného:","Roční",null,null,null,null,null,null,null,null,null,null,null,null,null,null,"SKRÝT",1,1]
[null,null,null,null,null,null,null,null,null,null,null,null,null,null,null,null,null,null,null,"SKRÝT",1,1]
["Makléřská doložka:","Do pojistné smlouvy požadujeme zahrnout následující znění makléřské doložky:",null,null,null,null,null,null,null,null,null,null,null,null,null,null,null,null,null,"SKRÝT",1,1]
[null,"Pojištěný pověřuje výhradně pojišťovací makléřskou společnost RENOMIA, a. s., se sídlem Holandská 8, 639 00 Brno, IČ: 48391301 (dále jen \"makléř\"), vedením (řízením) a zpracováním jeho pojistného zájmu. Veškerý styk, který se bude týkat této pojistné smlouvy, včetně hlášení pojistných událostí, bude prováděn výhradně prostřednictvím makléře. Prohlášení a jiné úkony pojištěného směřované pojistiteli jsou vůči pojistiteli účinné doručením makléři. Makléř je povinen o těchto úkonech pojistitele informovat bez zbytečného prodlení.",null,null,null,null,null,null,null,null,null,null,null,null,null,null,null,null,null,"SKRÝT",1,1]
[null,null,null,null,null,null,null,null,null,null,null,null,null,null,null,null,null,null,null,"SKRÝT",1,1]
["Inkaso pojistného:","Požadujeme inkaso pojistného. ",null,null,null,null,null,null,null,null,null,null,null,null,null,null,null,null,null,"SKRÝT",1,1]
[null,"Do pojistné smlouvy požadujeme vložit následující znění doložky: ",null,null,null,null,null,null,null,null,null,null,null,null,null,null,null,null,null,"SKRÝT",1,1]
[null,"Pojistné se považuje za uhrazené připsáním na účet pojišťovacího makléře, č.ú.5030018888/5500 vedený u Raiffeisenbank a.s., variabilní symbol: číslo PS",null,null,null,null,null,null,null,null,null,null,null,null,null,null,null,null,null,"SKRÝT",1,1]
[null,null,null,null,null,null,null,null,null,null,null,null,null,null,null,null,null,null,null,"SKRÝT",1,1]
["V nabídce uveďte, zda nabízíte:",null,null,null,null,null,null,null,null,null,null,null,null,null,null,null,null,null,null,"SKRÝT",1,1]
["Bonifikace za příznivý škodní průběh",null,null,null,null,null,null,null,null,null,null,null,null,null,null,null,null,null,null,"SKRÝT",1,1]
["Škodní průběh do 10%",null,"Sleva z ročního pojistného min. 20%",null,null,null,null,null,null,null,null,null,null,null,null,null,null,null,null,"SKRÝT",1,1]
["Škodní průběh do 20%",null,"Sleva z ročního pojistného min. 15%",null,null,null,null,null,null,null,null,null,null,null,null,null,null,null,null,"SKRÝT",1,1]
["Škodní průběh do 30%",null,"Sleva z ročního pojistného min. 10%",null,null,null,null,null,null,null,null,null,null,null,null,null,null,null,null,"SKRÝT",1,1]
["Bonifikaci za příznvý škodný průběh zařadit do požadovaých odvětví viz. dokument základní informace.",null,null,null,null,null,null,null,null,null,null,null,null,null,null,null,null,null,null,"SKRÝT",1,1]
["Poskytnutí dodatačné slevy za dlouhodobost ",null,null,null,null,null,null,null,null,null,null,null,null,null,null,null,null,null,null,"SKRÝT",1,1]
["Po ukončení 1 roku pojištění ",null,"5% z ročního pojistnéo",null,null,null,null,null,null,null,null,null,null,null,null,null,null,null,null,"SKRÝT",1,1]
["Po ukončení 2 roku pojištění ",null,"10% z ročního pojstného"]
["Po ukončení 3 roku pojištění a každý následný rok",null,"15% z ročního pojistného",null,null,null,null,null,null,null,null,null,null,null,null,null,null,null,null,"SKRÝT",1,1]
["Text požadovaného ujednání: Pokud pojistník/pojištěný způsobí zánik pojištění dříve než za 4 roky od data nabytí jeho účinnosti, zavazuje se pojistník/pojištěný uhradit částku odpovídající poskytnuté slevě za dobu trvání pojištění.V případě, že k ukončení smluvního vztahu dojde na základě naplnění podmínek vyplývajících ze zákona, které pojistníkovi / pojištěnému neumožní pokračovat ve smluvním vztahu (např. pokud dojde v průběhu smluvního vztahu k takové změně závazku ze smlouvy na veřejnou zakázku, že se dle zákona již bude jednat o podstatnou změnu závazku, již nesmí zadavatel umožnit,  nebo na základě jiných skutečností, na něž nemá pojistník / pojištěný žádný vliv), a bude v důsledku toho muset smluvní vztah ukončit, nebude pojistník/pojištěný  povinen částku odpovídající poskytnuté slevě uhradit."]
["Přehled škod"]
[null,null,null,null,null,null,null,null,null,null,null,null,null,null,null,null,null,null,null,1,1,1]
[null,null,null,null,null,null,null,null,null,null,null,null,null,null,null,null,null,null,null,"SKRÝT",1,1]
[null,null,null,null,null,null,null,null,null,null,null,null,null,null,null,null,null,null,null,"SKRÝT",1,1]
["Uveďte prosím škody za posledních 5 let. V případě, že požadujete pojištění záplavy a povodně, uveďte prosím všechny známé škody ze záplavy, povodně (tzn. i škody starší 5 let).",null,null,null,null,null,null,null,null,null,null,null,null,null,null,null,null,null,null,1,"SKRÝT","SKRÝT"]
["Datum vzniku","Pojistný produkt/ \npojistné nebezpečí","Popis škody",null,"Odhad výše škody \n(pokud není známa konečná výše)","Konečná výše škody",null,null,null,null,null,null,null,null,null,null,null,null,null,1,1,1]
["Klient nemá ani neeviduje žádné škody",null,null,null,null,null,null,null,null,null,null,null,null,null,null,null,null,null,null,1,1,1]
[null,null,null,null,null,null,null,null,null,null,null,null,null,null,{"$f":"IF(ISBLANK(A53),\"SKRÝT\",1)","v":"SKRÝT"},"SKRÝT","SKRÝT",{"$f":"IF(ISBLANK(E53),\"SKRÝT\",1)","v":"SKRÝT"},{"$f":"IF(ISBLANK(F53),\"SKRÝT\",1)","v":"SKRÝT"},1,1,{"$f":"IF(AND(O53=\"SKRÝT\",P53=\"SKRÝT\",Q53=\"SKRÝT\",R53=\"SKRÝT\",S53=\"SKRÝT\"),\"SKRÝT\",1)","v":"SKRÝT"}]
[null,null,null,null,null,null,null,null,null,null,null,null,null,null,"SKRÝT","SKRÝT","SKRÝT",{"$f":"IF(ISBLANK(E54),\"SKRÝT\",1)","v":"SKRÝT"},{"$f":"IF(ISBLANK(F54),\"SKRÝT\",1)","v":"SKRÝT"},1,1,{"$f":"IF(ISBLANK(B54),\"SKRÝT\",1)","v":"SKRÝT"}]
[null,null,null,null,null,null,null,null,null,null,null,null,null,null,{"$f":"IF(ISBLANK(A55),\"SKRÝT\",1)","v":"SKRÝT"},{"$f":"IF(ISBLANK(B55),\"SKRÝT\",1)","v":"SKRÝT"},{"$f":"IF(ISBLANK(C55),\"SKRÝT\",1)","v":"SKRÝT"},{"$f":"IF(ISBLANK(E55),\"SKRÝT\",1)","v":"SKRÝT"},{"$f":"IF(ISBLANK(F55),\"SKRÝT\",1)","v":"SKRÝT"},1,1,"SKRÝT"]
[null,null,null,null,null,null,null,null,null,null,null,null,null,null,"SKRÝT","SKRÝT","SKRÝT","SKRÝT","SKRÝT",1,1,"SKRÝT"]
[null,null,null,null,null,null,null,null,null,null,null,null,null,null,"SKRÝT","SKRÝT","SKRÝT","SKRÝT","SKRÝT",1,1,"SKRÝT"]
[null,null,null,null,null,null,null,null,null,null,null,null,null,null,"SKRÝT","SKRÝT","SKRÝT","SKRÝT","SKRÝT",1,1,"SKRÝT"]
[null,null,null,null,null,null,null,null,null,null,null,null,null,null,"SKRÝT","SKRÝT","SKRÝT","SKRÝT","SKRÝT",1,1,"SKRÝT"]
[null,null,null,null,null,null,null,null,null,null,null,null,null,null,"SKRÝT","SKRÝT","SKRÝT","SKRÝT","SKRÝT",1,1,"SKRÝT"]
[null,null,null,null,null,null,null,null,null,null,null,null,null,null,"SKRÝT","SKRÝT","SKRÝT","SKRÝT","SKRÝT",1,1,"SKRÝT"]
[null,null,null,null,null,null,null,null,null,null,null,null,null,null,"SKRÝT","SKRÝT","SKRÝT","SKRÝT","SKRÝT",1,1,"SKRÝT"]
[null,null,null,null,null,null,null,null,null,null,null,null,null,null,null,null,null,null,null,1,1,1]
["Forma i obsah  tohoto profilu klienta, včetně jejich příloh, je výhradním know-how RENOMIA, a. s., které podléhá právní ochraně  (§ 2976 a násl. ObčZ, § 248 TrZ). Pojistitel je oprávněn pouze k omezenému užití tohoto know-how, a to výhradně pro účely zpracování nabídky pro RENOMIA, a. s. Jakékoliv jiné užívání včetně dalšího šíření je zakázáno. V případě porušení práv k know-how uplatní RENOMIA, a. s., všech právních prostředků k jejich obraně včetně veškerých sankcí. ",null,null,null,null,null,null,null,null,null,null,null,null,null,null,null,null,null,null,"SKRÝT",1,1]
["Prohlašujeme tímto, že všechny informace uvedené v tomto dokumentu jsou úplné, pravdivé a přesné a taktéž, že informace nám byly poskytnuty srozumitelně, jasně a přesně. Zavazujeme se, že budeme informovat zprostředkovatele pojištění a pojistitele o podstatných změnách ohledně zaznamenaných skutečností, ke kterým by došlo před uzavřením nebo po uzavření pojistné smlouvy. Zároveň souhlasíme s tím, aby informace sdělené v tomto dokumentu byly použity pro účely předsmluvní dokumentace a informační povinnosti pojistitele. Tento dokument obsahuje informace důvěrného charakteru. Žádná část dokumentu nesmí být kopírována, uveřejněna či jinak poskytnuta třetí straně bez předchozího písemného souhlasu RENOMIA, a.s.",null,null,null,null,null,null,null,null,null,null,null,null,null,null,null,null,null,null,1,"SKRÝT","SKRÝT"]
["Datum:",null,null,null,"Za klienta","………………………",null,null,null,null,null,null,null,null,null,null,null,null,null,1,"SKRÝT","SKRÝT"]
[null,null,null,null,null,"Razítko a podpis",null,null,null,null,null,null,null,null,null,null,null,null,null,1,"SKRÝT","SKRÝT"]
["Datum:",null,null,null,"Za RENOMIA, a. s.","………………………",null,null,null,null,null,null,null,null,null,null,null,null,null,1,"SKRÝT","SKRÝT"]
[null,null,null,null,null,"Jméno a příjmení",null,null,null,null,null,null,null,null,null,null,null,null,null,1,"SKRÝT","SKRÝT"]

{"sheet":"Majetek_info_o_riziku","index":3,"n_rows":24,"n_cols":22,"rows_kept":24,"cut":false,"hidden":true,"merged":[[21,0,21,1],[22,0,22,1],[23,0,23,1],[12,0,12,1],[13,0,13,1],[14,0,14,1],[15,0,15,1],[16,0,18,0],[19,0,19,1],[7,0,7,6],[9,0,9,6],[10,0,10,1],[10,2,10,6],[20,0,20,1]]}
[null,null,null,null,null,null,null,null,null,null,null,null,null,null,null,null,null,null,null,"Verze k odeslání klientovi","Verze zpracovat","Verze k odeslání do pojišťovny (skrýt nevyplněné informace)"]
[null,null,null,null,null,null,null,null,null,null,null,null,null,null,null,null,null,null,null,1,1,1]
[null,null,null,null,null,null,null,null,null,null,null,null,null,null,null,null,null,null,null,1,1,1]
[null,null,null,null,null,null,null,null,null,null,null,null,null,null,null,null,null,null,null,1,1,1]
[null,null,null,null,null,null,null,null,null,null,null,null,null,null,null,null,null,null,null,1,1,1]
[null,null,null,null,null,null,null,null,null,null,null,null,null,null,null,null,null,null,null,1,1,1]
[null,null,null,null,null,null,null,null,null,null,null,null,null,null,null,null,null,null,null,1,1,1]
["Pojištění majetku - informace o riziku",null,null,null,null,null,null,null,null,null,null,null,null,null,null,null,null,null,null,1,1,1]
[null,null,null,null,null,null,null,null,null,null,null,null,null,null,null,null,null,null,null,1,1,1]
["Informace se týkají objektů v místě pojištění s největší hodnotou majetku.",null,null,null,null,null,null,null,null,null,null,null,null,null,null,null,null,null,null,1,1,1]
[null,null,"Popis jednotlivých objektů",null,null,null,null,null,null,null,null,null,null,null,null,null,null,null,null,1,1,{"$f":"IF(AND(V12=\"SKRÝT\",V13=\"SKRÝT\",V14=\"SKRÝT\",V15=\"SKRÝT\",V16=\"SKRÝT\",V17=\"SKRÝT\",V18=\"SKRÝT\",V19=\"SKRÝT\",V20=\"SKRÝT\",V21=\"SKRÝT\",V22=\"SKRÝT\",V23=\"SKRÝT\",V24=\"SKRÝT\"),\"SKRÝT\",1)","v":"SKRÝT"}]
["Název objektu",null,null,null,null,null,null,null,null,null,null,null,null,null,{"$f":"IF(ISBLANK(C12),\"SKRÝT\",1)","v":"SKRÝT"},{"$f":"IF(ISBLANK(D12),\"SKRÝT\",1)","v":"SKRÝT"},{"$f":"IF(ISBLANK(E12),\"SKRÝT\",1)","v":"SKRÝT"},{"$f":"IF(ISBLANK(F12),\"SKRÝT\",1)","v":"SKRÝT"},{"$f":"IF(ISBLANK(G12),\"SKRÝT\",1)","v":"SKRÝT"},1,1,{"$f":"IF(AND(O12=\"SKRÝT\",P12=\"SKRÝT\",Q12=\"SKRÝT\",R12=\"SKRÝT\",S12=\"SKRÝT\"),\"SKRÝT\",1)","v":"SKRÝT"}]
["Převažující konstrukce objektu (železobetonová (ŽB), zděná, ocelová, dřevěná)",null,null,null,null,null,null,null,null,null,null,null,null,null,{"$f":"IF(ISBLANK(C13),\"SKRÝT\",1)","v":"SKRÝT"},{"$f":"IF(ISBLANK(D13),\"SKRÝT\",1)","v":"SKRÝT"},{"$f":"IF(ISBLANK(E13),\"SKRÝT\",1)","v":"SKRÝT"},{"$f":"IF(ISBLANK(F13),\"SKRÝT\",1)","v":"SKRÝT"},{"$f":"IF(ISBLANK(G13),\"SKRÝT\",1)","v":"SKRÝT"},1,1,{"$f":"IF(AND(O13=\"SKRÝT\",P13=\"SKRÝT\",Q13=\"SKRÝT\",R13=\"SKRÝT\",S13=\"SKRÝT\"),\"SKRÝT\",1)","v":"SKRÝT"}]
["Počet nadzemních (NP) a podzemních (PP) podlaží",null,null,null,null,null,null,null,null,null,null,null,null,null,"SKRÝT","SKRÝT","SKRÝT","SKRÝT","SKRÝT",1,1,"SKRÝT"]
["Způsob skladování zásob (volná plocha, regálové sklady,  apod.)",null,null,null,null,null,null,null,null,null,null,null,null,null,"SKRÝT","SKRÝT","SKRÝT","SKRÝT","SKRÝT",1,1,"SKRÝT"]
["Celková plocha skladování/ max. výška skladování",null,null,null,null,null,null,null,null,null,null,null,null,null,"SKRÝT","SKRÝT","SKRÝT","SKRÝT","SKRÝT",1,1,{"$f":"IF(AND(O16=\"SKRÝT\",P16=\"SKRÝT\",Q16=\"SKRÝT\",R16=\"SKRÝT\",S16=\"SKRÝT\"),\"SKRÝT\",1)","v":"SKRÝT"}]
["Jaká je povaha skladovaných zásob v %?","hořlavé",null,null,null,null,null,null,null,null,null,null,null,null,"SKRÝT","SKRÝT","SKRÝT","SKRÝT","SKRÝT",1,1,"SKRÝT"]
[null,"nehořlavé",null,null,null,null,null,null,null,null,null,null,null,null,"SKRÝT","SKRÝT","SKRÝT","SKRÝT","SKRÝT",1,1,"SKRÝT"]
[null,"výbušné",null,null,null,null,null,null,null,null,null,null,null,null,"SKRÝT","SKRÝT","SKRÝT","SKRÝT","SKRÝT",1,1,"SKRÝT"]
["K jakému účelu slouží podzemní podlaží? (skladování, kotelna, strojovna výtahu, strojovna vzduchotechniky, apod.)",null,null,null,null,null,null,null,null,null,null,null,null,null,"SKRÝT","SKRÝT","SKRÝT","SKRÝT","SKRÝT",1,1,"SKRÝT"]
["Byly v minulosti objekty zasaženy povodní? Pokud ANO - kdy, rozsah a výše škod",null,null,null,null,null,null,null,null,null,null,null,null,null,"SKRÝT","SKRÝT","SKRÝT","SKRÝT","SKRÝT",1,1,"SKRÝT"]
["Je objekt vybaven elektronickým zabezpečovacím systémem (EZS) proti krádeži? Pokud ANO, jaké je procento pokrytí.",null,null,null,null,null,null,null,null,null,null,null,null,null,"SKRÝT","SKRÝT","SKRÝT","SKRÝT","SKRÝT",1,1,"SKRÝT"]
["Je objekt vybaven systémem automatické detekce požáru (EPS)? Pokud ANO, jaké je procento pokrytí.",null,null,null,null,null,null,null,null,null,null,null,null,null,"SKRÝT","SKRÝT","SKRÝT","SKRÝT","SKRÝT",1,1,"SKRÝT"]
["Je objekt vybaven systémem stabilního hasicího zařízení (např. sprinklery)? Pokud ANO, jaké je procento pokrytí.",null,null,null,null,null,null,null,null,null,null,null,null,null,"SKRÝT","SKRÝT","SKRÝT","SKRÝT","SKRÝT",1,1,"SKRÝT"]

{"sheet":"Majetek","index":4,"n_rows":181,"n_cols":22,"rows_kept":181,"cut":false,"hidden":false,"merged":[[171,0,171,3],[107,16336,107,16343],[107,16344,107,16351],[107,16352,107,16359],[107,16360,107,16367],[107,16368,107,16375],[107,16376,107,16383],[109,0,109,6],[110,0,110,6],[107,16264,107,16271],[107,16272,107,16279],[107,16280,107,16287],[107,16288,107,16295],[107,16296,107,16303],[107,16304,107,16311],[107,16312,107,16319],[107,16320,107,16327],[107,16328,107,16335],[107,16192,107,16199],[107,16200,107,16207],[107,16208,107,16215],[107,16216,107,16223],[107,16224,107,16231],[107,16232,107,16239],[107,16240,107,16247],[107,16248,107,16255],[107,16256,107,16263],[107,16120,107,16127],[107,16128,107,16135],[107,16136,107,16143],[107,16144,107,16151],[107,16152,107,16159],[107,16160,107,16167],[107,16168,107,16175],[107,16176,107,16183],[107,16184,107,16191],[107,16048,107,16055],[107,16056,107,16063],[107,16064,107,16071],[107,16072,107,16079],[107,16080,107,16087],[107,16088,107,16095],[107,16096,107,16103],[107,16104,107,16111],[107,16112,107,16119],[107,15976,107,15983],[107,15984,107,15991],[107,15992,107,15999],[107,16000,107,16007],[107,16008,107,16015],[107,16016,107,16023],[107,16024,107,16031],[107,16032,107,16039],[107,16040,107,16047],[107,15904,107,15911],[107,15912,107,15919],[107,15920,107,15927],[107,15928,107,15935],[107,15936,107,15943],[107,15944,107,15951],[107,15952,107,15959],[107,15960,107,15967],[107,15968,107,15975],[107,15832,107,15839],[107,15840,107,15847],[107,15848,107,15855],[107,15856,107,15863],[107,15864,107,15871],[107,15872,107,15879],[107,15880,107,15887],[107,15888,107,15895],[107,15896,107,15903],[107,15760,107,15767],[107,15768,107,15775],[107,15776,107,15783],[107,15784,107,15791],[107,15792,107,15799],[107,15800,107,15807],[107,15808,107,15815],[107,15816,107,15823],[107,15824,107,15831],[107,15688,107,15695],[107,15696,107,15703],[107,15704,107,15711],[107,15712,107,15719],[107,15720,107,15727],[107,15728,107,15735],[107,15736,107,15743],[107,15744,107,15751],[107,15752,107,15759],[107,15616,107,15623],[107,15624,107,15631],[107,15632,107,15639],[107,15640,107,15647],[107,15648,107,15655],[107,15656,107,15663],[107,15664,107,15671],[107,15672,107,15679],[107,15680,107,15687],[107,15544,107,15551],[107,15552,107,15559],[107,15560,107,15567],[107,15568,107,15575],[107,15576,107,15583],[107,15584,107,15591],[107,15592,107,15599],[107,15600,107,15607],[107,15608,107,15615],[107,15472,107,15479],[107,15480,107,15487],[107,15488,107,15495],[107,15496,107,15503],[107,15504,107,15511],[107,15512,107,15519],[107,15520,107,15527],[107,15528,107,15535],[107,15536,107,15543],[107,15400,107,15407],[107,15408,107,15415],[107,15416,107,15423],[107,15424,107,15431],[107,15432,107,15439],[107,15440,107,15447],[107,15448,107,15455],[107,15456,107,15463],[107,15464,107,15471],[107,15328,107,15335],[107,15336,107,15343],[107,15344,107,15351],[107,15352,107,15359],[107,15360,107,15367],[107,15368,107,15375],[107,15376,107,15383],[107,15384,107,15391],[107,15392,107,15399],[107,15256,107,15263],[107,15264,107,15271],[107,15272,107,15279],[107,15280,107,15287],[107,15288,107,15295],[107,15296,107,15303],[107,15304,107,15311],[107,15312,107,15319],[107,15320,107,15327],[107,15184,107,15191],[107,15192,107,15199],[107,15200,107,15207],[107,15208,107,15215],[107,15216,107,15223],[107,15224,107,15231],[107,15232,107,15239],[107,15240,107,15247],[107,15248,107,15255],[107,15112,107,15119],[107,15120,107,15127],[107,15128,107,15135],[107,15136,107,15143],[107,15144,107,15151],[107,15152,107,15159],[107,15160,107,15167],[107,15168,107,15175],[107,15176,107,15183],[107,15040,107,15047],[107,15048,107,15055],[107,15056,107,15063],[107,15064,107,15071],[107,15072,107,15079],[107,15080,107,15087],[107,15088,107,15095],[107,15096,107,15103],[107,15104,107,15111],[107,14968,107,14975],[107,14976,107,14983],[107,14984,107,14991],[107,14992,107,14999],[107,15000,107,15007],[107,15008,107,15015],[107,15016,107,15023],[107,15024,107,15031],[107,15032,107,15039],[107,14896,107,14903],[107,14904,107,14911],[107,14912,107,14919],[107,14920,107,14927],[107,14928,107,14935],[107,14936,107,14943],[107,14944,107,14951],[107,14952,107,14959],[107,14960,107,14967],[107,14824,107,14831],[107,14832,107,14839],[107,14840,107,14847],[107,14848,107,14855],[107,14856,107,14863],[107,14864,107,14871],[107,14872,107,14879],[107,14880,107,14887],[107,14888,107,14895],[107,14752,107,14759],[107,14760,107,14767],[107,14768,107,14775],[107,14776,107,14783],[107,14784,107,14791],[107,14792,107,14799],[107,14800,107,14807],[107,14808,107,14815],[107,14816,107,14823],[107,14680,107,14687],[107,14688,107,14695],[107,14696,107,14703],[107,14704,107,14711],[107,14712,107,14719],[107,14720,107,14727],[107,14728,107,14735],[107,14736,107,14743],[107,14744,107,14751],[107,14608,107,14615],[107,14616,107,14623],[107,14624,107,14631],[107,14632,107,14639],[107,14640,107,14647],[107,14648,107,14655],[107,14656,107,14663],[107,14664,107,14671],[107,14672,107,14679],[107,14536,107,14543],[107,14544,107,14551],[107,14552,107,14559],[107,14560,107,14567],[107,14568,107,14575],[107,14576,107,14583],[107,14584,107,14591],[107,14592,107,14599],[107,14600,107,14607],[107,14464,107,14471],[107,14472,107,14479],[107,14480,107,14487],[107,14488,107,14495],[107,14496,107,14503],[107,14504,107,14511],[107,14512,107,14519],[107,14520,107,14527],[107,14528,107,14535],[107,14392,107,14399],[107,14400,107,14407],[107,14408,107,14415],[107,14416,107,14423],[107,14424,107,14431],[107,14432,107,14439],[107,14440,107,14447],[107,14448,107,14455],[107,14456,107,14463],[107,14320,107,14327],[107,14328,107,14335],[107,14336,107,14343],[107,14344,107,14351],[107,14352,107,14359],[107,14360,107,14367],[107,14368,107,14375],[107,14376,107,14383],[107,14384,107,14391],[107,14248,107,14255],[107,14256,107,14263],[107,14264,107,14271],[107,14272,107,14279],[107,14280,107,14287],[107,14288,107,14295],[107,14296,107,14303],[107,14304,107,14311],[107,14312,107,14319],[107,14176,107,14183],[107,14184,107,14191],[107,14192,107,14199],[107,14200,107,14207],[107,14208,107,14215],[107,14216,107,14223],[107,14224,107,14231],[107,14232,107,14239],[107,14240,107,14247],[107,14104,107,14111],[107,14112,107,14119],[107,14120,107,14127],[107,14128,107,14135],[107,14136,107,14143],[107,14144,107,14151],[107,14152,107,14159],[107,14160,107,14167],[107,14168,107,14175],[107,14032,107,14039],[107,14040,107,14047],[107,14048,107,14055],[107,14056,107,14063],[107,14064,107,14071],[107,14072,107,14079],[107,14080,107,14087],[107,14088,107,14095],[107,14096,107,14103],[107,13960,107,13967],[107,13968,107,13975],[107,13976,107,13983],[107,13984,107,13991],[107,13992,107,13999],[107,14000,107,14007],[107,14008,107,14015],[107,14016,107,14023],[107,14024,107,14031],[107,13888,107,13895],[107,13896,107,13903],[107,13904,107,13911],[107,13912,107,13919],[107,13920,107,13927],[107,13928,107,13935],[107,13936,107,13943],[107,13944,107,13951],[107,13952,107,13959],[107,13816,107,13823],[107,13824,107,13831],[107,13832,107,13839],[107,13840,107,13847],[107,13848,107,13855],[107,13856,107,13863],[107,13864,107,13871],[107,13872,107,13879],[107,13880,107,13887],[107,13744,107,13751],[107,13752,107,13759],[107,13760,107,13767],[107,13768,107,13775],[107,13776,107,13783],[107,13784,107,13791],[107,13792,107,13799],[107,13800,107,13807],[107,13808,107,13815],[107,13672,107,13679],[107,13680,107,13687],[107,13688,107,13695],[107,13696,107,13703],[107,13704,107,13711],[107,13712,107,13719],[107,13720,107,13727],[107,13728,107,13735],[107,13736,107,13743],[107,13600,107,13607],[107,13608,107,13615],[107,13616,107,13623],[107,13624,107,13631],[107,13632,107,13639],[107,13640,107,13647],[107,13648,107,13655],[107,13656,107,13663],[107,13664,107,13671],[107,13528,107,13535],[107,13536,107,13543],[107,13544,107,13551],[107,13552,107,13559],[107,13560,107,13567],[107,13568,107,13575],[107,13576,107,13583],[107,13584,107,13591],[107,13592,107,13599],[107,13456,107,13463],[107,13464,107,13471],[107,13472,107,13479],[107,13480,107,13487],[107,13488,107,13495],[107,13496,107,13503],[107,13504,107,13511],[107,13512,107,13519],[107,13520,107,13527],[107,13384,107,13391],[107,13392,107,13399],[107,13400,107,13407],[107,13408,107,13415],[107,13416,107,13423],[107,13424,107,13431],[107,13432,107,13439],[107,13440,107,13447],[107,13448,107,13455],[107,13312,107,13319],[107,13320,107,13327],[107,13328,107,13335],[107,13336,107,13343],[107,13344,107,13351],[107,13352,107,13359],[107,13360,107,13367],[107,13368,107,13375],[107,13376,107,13383],[107,13240,107,13247],[107,13248,107,13255],[107,13256,107,13263],[107,13264,107,13271],[107,13272,107,13279],[107,13280,107,13287],[107,13288,107,13295],[107,13296,107,13303],[107,13304,107,13311],[107,13168,107,13175],[107,13176,107,13183],[107,13184,107,13191],[107,13192,107,13199],[107,13200,107,13207],[107,13208,107,13215],[107,13216,107,13223],[107,13224,107,13231],[107,13232,107,13239],[107,13096,107,13103],[107,13104,107,13111],[107,13112,107,13119],[107,13120,107,13127],[107,13128,107,13135],[107,13136,107,13143],[107,13144,107,13151],[107,13152,107,13159],[107,13160,107,13167],[107,13024,107,13031],[107,13032,107,13039],[107,13040,107,13047],[107,13048,107,13055],[107,13056,107,13063],[107,13064,107,13071],[107,13072,107,13079],[107,13080,107,13087],[107,13088,107,13095],[107,12952,107,12959],[107,12960,107,12967],[107,12968,107,12975],[107,12976,107,12983],[107,12984,107,12991],[107,12992,107,12999],[107,13000,107,13007],[107,13008,107,13015],[107,13016,107,13023],[107,12880,107,12887],[107,12888,107,12895],[107,12896,107,12903],[107,12904,107,12911],[107,12912,107,12919],[107,12920,107,12927],[107,12928,107,12935],[107,12936,107,12943],[107,12944,107,12951],[107,12808,107,12815],[107,12816,107,12823],[107,12824,107,12831],[107,12832,107,12839],[107,12840,107,12847],[107,12848,107,12855],[107,12856,107,12863],[107,12864,107,12871],[107,12872,107,12879],[107,12736,107,12743],[107,12744,107,12751],[107,12752,107,12759],[107,12760,107,12767],[107,12768,107,12775],[107,12776,107,12783],[107,12784,107,12791],[107,12792,107,12799],[107,12800,107,12807],[107,12664,107,12671],[107,12672,107,12679],[107,12680,107,12687],[107,12688,107,12695],[107,12696,107,12703],[107,12704,107,12711],[107,12712,107,12719],[107,12720,107,12727],[107,12728,107,12735],[107,12592,107,12599],[107,12600,107,12607],[107,12608,107,12615],[107,12616,107,12623],[107,12624,107,12631],[107,12632,107,12639],[107,12640,107,12647],[107,12648,107,12655],[107,12656,107,12663],[107,12520,107,12527],[107,12528,107,12535],[107,12536,107,12543],[107,12544,107,12551],[107,12552,107,12559],[107,12560,107,12567],[107,12568,107,12575],[107,12576,107,12583],[107,12584,107,12591],[107,12448,107,12455],[107,12456,107,12463],[107,12464,107,12471],[107,12472,107,12479],[107,12480,107,12487],[107,12488,107,12495],[107,12496,107,12503],[107,12504,107,12511],[107,12512,107,12519],[107,12376,107,12383],[107,12384,107,12391],[107,12392,107,12399],[107,12400,107,12407],[107,12408,107,12415],[107,12416,107,12423],[107,12424,107,12431],[107,12432,107,12439],[107,12440,107,12447],[107,12304,107,12311],[107,12312,107,12319],[107,12320,107,12327],[107,12328,107,12335],[107,12336,107,12343],[107,12344,107,12351],[107,12352,107,12359],[107,12360,107,12367],[107,12368,107,12375],[107,12232,107,12239],[107,12240,107,12247],[107,12248,107,12255],[107,12256,107,12263],[107,12264,107,12271],[107,12272,107,12279],[107,12280,107,12287],[107,12288,107,12295],[107,12296,107,12303],[107,12160,107,12167],[107,12168,107,12175],[107,12176,107,12183],[107,12184,107,12191],[107,12192,107,12199],[107,12200,107,12207],[107,12208,107,12215],[107,12216,107,12223],[107,12224,107,12231],[107,12088,107,12095],[107,12096,107,12103],[107,12104,107,12111],[107,12112,107,12119],[107,12120,107,12127],[107,12128,107,12135],[107,12136,107,12143],[107,12144,107,12151],[107,12152,107,12159],[107,12016,107,12023],[107,12024,107,12031],[107,12032,107,12039],[107,12040,107,12047],[107,12048,107,12055],[107,12056,107,12063],[107,12064,107,12071],[107,12072,107,12079],[107,12080,107,12087],[107,11944,107,11951],[107,11952,107,11959],[107,11960,107,11967],[107,11968,107,11975],[107,11976,107,11983],[107,11984,107,11991],[107,11992,107,11999],[107,12000,107,12007],[107,12008,107,12015],[107,11872,107,11879],[107,11880,107,11887],[107,11888,107,11895],[107,11896,107,11903],[107,11904,107,11911],[107,11912,107,11919],[107,11920,107,11927],[107,11928,107,11935],[107,11936,107,11943],[107,11800,107,11807],[107,11808,107,11815],[107,11816,107,11823],[107,11824,107,11831],[107,11832,107,11839],[107,11840,107,11847],[107,11848,107,11855],[107,11856,107,11863],[107,11864,107,11871],[107,11728,107,11735],[107,11736,107,11743],[107,11744,107,11751],[107,11752,107,11759],[107,11760,107,11767],[107,11768,107,11775],[107,11776,107,11783],[107,11784,107,11791],[107,11792,107,11799],[107,11656,107,11663],[107,11664,107,11671],[107,11672,107,11679],[107,11680,107,11687],[107,11688,107,11695],[107,11696,107,11703],[107,11704,107,11711],[107,11712,107,11719],[107,11720,107,11727],[107,11584,107,11591],[107,11592,107,11599],[107,11600,107,11607],[107,11608,107,11615],[107,11616,107,11623],[107,11624,107,11631],[107,11632,107,11639],[107,11640,107,11647],[107,11648,107,11655],[107,11512,107,11519],[107,11520,107,11527],[107,11528,107,11535],[107,11536,107,11543],[107,11544,107,11551],[107,11552,107,11559],[107,11560,107,11567],[107,11568,107,11575],[107,11576,107,11583],[107,11440,107,11447],[107,11448,107,11455],[107,11456,107,11463],[107,11464,107,11471],[107,11472,107,11479],[107,11480,107,11487],[107,11488,107,11495],[107,11496,107,11503],[107,11504,107,11511],[107,11368,107,11375],[107,11376,107,11383],[107,11384,107,11391],[107,11392,107,11399],[107,11400,107,11407],[107,11408,107,11415],[107,11416,107,11423],[107,11424,107,11431],[107,11432,107,11439],[107,11296,107,11303],[107,11304,107,11311],[107,11312,107,11319],[107,11320,107,11327],[107,11328,107,11335],[107,11336,107,11343],[107,11344,107,11351],[107,11352,107,11359],[107,11360,107,11367],[107,11224,107,11231],[107,11232,107,11239],[107,11240,107,11247],[107,11248,107,11255],[107,11256,107,11263],[107,11264,107,11271],[107,11272,107,11279],[107,11280,107,11287],[107,11288,107,11295],[107,11152,107,11159],[107,11160,107,11167],[107,11168,107,11175],[107,11176,107,11183],[107,11184,107,11191],[107,11192,107,11199],[107,11200,107,11207],[107,11208,107,11215],[107,11216,107,11223],[107,11080,107,11087],[107,11088,107,11095],[107,11096,107,11103],[107,11104,107,11111],[107,11112,107,11119],[107,11120,107,11127],[107,11128,107,11135],[107,11136,107,11143],[107,11144,107,11151],[107,11008,107,11015],[107,11016,107,11023],[107,11024,107,11031],[107,11032,107,11039],[107,11040,107,11047],[107,11048,107,11055],[107,11056,107,11063],[107,11064,107,11071],[107,11072,107,11079],[107,10936,107,10943],[107,10944,107,10951],[107,10952,107,10959],[107,10960,107,10967],[107,10968,107,10975],[107,10976,107,10983],[107,10984,107,10991],[107,10992,107,10999],[107,11000,107,11007],[107,10864,107,10871],[107,10872,107,10879],[107,10880,107,10887],[107,10888,107,10895],[107,10896,107,10903],[107,10904,107,10911],[107,10912,107,10919],[107,10920,107,10927],[107,10928,107,10935],[107,10792,107,10799],[107,10800,107,10807],[107,10808,107,10815],[107,10816,107,10823],[107,10824,107,10831],[107,10832,107,10839],[107,10840,107,10847],[107,10848,107,10855],[107,10856,107,10863],[107,10720,107,10727],[107,10728,107,10735],[107,10736,107,10743],[107,10744,107,10751],[107,10752,107,10759],[107,10760,107,10767],[107,10768,107,10775],[107,10776,107,10783],[107,10784,107,10791],[107,10648,107,10655],[107,10656,107,10663],[107,10664,107,10671],[107,10672,107,10679],[107,10680,107,10687],[107,10688,107,10695],[107,10696,107,10703],[107,10704,107,10711],[107,10712,107,10719],[107,10576,107,10583],[107,10584,107,10591],[107,10592,107,10599],[107,10600,107,10607],[107,10608,107,10615],[107,10616,107,10623],[107,10624,107,10631],[107,10632,107,10639],[107,10640,107,10647],[107,10504,107,10511],[107,10512,107,10519],[107,10520,107,10527],[107,10528,107,10535],[107,10536,107,10543],[107,10544,107,10551],[107,10552,107,10559],[107,10560,107,10567],[107,10568,107,10575],[107,10432,107,10439],[107,10440,107,10447],[107,10448,107,10455],[107,10456,107,10463],[107,10464,107,10471],[107,10472,107,10479],[107,10480,107,10487],[107,10488,107,10495],[107,10496,107,10503],[107,10360,107,10367],[107,10368,107,10375],[107,10376,107,10383],[107,10384,107,10391],[107,10392,107,10399],[107,10400,107,10407],[107,10408,107,10415],[107,10416,107,10423],[107,10424,107,10431],[107,10288,107,10295],[107,10296,107,10303],[107,10304,107,10311],[107,10312,107,10319],[107,10320,107,10327],[107,10328,107,10335],[107,10336,107,10343],[107,10344,107,10351],[107,10352,107,10359],[107,10216,107,10223],[107,10224,107,10231],[107,10232,107,10239],[107,10240,107,10247],[107,10248,107,10255],[107,10256,107,10263],[107,10264,107,10271],[107,10272,107,10279],[107,10280,107,10287],[107,10144,107,10151],[107,10152,107,10159],[107,10160,107,10167],[107,10168,107,10175],[107,10176,107,10183],[107,10184,107,10191],[107,10192,107,10199],[107,10200,107,10207],[107,10208,107,10215],[107,10072,107,10079],[107,10080,107,10087],[107,10088,107,10095],[107,10096,107,10103],[107,10104,107,10111],[107,10112,107,10119],[107,10120,107,10127],[107,10128,107,10135],[107,10136,107,10143],[107,10000,107,10007],[107,10008,107,10015],[107,10016,107,10023],[107,10024,107,10031],[107,10032,107,10039],[107,10040,107,10047],[107,10048,107,10055],[107,10056,107,10063],[107,10064,107,10071],[107,9928,107,9935],[107,9936,107,9943],[107,9944,107,9951],[107,9952,107,9959],[107,9960,107,9967],[107,9968,107,9975],[107,9976,107,9983],[107,9984,107,9991],[107,9992,107,9999],[107,9856,107,9863],[107,9864,107,9871],[107,9872,107,9879],[107,9880,107,9887],[107,9888,107,9895],[107,9896,107,9903],[107,9904,107,9911],[107,9912,107,9919],[107,9920,107,9927],[107,9784,107,9791],[107,9792,107,9799],[107,9800,107,9807],[107,9808,107,9815],[107,9816,107,9823],[107,9824,107,9831],[107,9832,107,9839],[107,9840,107,9847],[107,9848,107,9855],[107,9712,107,9719],[107,9720,107,9727],[107,9728,107,9735],[107,9736,107,9743],[107,9744,107,9751],[107,9752,107,9759],[107,9760,107,9767],[107,9768,107,9775],[107,9776,107,9783],[107,9640,107,9647],[107,9648,107,9655],[107,9656,107,9663],[107,9664,107,9671],[107,9672,107,9679],[107,9680,107,9687],[107,9688,107,9695],[107,9696,107,9703],[107,9704,107,9711],[107,9568,107,9575],[107,9576,107,9583],[107,9584,107,9591],[107,9592,107,9599],[107,9600,107,9607],[107,9608,107,9615],[107,9616,107,9623],[107,9624,107,9631],[107,9632,107,9639],[107,9496,107,9503],[107,9504,107,9511],[107,9512,107,9519],[107,9520,107,9527],[107,9528,107,9535],[107,9536,107,9543],[107,9544,107,9551],[107,9552,107,9559],[107,9560,107,9567],[107,9424,107,9431],[107,9432,107,9439],[107,9440,107,9447],[107,9448,107,9455],[107,9456,107,9463],[107,9464,107,9471],[107,9472,107,9479],[107,9480,107,9487],[107,9488,107,9495],[107,9352,107,9359],[107,9360,107,9367],[107,9368,107,9375],[107,9376,107,9383],[107,9384,107,9391],[107,9392,107,9399],[107,9400,107,9407],[107,9408,107,9415],[107,9416,107,9423],[107,9280,107,9287],[107,9288,107,9295],[107,9296,107,9303],[107,9304,107,9311],[107,9312,107,9319],[107,9320,107,9327],[107,9328,107,9335],[107,9336,107,9343],[107,9344,107,9351],[107,9208,107,9215],[107,9216,107,9223],[107,9224,107,9231],[107,9232,107,9239],[107,9240,107,9247],[107,9248,107,9255],[107,9256,107,9263],[107,9264,107,9271],[107,9272,107,9279],[107,9136,107,9143],[107,9144,107,9151],[107,9152,107,9159],[107,9160,107,9167],[107,9168,107,9175],[107,9176,107,9183],[107,9184,107,9191],[107,9192,107,9199],[107,9200,107,9207],[107,9064,107,9071],[107,9072,107,9079],[107,9080,107,9087],[107,9088,107,9095],[107,9096,107,9103],[107,9104,107,9111],[107,9112,107,9119],[107,9120,107,9127],[107,9128,107,9135],[107,8992,107,8999],[107,9000,107,9007],[107,9008,107,9015],[107,9016,107,9023],[107,9024,107,9031],[107,9032,107,9039],[107,9040,107,9047],[107,9048,107,9055],[107,9056,107,9063],[107,8920,107,8927],[107,8928,107,8935],[107,8936,107,8943],[107,8944,107,8951],[107,8952,107,8959],[107,8960,107,8967],[107,8968,107,8975],[107,8976,107,8983],[107,8984,107,8991],[107,8848,107,8855],[107,8856,107,8863],[107,8864,107,8871],[107,8872,107,8879],[107,8880,107,8887],[107,8888,107,8895],[107,8896,107,8903],[107,8904,107,8911],[107,8912,107,8919],[107,8776,107,8783],[107,8784,107,8791],[107,8792,107,8799],[107,8800,107,8807],[107,8808,107,8815],[107,8816,107,8823],[107,8824,107,8831],[107,8832,107,8839],[107,8840,107,8847],[107,8704,107,8711],[107,8712,107,8719],[107,8720,107,8727],[107,8728,107,8735],[107,8736,107,8743],[107,8744,107,8751],[107,8752,107,8759],[107,8760,107,8767],[107,8768,107,8775],[107,8632,107,8639],[107,8640,107,8647],[107,8648,107,8655],[107,8656,107,8663],[107,8664,107,8671],[107,8672,107,8679],[107,8680,107,8687],[107,8688,107,8695],[107,8696,107,8703],[107,8560,107,8567],[107,8568,107,8575],[107,8576,107,8583],[107,8584,107,8591],[107,8592,107,8599],[107,8600,107,8607],[107,8608,107,8615],[107,8616,107,8623],[107,8624,107,8631],[107,8488,107,8495],[107,8496,107,8503],[107,8504,107,8511],[107,8512,107,8519],[107,8520,107,8527],[107,8528,107,8535],[107,8536,107,8543],[107,8544,107,8551],[107,8552,107,8559],[107,8416,107,8423],[107,8424,107,8431],[107,8432,107,8439],[107,8440,107,8447],[107,8448,107,8455],[107,8456,107,8463],[107,8464,107,8471],[107,8472,107,8479],[107,8480,107,8487],[107,8344,107,8351]],"merged_total":2220,"flags":["merged_cut"]}
[null,null,null,null,null,null,null,null,null,null,null,null,null,null,null,null,null,null,null,"Verze k odeslání klientovi","Verze zpracovat","Verze k odeslání do pojišťovny"]
[null,null,null,null,null,null,null,null,null,null,null,null,null,null,null,null,null,null,null,1,1,1]
[null,null,"ČÁST A - MAJETEK A ODPOVĚDNOST ",null,null,null,null,null,null,null,null,null,null,null,null,null,null,null,null,1,1,1]
[null,null,null,null,null,null,null,null,null,null,null,null,null,null,null,null,null,null,null,1,1,1]
[null,null,null,null,null,null,null,null,null,null,null,null,null,null,null,null,null,null,null,1,1,1]
[]
["Živelní pojištění majetku  a další připojištění",null,null,null,null,null,null,null,null,null,null,null,null,null,null,null,null,null,null,1,1,1]
[]
["Místa pojištění",null,null,null,null,null,null,null,null,null,null,null,null,null,null,null,null,null,null,1,1,1]
[]
["Ulice, číslo popisné, město a PSČ",null,null,null,"Převládající činnost",null,null,"Vlastní/ pronajaté",null,null,null,null,null,null,null,null,null,null,null,1,1,1]
["Území ČR dle podnikatelské činnosti pojištěného, územní dopravní obslužnosti, trasy DP",null,null,null,"Dopravní podnik",null,null,null,null,"Automaticky se vyplňuje adresa sídla pojistníka. Adresu lze měnit.",null,null,null,null,null,null,null,null,null,1,1,1]
[null,null,null,null,null,null,null,null,null,null,null,null,null,null,null,{"$f":"IF(ISBLANK(A13),\"SKRÝT\",1)","v":"SKRÝT"},{"$f":"IF(ISBLANK(E13),\"SKRÝT\",1)","v":"SKRÝT"},"SKRÝT",null,1,1,{"$f":"IF(AND(P13=\"SKRÝT\",Q13=\"SKRÝT\",R13=\"SKRÝT\"),\"SKRÝT\",1)","v":"SKRÝT"}]
[null,null,null,null,null,null,null,null,null,null,null,null,null,null,null,{"$f":"IF(ISBLANK(A14),\"SKRÝT\",1)","v":"SKRÝT"},"SKRÝT","SKRÝT",null,1,1,{"$f":"IF(AND(P14=\"SKRÝT\",Q14=\"SKRÝT\",R14=\"SKRÝT\"),\"SKRÝT\",1)","v":"SKRÝT"}]
[null,null,null,null,null,null,null,null,null,null,null,null,null,null,null,{"$f":"IF(ISBLANK(A15),\"SKRÝT\",1)","v":"SKRÝT"},"SKRÝT","SKRÝT",null,1,1,{"$f":"IF(AND(P15=\"SKRÝT\",Q15=\"SKRÝT\",R15=\"SKRÝT\"),\"SKRÝT\",1)","v":"SKRÝT"}]
[null,null,null,null,null,null,null,null,null,null,null,null,null,null,null,{"$f":"IF(ISBLANK(A16),\"SKRÝT\",1)","v":"SKRÝT"},"SKRÝT","SKRÝT",null,1,1,{"$f":"IF(AND(P16=\"SKRÝT\",Q16=\"SKRÝT\",R16=\"SKRÝT\"),\"SKRÝT\",1)","v":"SKRÝT"}]
["Nespecifikovaná místa na území ČR - limit plnění:",null,null,5000000,null,null,null,null,null,null,null,null,null,null,null,null,null,null,null,1,1,{"$f":"IF(ISBLANK(D17),\"SKRÝT\",1)","v":1}]
["Nespecifikovaná místa na území Evropy - limit plnění:",null,null,null,null,null,null,null,null,null,null,null,null,null,null,null,null,null,null,1,1,{"$f":"IF(ISBLANK(D18),\"SKRÝT\",1)","v":"SKRÝT"}]
[]
["Majetek k pojištění",null,null,null,null,null,null,null,null,null,null,null,null,null,null,null,null,null,null,1,1,1]
[null,null,null,null,null,null,null,null,null,null,null,null,null,null,null,null,null,null,null,1,1,1]
["Předměty pojištění",null,null,null,null,"Vlastní/ cizí/ \nvlastní a cizí","Pojistná částka","Pojistná hodnota",null,null,null,null,null,null,null,null,null,null,null,1,1,{"$f":"IF((G55)=0,\"SKRÝT\",1)","v":1}]
["Soubor budov a ostatních staveb",null,null,null,null,null,{"$f":"SUM(G24:G29)","v":800000000},null,null,null,null,null,null,null,null,null,null,null,null,1,1,{"$f":"IF(G23=0,\"SKRÝT\",1)","v":1}]
["Soubor  budov, staveb, hal, mycích linek, čerpací stanice, depa, apod. včetně technického zhodnocení, technologií, kabeláže a stavebních součástí vnějších i vnitřních (např. EZS, EPS, čidla, kamerové zabezpečovací systémy, mechanické zábranné systémy, anténní systémy, FVE)",null,null,null,null,"Vlastní a cizí",600000000,"Nová cena",null,null,null,null,null,null,null,null,null,null,null,1,1,1]
["Lehké stavby a dřevostavby, včetně technického zhodnocení a stavebních součástí vnějších i vnitřních (např. EZS, EPS, čidla, kamerové zabezpečovací systémy, mechanické zábranné systémy, anténní systémy, FVE)",null,null,null,null,null,null,null,null,null,null,null,null,null,null,null,null,null,null,1,1,"SKRÝT"]
["Ostatní věci nemovité na volném prostranství (např. rampy, komíny, veřejné osvětlení, měnírny, trojejové vedení vč. všech technologí s  tím spojených, trakční vedení vč. všech technologí s  tím spojených, kabelizace,   semafory, zpevněné plochy, komunikace, pozemkové úpravy, kanalizace, inženýrské sítě, včetně odnímatelných částic  kanalizační a jiné šachtice, poklopy, odpadkové koše, lavičky, parkovací automaty, apod.)",null,null,null,null,"Vlastní a cizí",200000000,"První riziko - nová cena",null,null,null,null,null,null,null,null,null,null,null,1,1,1]
["Ostatní věci nemovité na volném prostranství, které se nachází na vodních tocích (např. mosty, lávky, apod.)",null,null,null,null,null,null,null,null,null,null,null,null,null,null,null,null,null,null,1,1,"SKRÝT"]
["Ostatní nemovité věci na volném prostranství umělecké, zvláštní kulturní a historické hodnoty (např. památníky, kaple, sochy apod.)",null,null,null,null,null,null,null,null,"POZOR na smluvní ujednání pro řemeslné a restaurátorské práce.",null,null,null,null,null,null,null,null,null,1,1,"SKRÝT"]
["Stavební součásti užívaných budov - vnější i vnitřní (např. stavební úpravy v pronajatém prostoru, EZS, EPS, čidla, kamerové zabezpečovací systémy, mechanické zábranné systémy, anténní systémy)",null,null,null,null,null,null,null,null,null,null,null,null,null,null,null,null,null,null,1,1,"SKRÝT"]
["Soubor věcí movitých",null,null,null,null,null,{"$f":"SUM(G31:G34)","v":5300000},null,null,null,null,null,null,null,null,null,null,null,null,1,1,1]
["Provozní zařízení (stroje, elektronika, soubor věcí vedených v operativní evidenci, na účtu spotřeby materiálu, ostatní vybavení kanceláře, drobný majetek, apod.)",null,null,null,null,"Vlastní a cizí",2200000,"První riziko - nová cena",null,null,null,null,null,null,null,null,null,null,null,1,1,1]
["Písemnosti, plány, výkresy, nosiče dat (vč. software) a záznamy na nich",null,null,null,null,"Vlastní a cizí",1000000,"První riziko - nová cena",null,null,null,null,null,null,null,null,null,null,null,1,1,1]
["Pojištění zásilek během přepravy: zavazadla cestujících apod.",null,null,null,null,"Cizí",2000000,"První riziko - nová cena"]
["Věci vnesené a odložené, věci zaměstnanců",null,null,null,null,"Cizí",100000,"První riziko - časová cena",null,null,null,null,null,null,null,null,null,null,null,1,1,1]
["Věci přijaté k provedení objednané činnosti",null,null,null,null,"Cizí",null,"První riziko - časová cena",null,null,null,null,null,null,null,null,null,null,null,1,1,"SKRÝT"]
["Soubor zásob (materiál, zboží, nedokončená výroba)",null,null,null,null,null,{"$f":"SUM(G37:G38)","v":0},null,null,null,null,null,null,null,null,null,null,null,null,1,1,"SKRÝT"]
["Předpokládaná min. hodnota",null,null,"Předpokládaná max. hodnota",null,null,{"$f":"E37","v":0},null,null,null,null,null,null,null,null,null,null,null,null,1,1,"SKRÝT"]
[null,null,null,null,null,null,null,"Preventivní pojistná částka",null,null,null,null,null,null,null,null,null,null,null,1,1,"SKRÝT"]
["Soubor nových investic (účet 042)",null,null,null,null,null,{"$f":"SUM(G40:G41)","v":0},null,null,null,null,null,null,null,null,null,null,null,null,1,1,"SKRÝT"]
["Budovy, stavby a haly včetně technického zhodnocení",null,null,null,null,null,null,null,null,null,null,null,null,null,null,null,null,null,null,1,1,"SKRÝT"]
["Věci movité (stroje, zařízení)",null,null,null,null,null,null,null,null,null,null,null,null,null,null,null,null,null,null,1,1,"SKRÝT"]
["Soubor peněz a cenností",null,null,null,null,null,{"$f":"SUM(G43)","v":100000},null,null,null,null,null,null,null,null,null,null,null,null,null,null,1]
["Peníze, cennosti a ceniny ",null,null,null,null,"Vlastní a cizí",100000,"První riziko - nová cena",null,null,null,null,null,null,null,null,null,null,null,1,1,1]
["Přeprava peněz a cenností",null,null,null,null,null,{"$f":"SUM(G45)","v":100000},null,null,null,null,null,null,null,null,null,null,null,null,1,1,1]
["Peníze, cennosti a ceniny, při přepravě autobusem, trolejbusem ",null,null,null,null,"Vlastní a cizí",100000,"První riziko - nová cena",null,null,null,null,null,null,null,null,null,null,null,1,1,1]
["Věci zvláštní hodnoty",null,null,null,null,null,{"$f":"SUM(G47:G48)","v":0},null,null,null,null,null,null,null,null,null,null,null,null,1,1,"SKRÝT"]
["Umělecká díla, věci zvláštní kulturní a historické hodnoty",null,null,null,null,null,null,null,null,"POZOR na smluvní ujednání pro věci zvláštní hodnoty a připojištění řemeslných a restaurátorských prací.",null,null,null,null,null,null,null,null,null,1,1,"SKRÝT"]
["Vzorky, názorné modely, prototypy, včetně exponátů na výstavách",null,null,null,null,null,null,null,null,"POZOR na smluvní ujednání pro věci zvláštní hodnoty a připojištění řemeslných a restaurátorských prací.",null,null,null,null,null,null,null,null,null,1,1,{"$f":"IF(G48=0,\"SKRÝT\",1)","v":"SKRÝT"}]
["Soubor věcí během silniční přepravy",null,null,null,null,null,{"$f":"SUM(G50:G52)","v":0},null,null,null,null,null,null,null,null,null,null,null,null,1,1,"SKRÝT"]
["Soubor věcí movitých (Provozní zařízení)",null,null,null,null,null,null,"První riziko - nová cena",null,null,null,null,null,null,null,null,null,null,null,1,1,"SKRÝT"]
["Soubor zásob (Materiál, nedokončená výroba, zásoby)",null,null,null,null,null,null,"První riziko - nová cena",null,null,null,null,null,null,null,null,null,null,null,1,1,"SKRÝT"]
["Věci převzaté např. za účelem opravy",null,null,null,null,"Cizí",null,"První riziko - nová cena",null,null,null,null,null,null,null,null,null,null,null,1,1,"SKRÝT"]
["Jiné",null,null,null,null,null,{"$f":"SUM(G54)","v":0},null,null,null,null,null,null,null,null,null,null,null,null,1,1,"SKRÝT"]
["Uveďte:",null,null,null,null,null,null,null,null,null,null,null,null,null,null,null,null,null,null,1,1,{"$f":"IF((G54)=0,\"SKRÝT\",1)","v":"SKRÝT"}]
["Pojistná částka celkem (s vyjímkou přepravy peněz a cenností)",null,null,null,null,null,{"$f":"SUM(G24:G29,G31:G35,G37:G38,G40:G41,G43,G47:G48,G50:G52,G54)","v":805400000},null,null,null,null,null,null,null,null,null,null,null,null,1,1,{"$f":"IF((G55)=0,\"SKRÝT\",1)","v":1}]
["Poznámka",null,null,null,null,null,null,null,null,null,null,null,null,null,null,null,null,null,null,1,1,{"$f":"IF(ISBLANK(A57),\"SKRÝT\",1)","v":"SKRÝT"}]
[null,null,null,null,null,null,null,null,null,"Zde můžete doplnit poznámky.",null,null,null,null,null,null,null,null,null,1,1,{"$f":"IF(ISBLANK(A57),\"SKRÝT\",1)","v":"SKRÝT"}]
[null,null,null,null,null,null,null,null,null,null,null,null,null,null,null,null,null,null,null,1,1,1]
["Použité pojmy",null,null,null,null,null,null,null,null,null,null,null,null,null,null,null,null,null,null,1,1,1]
["Nová cena","Cena, za kterou lze v daném místě a v daném čase věc stejnou nebo srovnatelnou znovu pořídit jako věc stejnou nebo novou, stejného druhu a účelu.",null,null,null,null,null,null,null,null,null,null,null,null,null,null,null,null,null,1,1,1]
["Časová cena","Cena, kterou měla věc bezprostředně před pojistnou událostí; stanoví se z nové ceny věci, přičemž se přihlíží ke stupni opotřebení nebo jiného znehodnocení anebo k zhodnocení věci, k němuž došlo její opravou, modernizací nebo jiným způsobem.",null,null,null,null,null,null,null,null,null,null,null,null,null,null,null,null,null,1,1,1]
["Jiná cena","Cena, jejíž výše i způsob stanovení jsou dohodnuté v pojistné smlouvě.",null,null,null,null,null,null,null,null,null,null,null,null,null,null,null,null,null,1,1,1]
["Obvyklá cena","Cena, kterou může pojištěný dosáhnout při prodeji předmětné věci v daném čase a místě pojištění.",null,null,null,null,null,null,null,null,null,null,null,null,null,null,null,null,null,1,1,1]
["První riziko","V případě pojištění na první riziko se pojištění sjednává pouze na část známé pojistné hodnoty věci. Pojistná částka sjednaná na první riziko je zároveň horní hranicí plnění pojistitele ze všech pojistných událostí vzniklých za určenou dobu.",null,null,null,null,null,null,null,null,null,null,null,null,null,null,null,null,null,1,1,1]
[null,null,null,null,null,null,null,null,null,null,null,null,null,null,null,null,null,null,null,1,1,1]
["Další informace o pojišťovaném majetku",null,null,null,null,null,null,null,null,null,null,null,null,null,null,null,null,null,null,1,1,{"$f":"IF(AND(V68=\"SKRÝT\",V69=\"SKRÝT\",V70=\"SKRÝT\",V71=\"SKRÝT\"),\"SKRÝT\",1)","v":"SKRÝT"}]
[null,null,null,"Ano/ Ne",null,null,null,null,null,null,null,null,null,null,null,null,null,null,null,1,1,{"$f":"IF(AND(V68=\"SKRÝT\",V69=\"SKRÝT\",V70=\"SKRÝT\",V71=\"SKRÝT\"),\"SKRÝT\",1)","v":"SKRÝT"}]
["Jsou pojišťované budovy a stavby památkově chráněny?",null,null,null,null,null,null,null,null,"Pokud ano,  POZOR na smluvní ujednání pro řemeslné a restaurátorské práce.",null,null,null,null,null,null,null,null,null,1,1,{"$f":"IF(ISBLANK(D68),\"SKRÝT\",1)","v":"SKRÝT"}]
["Nachází se pojišťované zásoby na volném prostranství?",null,null,null,null,null,null,null,null,null,null,null,null,null,null,null,null,null,null,1,1,{"$f":"IF(ISBLANK(D69),\"SKRÝT\",1)","v":"SKRÝT"}]
["Nachází se pojišťované věci movité na volném prostranství?",null,null,null,null,null,null,null,null,null,null,null,null,null,null,null,null,null,null,1,1,{"$f":"IF(ISBLANK(D70),\"SKRÝT\",1)","v":"SKRÝT"}]
["Je osoba provádějící přepravu peněz vybavena obranným sprejem?",null,null,null,null,null,null,null,null,"Pokud ne, POZOR na podmínky zabezpečení pro přepravu cenností.",null,null,null,null,null,null,null,null,null,1,1,{"$f":"IF(ISBLANK(D71),\"SKRÝT\",1)","v":"SKRÝT"}]
[null,null,null,null,null,null,null,null,null,null,null,null,null,null,null,null,null,null,null,1,1,1]
["Místo pojištění s největší hodnotou majetku",null,null,null,null,null,null,null,null,null,null,null,null,null,null,null,null,null,null,1,1,{"$f":"IF(AND(N75=\"SKRÝT\",O75=\"SKRÝT\",P75=\"SKRÝT\",Q75=\"SKRÝT\",R75=\"SKRÝT\",S75=\"SKRÝT\"),\"SKRÝT\",1)","v":"SKRÝT"}]
["Ulice, číslo popisné, město a PSČ",null,"Budovy a stavby","Věci movité vlastní","Věci movité cizí","Zásoby","CELKEM","Vlastní/ pronajaté",null,null,null,null,null,null,null,null,null,null,null,1,1,{"$f":"IF(AND(N75=\"SKRÝT\",O75=\"SKRÝT\",P75=\"SKRÝT\",Q75=\"SKRÝT\",R75=\"SKRÝT\",S75=\"SKRÝT\"),\"SKRÝT\",1)","v":"SKRÝT"}]
[null,null,null,null,null,null,{"$f":"SUM(C75:F75)","v":0},null,null,null,null,null,null,{"$f":"IF(ISBLANK(A75),\"SKRÝT\",1)","v":"SKRÝT"},{"$f":"IF(ISBLANK(C75),\"SKRÝT\",1)","v":"SKRÝT"},{"$f":"IF(ISBLANK(D75),\"SKRÝT\",1)","v":"SKRÝT"},{"$f":"IF(ISBLANK(E75),\"SKRÝT\",1)","v":"SKRÝT"},{"$f":"IF(ISBLANK(F75),\"SKRÝT\",1)","v":"SKRÝT"},{"$f":"IF(ISBLANK(H75),\"SKRÝT\",1)","v":"SKRÝT"},1,1,{"$f":"IF(AND(N75=\"SKRÝT\",O75=\"SKRÝT\",P75=\"SKRÝT\",Q75=\"SKRÝT\",R75=\"SKRÝT\",S75=\"SKRÝT\"),\"SKRÝT\",1)","v":"SKRÝT"}]
[null,null,null,null,null,null,null,null,null,null,null,null,null,null,null,null,null,null,null,1,1,{"$f":"IF(AND(N75=\"SKRÝT\",O75=\"SKRÝT\",P75=\"SKRÝT\",Q75=\"SKRÝT\",R75=\"SKRÝT\",S75=\"SKRÝT\"),\"SKRÝT\",1)","v":"SKRÝT"}]
["Živelní pojištění majetku",null,null,null,null,null,null,null,null,null,null,null,null,null,null,null,null,null,null,1,1,1]
[null,null,null,null,null,null,null,null,null,null,null,null,null,null,null,null,null,null,null,1,1,1]
["Pojištěná nebezpečí",null,null,null,"Varianta  I.",null,"Varianta  II.",null,null,"Požadujte především různé varianty limitů. ",null,null,null,null,null,null,null,null,null,1,1,1]
[null,null,null,null,null,null,null,null,null,null,null,null,null,null,null,null,null,null,null,1,1,1]
[null,null,null,null,"Limit plnění","Spoluúčast","Limit plnění","Spoluúčast",null,null,null,null,null,null,null,null,null,null,null,1,1,1]
["FLEXA (požár, výbuch, úder blesku, pád letadla nebo jeho částí)",null,null,null,"bez limitu","Integrální: 50 000 Kč","bez limitu",null,null,null,null,null,null,null,null,null,null,null,null,1,1,1]
["Povodeň nebo záplava, zemětřesení, zřícení lavin",null,null,null,100000000,50000,null,null,null,"Při nastavení výše limitu je nutné vycházet z umístění pojišťovaného majetku. POZOR na případné škody na zásobách, strojích, elektronice apod.",null,null,null,null,null,{"$f":"IF(ISBLANK(E83),\"SKRÝT\",1)","v":1},{"$f":"IF(ISBLANK(F83),\"SKRÝT\",1)","v":1},{"$f":"IF(ISBLANK(G83),\"SKRÝT\",1)","v":"SKRÝT"},{"$f":"IF(ISBLANK(H83),\"SKRÝT\",1)","v":"SKRÝT"},1,1,{"$f":"IF(AND(P83=\"SKRÝT\",Q83=\"SKRÝT\",R83=\"SKRÝT\",S83=\"SKRÝT\"),\"SKRÝT\",1)","v":1}]
["Vichřice, krupobití; sesuv půdy, zřícení skal nebo zemin; tíha sněhu, námrazy; pád stromů, stožárů nebo jiných předmětů ",null,null,null,100000000,1000,null,null,null,"Pro tato nebezpečí doporučujeme limit ve výši 20 - 30 % z celkové pojistné částky. V individuálních případech více. Nezbytné minimum je 10% celkové pojistné částky. ",null,null,null,null,null,{"$f":"IF(ISBLANK(E84),\"SKRÝT\",1)","v":1},{"$f":"IF(ISBLANK(F84),\"SKRÝT\",1)","v":1},{"$f":"IF(ISBLANK(G84),\"SKRÝT\",1)","v":"SKRÝT"},{"$f":"IF(ISBLANK(H84),\"SKRÝT\",1)","v":"SKRÝT"},1,1,{"$f":"IF(AND(P84=\"SKRÝT\",Q84=\"SKRÝT\",R84=\"SKRÝT\",S84=\"SKRÝT\"),\"SKRÝT\",1)","v":1}]
["Vodovodní škody, vč. úniku vody z vnitřních okapových svodů, odpadního potrubí a kanalizace, potrubí nebo topných tělěs vodovodních zařízení vč. armtur, vyměníkových stanic,  nádrží, vytápěcích systému apod.",null,null,null,100000000,1000,null,null,null,"Při nastavení výše limitu POZOR na případné škody na zásobách, strojích, elektronice apod.",null,null,null,null,null,1,1,"SKRÝT","SKRÝT",1,1,1]
["Náraz dopravního prostředku; aerodynamický třesk; kouř",null,null,null,20000000,1000,null,null,null,null,null,null,null,null,null,1,1,"SKRÝT","SKRÝT",1,1,1]
["Atmosférické srážky",null,null,null,2000000,1000,null,null,null,"V případě, že požadujete All risk, doporučujeme neuvádět zvláštní limit ani spoluúčast.  Doporučujeme uvést např.: \"viz Ostatní\".",null,null,null,null,null,1,1,"SKRÝT","SKRÝT",1,1,1]
["Nepřímý úder blesku",null,null,null,2000000,1000,null,null,null,"V případě, že požadujete All risk, doporučujeme neuvádět zvláštní limit ani spoluúčast.  Doporučujeme uvést např.: \"viz Ostatní\".",null,null,null,null,null,1,1,"SKRÝT","SKRÝT",1,1,1]
["Mechanické poškození zateplení budov ptactvem, hmyzem, hlodavci",null,null,null,1000000,1000,null,null,null,"V případě, že požadujete All risk, doporučujeme neuvádět zvláštní limit ani spoluúčast.  Doporučujeme uvést např.: \"viz Ostatní\".",null,null,null,null,null,1,1,"SKRÝT","SKRÝT",1,1,1]
["Ostatní (v případě All risk)",null,null,null,null,null,null,null,null,null,null,null,null,null,null,"SKRÝT","SKRÝT","SKRÝT","SKRÝT",1,1,"SKRÝT"]
["Jiné (uveďte):",null,null,null,null,null,null,null,null,"Pokud chcete pojistit i jiné nebezpečí, doplňte.",null,null,null,null,null,"SKRÝT","SKRÝT","SKRÝT","SKRÝT",1,1,"SKRÝT"]
["Náklady na hašení, demolici a odvoz suti ",null,null,null,15000000,"Viz jednotlivá nebezpečí",null,"Viz jednotlivá nebezpečí",null,"Doporučená výše limitu je 5 - 10 % z hodnoty nemovitého majetku, v závislosti na jeho konstrukci (železobeton, cihla atd.)",null,null,null,null,null,1,null,"SKRÝT",null,1,1,{"$f":"IF(AND(P92=\"SKRÝT\",R92=\"SKRÝT\"),\"SKRÝT\",1)","v":1}]
["Náklady na vodné a stočné",null,null,null,500000,"Viz vodovodní škody",null,"Viz vodovodní škody",null,"Pokud mají být pojištěny vodovodní škody, doporučujeme požadovat.",null,null,null,null,null,1,null,"SKRÝT",null,1,1,1]
["Zvýšené náklady související s obnovou majetku, tak aby mohl být využíván k původním účelům, z důvodu změny obecně závazných právních předpisů a norem nebo nedostupnosti zařízení se stejnými technickými parametry",null,null,null,null,"Viz jednotlivá nebezpečí",null,"Viz jednotlivá nebezpečí",null,"Doporučená výše limitu je asi 5 % z celkové hodnoty majetku.",null,null,null,null,null,{"$f":"IF(ISBLANK(E94),\"SKRÝT\",1)","v":"SKRÝT"},null,{"$f":"IF(ISBLANK(G94),\"SKRÝT\",1)","v":"SKRÝT"},null,1,1,"SKRÝT"]
["Náklady na náhradní ubytování členů domácností pojištěné nemovitosti v souvislosti s pojistnou událostí (max. na bytovou jednotku)",null,null,null,null,"Viz jednotlivá nebezpečí",null,"Viz jednotlivá nebezpečí",null,"V případě, že jsou předmětem pojištění domy s bytovými jednotkami, doporučujeme požadovat.",null,null,null,null,null,"SKRÝT",null,"SKRÝT",null,1,1,"SKRÝT"]
["Náklady na řemeslné a restaurátorské práce",null,null,null,null,"Viz jednotlivá nebezpečí",null,"Viz jednotlivá nebezpečí",null,"Pokud jsou předmětem pojištění památkově chráněné budovy nebo věci zvláštní hodnoty jako např. sochy (např. u obcí), doporučujeme tyto náklady připojistit. Obvykle dostačuje limit mezi 500 tis. Kč - 2 mil. Kč. Jestliže je předmětem pojištění zámek apod., doporučujeme limit vyšší.",null,null,null,null,null,{"$f":"IF(E96=\"\",\"SKRÝT\",1)","v":"SKRÝT"},null,{"$f":"IF(ISBLANK(G96),\"SKRÝT\",1)","v":"SKRÝT"},null,1,1,"SKRÝT"]
["Jiné náklady (uveďte):",null,null,null,null,"Viz jednotlivá nebezpečí",null,"Viz jednotlivá nebezpečí",null,"Pokud chcete pojistit i jiné náklady, doplňte.",null,null,null,null,null,"SKRÝT",null,"SKRÝT",null,1,1,"SKRÝT"]
["Poznámka",null,null,null,null,null,null,null,null,null,null,null,null,null,null,null,null,null,null,1,1,{"$f":"IF(AND(V99=\"SKRÝT\",V100=\"SKRÝT\"),\"SKRÝT\",1)","v":"SKRÝT"}]
[null,null,null,null,null,null,null,null,null,"Příklad poznámky. Pokud nepožadujete, řádek odstraňte.",null,null,null,null,null,null,null,null,null,"SKRÝT",1,{"$f":"IF(ISBLANK(A99),\"SKRÝT\",1)","v":"SKRÝT"}]
[null,null,null,null,null,null,null,null,null,"Zde můžete doplnit poznámky. Řádek můžete rozkopírovat. ",null,null,null,null,null,null,null,null,null,1,1,{"$f":"IF(ISBLANK(A100),\"SKRÝT\",1)","v":"SKRÝT"}]
["Použité pojmy",null,null,null,null,null,null,null,null,null,null,null,null,null,null,null,null,null,null,1,1,{"$f":"IF(V77=\"SKRÝT\",\"SKRÝT\",1)","v":1}]
["Integrální spoluúčast:","V pojistné smlouvě sjednaná část škody/újmy, do jejíž výše se pojistné plnění neposkytuje, ale při škodě/újmě nad tuto franšízu se již od pojistného plnění neodečítá. "]
["All risk","Všechna nebezpečí, kromě výslovně vyloučených (např. technická rizika, válka, stávka; politická rizika; jaderné záření, reakce, kontaminace; běžné opotřebení; vnitřní povaha věci; atmosférické vlivy; úmysl pojištěného; zpronevěra; následné škody; pokuty a jiné sankce)",null,null,null,null,null,null,null,null,null,null,null,null,null,null,null,null,null,1,1,{"$f":"IF(V101=\"SKRÝT\",\"SKRÝT\",1)","v":1}]
["Kompletní živel","FLEXA (požár, úder blesku, výbuch, pád letadla nebo jeho nákladu); povodeň, záplava; vichřice nebo krupobití; pád stromů, stožárů nebo jiných předmětů; náraz dopravního prostředku; tíha sněhu nebo námrazy; sesuv půdy, zřícení skal nebo zemin, sesouvání nebo zřícení lavin; zemětřesení; aerodynamický třesk; vodovodní škody; kouř; nepřímý úder blesku; atmosférické srážky",null,null,null,null,null,null,null,null,null,null,null,null,null,null,null,null,null,1,1,{"$f":"IF(V103=\"SKRÝT\",\"SKRÝT\",1)","v":1}]
[null,null,null,null,null,null,null,null,null,null,null,null,null,null,null,null,null,null,null,1,1,1]
["Pojištění majetku proti odcizení, vandalismu",null,null,null,null,null,null,null,null,null,null,null,null,null,null,null,null,null,null,1,1,{"$f":"IF(AND(V146=\"SKRÝT\",V147=\"SKRÝT\",V148=\"SKRÝT\",V149=\"SKRÝT\",V150=\"SKRÝT\",V151=\"SKRÝT\",V152=\"SKRÝT\"),\"SKRÝT\",1)","v":1}]
[null,null,null,null,null,null,null,null,null,null,null,null,null,null,null,null,null,null,null,1,1,{"$f":"IF(AND(V120=\"SKRÝT\",V123=\"SKRÝT\",V124=\"SKRÝT\",V125=\"SKRÝT\",V127=\"SKRÝT\",V129=\"SKRÝT\",V130=\"SKRÝT\"),\"SKRÝT\",1)","v":"SKRÝT"}]
["Místa pojištění",null,null,null,null,null,null,null,null,null,null,null,null,null,null,null,null,null,null,1,1,{"$f":"IF(V109=\"SKRÝT\",\"SKRÝT\",1)","v":"SKRÝT"}]
[null,null,null,null,null,null,null,null,null,null,null,null,null,null,null,null,null,null,null,null,null,{"$f":"IF(V110=\"SKRÝT\",\"SKRÝT\",1)","v":"SKRÝT"}]
["Ulice, číslo popisné, město a PSČ",null,null,null,null,null,null,"Limit plnění",null,null,null,null,null,null,null,null,null,null,null,1,1,{"$f":"IF(V111=\"SKRÝT\",\"SKRÝT\",1)","v":"SKRÝT"}]
[null,null,null,null,null,null,null,null,null,"Doporučujeme sjednávat celkový limit pro všechna místa pojištění (viz limity u jednotlivých nebezpečí). Jednotlivá místa pojištění doporučujeme limitovat jen na přání klienta.",null,null,null,null,null,{"$f":"IF(ISBLANK(A111),\"SKRÝT\",1)","v":"SKRÝT"},null,{"$f":"IF(ISBLANK(H111),\"SKRÝT\",1)","v":"SKRÝT"},null,1,1,{"$f":"IF(AND(P111=\"SKRÝT\",R111=\"SKRÝT\"),\"SKRÝT\",1)","v":"SKRÝT"}]
[null,null,null,null,null,null,null,null,null,"Doporučujeme sjednávat celkový limit pro všechna místa pojištění (viz limity u jednotlivých nebezpečí). Jednotlivá místa pojištění doporučujeme limitovat jen na přání klienta.",null,null,null,null,null,{"$f":"IF(ISBLANK(A112),\"SKRÝT\",1)","v":"SKRÝT"},null,{"$f":"IF(ISBLANK(H112),\"SKRÝT\",1)","v":"SKRÝT"},null,1,1,{"$f":"IF(AND(P112=\"SKRÝT\",R112=\"SKRÝT\"),\"SKRÝT\",1)","v":"SKRÝT"}]
[null,null,null,null,null,null,null,null,null,"Doporučujeme sjednávat celkový limit pro všechna místa pojištění (viz limity u jednotlivých nebezpečí). Jednotlivá místa pojištění doporučujeme limitovat jen na přání klienta.",null,null,null,null,null,{"$f":"IF(ISBLANK(A113),\"SKRÝT\",1)","v":"SKRÝT"},null,{"$f":"IF(ISBLANK(H113),\"SKRÝT\",1)","v":"SKRÝT"},null,1,1,{"$f":"IF(AND(P113=\"SKRÝT\",R113=\"SKRÝT\"),\"SKRÝT\",1)","v":"SKRÝT"}]
[null,null,null,null,null,null,null,null,null,"Doporučujeme sjednávat celkový limit pro všechna místa pojištění (viz limity u jednotlivých nebezpečí). Jednotlivá místa pojištění doporučujeme limitovat jen na přání klienta.",null,null,null,null,null,{"$f":"IF(ISBLANK(A114),\"SKRÝT\",1)","v":"SKRÝT"},null,{"$f":"IF(ISBLANK(H114),\"SKRÝT\",1)","v":"SKRÝT"},null,1,1,{"$f":"IF(AND(P114=\"SKRÝT\",R114=\"SKRÝT\"),\"SKRÝT\",1)","v":"SKRÝT"}]
[null,null,null,null,null,null,null,null,null,"Doporučujeme sjednávat celkový limit pro všechna místa pojištění (viz limity u jednotlivých nebezpečí). Jednotlivá místa pojištění doporučujeme limitovat jen na přání klienta.",null,null,null,null,null,{"$f":"IF(ISBLANK(A115),\"SKRÝT\",1)","v":"SKRÝT"},null,{"$f":"IF(ISBLANK(H115),\"SKRÝT\",1)","v":"SKRÝT"},null,1,1,{"$f":"IF(AND(P115=\"SKRÝT\",R115=\"SKRÝT\"),\"SKRÝT\",1)","v":"SKRÝT"}]
["Nespecifikovaná místa na území ČR - limit plnění:",null,null,null,null,null,null,null,null,null,null,null,null,null,null,null,null,null,null,1,1,{"$f":"IF(ISBLANK(D116),\"SKRÝT\",1)","v":"SKRÝT"}]
["Nespecifikovaná místa na území Evropy - limit plnění:",null,null,null,null,null,null,null,null,null,null,null,null,null,null,null,null,null,null,1,1,{"$f":"IF(ISBLANK(D117),\"SKRÝT\",1)","v":"SKRÝT"}]
["Majetek k pojištění",null,null,null,null,null,null,null,null,null,null,null,null,null,null,null,null,null,null,1,1,{"$f":"IF(AND(V121=\"SKRÝT\",V124=\"SKRÝT\",V125=\"SKRÝT\",V126=\"SKRÝT\",V128=\"SKRÝT\",V130=\"SKRÝT\",V131=\"SKRÝT\"),\"SKRÝT\",1)","v":"SKRÝT"}]
["Předměty pojištění",null,null,null,null,"Vlastní/ cizí/ \nvlastní a cizí","Pojistná částka","Pojistná hodnota",null,null,null,null,null,null,null,null,null,null,null,1,1,{"$f":"IF(AND(V122=\"SKRÝT\",V125=\"SKRÝT\",V126=\"SKRÝT\",V127=\"SKRÝT\",V129=\"SKRÝT\",V131=\"SKRÝT\",V132=\"SKRÝT\"),\"SKRÝT\",1)","v":"SKRÝT"}]
["Soubor stavebních součástí",null,null,null,null,null,{"$f":"SUM(G121)","v":0},null,null,null,null,null,null,null,null,null,null,null,null,1,1,{"$f":"IF(G120=0,\"SKRÝT\",1)","v":"SKRÝT"}]
["Vnitřní i vnější stavební součásti (např. EZS, EPS, čidla, kamerové zabezpečovací systémy, mechanické zábranné systémy, anténní systémy, FVE)",null,null,null,null,null,null,"První riziko - nová cena",null,"POZOR na úroveň zabezpečení u klienta.",null,null,null,null,null,null,null,null,null,1,1,{"$f":"IF((G121)=0,\"SKRÝT\",1)","v":"SKRÝT"}]
["Soubor věcí movitých",null,null,null,null,null,{"$f":"SUM(G123:G125)","v":0},null,null,null,null,null,null,null,null,null,null,null,null,1,1,{"$f":"IF(G122=0,\"SKRÝT\",1)","v":"SKRÝT"}]
["Provozní zařízení (stroje, elektronika, soubor věcí vedených v operativní evidenci, na účtu spotřeby materiálu, ostatní vybavení kanceláře, drobný majetek, apod.)",null,null,null,null,null,null,"První riziko - nová cena",null,"POZOR na úroveň zabezpečení u klienta.",null,null,null,null,null,null,null,null,null,1,1,{"$f":"IF(G123=0,\"SKRÝT\",1)","v":"SKRÝT"}]
["Písemnosti, plány, výkresy, nosiče dat (vč. software) a záznamy na nich",null,null,null,null,null,null,"První riziko - nová cena",null,"POZOR na úroveň zabezpečení u klienta.",null,null,null,null,null,null,null,null,null,1,1,"SKRÝT"]
["Věci vnesené a odložené, věci zaměstnanců",null,null,null,null,"Cizí",null,"První riziko - časová cena",null,"POZOR na úroveň zabezpečení u klienta.",null,null,null,null,null,null,null,null,null,1,1,"SKRÝT"]
["Soubor zásob",null,null,null,null,null,{"$f":"SUM(G127)","v":0},null,null,null,null,null,null,null,null,null,null,null,null,1,1,"SKRÝT"]
["Materiál, zboží, nedokončená výroba",null,null,null,null,null,null,"První riziko - nová cena",null,"POZOR na úroveň zabezpečení u klienta.",null,null,null,null,null,null,null,null,null,1,1,"SKRÝT"]
["Soubor nových investic (účet 042)",null,null,null,null,null,{"$f":"SUM(G129:G130)","v":0},null,null,null,null,null,null,null,null,null,null,null,null,1,1,"SKRÝT"]
["Budovy, stavby a haly včetně technického zhodnocení",null,null,null,null,null,null,"První riziko - nová cena",null,"POZOR na úroveň zabezpečení u klienta.",null,null,null,null,null,null,null,null,null,1,1,"SKRÝT"]
["Věci movité (stroje, zařízení)",null,null,null,null,null,null,"První riziko - nová cena",null,"POZOR na úroveň zabezpečení u klienta.",null,null,null,null,null,null,null,null,null,1,1,"SKRÝT"]
["Soubor peněz a cenností",null,null,null,null,null,{"$f":"SUM(G132)","v":0},null,null,null,null,null,null,null,null,null,null,null,null,1,1,"SKRÝT"]
["Peníze, cennosti a ceniny ",null,null,null,null,null,null,"První riziko - nová cena",null,"POZOR na úroveň zabezpečení u klienta.",null,null,null,null,null,null,null,null,null,1,1,"SKRÝT"]
["Přeprava peněz a cenností",null,null,null,null,null,{"$f":"SUM(G134)","v":0},null,null,null,null,null,null,null,null,null,null,null,null,1,1,"SKRÝT"]
["Peníze, cennosti a ceniny při přepravě",null,null,null,null,null,null,"První riziko - nová cena",null,"POZOR na úroveň zabezpečení u klienta.",null,null,null,null,null,null,null,null,null,1,1,"SKRÝT"]
["Věci zvláštní hodnoty",null,null,null,null,null,{"$f":"SUM(G136:G137)","v":0},null,null,null,null,null,null,null,null,null,null,null,null,1,1,"SKRÝT"]
["Umělecká díla, věci zvláštní kulturní a historické hodnoty",null,null,null,null,null,null,"První riziko - obvyklá cena",null,"POZOR na smluvní ujednání pro věci zvláštní hodnoty a úroveň zabezpečení u klienta.",null,null,null,null,null,null,null,null,null,1,1,"SKRÝT"]
["Vzorky, názorné modely, prototypy, včetně exponátů na výstavách",null,null,null,null,null,null,"První riziko - obvyklá cena",null,"POZOR na smluvní ujednání pro věci zvláštní hodnoty a úroveň zabezpečení u klienta.",null,null,null,null,null,null,null,null,null,1,1,"SKRÝT"]
["Jiné",null,null,null,null,null,{"$f":"SUM(G139)","v":0},null,null,null,null,null,null,null,null,null,null,null,null,1,1,"SKRÝT"]
["Ostatní (uveďte):",null,null,null,null,null,null,"První riziko - nová cena",null,"POZOR na úroveň zabezpečení u klienta.",null,null,null,null,null,null,null,null,null,1,1,"SKRÝT"]
["Pojistná částka celkem",null,null,null,null,null,{"$f":"SUM(G120,G122,G126,G128,G131,G133,G135,G138)","v":0},null,null,null,null,null,null,null,null,null,null,null,null,1,1,"SKRÝT"]
["Poznámka",null,null,null,null,null,null,null,null,null,null,null,null,null,null,null,null,null,null,1,1,{"$f":"IF(V142=\"SKRÝT\",\"SKRÝT\",1)","v":"SKRÝT"}]
[null,null,null,null,null,null,null,null,null,"Zde můžete doplnit poznámky.",null,null,null,null,null,null,null,null,null,1,1,{"$f":"IF(ISBLANK(A142),\"SKRÝT\",1)","v":"SKRÝT"}]
[null,null,null,null,null,null,null,null,null,null,null,null,null,null,null,null,null,null,null,1,1,{"$f":"IF(AND(V146=\"SKRÝT\",V147=\"SKRÝT\",V148=\"SKRÝT\",V149=\"SKRÝT\",V150=\"SKRÝT\",V151=\"SKRÝT\",V152=\"SKRÝT\"),\"SKRÝT\",1)","v":1}]
["Rozsah pojištění",null,null,null,null,null,null,null,null,null,null,null,null,null,null,null,null,null,null,1,1,{"$f":"IF(AND(V146=\"SKRÝT\",V147=\"SKRÝT\",V148=\"SKRÝT\",V149=\"SKRÝT\",V150=\"SKRÝT\",V151=\"SKRÝT\",V152=\"SKRÝT\"),\"SKRÝT\",1)","v":1}]
["Pojištěná nebezpečí limity na celou PS ",null,null,null,"Varianta  I.",null,"Varianta  II.",null,null,"Požadujte především různé varianty limitů. ",null,null,null,null,null,null,null,null,null,1,1,{"$f":"IF(AND(V146=\"SKRÝT\",V147=\"SKRÝT\",V148=\"SKRÝT\",V149=\"SKRÝT\",V150=\"SKRÝT\",V151=\"SKRÝT\",V152=\"SKRÝT\"),\"SKRÝT\",1)","v":1}]
[null,null,null,null,"Limit plnění","Spoluúčast","Limit plnění","Spoluúčast",null,null,null,null,null,null,null,null,null,null,null,1,1,{"$f":"IF(AND(V147=\"SKRÝT\",V148=\"SKRÝT\",V149=\"SKRÝT\",V150=\"SKRÝT\",V151=\"SKRÝT\",V152=\"SKRÝT\",V153=\"SKRÝT\"),\"SKRÝT\",1)","v":1}]
["Odcizení (krádež, loupež) (zjištěný i nezjištěný pachatel)",null,null,null,1000000,1000,null,null,null,"POZOR na úroveň zabezpečení u klienta.",null,null,null,null,null,{"$f":"IF(ISBLANK(E147),\"SKRÝT\",1)","v":1},{"$f":"IF(ISBLANK(F147),\"SKRÝT\",1)","v":1},{"$f":"IF(ISBLANK(G147),\"SKRÝT\",1)","v":"SKRÝT"},{"$f":"IF(ISBLANK(H147),\"SKRÝT\",1)","v":"SKRÝT"},1,1,{"$f":"IF(AND(P147=\"SKRÝT\",Q147=\"SKRÝT\",R147=\"SKRÝT\",S147=\"SKRÝT\"),\"SKRÝT\",1)","v":1}]
["Vandalismus (vč. prostého vandalismu, zjištěný i nezjištěný pachatel)",null,null,null,1000000,1000,null,null,null,"POZOR na úroveň zabezpečení u klienta.",null,null,null,null,null,{"$f":"IF(ISBLANK(E148),\"SKRÝT\",1)","v":1},{"$f":"IF(ISBLANK(F148),\"SKRÝT\",1)","v":1},{"$f":"IF(ISBLANK(G148),\"SKRÝT\",1)","v":"SKRÝT"},{"$f":"IF(ISBLANK(H148),\"SKRÝT\",1)","v":"SKRÝT"},1,1,1]
["Škody způsobené sprejery",null,null,null,1000000,1000,null,null,null,null,null,null,null,null,null,1,1,"SKRÝT","SKRÝT",1,1,1]
["Odcizení věcí z vozidla, autobus a trolejbusu ",null,null,null,1000000,1000,null,null,null,"POZOR na úroveň zabezpečení u klienta.",null,null,null,null,null,1,1,"SKRÝT","SKRÝT",1,1,1]
["Prostá krádež",null,null,null,100000,1000,null,null,null,"POZOR na úroveň zabezpečení u klienta.",null,null,null,null,null,1,1,"SKRÝT","SKRÝT",1,1,1]
["Náklady na výměnu zámků",null,null,null,100000,"Viz jednotlivá nebezpečí",null,"Viz jednotlivá nebezpečí",null,null,null,null,null,null,null,1,null,"SKRÝT",null,1,1,{"$f":"IF(AND(P152=\"SKRÝT\",R152=\"SKRÝT\"),\"SKRÝT\",1)","v":1}]
["Jiné (uveďte):",null,null,null,null,null,null,null,null,"Doplňte jiné nebezpečí nebo náklady, pokud chcete pojistit.",null,null,null,null,null,"SKRÝT","SKRÝT","SKRÝT","SKRÝT",1,1,"SKRÝT"]
["Poznámka",null,null,null,null,null,null,null,null,null,null,null,null,null,null,null,null,null,null,1,1,{"$f":"IF(AND(V155=\"SKRÝT\",V156=\"SKRÝT\"),\"SKRÝT\",1)","v":"SKRÝT"}]
[null,null,null,null,null,null,null,null,null,"Příklad poznámky. Pokud nepožadujete, řádek odstraňte.",null,null,null,null,null,null,null,null,null,"SKRÝT",1,{"$f":"IF(ISBLANK(A155),\"SKRÝT\",1)","v":"SKRÝT"}]
[null,null,null,null,null,null,null,null,null,"Zde můžete doplnit poznámky. Řádek můžete rozkopírovat.",null,null,null,null,null,null,null,null,null,1,1,{"$f":"IF(ISBLANK(A156),\"SKRÝT\",1)","v":"SKRÝT"}]
[null,null,null,null,null,null,null,null,null,null,null,null,null,null,null,null,null,null,null,1,1,{"$f":"IF(V154=\"SKRÝT\",\"SKRÝT\",1)","v":"SKRÝT"}]
["Pojištění skel",null,null,null,null,null,null,null,null,null,null,null,null,null,null,null,null,null,null,1,1,{"$f":"IF(V163=\"SKRÝT\",\"SKRÝT\",1)","v":1}]
["Předmětem pojištění je soubor skleněných výplní stavebních součástí (okenní, dveřní, výlohová), skleněné výplně movitého charakteru uvnitř budovy (výstavní skříňky a vitríny, obložení stěn, stropů a podhledů apod.), včetně nalepených snímačů zabezpečovacích zařízení, nalepených fólií, malby a jiných výzdob, dále reklamních tabulí, firemních štítů, fasádních obložení vnějších stěn budov, vnější vitríny apod. a světelné neónové nápisy včetně elektroinstalace.",null,null,null,null,null,null,null,null,null,null,null,null,null,null,null,null,null,null,1,1,{"$f":"IF(V163=\"SKRÝT\",\"SKRÝT\",1)","v":1}]
[null,null,null,null,null,null,null,null,null,null,null,null,null,null,null,null,null,null,null,1,1,{"$f":"IF(V163=\"SKRÝT\",\"SKRÝT\",1)","v":1}]
["Pojištěná nebezpečí",null,null,null,"Varianta  I.",null,"Varianta  II.",null,null,"Požadujte především různé varianty pojistných částek. ",null,null,null,null,null,null,null,null,null,1,1,{"$f":"IF(V163=\"SKRÝT\",\"SKRÝT\",1)","v":1}]
[null,null,null,null,"Pojistná částka \n(první riziko)","Spoluúčast","Pojistná částka \n(první riziko)","Spoluúčast",null,null,null,null,null,null,null,null,null,null,null,1,1,{"$f":"IF(V163=\"SKRÝT\",\"SKRÝT\",1)","v":1}]
["All risk (nahodilé rozbití), živelní nebezpečí; odcizení (krádež, loupež) ",null,null,null,300000,500,null,null,null,"Doporučujeme pojistit zejména v případě velkoformátových skel, skleněných tabulích, případně skleněného opláštnění budovy.",null,null,null,null,null,{"$f":"IF(E163=0,\"SKRÝT\",1)","v":1},{"$f":"IF(ISBLANK(F163),\"SKRÝT\",1)","v":1},{"$f":"IF(ISBLANK(G163),\"SKRÝT\",1)","v":"SKRÝT"},{"$f":"IF(ISBLANK(H163),\"SKRÝT\",1)","v":"SKRÝT"},1,1,{"$f":"IF(AND(P163=\"SKRÝT\",Q163=\"SKRÝT\",R163=\"SKRÝT\",S163=\"SKRÝT\"),\"SKRÝT\",1)","v":1}]
["Poznámka",null,null,null,null,null,null,null,null,null,null,null,null,null,null,null,null,null,null,1,1,{"$f":"IF(V165=\"SKRÝT\",\"SKRÝT\",1)","v":"SKRÝT"}]
[null,null,null,null,null,null,null,null,null,"Zde můžete doplnit poznámky.",null,null,null,null,null,null,null,null,null,1,1,{"$f":"IF(ISBLANK(A165),\"SKRÝT\",1)","v":"SKRÝT"}]
[null,null,null,null,null,null,null,null,null,null,null,null,null,null,null,null,null,null,null,1,1,{"$f":"IF(V165=\"SKRÝT\",\"SKRÝT\",1)","v":"SKRÝT"}]
["Pojištění věcí během silniční přepravy",null,null,null,null,null,null,null,null,null,null,null,null,null,null,null,null,null,null,1,1,{"$f":"IF(V179=\"SKRÝT\",\"SKRÝT\",1)","v":"SKRÝT"}]
["Místo pojištění:",null,null,null,null,null,null,null,null,null,null,null,null,null,null,null,null,null,null,1,1,{"$f":"IF(ISBLANK(C168),\"SKRÝT\",1)","v":"SKRÝT"}]
["Počet vozidel používaných k přepravě:",null,null,null,null,null,null,null,null,null,null,null,null,null,null,null,null,null,null,1,1,{"$f":"IF(ISBLANK(C169),\"SKRÝT\",1)","v":"SKRÝT"}]
["Uveďte charakter věcí, které mají být pojištěny při silniční přepravě (např. křehké zboží, elektronika, alkohol, cigarety):",null,null,null,null,null,null,null,null,null,null,null,null,null,null,null,null,null,null,1,1,{"$f":"IF(ISBLANK(E170),\"SKRÝT\",1)","v":"SKRÝT"}]
["Předmět pojištění",null,null,null,null,null,null,null,null,null,null,null,null,null,null,null,null,null,null,1,1,{"$f":"IF(V172=\"SKRÝT\",\"SKRÝT\",1)","v":"SKRÝT"}]
["Soubor věcí během silniční přepravy",null,null,null,null,null,{"$f":"SUM(G173:G175)","v":0},null,null,null,null,null,null,null,null,null,null,null,null,1,1,{"$f":"IF(G172=0,\"SKRÝT\",1)","v":"SKRÝT"}]
["Soubor věcí movitých (Provozní zařízení)",null,null,null,null,null,null,"První riziko - nová cena",null,null,null,null,null,null,null,null,null,null,null,1,1,{"$f":"IF(G173=0,\"SKRÝT\",1)","v":"SKRÝT"}]
["Soubor zásob (Materiál, nedokončená výroba, zásoby)",null,null,null,null,null,null,"První riziko - nová cena",null,null,null,null,null,null,null,null,null,null,null,1,1,{"$f":"IF(G174=0,\"SKRÝT\",1)","v":"SKRÝT"}]
["Věci převzaté např. za účelem opravy",null,null,null,null,"Cizí",null,"První riziko - nová cena",null,null,null,null,null,null,null,null,null,null,null,1,1,{"$f":"IF(G175=0,\"SKRÝT\",1)","v":"SKRÝT"}]
[]
["Pojištěná nebezpečí",null,null,null,"Varianta  I.",null,"Varianta  II.",null,null,"Požadujte především různé varianty limitů. ",null,null,null,null,null,null,null,null,null,1,1,{"$f":"IF(AND(V179=\"SKRÝT\"),\"SKRÝT\",1)","v":"SKRÝT"}]
[null,null,null,null,"Pojistná částka \n(první riziko)","Spoluúčast","Pojistná částka \n(první riziko)","Spoluúčast",null,null,null,null,null,null,null,null,null,null,null,1,1,{"$f":"IF(AND(V179=\"SKRÝT\"),\"SKRÝT\",1)","v":"SKRÝT"}]
["Dopravní nehoda; živelní nebezpečí; odcizení (krádež, loupež) bez vazby na dopravní nehodu; nakládka, vykládka",null,null,null,null,null,null,null,null,null,null,null,null,null,null,{"$f":"IF(ISBLANK(E179),\"SKRÝT\",1)","v":"SKRÝT"},{"$f":"IF(ISBLANK(F179),\"SKRÝT\",1)","v":"SKRÝT"},{"$f":"IF(ISBLANK(G179),\"SKRÝT\",1)","v":"SKRÝT"},{"$f":"IF(ISBLANK(H179),\"SKRÝT\",1)","v":"SKRÝT"},1,1,{"$f":"IF(AND(P179=\"SKRÝT\",Q179=\"SKRÝT\",R179=\"SKRÝT\",S179=\"SKRÝT\"),\"SKRÝT\",1)","v":"SKRÝT"}]
["Poznámka",null,null,null,null,null,null,null,null,null,null,null,null,null,null,null,null,null,null,1,1,{"$f":"IF(V181=\"SKRÝT\",\"SKRÝT\",1)","v":"SKRÝT"}]
[null,null,null,null,null,null,null,null,null,"Zde můžete doplnit poznámky.",null,null,null,null,null,null,null,null,null,1,1,{"$f":"IF(ISBLANK(E181),\"SKRÝT\",1)","v":"SKRÝT"}]

{"sheet":"Elektronika","index":5,"n_rows":56,"n_cols":22,"rows_kept":56,"cut":false,"hidden":false,"merged":[[53,0,53,7],[54,1,54,7],[55,1,55,7],[48,0,48,3],[49,0,49,3],[50,0,50,3],[51,1,51,3],[52,1,52,7],[43,0,43,3],[44,1,44,3],[45,0,45,3],[46,0,46,3],[40,0,42,2],[36,1,36,7],[40,4,40,5],[40,6,40,7],[41,4,41,5],[41,6,41,7],[38,0,38,7],[6,0,6,7],[8,0,8,7],[10,0,10,7],[11,0,11,7],[12,0,12,7],[24,0,24,4],[25,0,25,4],[26,1,26,4],[28,1,28,7],[29,0,29,7],[31,1,31,7],[32,1,32,7],[33,1,33,7],[34,1,34,7],[35,1,35,7],[2,2,2,4],[20,0,20,2],[27,0,27,4],[47,0,47,1],[18,0,18,7],[13,0,13,7],[14,0,14,7],[15,0,15,7],[16,0,16,1],[16,2,16,3],[19,0,19,7],[21,3,21,4],[23,3,23,4],[21,0,21,2],[23,0,23,2],[22,0,22,4]]}
[null,null,null,null,null,null,null,null,null,null,null,null,null,null,null,null,null,null,null,"Verze k odeslání klientovi","Verze zpracovat","Verze k odeslání do pojišťovny (skrýt nevyplněné informace)"]
[null,null,null,null,null,null,null,null,null,null,null,null,null,null,null,null,null,null,null,1,1,1]
[null,null,"ČÁST A - MAJETEK A ODPOVĚDNOST ",null,null,null,null,null,null,null,null,null,null,null,null,null,null,null,null,1,1,1]
[null,null,null,null,null,null,null,null,null,null,null,null,null,null,null,null,null,null,null,1,1,1]
[null,null,null,null,null,null,null,null,null,null,null,null,null,null,null,null,null,null,null,1,1,1]
[null,null,null,null,null,null,null,null,null,null,null,null,null,null,null,null,null,null,null,1,1,1]
["Pojištění elektroniky",null,null,null,null,null,null,null,null,null,null,null,null,null,null,null,null,null,null,1,1,1]
[null,null,null,null,null,null,null,null,null,null,null,null,null,null,null,null,null,null,null,1,1,1]
["Místa pojištění",null,null,null,null,null,null,null,null,null,null,null,null,null,null,null,null,null,null,1,1,1]
[]
["Ulice, číslo popisné, město a PSČ",null,null,null,null,null,null,null,null,null,null,null,null,null,null,null,null,null,null,1,1,1]
[null,null,null,null,null,null,null,null,null,"Automaticky se vyplní adresa sídla pojistníka.",null,null,null,null,null,null,null,null,null,1,1,1]
[null,null,null,null,null,null,null,null,null,null,null,null,null,null,null,null,null,null,null,1,1,{"$f":"IF(ISBLANK(A13),\"SKRÝT\",1)","v":"SKRÝT"}]
[null,null,null,null,null,null,null,null,null,null,null,null,null,null,null,null,null,null,null,1,1,{"$f":"IF(ISBLANK(A14),\"SKRÝT\",1)","v":"SKRÝT"}]
[null,null,null,null,null,null,null,null,null,null,null,null,null,null,null,null,null,null,null,1,1,{"$f":"IF(ISBLANK(A15),\"SKRÝT\",1)","v":"SKRÝT"}]
[null,null,null,null,null,null,null,null,null,null,null,null,null,null,null,null,null,null,null,1,1,{"$f":"IF(ISBLANK(A16),\"SKRÝT\",1)","v":"SKRÝT"}]
["Pro mobilní elektroniku:",null,null,null,null,null,null,null,null,null,null,null,null,null,null,null,null,null,null,1,1,{"$f":"IF(ISBLANK(C17),\"SKRÝT\",1)","v":"SKRÝT"}]
[null,null,null,null,null,null,null,null,null,null,null,null,null,null,null,null,null,null,null,1,1,1]
["Elektronika k pojištění",null,null,null,null,null,null,null,null,null,null,null,null,null,null,null,null,null,null,1,1,1]
[]
["Elektronika k pojištění",null,null,"Připojištění: \nZáklady",null,"Vlastní/ cizí/ \nvlastní a cizí","Pojistná částka","Pojistná hodnota",null,null,null,null,null,null,null,null,null,null,null,1,1,1]
["Soubor vlastní elektroniky vč. zařízení trojebusů a mobilní techniky",null,null,null,null,"Vlastní",1000000,"První riziko - nová cena",null,null,null,null,null,null,null,null,null,null,null,1,1,{"$f":"IF(G22=0,\"SKRÝT\",1)","v":1}]
["Soubor mobilní elektroniky do  5 let stáří, včetně příslušenství",null,null,null,null,null,null,null,null,null,null,null,null,null,null,null,null,null,null,1,1,{"$f":"IF(G23=0,\"SKRÝT\",1)","v":"SKRÝT"}]
["Soubor stacionární elektroniky do 5 let stáří, včetně příslušenství a:",null,null,null,null,null,null,null,null,null,null,null,null,null,null,null,null,null,null,1,1,"SKRÝT"]
["Software a data zakoupené nebo pořízené nad rámec standardně dodaných výrobcem",null,null,null,null,null,null,null,null,null,null,null,null,null,null,null,null,null,null,null,null,"SKRÝT"]
["Rozvody pojišťovaných zařízení",null,null,null,null,null,null,null,null,null,null,null,null,null,null,null,null,null,null,null,null,"SKRÝT"]
["Jiné (uveďte):",null,null,null,null,null,null,null,null,null,null,null,null,null,null,null,null,null,null,1,1,"SKRÝT"]
["Pojistná částka celkem",null,null,null,null,null,{"$f":"SUM(G22:G24,G27)","v":1000000},null,null,null,null,null,null,null,null,null,null,null,null,1,1,1]
["Poznámka",null,null,null,null,null,null,null,null,null,null,null,null,null,null,null,null,null,null,1,1,{"$f":"IF(ISBLANK(A30),\"SKRÝT\",1)","v":1}]
["vč. elektroniky starší i 8 let",null,null,null,null,null,null,null,null,null,null,null,null,null,null,null,null,null,null,1,1,{"$f":"IF(ISBLANK(A30),\"SKRÝT\",1)","v":1}]
[null,null,null,null,null,null,null,null,null,null,null,null,null,null,null,null,null,null,null,1,1,1]
["Použité pojmy",null,null,null,null,null,null,null,null,null,null,null,null,null,null,null,null,null,null,1,1,1]
["Nová cena","Cena, za kterou lze v daném místě a v daném čase věc stejnou nebo srovnatelnou znovu pořídit jako věc stejnou nebo novou, stejného druhu a účelu.",null,null,null,null,null,null,null,null,null,null,null,null,null,null,null,null,null,1,1,1]
["Časová cena","Cena, kterou měla věc bezprostředně před pojistnou událostí; stanoví se z nové ceny věci, přičemž se přihlíží ke stupni opotřebení nebo jiného znehodnocení anebo k zhodnocení věci, k němuž došlo její opravou, modernizací nebo jiným způsobem.",null,null,null,null,null,null,null,null,null,null,null,null,null,null,null,null,null,1,1,1]
["Jiná cena","Cena, jejíž výše i způsob stanovení jsou dohodnuté v pojistné smlouvě.",null,null,null,null,null,null,null,null,null,null,null,null,null,null,null,null,null,1,1,1]
["Obvyklá cena","Cena, kterou může pojištěný dosáhnout při prodeji předmětné věci v daném čase a místě pojištění.",null,null,null,null,null,null,null,null,null,null,null,null,null,null,null,null,null,1,1,1]
["První riziko","V případě pojištění na první riziko se pojištění sjednává pouze na část známé pojistné hodnoty věci. Pojistná částka sjednaná na první riziko je zároveň horní hranicí plnění pojistitele ze všech pojistných událostí vzniklých za určenou dobu.",null,null,null,null,null,null,null,null,null,null,null,null,null,null,null,null,null,1,1,1]
[null,null,null,null,null,null,null,null,null,null,null,null,null,null,null,null,null,null,null,1,1,1]
["Pojištění elektroniky",null,null,null,null,null,null,null,null,null,null,null,null,null,null,null,null,null,null,1,1,1]
[null,null,null,null,null,null,null,null,null,null,null,null,null,null,null,null,null,null,null,1,1,1]
["Pojištěná nebezpečí",null,null,null,"Varianta  I.",null,"Varianta  II.",null,null,"Požadujte především různé varianty limitů. ",null,null,null,null,null,null,null,null,null,1,1,1]
[null,null,null,null,null,null,null,null,null,null,null,null,null,null,null,null,null,null,null,1,1,1]
[null,null,null,null,"Limit plnění","Spoluúčast","Limit plnění","Spoluúčast",null,null,null,null,null,null,null,null,null,null,null,1,1,1]
["All risk (technická rizika)",null,null,null,1000000,1000,null,null,null,null,null,null,null,null,null,{"$f":"IF(ISBLANK(E44),\"SKRÝT\",1)","v":1},{"$f":"IF(ISBLANK(F44),\"SKRÝT\",1)","v":1},{"$f":"IF(ISBLANK(G44),\"SKRÝT\",1)","v":"SKRÝT"},{"$f":"IF(ISBLANK(H44),\"SKRÝT\",1)","v":"SKRÝT"},1,1,{"$f":"IF(AND(P44=\"SKRÝT\",Q44=\"SKRÝT\",R44=\"SKRÝT\",S44=\"SKRÝT\"),\"SKRÝT\",1)","v":1}]
["Jiné (uveďte):",null,null,null,null,null,null,null,null,"Doplňte jiné nebezpečí, pokud chcete požadovat.",null,null,null,null,null,{"$f":"IF(ISBLANK(E45),\"SKRÝT\",1)","v":"SKRÝT"},"SKRÝT","SKRÝT","SKRÝT",1,1,{"$f":"IF(AND(P45=\"SKRÝT\",Q45=\"SKRÝT\",R45=\"SKRÝT\",S45=\"SKRÝT\"),\"SKRÝT\",1)","v":"SKRÝT"}]
["Náklady na expresní a leteckou dopravu ",null,null,null,null,"Viz jednotlivá nebezpečí",null,"Viz jednotlivá nebezpečí",null,null,null,null,null,null,null,"SKRÝT",null,"SKRÝT",null,1,1,{"$f":"IF(AND(P46=\"SKRÝT\",R46=\"SKRÝT\"),\"SKRÝT\",1)","v":"SKRÝT"}]
["Náklady na práci přesčas, v noci, v neděli a ve státních svátcích",null,null,null,null,"Viz jednotlivá nebezpečí",null,"Viz jednotlivá nebezpečí",null,null,null,null,null,null,null,"SKRÝT",null,"SKRÝT",null,1,1,"SKRÝT"]
["Jiné náklady (uveďte):",null,null,null,null,"Viz jednotlivá nebezpečí",null,"Viz jednotlivá nebezpečí",null,"Doplňte jiné náklady, pokud chcete požadovat.",null,null,null,null,null,"SKRÝT",null,"SKRÝT",null,1,1,"SKRÝT"]
["Připojištění vyměnitelných částí",null,null,null,50000,"Viz jednotlivá nebezpečí",null,"Viz jednotlivá nebezpečí",null,null,null,null,null,null,null,1,null,"SKRÝT",null,null,null,1]
["Připojištění provozních kapalin",null,null,null,null,"Viz jednotlivá nebezpečí",null,"Viz jednotlivá nebezpečí",null,null,null,null,null,null,null,"SKRÝT",null,"SKRÝT",null,1,1,"SKRÝT"]
["Připojištění skleněných částí",null,null,null,50000,"Viz jednotlivá nebezpečí",null,"Viz jednotlivá nebezpečí",null,null,null,null,null,null,null,1,null,"SKRÝT",null,null,null,1]
["Jiné (uveďte):",null,null,null,null,null,null,null,null,"Doplňte jiné připojištění, pokud chcete požadovat.",null,null,null,null,null,"SKRÝT",{"$f":"IF(ISBLANK(F52),\"SKRÝT\",1)","v":"SKRÝT"},"SKRÝT",{"$f":"IF(ISBLANK(H52),\"SKRÝT\",1)","v":"SKRÝT"},1,1,"SKRÝT"]
["Poznámka",null,null,null,null,null,null,null,null,null,null,null,null,null,null,null,null,null,null,1,1,{"$f":"IF(ISBLANK(A54),\"SKRÝT\",1)","v":"SKRÝT"}]
[null,null,null,null,null,null,null,null,null,"Zde můžete doplnit poznámky.",null,null,null,null,null,null,null,null,null,1,1,{"$f":"IF(ISBLANK(A54),\"SKRÝT\",1)","v":"SKRÝT"}]
["Použité pojmy",null,null,null,null,null,null,null,null,null,null,null,null,null,null,null,null,null,null,1,1,1]
["All risk\n(technická rizika)","Všechna nebezpečí, kromě výslovně vyloučených (běžně jsou vyloučená živelní nebezpečí, odcizení, vandalismus, válka, stávka; politická rizika; jaderné záření, reakce, kontaminace; běžné opotřebení; atmosférické vlivy; škody, za které odpovídá smluvní partner; úmyslné jednání pojištěného; škody na vyměnitelných součástech a na součástech, které podléhají rychlému opotřebení)",null,null,null,null,null,null,null,null,null,null,null,null,null,null,null,null,null,1,1,1]

{"sheet":"odpovědnost ","index":6,"n_rows":84,"n_cols":22,"rows_kept":84,"cut":false,"hidden":false,"merged":[[16,0,16,7],[18,0,18,3],[18,4,18,5],[18,6,18,7],[19,0,19,3],[19,4,19,5],[14,1,14,2],[6,0,6,7],[11,1,11,7],[12,1,12,5],[12,6,12,7],[13,1,13,2],[13,3,13,7],[21,6,21,7],[31,0,31,7],[30,0,30,5],[36,0,36,1],[36,2,36,3],[36,4,36,5],[36,6,36,7],[32,0,32,7],[21,0,21,3],[21,4,21,5],[37,0,37,1],[37,2,37,3],[37,4,37,5],[37,6,37,7],[48,6,48,7],[39,2,39,3],[39,4,39,5],[39,6,39,7],[40,2,40,3],[40,4,40,5],[40,6,40,7],[42,2,42,3],[42,4,42,5],[43,2,43,3],[43,4,43,5],[48,4,48,5],[49,0,49,3],[49,4,49,5],[49,6,49,7],[50,0,50,3],[50,4,50,5],[50,6,50,7],[51,0,51,3],[51,4,51,5],[51,6,51,7],[52,0,52,3],[52,4,52,5],[52,6,52,7],[53,0,53,3],[54,0,54,3],[55,0,55,3],[56,0,56,3],[67,0,67,3],[66,0,66,3],[68,0,68,3],[69,0,69,3],[57,0,57,3],[58,0,58,3],[59,0,59,3],[60,0,60,3],[61,0,61,3],[62,0,62,3],[83,0,83,7],[63,0,63,3],[76,0,76,3],[77,0,77,3],[78,0,78,3],[79,1,79,3],[80,1,80,3],[82,0,82,7],[70,0,70,3],[71,0,71,3],[72,0,72,3],[73,0,73,3],[74,0,74,3],[75,0,75,3],[64,0,64,3],[65,0,65,3],[3,2,3,4],[29,6,29,7],[29,0,29,5],[27,6,27,7],[28,0,28,5],[28,6,28,7],[22,0,22,3],[22,4,22,5],[22,6,22,7],[23,0,23,3],[23,4,23,5],[23,6,23,7],[19,6,19,7],[20,0,20,3],[20,4,20,5],[20,6,20,7]]}
[null,null,null,null,null,null,null,null,null,null,null,null,null,null,null,null,null,null,null,"Verze Klient","Verze zpracovat","Verze odeslat do pojišťovny (skrýt nevyplněné informace)"]
[null,null,null,null,null,null,null,null,null,null,null,null,null,null,null,null,null,null,null,1,1,1]
[null,null,null,null,null,null,null,null,null,null,null,null,null,null,null,null,null,null,null,1,1,1]
[null,null,"ČÁST A - MAJETEK A ODPOVEDNOST ",null,null,null,null,null,null,null,null,null,null,null,null,null,null,null,null,1,1,1]
[null,null,null,null,null,null,null,null,null,null,null,null,null,null,null,null,null,null,null,1,1,1]
[null,null,null,null,null,null,null,null,null,null,null,null,null,null,null,null,null,null,null,1,1,1]
["Pojištění odpovědnosti za újmu",null,null,null,null,null,null,null,null,null,null,null,null,null,null,null,null,null,null,1,1,1]
[null,null,null,null,null,null,null,null,null,null,null,null,null,null,null,null,null,null,null,1,1,1]
["Pojištěné činnosti",null,null,null,null,null,null,null,null,null,null,null,null,null,null,null,null,null,null,1,1,1]
[null,null,null,null,null,null,null,null,null,null,null,null,null,null,null,null,null,null,null,1,1,1]
["Ano/ Ne",null,null,null,null,null,null,null,null,null,null,null,null,null,null,null,null,null,null,1,1,1]
["Ano","Všechny činnosti uvedené v obchodním rejstříku, živnostenském rejstříku",null,null,null,null,null,null,null,"Činnosti klienta doporučujeme ověřit v aplikaci ARES (https://wwwinfo.mfcr.cz/ares/ares_es.html.cz). POZOR na činnosti spadající do profesní odpovědnosti.",null,null,null,null,null,null,null,null,null,1,1,{"$f":"IF(A12<>\"ANO\",\"SKRÝT\",1)","v":1}]
[null,"Všechny činnosti uvedené v obchodním rejstříku, živnostenském rejstříku s výjimkou:",null,null,null,null,null,null,null,null,null,null,null,null,null,null,null,null,null,1,1,{"$f":"IF(A13<>\"ANO\",\"SKRÝT\",1)","v":"SKRÝT"}]
[null,"Pouze následující činnosti:",null,null,null,null,null,null,null,null,null,null,null,null,null,null,null,null,null,1,1,{"$f":"IF(A14<>\"ANO\",\"SKRÝT\",1)","v":"SKRÝT"}]
[null,"Individuální zakázka (popis):",null,null,null,null,null,null,null,null,null,null,null,null,null,null,null,null,null,1,1,{"$f":"IF(A15<>\"ANO\",\"SKRÝT\",1)","v":"SKRÝT"}]
[null,null,null,null,null,null,null,null,null,null,null,null,null,null,null,null,null,null,null,1,1,1]
["Uveďte prosím rozdělení činností podle obratu. Vedlejší činnosti s podílem na obratu do 5 % lze uvést souhrnně. ",null,null,null,null,null,null,null,null,null,null,null,null,null,null,null,null,null,null,1,1,"SKRÝT"]
[null,null,null,null,null,null,null,null,null,null,null,null,null,null,null,null,null,null,null,1,1,1]
["Popis činnosti ",null,null,null,"Podíl činnosti na obratu %",null,"Činnost je provozována od roku",null,null,null,null,null,null,null,null,null,null,null,null,1,1,1]
[null,null,null,null,null,null,null,null,null,null,null,null,null,null,null,null,null,null,null,1,1,1]
[null,null,null,null,null,null,null,null,null,null,null,null,null,null,null,null,{"$f":"IF(ISBLANK(A21),\"SKRÝT\",1)","v":"SKRÝT"},{"$f":"IF(ISBLANK(E21),\"SKRÝT\",1)","v":"SKRÝT"},{"$f":"IF(ISBLANK(G21),\"SKRÝT\",1)","v":"SKRÝT"},1,1,{"$f":"IF(AND(Q21=\"SKRÝT\",R21=\"SKRÝT\",S21=\"SKRÝT\"),\"SKRÝT\",1)","v":"SKRÝT"}]
[null,null,null,null,null,null,null,null,null,null,null,null,null,null,null,null,{"$f":"IF(ISBLANK(A22),\"SKRÝT\",1)","v":"SKRÝT"},{"$f":"IF(ISBLANK(E22),\"SKRÝT\",1)","v":"SKRÝT"},{"$f":"IF(ISBLANK(G22),\"SKRÝT\",1)","v":"SKRÝT"},1,1,{"$f":"IF(AND(Q22=\"SKRÝT\",R22=\"SKRÝT\",S22=\"SKRÝT\"),\"SKRÝT\",1)","v":"SKRÝT"}]
[null,null,null,null,null,null,null,null,null,null,null,null,null,null,null,null,{"$f":"IF(ISBLANK(A23),\"SKRÝT\",1)","v":"SKRÝT"},{"$f":"IF(ISBLANK(E23),\"SKRÝT\",1)","v":"SKRÝT"},{"$f":"IF(ISBLANK(G23),\"SKRÝT\",1)","v":"SKRÝT"},1,1,{"$f":"IF(AND(Q23=\"SKRÝT\",R23=\"SKRÝT\",S23=\"SKRÝT\"),\"SKRÝT\",1)","v":"SKRÝT"}]
[null,null,null,null,null,null,null,null,null,null,null,null,null,null,null,null,{"$f":"IF(ISBLANK(A24),\"SKRÝT\",1)","v":"SKRÝT"},{"$f":"IF(ISBLANK(E24),\"SKRÝT\",1)","v":"SKRÝT"},{"$f":"IF(ISBLANK(G24),\"SKRÝT\",1)","v":"SKRÝT"},1,1,{"$f":"IF(AND(Q24=\"SKRÝT\",R24=\"SKRÝT\",S24=\"SKRÝT\"),\"SKRÝT\",1)","v":"SKRÝT"}]
[null,null,null,null,null,null,null,null,null,null,null,null,null,null,null,null,null,null,null,1,1,1]
[]
["Informace o možných nárocích na náhradu újmy/ škody",null,null,null,null,null,null,null,null,null,null,null,null,null,null,null,null,null,null,1,1,1]
[null,null,null,null,null,null,"Ano/ Ne"]
["Jsou Vám známy jakékoliv nároky na náhradu újmy / škody vznesené proti společnosti(tem) nebo jejím předchůdcům či proti některému současnému nebo předchozímu partnerovi, jednateli, zaměstnanci?",null,null,null,null,null,null,null,null,null,null,null,null,null,null,null,null,null,null,1,1,1]
["Jsou Vám známy jakékoli okolnosti nebo události, na jejichž základě by mohl být vznesen nárok na náhradu újmy / škody proti společnosti nebo jejím předchůdcům či proti některému současnému nebo předchozímu společníkovi, jednateli, zaměstnanci nebo externímu spolupracovníkovi?",null,null,null,null,null,null,null,null,null,null,null,null,null,null,null,null,null,null,1,1,1]
["Pokud je odpověď na některou z otázek Ano, uveďte prosím podrobnosti:",null,null,null,null,null,null,null,null,null,null,null,null,null,null,null,null,null,null,1,1,1]
[null,null,null,null,null,null,null,null,null,null,null,null,null,null,null,null,null,null,null,1,1,1]
[null,null,null,null,null,null,null,null,null,null,null,null,null,null,null,null,null,null,null,1,1,1]
[]
["Ekonomické údaje",null,null,null,null,null,null,null,null,null,null,null,null,null,null,null,null,null,null,1,1,1]
[null,null,null,null,null,null,null,null,null,null,null,null,null,null,null,null,null,null,null,1,1,1]
[null,null,"Poslední uzavřený účetní rok",null,"Aktuální účetní rok (odhad)",null,"Plánovaný na následující účetní rok",null,null,null,null,null,null,null,null,null,null,null,null,1,1,1]
["Celková výše obratu (v Kč)",null,null,null,null,null,null,null,null,null,null,null,null,null,null,null,null,null,null,1,1,1]
[null,null,null,null,null,null,null,null,null,null,null,null,null,null,null,null,null,null,null,1,1,1]
[null,"ČR","Evropa s výjimkou ČR (geograficky)",null,"USA a Kanada",null,"Ostatní",null,null,null,null,null,null,null,null,null,null,null,null,1,1,1]
["Rozdělení obratu podle teritoria (%)",null,null,null,null,null,null,null,null,null,null,null,null,null,null,null,null,null,null,1,1,1]
[null,null,null,null,null,null,null,null,null,null,null,null,null,null,null,null,null,null,null,1,1,1]
[null,"THP","Dělníci",null,"Ostatní profese",null,null,null,null,null,null,null,null,null,null,null,null,null,null,1,1,1]
["Celkový počet zaměstnanců \n(aktuální)",null,null,null,null,null,"Počet směn",null,null,null,null,null,null,null,null,null,null,null,null,1,1,1]
[null,null,null,null,null,null,null,null,null,null,null,null,null,null,null,null,null,null,null,1,1,1]
[null,null,null,null,null,null,null,null,null,null,null,null,null,null,null,null,null,null,null,1,1,1]
["Pojištění odpovědnosti za újmu",null,null,null,null,null,null,null,null,null,null,null,null,null,null,null,null,null,null,1,1,1]
[null,null,null,null,null,null,null,null,null,null,null,null,null,null,null,null,null,null,null,1,1,1]
[null,null,null,null,"Varianta  I.",null,"Varianta  II.",null,null,"Požadujte především různé varianty limitů. ",null,null,null,null,null,null,null,null,null,1,1,1]
["Retroaktivita pojištění pro újmu/ škody, k jejichž příčina a vznik spadá před počátkem pojištění (datum)",null,null,null,"2024-01-01",null,null,null,null,"Požadujte vždy, pokud bylo nebo bude sjednáno pojištění na principu Act Committed nebo Claims Made, protože tyto principy podmiňují poskytnutí plnění tím, že příčina škody musí nastat v době trvání pojištění.",null,null,null,null,null,null,null,null,null,1,1,1]
["Retroaktivita pojištění pro výrobky uvedené na trh před počátkem pojištění (datum)",null,null,null,null,null,null,null,null,"U výrobců, distributorů a dovozců požadujte vždy, pokud se nejedná o rychlokazitelné zboží. Obvykle se totiž pojištění odpovědnosti za výrobek vztahuje jen na škody způsobené výrobky uvedenými na trh po počátku pojištění",null,null,null,null,null,null,null,null,null,1,1,1]
["Doba pro nahlašování vznesených nároků pojistiteli po skončení pojištění (měsíců)",null,null,null,null,null,null,null,null,"Požadujte vždy, pokud bylo nebo bude sjednáno pojištění na principu Claims Made (POZOR – někteří pojistitelé upravují princip pro odpovědnost za výrobek ve smlouvě). Pojistitelé obvykle akceptují prodlouženou dobu pro nahlášení minimálně  6 měsíců.",null,null,null,null,null,null,null,null,null,1,1,1]
["Územní rozsah pojištění",null,null,null,"Evropa (geograficky)",null,null,null,null,"POZOR např. na újmy na zdraví cizinců, které se mohou projevit až po jejich návratu domů, nebo na nepřímé exporty.",null,null,null,null,null,null,null,null,null,1,1,1]
[null,null,null,null,"Limit plnění","Spoluúčast","Limit plnění","Spoluúčast",null,null,null,null,null,null,null,null,null,null,null,1,1,1]
["Obecná odpovědnost za újmu vč. následných finančních škod, újmy na životním prostředí v důsledku nenadálého selhání ochranného zařízení, vlastnictví a držby nemovitostí a pronájmu nemovitosti od 3. osoby",null,null,null,50000000,1000,null,null,null,"Doporučujeme požadovat vždy základní limit min. 10 mil. Kč. Při stanovení základního limitu zároveň doporučujeme zohlednit i možné újmy na zdraví, kdy náhrada újmy může v jednotlivých případech dosahovat i 30 mil. Kč (zejm. u dětí a mladých lidí).",null,null,null,null,null,null,null,null,null,1,1,{"$f":"IF(AND(P55=\"SKRÝT\",Q55=\"SKRÝT\",R55=\"SKRÝT\",S55=\"SKRÝT\"),\"SKRÝT\",1)","v":1}]
["Regresy zdravotních pojišťoven v důsledky újmy na zdraví zaměstnanců",null,null,null,50000000,1000,null,null,null,"U některých pojišťoven součást základního krytí, jiné připojišťují zvlášť. Vzhledem k obvyklým nárokům doporučujeme jako minimální limit 3 mil. Kč (dostatečný k pokrytí 1 škody). Pokud pojišťovna nabídne společný limit i pro regresy orgánů nemocenského pojištění, je nutné limit přizpůsobit.",null,null,null,null,null,{"$f":"IF(ISBLANK(E56),\"SKRÝT\",1)","v":1},{"$f":"IF(ISBLANK(F56),\"SKRÝT\",1)","v":1},"SKRÝT","SKRÝT",1,1,{"$f":"IF(AND(P56=\"SKRÝT\",Q56=\"SKRÝT\",R56=\"SKRÝT\",S56=\"SKRÝT\"),\"SKRÝT\",1)","v":1}]
["Regresy orgánů nemocenského pojištění",null,null,null,50000000,1000,null,null,null,"U některých pojišťoven součást základního krytí, jiné připojišťují zvlášť. Vzhledem k obvyklým nárokům doporučujeme jako minimální limit 3 mil. Kč (dostatečný k pokrytí 1 škody). Pokud pojišťovna nabídne společný limit i pro regresy ZP, je nutné limit přizpůsobit.",null,null,null,null,null,1,1,"SKRÝT","SKRÝT",1,1,1]
["Osobnostní nemajetková újma (spočívající v jiném zásahu do přirozených práv člověka než ublížení na zdraví nebo usmrcení)",null,null,null,5000000,1000,null,null,null,"Zásah do přirozených práv.",null,null,null,null,null,1,1,"SKRÝT","SKRÝT",1,1,1]
["Duševní útrapy osoby blízké při zvlášť závažném ublížení na zdraví nebo při usmrcení",null,null,null,50000000,1000,null,null,null,"POZOR na automobily a jiná vozidla, jejich připojištění je nutné žádat zvlášť.",null,null,null,null,null,1,1,"SKRÝT","SKRÝT",1,1,1]
["Odpovědnost za věci movité užívané vč. automibilů",null,null,null,10000000,1000,null,null,null,"POZOR na automobily a jiná vozidla, jejich připojištění je nutné žádat zvlášť.",null,null,null,null,null,1,1,"SKRÝT","SKRÝT",1,1,1]
["Odpovědnost za věci zaměstnanců, vč. mobilních telefonů, notebooků, ostatních elektronických zařízení a jízdních kol",null,null,null,1000000,500,null,null,null,"Obvyklé bývá součástí základního krytí, některé pojišťovny však připojišťují zvlášť.",null,null,null,null,null,1,1,"SKRÝT","SKRÝT",1,1,1]
["Odpovědnost za věci vnesené, odložené (věci návštěv, cestujících, apod)",null,null,null,2000000,500,null,null,null,"POZOR zejm. u hotelů a v pohostinství, provozování hlídaných garáží apod. POZOR na automobily a jiná vozidla, jejich připojištění je nutné žádat zvlášť.",null,null,null,null,null,1,1,"SKRÝT","SKRÝT",1,1,1]
["Odpovědnost za újmu způsobenou vadným výrobkem, vč. vadně vykonané práce",null,null,null,50000000,1000,null,null,null,"POZOR na definici výrobku, pojišťovny mají nastaveno různě.",null,null,null,null,null,1,1,"SKRÝT","SKRÝT",1,1,1]
["Čisté finanční škody",null,null,null,10000000,5000,null,null,null,null,null,null,null,null,null,1,1,{"$f":"IF(ISBLANK(G63),\"SKRÝT\",1)","v":"SKRÝT"},"SKRÝT",1,1,1]
["Čisté finanční z vady výrobku a vadně vykonané práce ",null,null,null,"V rámci limitu pro čisté finanční škody",5000,"V rámci limitu pro čisté finanční škody",null,null,"Finanční škoda ve formě např. ušlého zisku vzniklého v důsledku vady výrobku (vady provedené práce).",null,null,null,null,null,1,1,{"$f":"IF(ISBLANK(G64),\"SKRÝT\",1)","v":"SKRÝT"},"SKRÝT",1,1,1]
["Odpovědnost za věci převzaté a užívané vč. vozidel",null,null,null,10000000,5000,null,null,null,"Kryje pouze škody vzniklé spojením/ smícháním.",null,null,null,null,null,1,1,"SKRÝT","SKRÝT",1,1,1]
["Provoz pracovních strojů ",null,null,null,30000000,5000,null,null,null,"Kryje pouze náklady na montáž/ demontáž vadného výrobku, nikoliv čisté finanční škody způsobené výrobkem obecně (např. ušlý zisk odběratele).",null,null,null,null,null,{"$f":"IF(ISBLANK(E67),\"SKRÝT\",1)","v":1},{"$f":"IF(ISBLANK(F67),\"SKRÝT\",1)","v":1},{"$f":"IF(ISBLANK(G67),\"SKRÝT\",1)","v":"SKRÝT"},{"$f":"IF(ISBLANK(H67),\"SKRÝT\",1)","v":"SKRÝT"},1,1,1]
["Odpovědnost obchodní korporace za újmu členům svách orgánů v souvislosti s výkonem jejich funkce",null,null,null,10000000,5000,null,null,null,"Vhodné zejm. v pohostinství, škol s vlastní jídelnou. POZOR na způsobenou újmu na zdraví (viz výše).",null,null,null,null,null,1,1,"SKRÝT","SKRÝT",1,1,1]
["Náklady na stažení výrobku z trhu",null,null,null,null,null,null,null,null,"Doporučujeme vždy řešit nezávisle včetně samostatného dotazníku dostupného na Intranetu. Na českém trhu se nabízí pouze společně s pojištěním odpovědnosti.",null,null,null,null,null,"SKRÝT","SKRÝT","SKRÝT","SKRÝT",1,1,"SKRÝT"]
["Křížová odpovědnost vůči majetkově propojeným společnostem",null,null,null,50000000,1000,null,null,null,"Vhodné u holdingů.",null,null,null,null,null,1,1,"SKRÝT","SKRÝT",1,1,1]
["Křížová odpovědnost mezi pojištěnými",null,null,null,50000000,1000,null,null,null,"Vhodné u holdingových smluv.",null,null,null,null,null,1,1,"SKRÝT","SKRÝT",1,1,1]
["Odpovědnost za újmu na životním prostředí vzniklou jinak než v důsledku nenadálého selhání ochranného zařízení",null,null,null,1000000,5000,null,null,null,"Vhodné zejm. pro společnosti nakládající s nebezpečnými látkami nebo jinak potencionálně ohrožující životní prostředí.",null,null,null,null,null,1,1,"SKRÝT","SKRÝT",1,1,1]
["Odpovědnost za ekologickou újmu",null,null,null,1000000,5000,null,null,null,"Je nutné zeptat se klienta, zda má povinnost obstarat pojištění nebo jinou formu zajištění ekologické újmy.",null,null,null,null,null,1,1,"SKRÝT","SKRÝT",1,1,1]
["Odpovědnost za újmu vzniklou přerušením, kolísáním nebo omezením dodávek elektřiny, plynu, vody nebo tepla",null,null,null,null,null,null,null,null,"Vhodné pro distributory elektřiny, plynu, vody, tepla apod.",null,null,null,null,null,"SKRÝT","SKRÝT","SKRÝT","SKRÝT",1,1,"SKRÝT"]
["Odpovědnost za újmu způsobenou činností silniční doprava nákladní, vyjma škod přímo na přepravovaném nákladu",null,null,null,null,null,null,null,null,"Vhodné pro silniční dopravce (POZOR škody přímo na přepravovaném nákladu zůstávají stále vyloučeny - ty kryje pojištění odpovědnosti dopravce).",null,null,null,null,null,"SKRÝT","SKRÝT","SKRÝT","SKRÝT",1,1,"SKRÝT"]
["Odpovědnost za újmu způsobenou pozvolným vnikáním vlhka a kapalin všeho druhu, působením plynů, par, vlhkostí nebo srážek",null,null,null,null,null,null,null,null,"Vhodné např. pro stavební společnosti.",null,null,null,null,null,"SKRÝT","SKRÝT","SKRÝT","SKRÝT",1,1,"SKRÝT"]
["Odpovědnost za újmu způsobenou sesedáním, sesuvem půdy, poddolováním",null,null,null,null,null,null,null,null,"Vhodné např. pro stavební společnosti.",null,null,null,null,null,"SKRÝT","SKRÝT","SKRÝT","SKRÝT",1,1,"SKRÝT"]
["Odpovědnost za újmu způsobenou vibracemi",null,null,null,null,null,null,null,null,"Vhodné např. pro stavební společnosti.",null,null,null,null,null,"SKRÝT","SKRÝT","SKRÝT","SKRÝT",1,1,"SKRÝT"]
["Odpovědnost za újmu vzniklou odcizením věci ve střeženém objektu při zajišťování ostrahy majetku",null,null,null,null,null,null,null,null,"Vhodné pro společnosti zabývající se ostrahou objektů.",null,null,null,null,null,"SKRÝT","SKRÝT","SKRÝT","SKRÝT",1,1,"SKRÝT"]
["Jiné (uveďte):",null,null,null,null,null,null,null,null,"Doplňte jiné připojištění, pokud chcete požadovat.",null,null,null,null,null,"SKRÝT","SKRÝT","SKRÝT","SKRÝT",1,1,"SKRÝT"]
["Jiné (uveďte):",null,null,null,null,null,null,null,null,"Doplňte jiné připojištění, pokud chcete požadovat.",null,null,null,null,null,"SKRÝT","SKRÝT","SKRÝT","SKRÝT",1,1,"SKRÝT"]
["Poznámka",null,null,null,null,null,null,null,null,null,null,null,null,null,null,{"$f":"IF(ISBLANK(E82),\"SKRÝT\",1)","v":"SKRÝT"},{"$f":"IF(ISBLANK(F82),\"SKRÝT\",1)","v":"SKRÝT"},{"$f":"IF(ISBLANK(G82),\"SKRÝT\",1)","v":"SKRÝT"},{"$f":"IF(ISBLANK(H82),\"SKRÝT\",1)","v":"SKRÝT"},1,1,{"$f":"IF(ISBLANK(A84),\"SKRÝT\",1)","v":"SKRÝT"}]
[null,null,null,null,null,null,null,null,null,"Příklad poznámky",null,null,null,null,null,null,null,null,null,"SKRÝT",1,{"$f":"IF(ISBLANK(A83),\"SKRÝT\",1)","v":"SKRÝT"}]
[null,null,null,null,null,null,null,null,null,"Zde můžete doplnit poznámky.",null,null,null,null,null,null,null,null,null,1,1,{"$f":"IF(ISBLANK(A84),\"SKRÝT\",1)","v":"SKRÝT"}]

{"sheet":"Stroje","index":7,"n_rows":61,"n_cols":22,"rows_kept":61,"cut":false,"hidden":false,"merged":[[48,2,48,3],[53,0,53,1],[53,2,53,3],[55,0,55,7],[56,1,56,7],[57,1,57,7],[58,1,58,7],[49,0,49,3],[50,0,50,3],[52,0,52,3],[54,1,54,7],[51,0,51,3],[44,0,44,3],[25,0,25,4],[18,0,18,7],[24,0,24,4],[46,0,46,3],[47,0,47,3],[43,0,43,3],[26,1,26,4],[28,1,28,7],[29,0,29,7],[31,1,31,7],[38,0,38,7],[40,0,42,2],[40,4,40,5],[40,6,40,7],[41,4,41,5],[27,0,27,1],[45,0,45,1],[45,2,45,3],[48,0,48,1],[6,0,6,7],[38,8,38,15],[38,16,38,23],[38,24,38,31],[38,32,38,39],[16,0,16,1],[16,2,16,3],[8,0,8,7],[19,0,19,6],[10,0,10,7],[11,0,11,7],[12,0,12,7],[13,0,13,7],[14,0,14,7],[15,0,15,7],[21,0,21,2],[22,0,22,2],[23,0,23,2],[20,3,20,4],[21,3,21,4],[22,3,22,4],[23,3,23,4],[38,120,38,127],[38,128,38,135],[38,136,38,143],[38,144,38,151],[38,152,38,159],[38,80,38,87],[38,88,38,95],[38,96,38,103],[38,104,38,111],[38,112,38,119],[41,6,41,7],[32,1,32,7],[33,1,33,7],[34,1,34,7],[35,1,35,7],[36,1,36,7],[38,40,38,47],[38,48,38,55],[38,56,38,63],[38,64,38,71],[38,72,38,79],[38,280,38,287],[38,288,38,295],[38,296,38,303],[38,304,38,311],[38,312,38,319],[38,240,38,247],[38,248,38,255],[38,256,38,263],[38,264,38,271],[38,272,38,279],[38,200,38,207],[38,208,38,215],[38,216,38,223],[38,224,38,231],[38,232,38,239],[38,160,38,167],[38,168,38,175],[38,176,38,183],[38,184,38,191],[38,192,38,199],[38,440,38,447],[38,448,38,455],[38,456,38,463],[38,464,38,471],[38,472,38,479],[38,400,38,407],[38,408,38,415],[38,416,38,423],[38,424,38,431],[38,432,38,439],[38,360,38,367],[38,368,38,375],[38,376,38,383],[38,384,38,391],[38,392,38,399],[38,320,38,327],[38,328,38,335],[38,336,38,343],[38,344,38,351],[38,352,38,359],[38,600,38,607],[38,608,38,615],[38,616,38,623],[38,624,38,631],[38,632,38,639],[38,560,38,567],[38,568,38,575],[38,576,38,583],[38,584,38,591],[38,592,38,599],[38,520,38,527],[38,528,38,535],[38,536,38,543],[38,544,38,551],[38,552,38,559],[38,480,38,487],[38,488,38,495],[38,496,38,503],[38,504,38,511],[38,512,38,519],[38,760,38,767],[38,768,38,775],[38,776,38,783],[38,784,38,791],[38,792,38,799],[38,720,38,727],[38,728,38,735],[38,736,38,743],[38,744,38,751],[38,752,38,759],[38,680,38,687],[38,688,38,695],[38,696,38,703],[38,704,38,711],[38,712,38,719],[38,640,38,647],[38,648,38,655],[38,656,38,663],[38,664,38,671],[38,672,38,679],[38,920,38,927],[38,928,38,935],[38,936,38,943],[38,944,38,951],[38,952,38,959],[38,880,38,887],[38,888,38,895],[38,896,38,903],[38,904,38,911],[38,912,38,919],[38,840,38,847],[38,848,38,855],[38,856,38,863],[38,864,38,871],[38,872,38,879],[38,800,38,807],[38,808,38,815],[38,816,38,823],[38,824,38,831],[38,832,38,839],[38,1080,38,1087],[38,1088,38,1095],[38,1096,38,1103],[38,1104,38,1111],[38,1112,38,1119],[38,1040,38,1047],[38,1048,38,1055],[38,1056,38,1063],[38,1064,38,1071],[38,1072,38,1079],[38,1000,38,1007],[38,1008,38,1015],[38,1016,38,1023],[38,1024,38,1031],[38,1032,38,1039],[38,960,38,967],[38,968,38,975],[38,976,38,983],[38,984,38,991],[38,992,38,999],[38,1240,38,1247],[38,1248,38,1255],[38,1256,38,1263],[38,1264,38,1271],[38,1272,38,1279],[38,1200,38,1207],[38,1208,38,1215],[38,1216,38,1223],[38,1224,38,1231],[38,1232,38,1239],[38,1160,38,1167],[38,1168,38,1175],[38,1176,38,1183],[38,1184,38,1191],[38,1192,38,1199],[38,1120,38,1127],[38,1128,38,1135],[38,1136,38,1143],[38,1144,38,1151],[38,1152,38,1159],[38,1400,38,1407],[38,1408,38,1415],[38,1416,38,1423],[38,1424,38,1431],[38,1432,38,1439],[38,1360,38,1367],[38,1368,38,1375],[38,1376,38,1383],[38,1384,38,1391],[38,1392,38,1399],[38,1320,38,1327],[38,1328,38,1335],[38,1336,38,1343],[38,1344,38,1351],[38,1352,38,1359],[38,1280,38,1287],[38,1288,38,1295],[38,1296,38,1303],[38,1304,38,1311],[38,1312,38,1319],[38,1560,38,1567],[38,1568,38,1575],[38,1576,38,1583],[38,1584,38,1591],[38,1592,38,1599],[38,1520,38,1527],[38,1528,38,1535],[38,1536,38,1543],[38,1544,38,1551],[38,1552,38,1559],[38,1480,38,1487],[38,1488,38,1495],[38,1496,38,1503],[38,1504,38,1511],[38,1512,38,1519],[38,1440,38,1447],[38,1448,38,1455],[38,1456,38,1463],[38,1464,38,1471],[38,1472,38,1479],[38,1720,38,1727],[38,1728,38,1735],[38,1736,38,1743],[38,1744,38,1751],[38,1752,38,1759],[38,1680,38,1687],[38,1688,38,1695],[38,1696,38,1703],[38,1704,38,1711],[38,1712,38,1719],[38,1640,38,1647],[38,1648,38,1655],[38,1656,38,1663],[38,1664,38,1671],[38,1672,38,1679],[38,1600,38,1607],[38,1608,38,1615],[38,1616,38,1623],[38,1624,38,1631],[38,1632,38,1639],[38,1880,38,1887],[38,1888,38,1895],[38,1896,38,1903],[38,1904,38,1911],[38,1912,38,1919],[38,1840,38,1847],[38,1848,38,1855],[38,1856,38,1863],[38,1864,38,1871],[38,1872,38,1879],[38,1800,38,1807],[38,1808,38,1815],[38,1816,38,1823],[38,1824,38,1831],[38,1832,38,1839],[38,1760,38,1767],[38,1768,38,1775],[38,1776,38,1783],[38,1784,38,1791],[38,1792,38,1799],[38,2040,38,2047],[38,2048,38,2055],[38,2056,38,2063],[38,2064,38,2071],[38,2072,38,2079],[38,2000,38,2007],[38,2008,38,2015],[38,2016,38,2023],[38,2024,38,2031],[38,2032,38,2039],[38,1960,38,1967],[38,1968,38,1975],[38,1976,38,1983],[38,1984,38,1991],[38,1992,38,1999],[38,1920,38,1927],[38,1928,38,1935],[38,1936,38,1943],[38,1944,38,1951],[38,1952,38,1959],[38,2200,38,2207],[38,2208,38,2215],[38,2216,38,2223],[38,2224,38,2231],[38,2232,38,2239],[38,2160,38,2167],[38,2168,38,2175],[38,2176,38,2183],[38,2184,38,2191],[38,2192,38,2199],[38,2120,38,2127],[38,2128,38,2135],[38,2136,38,2143],[38,2144,38,2151],[38,2152,38,2159],[38,2080,38,2087],[38,2088,38,2095],[38,2096,38,2103],[38,2104,38,2111],[38,2112,38,2119],[38,2360,38,2367],[38,2368,38,2375],[38,2376,38,2383],[38,2384,38,2391],[38,2392,38,2399],[38,2320,38,2327],[38,2328,38,2335],[38,2336,38,2343],[38,2344,38,2351],[38,2352,38,2359],[38,2280,38,2287],[38,2288,38,2295],[38,2296,38,2303],[38,2304,38,2311],[38,2312,38,2319],[38,2240,38,2247],[38,2248,38,2255],[38,2256,38,2263],[38,2264,38,2271],[38,2272,38,2279],[38,2520,38,2527],[38,2528,38,2535],[38,2536,38,2543],[38,2544,38,2551],[38,2552,38,2559],[38,2480,38,2487],[38,2488,38,2495],[38,2496,38,2503],[38,2504,38,2511],[38,2512,38,2519],[38,2440,38,2447],[38,2448,38,2455],[38,2456,38,2463],[38,2464,38,2471],[38,2472,38,2479],[38,2400,38,2407],[38,2408,38,2415],[38,2416,38,2423],[38,2424,38,2431],[38,2432,38,2439],[38,2680,38,2687],[38,2688,38,2695],[38,2696,38,2703],[38,2704,38,2711],[38,2712,38,2719],[38,2640,38,2647],[38,2648,38,2655],[38,2656,38,2663],[38,2664,38,2671],[38,2672,38,2679],[38,2600,38,2607],[38,2608,38,2615],[38,2616,38,2623],[38,2624,38,2631],[38,2632,38,2639],[38,2560,38,2567],[38,2568,38,2575],[38,2576,38,2583],[38,2584,38,2591],[38,2592,38,2599],[38,2840,38,2847],[38,2848,38,2855],[38,2856,38,2863],[38,2864,38,2871],[38,2872,38,2879],[38,2800,38,2807],[38,2808,38,2815],[38,2816,38,2823],[38,2824,38,2831],[38,2832,38,2839],[38,2760,38,2767],[38,2768,38,2775],[38,2776,38,2783],[38,2784,38,2791],[38,2792,38,2799],[38,2720,38,2727],[38,2728,38,2735],[38,2736,38,2743],[38,2744,38,2751],[38,2752,38,2759],[38,3000,38,3007],[38,3008,38,3015],[38,3016,38,3023],[38,3024,38,3031],[38,3032,38,3039],[38,2960,38,2967],[38,2968,38,2975],[38,2976,38,2983],[38,2984,38,2991],[38,2992,38,2999],[38,2920,38,2927],[38,2928,38,2935],[38,2936,38,2943],[38,2944,38,2951],[38,2952,38,2959],[38,2880,38,2887],[38,2888,38,2895],[38,2896,38,2903],[38,2904,38,2911],[38,2912,38,2919],[38,3160,38,3167],[38,3168,38,3175],[38,3176,38,3183],[38,3184,38,3191],[38,3192,38,3199],[38,3120,38,3127],[38,3128,38,3135],[38,3136,38,3143],[38,3144,38,3151],[38,3152,38,3159],[38,3080,38,3087],[38,3088,38,3095],[38,3096,38,3103],[38,3104,38,3111],[38,3112,38,3119],[38,3040,38,3047],[38,3048,38,3055],[38,3056,38,3063],[38,3064,38,3071],[38,3072,38,3079],[38,3320,38,3327],[38,3328,38,3335],[38,3336,38,3343],[38,3344,38,3351],[38,3352,38,3359],[38,3280,38,3287],[38,3288,38,3295],[38,3296,38,3303],[38,3304,38,3311],[38,3312,38,3319],[38,3240,38,3247],[38,3248,38,3255],[38,3256,38,3263],[38,3264,38,3271],[38,3272,38,3279],[38,3200,38,3207],[38,3208,38,3215],[38,3216,38,3223],[38,3224,38,3231],[38,3232,38,3239],[38,3480,38,3487],[38,3488,38,3495],[38,3496,38,3503],[38,3504,38,3511],[38,3512,38,3519],[38,3440,38,3447],[38,3448,38,3455],[38,3456,38,3463],[38,3464,38,3471],[38,3472,38,3479],[38,3400,38,3407],[38,3408,38,3415],[38,3416,38,3423],[38,3424,38,3431],[38,3432,38,3439],[38,3360,38,3367],[38,3368,38,3375],[38,3376,38,3383],[38,3384,38,3391],[38,3392,38,3399],[38,3640,38,3647],[38,3648,38,3655],[38,3656,38,3663],[38,3664,38,3671],[38,3672,38,3679],[38,3600,38,3607],[38,3608,38,3615],[38,3616,38,3623],[38,3624,38,3631],[38,3632,38,3639],[38,3560,38,3567],[38,3568,38,3575],[38,3576,38,3583],[38,3584,38,3591],[38,3592,38,3599],[38,3520,38,3527],[38,3528,38,3535],[38,3536,38,3543],[38,3544,38,3551],[38,3552,38,3559],[38,3800,38,3807],[38,3808,38,3815],[38,3816,38,3823],[38,3824,38,3831],[38,3832,38,3839],[38,3760,38,3767],[38,3768,38,3775],[38,3776,38,3783],[38,3784,38,3791],[38,3792,38,3799],[38,3720,38,3727],[38,3728,38,3735],[38,3736,38,3743],[38,3744,38,3751],[38,3752,38,3759],[38,3680,38,3687],[38,3688,38,3695],[38,3696,38,3703],[38,3704,38,3711],[38,3712,38,3719],[38,3960,38,3967],[38,3968,38,3975],[38,3976,38,3983],[38,3984,38,3991],[38,3992,38,3999],[38,3920,38,3927],[38,3928,38,3935],[38,3936,38,3943],[38,3944,38,3951],[38,3952,38,3959],[38,3880,38,3887],[38,3888,38,3895],[38,3896,38,3903],[38,3904,38,3911],[38,3912,38,3919],[38,3840,38,3847],[38,3848,38,3855],[38,3856,38,3863],[38,3864,38,3871],[38,3872,38,3879],[38,4120,38,4127],[38,4128,38,4135],[38,4136,38,4143],[38,4144,38,4151],[38,4152,38,4159],[38,4080,38,4087],[38,4088,38,4095],[38,4096,38,4103],[38,4104,38,4111],[38,4112,38,4119],[38,4040,38,4047],[38,4048,38,4055],[38,4056,38,4063],[38,4064,38,4071],[38,4072,38,4079],[38,4000,38,4007],[38,4008,38,4015],[38,4016,38,4023],[38,4024,38,4031],[38,4032,38,4039],[38,4280,38,4287],[38,4288,38,4295],[38,4296,38,4303],[38,4304,38,4311],[38,4312,38,4319],[38,4240,38,4247],[38,4248,38,4255],[38,4256,38,4263],[38,4264,38,4271],[38,4272,38,4279],[38,4200,38,4207],[38,4208,38,4215],[38,4216,38,4223],[38,4224,38,4231],[38,4232,38,4239],[38,4160,38,4167],[38,4168,38,4175],[38,4176,38,4183],[38,4184,38,4191],[38,4192,38,4199],[38,4440,38,4447],[38,4448,38,4455],[38,4456,38,4463],[38,4464,38,4471],[38,4472,38,4479],[38,4400,38,4407],[38,4408,38,4415],[38,4416,38,4423],[38,4424,38,4431],[38,4432,38,4439],[38,4360,38,4367],[38,4368,38,4375],[38,4376,38,4383],[38,4384,38,4391],[38,4392,38,4399],[38,4320,38,4327],[38,4328,38,4335],[38,4336,38,4343],[38,4344,38,4351],[38,4352,38,4359],[38,4600,38,4607],[38,4608,38,4615],[38,4616,38,4623],[38,4624,38,4631],[38,4632,38,4639],[38,4560,38,4567],[38,4568,38,4575],[38,4576,38,4583],[38,4584,38,4591],[38,4592,38,4599],[38,4520,38,4527],[38,4528,38,4535],[38,4536,38,4543],[38,4544,38,4551],[38,4552,38,4559],[38,4480,38,4487],[38,4488,38,4495],[38,4496,38,4503],[38,4504,38,4511],[38,4512,38,4519],[38,4760,38,4767],[38,4768,38,4775],[38,4776,38,4783],[38,4784,38,4791],[38,4792,38,4799],[38,4720,38,4727],[38,4728,38,4735],[38,4736,38,4743],[38,4744,38,4751],[38,4752,38,4759],[38,4680,38,4687],[38,4688,38,4695],[38,4696,38,4703],[38,4704,38,4711],[38,4712,38,4719],[38,4640,38,4647],[38,4648,38,4655],[38,4656,38,4663],[38,4664,38,4671],[38,4672,38,4679],[38,4920,38,4927],[38,4928,38,4935],[38,4936,38,4943],[38,4944,38,4951],[38,4952,38,4959],[38,4880,38,4887],[38,4888,38,4895],[38,4896,38,4903],[38,4904,38,4911],[38,4912,38,4919],[38,4840,38,4847],[38,4848,38,4855],[38,4856,38,4863],[38,4864,38,4871],[38,4872,38,4879],[38,4800,38,4807],[38,4808,38,4815],[38,4816,38,4823],[38,4824,38,4831],[38,4832,38,4839],[38,5080,38,5087],[38,5088,38,5095],[38,5096,38,5103],[38,5104,38,5111],[38,5112,38,5119],[38,5040,38,5047],[38,5048,38,5055],[38,5056,38,5063],[38,5064,38,5071],[38,5072,38,5079],[38,5000,38,5007],[38,5008,38,5015],[38,5016,38,5023],[38,5024,38,5031],[38,5032,38,5039],[38,4960,38,4967],[38,4968,38,4975],[38,4976,38,4983],[38,4984,38,4991],[38,4992,38,4999],[38,5240,38,5247],[38,5248,38,5255],[38,5256,38,5263],[38,5264,38,5271],[38,5272,38,5279],[38,5200,38,5207],[38,5208,38,5215],[38,5216,38,5223],[38,5224,38,5231],[38,5232,38,5239],[38,5160,38,5167],[38,5168,38,5175],[38,5176,38,5183],[38,5184,38,5191],[38,5192,38,5199],[38,5120,38,5127],[38,5128,38,5135],[38,5136,38,5143],[38,5144,38,5151],[38,5152,38,5159],[38,5400,38,5407],[38,5408,38,5415],[38,5416,38,5423],[38,5424,38,5431],[38,5432,38,5439],[38,5360,38,5367],[38,5368,38,5375],[38,5376,38,5383],[38,5384,38,5391],[38,5392,38,5399],[38,5320,38,5327],[38,5328,38,5335],[38,5336,38,5343],[38,5344,38,5351],[38,5352,38,5359],[38,5280,38,5287],[38,5288,38,5295],[38,5296,38,5303],[38,5304,38,5311],[38,5312,38,5319],[38,5560,38,5567],[38,5568,38,5575],[38,5576,38,5583],[38,5584,38,5591],[38,5592,38,5599],[38,5520,38,5527],[38,5528,38,5535],[38,5536,38,5543],[38,5544,38,5551],[38,5552,38,5559],[38,5480,38,5487],[38,5488,38,5495],[38,5496,38,5503],[38,5504,38,5511],[38,5512,38,5519],[38,5440,38,5447],[38,5448,38,5455],[38,5456,38,5463],[38,5464,38,5471],[38,5472,38,5479],[38,5720,38,5727],[38,5728,38,5735],[38,5736,38,5743],[38,5744,38,5751],[38,5752,38,5759],[38,5680,38,5687],[38,5688,38,5695],[38,5696,38,5703],[38,5704,38,5711],[38,5712,38,5719],[38,5640,38,5647],[38,5648,38,5655],[38,5656,38,5663],[38,5664,38,5671],[38,5672,38,5679],[38,5600,38,5607],[38,5608,38,5615],[38,5616,38,5623],[38,5624,38,5631],[38,5632,38,5639],[38,5880,38,5887],[38,5888,38,5895],[38,5896,38,5903],[38,5904,38,5911],[38,5912,38,5919],[38,5840,38,5847],[38,5848,38,5855],[38,5856,38,5863],[38,5864,38,5871],[38,5872,38,5879],[38,5800,38,5807],[38,5808,38,5815],[38,5816,38,5823],[38,5824,38,5831],[38,5832,38,5839],[38,5760,38,5767],[38,5768,38,5775],[38,5776,38,5783],[38,5784,38,5791],[38,5792,38,5799],[38,6040,38,6047],[38,6048,38,6055],[38,6056,38,6063],[38,6064,38,6071],[38,6072,38,6079],[38,6000,38,6007],[38,6008,38,6015],[38,6016,38,6023],[38,6024,38,6031],[38,6032,38,6039],[38,5960,38,5967],[38,5968,38,5975],[38,5976,38,5983],[38,5984,38,5991],[38,5992,38,5999],[38,5920,38,5927],[38,5928,38,5935],[38,5936,38,5943],[38,5944,38,5951],[38,5952,38,5959],[38,6200,38,6207],[38,6208,38,6215],[38,6216,38,6223],[38,6224,38,6231],[38,6232,38,6239],[38,6160,38,6167],[38,6168,38,6175],[38,6176,38,6183],[38,6184,38,6191],[38,6192,38,6199],[38,6120,38,6127],[38,6128,38,6135],[38,6136,38,6143],[38,6144,38,6151],[38,6152,38,6159],[38,6080,38,6087],[38,6088,38,6095],[38,6096,38,6103],[38,6104,38,6111],[38,6112,38,6119],[38,6360,38,6367],[38,6368,38,6375],[38,6376,38,6383],[38,6384,38,6391],[38,6392,38,6399],[38,6320,38,6327],[38,6328,38,6335],[38,6336,38,6343],[38,6344,38,6351],[38,6352,38,6359],[38,6280,38,6287],[38,6288,38,6295],[38,6296,38,6303],[38,6304,38,6311],[38,6312,38,6319],[38,6240,38,6247],[38,6248,38,6255],[38,6256,38,6263],[38,6264,38,6271],[38,6272,38,6279],[38,6520,38,6527],[38,6528,38,6535],[38,6536,38,6543],[38,6544,38,6551],[38,6552,38,6559],[38,6480,38,6487],[38,6488,38,6495],[38,6496,38,6503],[38,6504,38,6511],[38,6512,38,6519],[38,6440,38,6447],[38,6448,38,6455],[38,6456,38,6463],[38,6464,38,6471],[38,6472,38,6479],[38,6400,38,6407],[38,6408,38,6415],[38,6416,38,6423],[38,6424,38,6431],[38,6432,38,6439],[38,6680,38,6687],[38,6688,38,6695],[38,6696,38,6703],[38,6704,38,6711],[38,6712,38,6719],[38,6640,38,6647],[38,6648,38,6655],[38,6656,38,6663],[38,6664,38,6671],[38,6672,38,6679],[38,6600,38,6607],[38,6608,38,6615],[38,6616,38,6623],[38,6624,38,6631],[38,6632,38,6639],[38,6560,38,6567],[38,6568,38,6575],[38,6576,38,6583],[38,6584,38,6591],[38,6592,38,6599],[38,6840,38,6847],[38,6848,38,6855],[38,6856,38,6863],[38,6864,38,6871],[38,6872,38,6879],[38,6800,38,6807],[38,6808,38,6815],[38,6816,38,6823],[38,6824,38,6831],[38,6832,38,6839],[38,6760,38,6767],[38,6768,38,6775],[38,6776,38,6783],[38,6784,38,6791],[38,6792,38,6799],[38,6720,38,6727],[38,6728,38,6735],[38,6736,38,6743],[38,6744,38,6751],[38,6752,38,6759],[38,7000,38,7007],[38,7008,38,7015],[38,7016,38,7023],[38,7024,38,7031],[38,7032,38,7039],[38,6960,38,6967],[38,6968,38,6975],[38,6976,38,6983],[38,6984,38,6991],[38,6992,38,6999],[38,6920,38,6927],[38,6928,38,6935],[38,6936,38,6943],[38,6944,38,6951],[38,6952,38,6959],[38,6880,38,6887],[38,6888,38,6895],[38,6896,38,6903],[38,6904,38,6911],[38,6912,38,6919],[38,7160,38,7167],[38,7168,38,7175],[38,7176,38,7183],[38,7184,38,7191],[38,7192,38,7199],[38,7120,38,7127],[38,7128,38,7135],[38,7136,38,7143],[38,7144,38,7151],[38,7152,38,7159],[38,7080,38,7087],[38,7088,38,7095],[38,7096,38,7103],[38,7104,38,7111],[38,7112,38,7119],[38,7040,38,7047],[38,7048,38,7055],[38,7056,38,7063],[38,7064,38,7071],[38,7072,38,7079],[38,7320,38,7327],[38,7328,38,7335],[38,7336,38,7343],[38,7344,38,7351],[38,7352,38,7359],[38,7280,38,7287],[38,7288,38,7295],[38,7296,38,7303],[38,7304,38,7311],[38,7312,38,7319],[38,7240,38,7247],[38,7248,38,7255],[38,7256,38,7263],[38,7264,38,7271],[38,7272,38,7279],[38,7200,38,7207],[38,7208,38,7215],[38,7216,38,7223],[38,7224,38,7231],[38,7232,38,7239],[38,7480,38,7487],[38,7488,38,7495],[38,7496,38,7503],[38,7504,38,7511],[38,7512,38,7519],[38,7440,38,7447],[38,7448,38,7455],[38,7456,38,7463],[38,7464,38,7471],[38,7472,38,7479],[38,7400,38,7407],[38,7408,38,7415],[38,7416,38,7423],[38,7424,38,7431],[38,7432,38,7439],[38,7360,38,7367],[38,7368,38,7375],[38,7376,38,7383],[38,7384,38,7391],[38,7392,38,7399],[38,7640,38,7647],[38,7648,38,7655],[38,7656,38,7663],[38,7664,38,7671],[38,7672,38,7679]],"merged_total":2104,"flags":["merged_cut"]}
[null,null,null,null,null,null,null,null,null,null,null,null,null,null,null,null,null,null,null,"Verze k odeslání klientovi","Verze zpracovat","Verze k odeslání do pojišťovny (skrýt nevyplněné informace)"]
[null,null,null,null,null,null,null,null,null,null,null,null,null,null,null,null,null,null,null,1,1,1]
[null,null,null,null,null,null,null,null,null,null,null,null,null,null,null,null,null,null,null,1,1,1]
[null,null,"ČÁST B - STROJNÍ POJIŠTĚNÍ ",null,null,null,null,null,null,null,null,null,null,null,null,null,null,null,null,1,1,1]
[null,null,null,null,null,null,null,null,null,null,null,null,null,null,null,null,null,null,null,1,1,1]
[]
["Strojní pojištění",null,null,null,null,null,null,null,null,null,null,null,null,null,null,null,null,null,null,1,1,1]
[]
["Místa pojištění",null,null,null,null,null,null,null,null,null,null,null,null,null,null,null,null,null,null,1,1,1]
[]
["Ulice, číslo popisné, město a PSČ",null,null,null,null,null,null,null,null,null,null,null,null,null,null,null,null,null,null,1,1,1]
[null,null,null,null,null,null,null,null,null,"Automaticky se vyplňuje adresa sídla pojistníka. Adresu lze měnit.",null,null,null,null,null,null,null,null,null,1,1,1]
[null,null,null,null,null,null,null,null,null,null,null,null,null,null,null,null,null,null,null,1,1,{"$f":"IF(ISBLANK(A13),\"SKRÝT\",1)","v":"SKRÝT"}]
[null,null,null,null,null,null,null,null,null,null,null,null,null,null,null,null,null,null,null,1,1,{"$f":"IF(ISBLANK(A14),\"SKRÝT\",1)","v":"SKRÝT"}]
[null,null,null,null,null,null,null,null,null,null,null,null,null,null,null,null,null,null,null,1,1,{"$f":"IF(ISBLANK(A15),\"SKRÝT\",1)","v":"SKRÝT"}]
[null,null,null,null,null,null,null,null,null,null,null,null,null,null,null,null,null,null,null,1,1,{"$f":"IF(ISBLANK(A16),\"SKRÝT\",1)","v":"SKRÝT"}]
["Pro mobilní stroje:",null,null,null,null,null,null,null,null,null,null,null,null,null,null,null,null,null,null,1,1,{"$f":"IF(ISBLANK(C17),\"SKRÝT\",1)","v":"SKRÝT"}]
[null,null,null,null,null,null,null,null,null,null,null,null,null,null,null,null,null,null,null,1,1,1]
["Stroje k pojištění",null,null,null,null,null,null,null,null,null,null,null,null,null,null,null,null,null,null,1,1,1]
[]
["Stroje k pojištění",null,null,"Připojištění: \nZáklady/ elektronické prvky",null,"Vlastní/ cizí/ \nvlastní a cizí","Pojistná částka","Pojistná hodnota",null,null,null,null,null,null,null,null,null,null,null,1,1,1]
["Soubor vlastních strojů vč. zařízení trojejbusů",null,null,"Elektronických prvků a základů",null,"Vlastní",1000000,"První riziko - nová cena",null,null,null,null,null,null,null,null,null,null,null,1,1,{"$f":"IF(G22=0,\"SKRÝT\",1)","v":1}]
["Soubor mobilních strojů do 7 let stáří včetně příslušenství a:",null,null,null,null,null,null,null,null,null,null,null,null,null,null,null,null,null,null,1,1,"SKRÝT"]
["Soubor stacionárních strojů do 7 let stáří včetně příslušenství a:",null,null,null,null,null,null,null,null,null,null,null,null,null,null,null,null,null,null,1,1,"SKRÝT"]
["Software a data zakoupené nebo pořízené nad rámec standardně dodaných výrobcem",null,null,null,null,null,null,null,null,null,null,null,null,null,null,null,null,null,null,1,1,"SKRÝT"]
["Rozvody pojišťovaných zařízení",null,null,null,null,null,null,null,null,null,null,null,null,null,null,null,null,null,null,1,1,"SKRÝT"]
["Jiné (uveďte):",null,null,null,null,null,null,null,null,null,null,null,null,null,null,null,null,null,null,1,1,"SKRÝT"]
["Pojistná částka celkem",null,null,null,null,null,{"$f":"SUM(G22:G24,G27)","v":1000000},null,null,null,null,null,null,null,null,null,null,null,null,1,1,1]
["Poznámka",null,null,null,null,null,null,null,null,null,null,null,null,null,null,null,null,null,null,1,1,{"$f":"IF(ISBLANK(A30),\"SKRÝT\",1)","v":1}]
["Stroje starší i 10 let ",null,null,null,null,null,null,null,null,null,null,null,null,null,null,null,null,null,null,1,1,{"$f":"IF(ISBLANK(A30),\"SKRÝT\",1)","v":1}]
[null,null,null,null,null,null,null,null,null,null,null,null,null,null,null,null,null,null,null,1,1,1]
["Použité pojmy",null,null,null,null,null,null,null,null,null,null,null,null,null,null,null,null,null,null,1,1,1]
["Nová cena","Cena, za kterou lze v daném místě a v daném čase věc stejnou nebo srovnatelnou znovu pořídit jako věc stejnou nebo novou, stejného druhu a účelu.",null,null,null,null,null,null,null,null,null,null,null,null,null,null,null,null,null,1,1,1]
["Časová cena","Cena, kterou měla věc bezprostředně před pojistnou událostí; stanoví se z nové ceny věci, přičemž se přihlíží ke stupni opotřebení nebo jiného znehodnocení anebo k zhodnocení věci, k němuž došlo její opravou, modernizací nebo jiným způsobem.",null,null,null,null,null,null,null,null,null,null,null,null,null,null,null,null,null,1,1,1]
["Jiná cena","Cena, jejíž výše i způsob stanovení jsou dohodnuté v pojistné smlouvě.",null,null,null,null,null,null,null,null,null,null,null,null,null,null,null,null,null,1,1,1]
["Obvyklá cena","Cena, kterou může pojištěný dosáhnout při prodeji předmětné věci v daném čase a místě pojištění.",null,null,null,null,null,null,null,null,null,null,null,null,null,null,null,null,null,1,1,1]
["První riziko","V případě pojištění na první riziko se pojištění sjednává pouze na část známé pojistné hodnoty věci. Pojistná částka sjednaná na první riziko je zároveň horní hranicí plnění pojistitele ze všech pojistných událostí vzniklých za určenou dobu.",null,null,null,null,null,null,null,null,null,null,null,null,null,null,null,null,null,1,1,1]
[null,null,null,null,null,null,null,null,null,null,null,null,null,null,null,null,null,null,null,1,1,1]
["Strojní pojištění",null,null,null,null,null,null,null,null,null,null,null,null,null,null,null,null,null,null,1,1,1]
[null,null,null,null,null,null,null,null,null,null,null,null,null,null,null,null,null,null,null,1,1,1]
["Pojištěná nebezpečí",null,null,null,"Varianta  I.",null,"Varianta  II.",null,null,"Požadujte především různé varianty limitů. ",null,null,null,null,null,null,null,null,null,1,1,1]
[null,null,null,null,null,null,null,null,null,null,null,null,null,null,null,null,null,null,null,1,1,1]
[null,null,null,null,"Limit plnění","Spoluúčast","Limit plnění","Spoluúčast",null,null,null,null,null,null,null,null,null,null,null,1,1,1]
["All risk (technická rizika)",null,null,null,1000000,1000,null,null,null,null,null,null,null,null,null,{"$f":"IF(ISBLANK(E44),\"SKRÝT\",1)","v":1},{"$f":"IF(ISBLANK(F44),\"SKRÝT\",1)","v":1},"SKRÝT","SKRÝT",1,1,{"$f":"IF(AND(P44=\"SKRÝT\",Q44=\"SKRÝT\",R44=\"SKRÝT\",S44=\"SKRÝT\"),\"SKRÝT\",1)","v":1}]
["Náraz, střet, havárie -  pro mobilní stroje",null,null,null,null,null,null,null,null,null,null,null,null,null,null,"SKRÝT","SKRÝT","SKRÝT","SKRÝT",1,1,{"$f":"IF(AND(P45=\"SKRÝT\",Q45=\"SKRÝT\",R45=\"SKRÝT\",S45=\"SKRÝT\"),\"SKRÝT\",1)","v":"SKRÝT"}]
["Jiné (uveďte):",null,null,null,null,null,null,null,null,"Pokud chcete pojistit i jiné nebezpečí, doplňte.",null,null,null,null,null,"SKRÝT","SKRÝT","SKRÝT","SKRÝT",1,1,{"$f":"IF(AND(P46=\"SKRÝT\",Q46=\"SKRÝT\",R46=\"SKRÝT\",S46=\"SKRÝT\"),\"SKRÝT\",1)","v":"SKRÝT"}]
["Náklady na expresní a leteckou dopravu ",null,null,null,null,"Viz jednotlivá nebezpečí",null,"Viz jednotlivá nebezpečí",null,null,null,null,null,null,null,"SKRÝT",null,"SKRÝT",null,1,1,{"$f":"IF(AND(P47=\"SKRÝT\",R47=\"SKRÝT\"),\"SKRÝT\",1)","v":"SKRÝT"}]
["Náklady na práci přesčas, v noci, v neděli a ve státních svátcích",null,null,null,null,"Viz jednotlivá nebezpečí",null,"Viz jednotlivá nebezpečí",null,null,null,null,null,null,null,"SKRÝT",null,"SKRÝT",null,1,1,{"$f":"IF(AND(P48=\"SKRÝT\",R48=\"SKRÝT\"),\"SKRÝT\",1)","v":"SKRÝT"}]
["Jiné náklady (uveďte):",null,null,null,null,"Viz jednotlivá nebezpečí",null,"Viz jednotlivá nebezpečí",null,"Pokud chcete pojistit i jiné náklady, doplňte.",null,null,null,null,null,"SKRÝT",null,"SKRÝT",null,1,1,"SKRÝT"]
["Připojištění vyměnitelných částí",null,null,null,50000,"Viz jednotlivá nebezpečí",null,"Viz jednotlivá nebezpečí",null,null,null,null,null,null,null,1,null,"SKRÝT",null,1,1,1]
["Připojištění provozních kapalin",null,null,null,null,"Viz jednotlivá nebezpečí",null,"Viz jednotlivá nebezpečí",null,null,null,null,null,null,null,"SKRÝT",null,"SKRÝT",null,1,1,"SKRÝT"]
["Připojištění skleněných částí",null,null,null,50000,"Viz jednotlivá nebezpečí",null,"Viz jednotlivá nebezpečí",null,null,null,null,null,null,null,1,null,"SKRÝT",null,1,1,1]
["Škody vzniklé při přepravě stroje jako nákladu",null,null,null,null,"Viz jednotlivá nebezpečí",null,"Viz jednotlivá nebezpečí",null,null,null,null,null,null,null,"SKRÝT",null,"SKRÝT",null,1,1,"SKRÝT"]
["Jiné (uveďte):",null,null,null,null,"Viz jednotlivá nebezpečí",null,"Viz jednotlivá nebezpečí",null,"Pokud chcete sjednat i jiné připojištění, doplňte.",null,null,null,null,null,"SKRÝT",null,"SKRÝT",null,1,1,"SKRÝT"]
["Poznámka",null,null,null,null,null,null,null,null,null,null,null,null,null,null,null,null,null,null,1,1,{"$f":"IF(ISBLANK(A56),\"SKRÝT\",1)","v":"SKRÝT"}]
[null,null,null,null,null,null,null,null,null,"Zde můžete doplnit poznámky.",null,null,null,null,null,null,null,null,null,1,1,{"$f":"IF(ISBLANK(A56),\"SKRÝT\",1)","v":"SKRÝT"}]
["Použité pojmy",null,null,null,null,null,null,null,null,null,null,null,null,null,null,null,null,null,null,1,1,{"$f":"IF(ISBLANK(A57),\"SKRÝT\",1)","v":1}]
["All risk \n(technická rizika)","Všechna nebezpečí, kromě výslovně vyloučených (běžně jsou vyloučená živelní nebezpečí, odcizení, vandalismus, válka, stávka; politická rizika; jaderné záření, reakce, kontaminace; běžné opotřebení; atmosférické vlivy; škody, za které odpovídá smluvní partner; úmyslné jednání pojištěného; škody na vyměnitelných součástech a na součástech, které podléhají rychlému opotřebení)",null,null,null,null,null,null,null,null,null,null,null,null,null,null,null,null,null,1,1,1]
[null,null,null,null,null,null,null,null,null,null,null,null,null,null,null,null,null,null,null,1,1,1]
[null,null,null,null,null,null,null,null,null,null,null,null,null,null,null,null,null,null,null,1,1,1]
[null,null,null,null,null,null,null,null,null,null,null,null,null,null,null,null,null,null,null,1,1,1]

{"sheet":"Stroje_vc_zivlu","index":8,"n_rows":61,"n_cols":22,"rows_kept":61,"cut":false,"hidden":true,"merged":[[26,0,26,1],[26,2,26,4],[27,0,27,1],[50,0,50,1],[50,2,50,3],[49,0,49,3],[40,4,40,5],[20,0,20,2],[14,0,14,7],[15,0,15,7],[16,0,16,1],[16,2,16,3],[18,0,18,7],[19,0,19,7],[8,0,8,7],[10,0,10,7],[11,0,11,7],[12,0,12,7],[13,0,13,7],[40,6,40,7],[41,4,41,5],[41,6,41,7],[32,1,32,7],[33,1,33,7],[34,1,34,7],[35,1,35,7],[36,1,36,7],[6,0,6,7],[57,0,57,7],[58,1,58,7],[59,1,59,7],[44,0,44,3],[45,0,45,3],[46,0,46,3],[47,1,47,3],[48,0,48,3],[43,0,43,3],[20,3,20,4],[21,0,21,2],[22,0,22,2],[23,0,23,2],[25,0,25,2],[24,0,24,4],[21,3,21,4],[22,3,22,4],[23,3,23,4],[60,1,60,7],[56,1,56,7],[51,0,51,3],[52,0,52,3],[53,0,53,3],[55,0,55,1],[55,2,55,3],[54,0,54,3],[31,1,31,7],[28,1,28,7],[29,0,29,7],[38,0,38,7],[40,0,42,2]]}
[null,null,null,null,null,null,null,null,null,null,null,null,null,null,null,null,null,null,null,"Verze k odeslání klientovi","Verze zpracovat","Verze k odeslání do pojišťovny (skrýt nevyplněné informace)"]
[null,null,null,null,null,null,null,null,null,null,null,null,null,null,null,null,null,null,null,1,1,1]
[null,null,null,null,null,null,null,null,null,null,null,null,null,null,null,null,null,null,null,1,1,1]
[null,null,null,null,null,null,null,null,null,null,null,null,null,null,null,null,null,null,null,1,1,1]
[null,null,null,null,null,null,null,null,null,null,null,null,null,null,null,null,null,null,null,1,1,1]
[]
["Strojní pojištění",null,null,null,null,null,null,null,null,null,null,null,null,null,null,null,null,null,null,1,1,1]
[]
["Místa pojištění",null,null,null,null,null,null,null,null,null,null,null,null,null,null,null,null,null,null,1,1,1]
[]
["Ulice, číslo popisné, město a PSČ",null,null,null,null,null,null,null,null,null,null,null,null,null,null,null,null,null,null,1,1,1]
[{"$f":"'Základní údaje'!B8","v":"Emilie Dvořákové 70, Trnovany, 41501 Teplice"},null,null,null,null,null,null,null,null,"Automaticky se vyplňuje adresa sídla pojistníka. Adresu lze měnit.",null,null,null,null,null,null,null,null,null,1,1,1]
[null,null,null,null,null,null,null,null,null,null,null,null,null,null,null,null,null,null,null,1,1,{"$f":"IF(ISBLANK(A13),\"SKRÝT\",1)","v":"SKRÝT"}]
[null,null,null,null,null,null,null,null,null,null,null,null,null,null,null,null,null,null,null,1,1,{"$f":"IF(ISBLANK(A14),\"SKRÝT\",1)","v":"SKRÝT"}]
[null,null,null,null,null,null,null,null,null,null,null,null,null,null,null,null,null,null,null,1,1,{"$f":"IF(ISBLANK(A15),\"SKRÝT\",1)","v":"SKRÝT"}]
[null,null,null,null,null,null,null,null,null,null,null,null,null,null,null,null,null,null,null,1,1,{"$f":"IF(ISBLANK(A16),\"SKRÝT\",1)","v":"SKRÝT"}]
["Pro mobilní stroje:",null,null,null,null,null,null,null,null,null,null,null,null,null,null,null,null,null,null,1,1,{"$f":"IF(ISBLANK(C17),\"SKRÝT\",1)","v":"SKRÝT"}]
[null,null,null,null,null,null,null,null,null,null,null,null,null,null,null,null,null,null,null,1,1,1]
["Stroje k pojištění",null,null,null,null,null,null,null,null,null,null,null,null,null,null,null,null,null,null,1,1,1]
["Stroje starší než 7 let je nutné uvést do Seznamu strojů (viz samostatný dokument)."]
["Stroje k pojištění",null,null,"Připojištění: \nZáklady/ elektronické prvky",null,"Vlastní/ cizí/ \nvlastní a cizí","Pojistná částka","Pojistná hodnota",null,null,null,null,null,null,null,null,null,null,null,1,1,1]
["Stroje uvedené v Seznamu strojů včetně příslušenství a:",null,null,null,null,null,null,null,null,null,null,null,null,null,null,null,null,null,null,1,1,{"$f":"IF(G22=0,\"SKRÝT\",1)","v":"SKRÝT"}]
["Soubor mobilních strojů do 7 let stáří včetně příslušenství a:",null,null,null,null,null,null,null,null,null,null,null,null,null,null,null,null,null,null,1,1,"SKRÝT"]
["Soubor stacionárních strojů do 7 let stáří včetně příslušenství a:",null,null,null,null,null,null,null,null,null,null,null,null,null,null,null,null,null,null,1,1,"SKRÝT"]
["Software a data zakoupené nebo pořízené nad rámec standardně dodaných výrobcem",null,null,null,null,null,null,null,null,null,null,null,null,null,null,null,null,null,null,1,1,"SKRÝT"]
["Rozvody pojišťovaných zařízení",null,null,null,null,null,null,null,null,null,null,null,null,null,null,null,null,null,null,1,1,"SKRÝT"]
["Jiné (uveďte):",null,null,null,null,null,null,null,null,null,null,null,null,null,null,null,null,null,null,1,1,"SKRÝT"]
["Pojistná částka celkem",null,null,null,null,null,{"$f":"SUM(G22:G24,G27)","v":0},null,null,null,null,null,null,null,null,null,null,null,null,1,1,1]
["Poznámka",null,null,null,null,null,null,null,null,null,null,null,null,null,null,null,null,null,null,1,1,{"$f":"IF(ISBLANK(A30),\"SKRÝT\",1)","v":"SKRÝT"}]
[null,null,null,null,null,null,null,null,null,"Zde můžete doplnit poznámky.",null,null,null,null,null,null,null,null,null,1,1,{"$f":"IF(ISBLANK(A30),\"SKRÝT\",1)","v":"SKRÝT"}]
[null,null,null,null,null,null,null,null,null,null,null,null,null,null,null,null,null,null,null,1,1,1]
["Použité pojmy",null,null,null,null,null,null,null,null,null,null,null,null,null,null,null,null,null,null,1,1,1]
["Nová cena","Cena, za kterou lze v daném místě a v daném čase věc stejnou nebo srovnatelnou znovu pořídit jako věc stejnou nebo novou, stejného druhu a účelu.",null,null,null,null,null,null,null,null,null,null,null,null,null,null,null,null,null,1,1,1]
["Časová cena","Cena, kterou měla věc bezprostředně před pojistnou událostí; stanoví se z nové ceny věci, přičemž se přihlíží ke stupni opotřebení nebo jiného znehodnocení anebo k zhodnocení věci, k němuž došlo její opravou, modernizací nebo jiným způsobem.",null,null,null,null,null,null,null,null,null,null,null,null,null,null,null,null,null,1,1,1]
["Jiná cena","Cena, jejíž výše i způsob stanovení jsou dohodnuté v pojistné smlouvě.",null,null,null,null,null,null,null,null,null,null,null,null,null,null,null,null,null,1,1,1]
["Obvyklá cena","Cena, kterou může pojištěný dosáhnout při prodeji předmětné věci v daném čase a místě pojištění.",null,null,null,null,null,null,null,null,null,null,null,null,null,null,null,null,null,1,1,1]
["První riziko","V případě pojištění na první riziko se pojištění sjednává pouze na část známé pojistné hodnoty věci. Pojistná částka sjednaná na první riziko je zároveň horní hranicí plnění pojistitele ze všech pojistných událostí vzniklých za určenou dobu.",null,null,null,null,null,null,null,null,null,null,null,null,null,null,null,null,null,1,1,1]
[null,null,null,null,null,null,null,null,null,null,null,null,null,null,null,null,null,null,null,1,1,1]
["Strojní a živelní pojištění",null,null,null,null,null,null,null,null,null,null,null,null,null,null,null,null,null,null,1,1,1]
[null,null,null,null,null,null,null,null,null,null,null,null,null,null,null,null,null,null,null,1,1,1]
["Pojištěná nebezpečí",null,null,null,"Varianta  I.",null,"Varianta  II.",null,null,"Požadujte především různé varianty limitů. ",null,null,null,null,null,null,null,null,null,1,1,1]
[null,null,null,null,null,null,null,null,null,null,null,null,null,null,null,null,null,null,null,1,1,1]
[null,null,null,null,"Limit plnění","Spoluúčast","Limit plnění","Spoluúčast",null,null,null,null,null,null,null,null,null,null,null,1,1,1]
["All risk (technická rizika)",null,null,null,null,null,null,null,null,null,null,null,null,null,null,{"$f":"IF(ISBLANK(E44),\"SKRÝT\",1)","v":"SKRÝT"},"SKRÝT","SKRÝT","SKRÝT",1,1,{"$f":"IF(AND(P44=\"SKRÝT\",Q44=\"SKRÝT\",R44=\"SKRÝT\",S44=\"SKRÝT\"),\"SKRÝT\",1)","v":"SKRÝT"}]
["Náraz, střet, havárie - pro mobilní stroje",null,null,null,null,null,null,null,null,null,null,null,null,null,null,"SKRÝT","SKRÝT","SKRÝT","SKRÝT",1,1,{"$f":"IF(AND(P45=\"SKRÝT\",Q45=\"SKRÝT\",R45=\"SKRÝT\",S45=\"SKRÝT\"),\"SKRÝT\",1)","v":"SKRÝT"}]
["Živel",null,null,null,null,null,null,null,null,null,null,null,null,null,null,"SKRÝT","SKRÝT","SKRÝT","SKRÝT",1,1,{"$f":"IF(AND(P46=\"SKRÝT\",Q46=\"SKRÝT\",R46=\"SKRÝT\",S46=\"SKRÝT\"),\"SKRÝT\",1)","v":"SKRÝT"}]
["Odcizení, vandalismus",null,null,null,null,null,null,null,null,"POZOR na úroveň zabezpečení u klienta.",null,null,null,null,null,"SKRÝT","SKRÝT","SKRÝT","SKRÝT",1,1,{"$f":"IF(AND(P47=\"SKRÝT\",Q47=\"SKRÝT\",R47=\"SKRÝT\",S47=\"SKRÝT\"),\"SKRÝT\",1)","v":"SKRÝT"}]
["Jiné (uveďte):",null,null,null,null,null,null,null,null,"Pokud chcete pojistit i jiné nebezpečí, doplňte.",null,null,null,null,null,"SKRÝT","SKRÝT","SKRÝT","SKRÝT",1,1,{"$f":"IF(AND(P48=\"SKRÝT\",Q48=\"SKRÝT\",R48=\"SKRÝT\",S48=\"SKRÝT\"),\"SKRÝT\",1)","v":"SKRÝT"}]
["Náklady na expresní a leteckou dopravu ",null,null,null,null,"Viz jednotlivá nebezpečí",null,"Viz jednotlivá nebezpečí",null,null,null,null,null,null,null,{"$f":"IF(ISBLANK(E49),\"SKRÝT\",1)","v":"SKRÝT"},null,{"$f":"IF(ISBLANK(G49),\"SKRÝT\",1)","v":"SKRÝT"},null,1,1,{"$f":"IF(AND(P49=\"SKRÝT\",R49=\"SKRÝT\"),\"SKRÝT\",1)","v":"SKRÝT"}]
["Náklady na práci přesčas, v noci, v neděli a ve státních svátcích",null,null,null,null,"Viz jednotlivá nebezpečí",null,"Viz jednotlivá nebezpečí",null,null,null,null,null,null,null,"SKRÝT",null,"SKRÝT",null,1,1,{"$f":"IF(AND(P50=\"SKRÝT\",R50=\"SKRÝT\"),\"SKRÝT\",1)","v":"SKRÝT"}]
["Jiné náklady (uveďte):",null,null,null,null,"Viz jednotlivá nebezpečí",null,"Viz jednotlivá nebezpečí",null,"Pokud chcete pojistit i jiné náklady, doplňte.",null,null,null,null,null,"SKRÝT",null,"SKRÝT",null,1,1,"SKRÝT"]
["Připojištění vyměnitelných částí",null,null,null,null,"Viz jednotlivá nebezpečí",null,"Viz jednotlivá nebezpečí",null,null,null,null,null,null,null,"SKRÝT",null,"SKRÝT",null,1,1,"SKRÝT"]
["Připojištění provozních kapalin",null,null,null,null,"Viz jednotlivá nebezpečí",null,"Viz jednotlivá nebezpečí",null,null,null,null,null,null,null,"SKRÝT",null,"SKRÝT",null,1,1,"SKRÝT"]
["Připojištění skleněných částí",null,null,null,null,"Viz jednotlivá nebezpečí",null,"Viz jednotlivá nebezpečí",null,null,null,null,null,null,null,"SKRÝT",null,"SKRÝT",null,1,1,"SKRÝT"]
["Škody vzniklé při přepravě stroje jako nákladu",null,null,null,null,"Viz jednotlivá nebezpečí",null,"Viz jednotlivá nebezpečí",null,null,null,null,null,null,null,"SKRÝT",null,"SKRÝT",null,1,1,"SKRÝT"]
["Jiné (uveďte):",null,null,null,null,"Viz jednotlivá nebezpečí",null,"Viz jednotlivá nebezpečí",null,"Pokud chcete sjednat i jiné připojištění, doplňte.",null,null,null,null,null,"SKRÝT",null,"SKRÝT",null,1,1,"SKRÝT"]
["Poznámka",null,null,null,null,null,null,null,null,null,null,null,null,null,null,null,null,null,null,1,1,{"$f":"IF(ISBLANK(A58),\"SKRÝT\",1)","v":"SKRÝT"}]
[null,null,null,null,null,null,null,null,null,"Zde můžete doplnit poznámky.",null,null,null,null,null,null,null,null,null,1,1,{"$f":"IF(ISBLANK(A58),\"SKRÝT\",1)","v":"SKRÝT"}]
["Použité pojmy",null,null,null,null,null,null,null,null,null,null,null,null,null,null,null,null,null,null,1,1,1]
["All risk \n(technická rizika)","Všechna nebezpečí, kromě výslovně vyloučených (běžně jsou vyloučená živelní nebezpečí, odcizení, vandalismus, válka, stávka; politická rizika; jaderné záření, reakce, kontaminace; běžné opotřebení; atmosférické vlivy; škody, za které odpovídá smluvní partner; úmyslné jednání pojištěného; škody na vyměnitelných součástech a na součástech, které podléhají rychlému opotřebení)",null,null,null,null,null,null,null,null,null,null,null,null,null,null,null,null,null,1,1,1]
["Živel","FLEXA (požár, úder blesku, výbuch, pád letadla nebo jeho nákladu); povodeň, záplava; vichřice nebo krupobití; pád stromů, stožárů nebo jiných předmětů; náraz dopravního prostředku; tíha sněhu nebo námrazy; sesuv půdy, zřícení skal nebo zemin, sesouvání nebo zřícení lavin; zemětřesení; aerodynamický třesk; vodovodní škody; kouř",null,null,null,null,null,null,null,null,null,null,null,null,null,null,null,null,null,1,1,1]

{"sheet":"Elektronika_vc_zivlu","index":9,"n_rows":59,"n_cols":22,"rows_kept":59,"cut":false,"hidden":true,"merged":[[23,3,23,4],[15,0,15,7],[16,0,16,1],[16,2,16,3],[18,0,18,7],[19,0,19,6],[20,0,20,2],[10,0,10,7],[11,0,11,7],[12,0,12,7],[13,0,13,7],[14,0,14,7],[58,1,58,7],[54,1,54,7],[44,0,44,3],[45,0,45,3],[46,1,46,3],[47,0,47,3],[48,0,48,3],[50,0,50,3],[51,0,51,3],[52,0,52,3],[53,1,53,3],[56,1,56,7],[57,1,57,7],[38,0,38,7],[40,0,42,2],[40,4,40,5],[40,6,40,7],[41,4,41,5],[41,6,41,7],[32,1,32,7],[33,1,33,7],[34,1,34,7],[35,1,35,7],[36,1,36,7],[27,0,27,4],[49,0,49,1],[6,0,6,7],[55,0,55,7],[31,1,31,7],[24,0,24,4],[25,0,25,4],[26,1,26,4],[28,1,28,7],[29,0,29,7],[21,0,21,2],[21,3,21,4],[22,0,22,4],[23,0,23,2],[8,0,8,7],[43,0,43,3]]}
[null,null,null,null,null,null,null,null,null,null,null,null,null,null,null,null,null,null,null,"Verze k odeslání klientovi","Verze zpracovat","Verze k odeslání do pojišťovny (skrýt nevyplněné informace)"]
[null,null,null,null,null,null,null,null,null,null,null,null,null,null,null,null,null,null,null,1,1,1]
[null,null,null,null,null,null,null,null,null,null,null,null,null,null,null,null,null,null,null,1,1,1]
[null,null,null,null,null,null,null,null,null,null,null,null,null,null,null,null,null,null,null,1,1,1]
[null,null,null,null,null,null,null,null,null,null,null,null,null,null,null,null,null,null,null,1,1,1]
[null,null,null,null,null,null,null,null,null,null,null,null,null,null,null,null,null,null,null,1,1,1]
["Pojištění elektroniky",null,null,null,null,null,null,null,null,null,null,null,null,null,null,null,null,null,null,1,1,1]
[null,null,null,null,null,null,null,null,null,null,null,null,null,null,null,null,null,null,null,1,1,1]
["Místa pojištění",null,null,null,null,null,null,null,null,null,null,null,null,null,null,null,null,null,null,1,1,1]
[]
["Ulice, číslo popisné, město a PSČ",null,null,null,null,null,null,null,null,null,null,null,null,null,null,null,null,null,null,1,1,1]
[{"$f":"'Základní údaje'!B8","v":"Emilie Dvořákové 70, Trnovany, 41501 Teplice"},null,null,null,null,null,null,null,null,"Automaticky se vyplní adresa sídla pojistníka.",null,null,null,null,null,null,null,null,null,1,1,1]
[null,null,null,null,null,null,null,null,null,null,null,null,null,null,null,null,null,null,null,1,1,{"$f":"IF(ISBLANK(A13),\"SKRÝT\",1)","v":"SKRÝT"}]
[null,null,null,null,null,null,null,null,null,null,null,null,null,null,null,null,null,null,null,1,1,{"$f":"IF(ISBLANK(A14),\"SKRÝT\",1)","v":"SKRÝT"}]
[null,null,null,null,null,null,null,null,null,null,null,null,null,null,null,null,null,null,null,1,1,{"$f":"IF(ISBLANK(A15),\"SKRÝT\",1)","v":"SKRÝT"}]
[null,null,null,null,null,null,null,null,null,null,null,null,null,null,null,null,null,null,null,1,1,{"$f":"IF(ISBLANK(A16),\"SKRÝT\",1)","v":"SKRÝT"}]
["Pro mobilní elektroniku:",null,null,null,null,null,null,null,null,null,null,null,null,null,null,null,null,null,null,1,1,{"$f":"IF(ISBLANK(C17),\"SKRÝT\",1)","v":"SKRÝT"}]
[null,null,null,null,null,null,null,null,null,null,null,null,null,null,null,null,null,null,null,1,1,1]
["Elektronika k pojištění",null,null,null,null,null,null,null,null,null,null,null,null,null,null,null,null,null,null,1,1,1]
["Elektroniku starší než 5 let je nutné uvést do Seznamu elektroniky (viz samostatný dokument)."]
["Elektronika k pojištění",null,null,"Připojištění: \nZáklady",null,"Vlastní/ cizí/ \nvlastní a cizí","Pojistná částka","Pojistná hodnota",null,null,null,null,null,null,null,null,null,null,null,1,1,1]
["Elektronika uvedená v Seznamu elektroniky, včetně příslušenství a:",null,null,null,null,null,null,null,null,null,null,null,null,null,null,null,null,null,null,1,1,{"$f":"IF(G22=0,\"SKRÝT\",1)","v":"SKRÝT"}]
["Soubor mobilní elektroniky do  5 let stáří, včetně příslušenství",null,null,null,null,null,null,null,null,null,null,null,null,null,null,null,null,null,null,1,1,{"$f":"IF(G23=0,\"SKRÝT\",1)","v":"SKRÝT"}]
["Soubor stacionární elektroniky do 5 let stáří, včetně příslušenství a:",null,null,null,null,null,null,null,null,null,null,null,null,null,null,null,null,null,null,1,1,"SKRÝT"]
["Software a data zakoupené nebo pořízené nad rámec standardně dodaných výrobcem",null,null,null,null,null,null,null,null,null,null,null,null,null,null,null,null,null,null,null,null,"SKRÝT"]
["Rozvody pojišťovaných zařízení",null,null,null,null,null,null,null,null,null,null,null,null,null,null,null,null,null,null,null,null,"SKRÝT"]
["Jiné (uveďte):",null,null,null,null,null,null,null,null,null,null,null,null,null,null,null,null,null,null,1,1,"SKRÝT"]
["Pojistná částka celkem",null,null,null,null,null,{"$f":"SUM(G22:G24,G27)","v":0},null,null,null,null,null,null,null,null,null,null,null,null,1,1,"SKRÝT"]
["Poznámka",null,null,null,null,null,null,null,null,null,null,null,null,null,null,null,null,null,null,1,1,{"$f":"IF(ISBLANK(A30),\"SKRÝT\",1)","v":"SKRÝT"}]
[null,null,null,null,null,null,null,null,null,"Zde můžete doplnit poznámky. Řádek můžete rozkopírovat. ",null,null,null,null,null,null,null,null,null,1,1,{"$f":"IF(ISBLANK(A30),\"SKRÝT\",1)","v":"SKRÝT"}]
[null,null,null,null,null,null,null,null,null,null,null,null,null,null,null,null,null,null,null,1,1,1]
["Použité pojmy",null,null,null,null,null,null,null,null,null,null,null,null,null,null,null,null,null,null,1,1,1]
["Nová cena","Cena, za kterou lze v daném místě a v daném čase věc stejnou nebo srovnatelnou znovu pořídit jako věc stejnou nebo novou, stejného druhu a účelu.",null,null,null,null,null,null,null,null,null,null,null,null,null,null,null,null,null,1,1,1]
["Časová cena","Cena, kterou měla věc bezprostředně před pojistnou událostí; stanoví se z nové ceny věci, přičemž se přihlíží ke stupni opotřebení nebo jiného znehodnocení anebo k zhodnocení věci, k němuž došlo její opravou, modernizací nebo jiným způsobem.",null,null,null,null,null,null,null,null,null,null,null,null,null,null,null,null,null,1,1,1]
["Jiná cena","Cena, jejíž výše i způsob stanovení jsou dohodnuté v pojistné smlouvě.",null,null,null,null,null,null,null,null,null,null,null,null,null,null,null,null,null,1,1,1]
["Obvyklá cena","Cena, kterou může pojištěný dosáhnout při prodeji předmětné věci v daném čase a místě pojištění.",null,null,null,null,null,null,null,null,null,null,null,null,null,null,null,null,null,1,1,1]
["První riziko","V případě pojištění na první riziko se pojištění sjednává pouze na část známé pojistné hodnoty věci. Pojistná částka sjednaná na první riziko je zároveň horní hranicí plnění pojistitele ze všech pojistných událostí vzniklých za určenou dobu.",null,null,null,null,null,null,null,null,null,null,null,null,null,null,null,null,null,1,1,1]
[null,null,null,null,null,null,null,null,null,null,null,null,null,null,null,null,null,null,null,1,1,1]
["Pojištění elektroniky a živelní pojištění",null,null,null,null,null,null,null,null,null,null,null,null,null,null,null,null,null,null,1,1,1]
[null,null,null,null,null,null,null,null,null,null,null,null,null,null,null,null,null,null,null,1,1,1]
["Pojištěná nebezpečí",null,null,null,"Varianta  I.",null,"Varianta  II.",null,null,"Požadujte především různé varianty limitů. ",null,null,null,null,null,null,null,null,null,1,1,1]
[null,null,null,null,null,null,null,null,null,null,null,null,null,null,null,null,null,null,null,1,1,1]
[null,null,null,null,"Limit plnění","Spoluúčast","Limit plnění","Spoluúčast",null,null,null,null,null,null,null,null,null,null,null,1,1,1]
["All risk (technická rizika)",null,null,null,null,null,null,null,null,null,null,null,null,null,null,{"$f":"IF(ISBLANK(E44),\"SKRÝT\",1)","v":"SKRÝT"},"SKRÝT","SKRÝT","SKRÝT",1,1,{"$f":"IF(AND(P44=\"SKRÝT\",Q44=\"SKRÝT\",R44=\"SKRÝT\",S44=\"SKRÝT\"),\"SKRÝT\",1)","v":"SKRÝT"}]
["Živel",null,null,null,null,null,null,null,null,null,null,null,null,null,null,"SKRÝT","SKRÝT","SKRÝT","SKRÝT",1,1,{"$f":"IF(AND(P45=\"SKRÝT\",Q45=\"SKRÝT\",R45=\"SKRÝT\",S45=\"SKRÝT\"),\"SKRÝT\",1)","v":"SKRÝT"}]
["Odcizení, vandalismus",null,null,null,null,null,null,null,null,null,null,null,null,null,null,"SKRÝT","SKRÝT","SKRÝT","SKRÝT",1,1,{"$f":"IF(AND(P46=\"SKRÝT\",Q46=\"SKRÝT\",R46=\"SKRÝT\",S46=\"SKRÝT\"),\"SKRÝT\",1)","v":"SKRÝT"}]
["Jiné (uveďte):",null,null,null,null,null,null,null,null,"Doplňte jiné nebezpečí, pokud chcete požadovat.",null,null,null,null,null,"SKRÝT","SKRÝT","SKRÝT","SKRÝT",1,1,{"$f":"IF(AND(P47=\"SKRÝT\",Q47=\"SKRÝT\",R47=\"SKRÝT\",S47=\"SKRÝT\"),\"SKRÝT\",1)","v":"SKRÝT"}]
["Náklady na expresní a leteckou dopravu ",null,null,null,null,"Viz jednotlivá nebezpečí",null,"Viz jednotlivá nebezpečí",null,null,null,null,null,null,null,"SKRÝT",null,"SKRÝT",null,1,1,{"$f":"IF(AND(P48=\"SKRÝT\",R48=\"SKRÝT\"),\"SKRÝT\",1)","v":"SKRÝT"}]
["Náklady na práci přesčas, v noci, v neděli a ve státních svátcích",null,null,null,null,"Viz jednotlivá nebezpečí",null,"Viz jednotlivá nebezpečí",null,null,null,null,null,null,null,"SKRÝT",null,"SKRÝT",null,null,null,"SKRÝT"]
["Jiné náklady (uveďte):",null,null,null,null,"Viz jednotlivá nebezpečí",null,"Viz jednotlivá nebezpečí",null,null,null,null,null,null,null,"SKRÝT",null,"SKRÝT",null,1,1,"SKRÝT"]
["Připojištění vyměnitelných částí",null,null,null,null,"Viz jednotlivá nebezpečí",null,"Viz jednotlivá nebezpečí",null,"Doplňte jiné náklady, pokud chcete požadovat.",null,null,null,null,null,"SKRÝT",null,"SKRÝT",null,null,null,"SKRÝT"]
["Připojištění provozních kapalin",null,null,null,null,"Viz jednotlivá nebezpečí",null,"Viz jednotlivá nebezpečí",null,null,null,null,null,null,null,"SKRÝT",null,"SKRÝT",null,1,1,"SKRÝT"]
["Připojištění skleněných částí",null,null,null,null,"Viz jednotlivá nebezpečí",null,"Viz jednotlivá nebezpečí",null,null,null,null,null,null,null,"SKRÝT",null,"SKRÝT",null,1,1,"SKRÝT"]
["Jiné (uveďte):",null,null,null,null,null,null,null,null,"Doplňte jiné připojištění, pokud chcete požadovat.",null,null,null,null,null,{"$f":"IF(ISBLANK(E54),\"SKRÝT\",1)","v":"SKRÝT"},{"$f":"IF(ISBLANK(F54),\"SKRÝT\",1)","v":"SKRÝT"},{"$f":"IF(ISBLANK(G54),\"SKRÝT\",1)","v":"SKRÝT"},{"$f":"IF(ISBLANK(H54),\"SKRÝT\",1)","v":"SKRÝT"},1,1,{"$f":"IF(AND(P54=\"SKRÝT\",Q54=\"SKRÝT\",R54=\"SKRÝT\",S54=\"SKRÝT\"),\"SKRÝT\",1)","v":"SKRÝT"}]
["Poznámka",null,null,null,null,null,null,null,null,null,null,null,null,null,null,null,null,null,null,1,1,{"$f":"IF(ISBLANK(A56),\"SKRÝT\",1)","v":"SKRÝT"}]
[null,null,null,null,null,null,null,null,null,"Zde můžete doplnit poznámky.",null,null,null,null,null,null,null,null,null,1,1,{"$f":"IF(ISBLANK(A56),\"SKRÝT\",1)","v":"SKRÝT"}]
["Použité pojmy",null,null,null,null,null,null,null,null,null,null,null,null,null,null,null,null,null,null,1,1,1]
["All risk\n(technická rizika)","Všechna nebezpečí, kromě výslovně vyloučených (běžně jsou vyloučená živelní nebezpečí, odcizení, vandalismus, válka, stávka; politická rizika; jaderné záření, reakce, kontaminace; běžné opotřebení; atmosférické vlivy; škody, za které odpovídá smluvní partner; úmyslné jednání pojištěného; škody na vyměnitelných součástech a na součástech, které podléhají rychlému opotřebení)",null,null,null,null,null,null,null,null,null,null,null,null,null,null,null,null,null,1,1,1]
["Živel","FLEXA (požár, úder blesku, výbuch, pád letadla nebo jeho nákladu); povodeň, záplava; vichřice nebo krupobití; pád stromů, stožárů nebo jiných předmětů; náraz dopravního prostředku; tíha sněhu nebo námrazy; sesuv půdy, zřícení skal nebo zemin, sesouvání nebo zřícení lavin; zemětřesení; aerodynamický třesk; vodovodní škody; kouř;",null,null,null,null,null,null,null,null,null,null,null,null,null,null,null,null,null,1,1,1]

{"sheet":"Preruseni_provozu_info_PC","index":10,"n_rows":86,"n_cols":22,"rows_kept":86,"cut":false,"hidden":true,"merged":[[77,16335,77,16342],[77,16343,77,16350],[77,16351,77,16358],[77,16359,77,16366],[77,16367,77,16374],[77,16375,77,16382],[78,0,78,5],[78,6,78,7],[79,0,79,5],[79,6,79,7],[77,16263,77,16270],[77,16271,77,16278],[77,16279,77,16286],[77,16287,77,16294],[77,16295,77,16302],[77,16303,77,16310],[77,16311,77,16318],[77,16319,77,16326],[77,16327,77,16334],[77,16191,77,16198],[77,16199,77,16206],[77,16207,77,16214],[77,16215,77,16222],[77,16223,77,16230],[77,16231,77,16238],[77,16239,77,16246],[77,16247,77,16254],[77,16255,77,16262],[77,16119,77,16126],[77,16127,77,16134],[77,16135,77,16142],[77,16143,77,16150],[77,16151,77,16158],[77,16159,77,16166],[77,16167,77,16174],[77,16175,77,16182],[77,16183,77,16190],[77,16047,77,16054],[77,16055,77,16062],[77,16063,77,16070],[77,16071,77,16078],[77,16079,77,16086],[77,16087,77,16094],[77,16095,77,16102],[77,16103,77,16110],[77,16111,77,16118],[77,15975,77,15982],[77,15983,77,15990],[77,15991,77,15998],[77,15999,77,16006],[77,16007,77,16014],[77,16015,77,16022],[77,16023,77,16030],[77,16031,77,16038],[77,16039,77,16046],[77,15903,77,15910],[77,15911,77,15918],[77,15919,77,15926],[77,15927,77,15934],[77,15935,77,15942],[77,15943,77,15950],[77,15951,77,15958],[77,15959,77,15966],[77,15967,77,15974],[77,15831,77,15838],[77,15839,77,15846],[77,15847,77,15854],[77,15855,77,15862],[77,15863,77,15870],[77,15871,77,15878],[77,15879,77,15886],[77,15887,77,15894],[77,15895,77,15902],[77,15759,77,15766],[77,15767,77,15774],[77,15775,77,15782],[77,15783,77,15790],[77,15791,77,15798],[77,15799,77,15806],[77,15807,77,15814],[77,15815,77,15822],[77,15823,77,15830],[77,15687,77,15694],[77,15695,77,15702],[77,15703,77,15710],[77,15711,77,15718],[77,15719,77,15726],[77,15727,77,15734],[77,15735,77,15742],[77,15743,77,15750],[77,15751,77,15758],[77,15615,77,15622],[77,15623,77,15630],[77,15631,77,15638],[77,15639,77,15646],[77,15647,77,15654],[77,15655,77,15662],[77,15663,77,15670],[77,15671,77,15678],[77,15679,77,15686],[77,15543,77,15550],[77,15551,77,15558],[77,15559,77,15566],[77,15567,77,15574],[77,15575,77,15582],[77,15583,77,15590],[77,15591,77,15598],[77,15599,77,15606],[77,15607,77,15614],[77,15471,77,15478],[77,15479,77,15486],[77,15487,77,15494],[77,15495,77,15502],[77,15503,77,15510],[77,15511,77,15518],[77,15519,77,15526],[77,15527,77,15534],[77,15535,77,15542],[77,15399,77,15406],[77,15407,77,15414],[77,15415,77,15422],[77,15423,77,15430],[77,15431,77,15438],[77,15439,77,15446],[77,15447,77,15454],[77,15455,77,15462],[77,15463,77,15470],[77,15327,77,15334],[77,15335,77,15342],[77,15343,77,15350],[77,15351,77,15358],[77,15359,77,15366],[77,15367,77,15374],[77,15375,77,15382],[77,15383,77,15390],[77,15391,77,15398],[77,15255,77,15262],[77,15263,77,15270],[77,15271,77,15278],[77,15279,77,15286],[77,15287,77,15294],[77,15295,77,15302],[77,15303,77,15310],[77,15311,77,15318],[77,15319,77,15326],[77,15183,77,15190],[77,15191,77,15198],[77,15199,77,15206],[77,15207,77,15214],[77,15215,77,15222],[77,15223,77,15230],[77,15231,77,15238],[77,15239,77,15246],[77,15247,77,15254],[77,15111,77,15118],[77,15119,77,15126],[77,15127,77,15134],[77,15135,77,15142],[77,15143,77,15150],[77,15151,77,15158],[77,15159,77,15166],[77,15167,77,15174],[77,15175,77,15182],[77,15039,77,15046],[77,15047,77,15054],[77,15055,77,15062],[77,15063,77,15070],[77,15071,77,15078],[77,15079,77,15086],[77,15087,77,15094],[77,15095,77,15102],[77,15103,77,15110],[77,14967,77,14974],[77,14975,77,14982],[77,14983,77,14990],[77,14991,77,14998],[77,14999,77,15006],[77,15007,77,15014],[77,15015,77,15022],[77,15023,77,15030],[77,15031,77,15038],[77,14895,77,14902],[77,14903,77,14910],[77,14911,77,14918],[77,14919,77,14926],[77,14927,77,14934],[77,14935,77,14942],[77,14943,77,14950],[77,14951,77,14958],[77,14959,77,14966],[77,14823,77,14830],[77,14831,77,14838],[77,14839,77,14846],[77,14847,77,14854],[77,14855,77,14862],[77,14863,77,14870],[77,14871,77,14878],[77,14879,77,14886],[77,14887,77,14894],[77,14751,77,14758],[77,14759,77,14766],[77,14767,77,14774],[77,14775,77,14782],[77,14783,77,14790],[77,14791,77,14798],[77,14799,77,14806],[77,14807,77,14814],[77,14815,77,14822],[77,14679,77,14686],[77,14687,77,14694],[77,14695,77,14702],[77,14703,77,14710],[77,14711,77,14718],[77,14719,77,14726],[77,14727,77,14734],[77,14735,77,14742],[77,14743,77,14750],[77,14607,77,14614],[77,14615,77,14622],[77,14623,77,14630],[77,14631,77,14638],[77,14639,77,14646],[77,14647,77,14654],[77,14655,77,14662],[77,14663,77,14670],[77,14671,77,14678],[77,14535,77,14542],[77,14543,77,14550],[77,14551,77,14558],[77,14559,77,14566],[77,14567,77,14574],[77,14575,77,14582],[77,14583,77,14590],[77,14591,77,14598],[77,14599,77,14606],[77,14463,77,14470],[77,14471,77,14478],[77,14479,77,14486],[77,14487,77,14494],[77,14495,77,14502],[77,14503,77,14510],[77,14511,77,14518],[77,14519,77,14526],[77,14527,77,14534],[77,14391,77,14398],[77,14399,77,14406],[77,14407,77,14414],[77,14415,77,14422],[77,14423,77,14430],[77,14431,77,14438],[77,14439,77,14446],[77,14447,77,14454],[77,14455,77,14462],[77,14319,77,14326],[77,14327,77,14334],[77,14335,77,14342],[77,14343,77,14350],[77,14351,77,14358],[77,14359,77,14366],[77,14367,77,14374],[77,14375,77,14382],[77,14383,77,14390],[77,14247,77,14254],[77,14255,77,14262],[77,14263,77,14270],[77,14271,77,14278],[77,14279,77,14286],[77,14287,77,14294],[77,14295,77,14302],[77,14303,77,14310],[77,14311,77,14318],[77,14175,77,14182],[77,14183,77,14190],[77,14191,77,14198],[77,14199,77,14206],[77,14207,77,14214],[77,14215,77,14222],[77,14223,77,14230],[77,14231,77,14238],[77,14239,77,14246],[77,14103,77,14110],[77,14111,77,14118],[77,14119,77,14126],[77,14127,77,14134],[77,14135,77,14142],[77,14143,77,14150],[77,14151,77,14158],[77,14159,77,14166],[77,14167,77,14174],[77,14031,77,14038],[77,14039,77,14046],[77,14047,77,14054],[77,14055,77,14062],[77,14063,77,14070],[77,14071,77,14078],[77,14079,77,14086],[77,14087,77,14094],[77,14095,77,14102],[77,13959,77,13966],[77,13967,77,13974],[77,13975,77,13982],[77,13983,77,13990],[77,13991,77,13998],[77,13999,77,14006],[77,14007,77,14014],[77,14015,77,14022],[77,14023,77,14030],[77,13887,77,13894],[77,13895,77,13902],[77,13903,77,13910],[77,13911,77,13918],[77,13919,77,13926],[77,13927,77,13934],[77,13935,77,13942],[77,13943,77,13950],[77,13951,77,13958],[77,13815,77,13822],[77,13823,77,13830],[77,13831,77,13838],[77,13839,77,13846],[77,13847,77,13854],[77,13855,77,13862],[77,13863,77,13870],[77,13871,77,13878],[77,13879,77,13886],[77,13743,77,13750],[77,13751,77,13758],[77,13759,77,13766],[77,13767,77,13774],[77,13775,77,13782],[77,13783,77,13790],[77,13791,77,13798],[77,13799,77,13806],[77,13807,77,13814],[77,13671,77,13678],[77,13679,77,13686],[77,13687,77,13694],[77,13695,77,13702],[77,13703,77,13710],[77,13711,77,13718],[77,13719,77,13726],[77,13727,77,13734],[77,13735,77,13742],[77,13599,77,13606],[77,13607,77,13614],[77,13615,77,13622],[77,13623,77,13630],[77,13631,77,13638],[77,13639,77,13646],[77,13647,77,13654],[77,13655,77,13662],[77,13663,77,13670],[77,13527,77,13534],[77,13535,77,13542],[77,13543,77,13550],[77,13551,77,13558],[77,13559,77,13566],[77,13567,77,13574],[77,13575,77,13582],[77,13583,77,13590],[77,13591,77,13598],[77,13455,77,13462],[77,13463,77,13470],[77,13471,77,13478],[77,13479,77,13486],[77,13487,77,13494],[77,13495,77,13502],[77,13503,77,13510],[77,13511,77,13518],[77,13519,77,13526],[77,13383,77,13390],[77,13391,77,13398],[77,13399,77,13406],[77,13407,77,13414],[77,13415,77,13422],[77,13423,77,13430],[77,13431,77,13438],[77,13439,77,13446],[77,13447,77,13454],[77,13311,77,13318],[77,13319,77,13326],[77,13327,77,13334],[77,13335,77,13342],[77,13343,77,13350],[77,13351,77,13358],[77,13359,77,13366],[77,13367,77,13374],[77,13375,77,13382],[77,13239,77,13246],[77,13247,77,13254],[77,13255,77,13262],[77,13263,77,13270],[77,13271,77,13278],[77,13279,77,13286],[77,13287,77,13294],[77,13295,77,13302],[77,13303,77,13310],[77,13167,77,13174],[77,13175,77,13182],[77,13183,77,13190],[77,13191,77,13198],[77,13199,77,13206],[77,13207,77,13214],[77,13215,77,13222],[77,13223,77,13230],[77,13231,77,13238],[77,13095,77,13102],[77,13103,77,13110],[77,13111,77,13118],[77,13119,77,13126],[77,13127,77,13134],[77,13135,77,13142],[77,13143,77,13150],[77,13151,77,13158],[77,13159,77,13166],[77,13023,77,13030],[77,13031,77,13038],[77,13039,77,13046],[77,13047,77,13054],[77,13055,77,13062],[77,13063,77,13070],[77,13071,77,13078],[77,13079,77,13086],[77,13087,77,13094],[77,12951,77,12958],[77,12959,77,12966],[77,12967,77,12974],[77,12975,77,12982],[77,12983,77,12990],[77,12991,77,12998],[77,12999,77,13006],[77,13007,77,13014],[77,13015,77,13022],[77,12879,77,12886],[77,12887,77,12894],[77,12895,77,12902],[77,12903,77,12910],[77,12911,77,12918],[77,12919,77,12926],[77,12927,77,12934],[77,12935,77,12942],[77,12943,77,12950],[77,12807,77,12814],[77,12815,77,12822],[77,12823,77,12830],[77,12831,77,12838],[77,12839,77,12846],[77,12847,77,12854],[77,12855,77,12862],[77,12863,77,12870],[77,12871,77,12878],[77,12735,77,12742],[77,12743,77,12750],[77,12751,77,12758],[77,12759,77,12766],[77,12767,77,12774],[77,12775,77,12782],[77,12783,77,12790],[77,12791,77,12798],[77,12799,77,12806],[77,12663,77,12670],[77,12671,77,12678],[77,12679,77,12686],[77,12687,77,12694],[77,12695,77,12702],[77,12703,77,12710],[77,12711,77,12718],[77,12719,77,12726],[77,12727,77,12734],[77,12591,77,12598],[77,12599,77,12606],[77,12607,77,12614],[77,12615,77,12622],[77,12623,77,12630],[77,12631,77,12638],[77,12639,77,12646],[77,12647,77,12654],[77,12655,77,12662],[77,12519,77,12526],[77,12527,77,12534],[77,12535,77,12542],[77,12543,77,12550],[77,12551,77,12558],[77,12559,77,12566],[77,12567,77,12574],[77,12575,77,12582],[77,12583,77,12590],[77,12447,77,12454],[77,12455,77,12462],[77,12463,77,12470],[77,12471,77,12478],[77,12479,77,12486],[77,12487,77,12494],[77,12495,77,12502],[77,12503,77,12510],[77,12511,77,12518],[77,12375,77,12382],[77,12383,77,12390],[77,12391,77,12398],[77,12399,77,12406],[77,12407,77,12414],[77,12415,77,12422],[77,12423,77,12430],[77,12431,77,12438],[77,12439,77,12446],[77,12303,77,12310],[77,12311,77,12318],[77,12319,77,12326],[77,12327,77,12334],[77,12335,77,12342],[77,12343,77,12350],[77,12351,77,12358],[77,12359,77,12366],[77,12367,77,12374],[77,12231,77,12238],[77,12239,77,12246],[77,12247,77,12254],[77,12255,77,12262],[77,12263,77,12270],[77,12271,77,12278],[77,12279,77,12286],[77,12287,77,12294],[77,12295,77,12302],[77,12159,77,12166],[77,12167,77,12174],[77,12175,77,12182],[77,12183,77,12190],[77,12191,77,12198],[77,12199,77,12206],[77,12207,77,12214],[77,12215,77,12222],[77,12223,77,12230],[77,12087,77,12094],[77,12095,77,12102],[77,12103,77,12110],[77,12111,77,12118],[77,12119,77,12126],[77,12127,77,12134],[77,12135,77,12142],[77,12143,77,12150],[77,12151,77,12158],[77,12015,77,12022],[77,12023,77,12030],[77,12031,77,12038],[77,12039,77,12046],[77,12047,77,12054],[77,12055,77,12062],[77,12063,77,12070],[77,12071,77,12078],[77,12079,77,12086],[77,11943,77,11950],[77,11951,77,11958],[77,11959,77,11966],[77,11967,77,11974],[77,11975,77,11982],[77,11983,77,11990],[77,11991,77,11998],[77,11999,77,12006],[77,12007,77,12014],[77,11871,77,11878],[77,11879,77,11886],[77,11887,77,11894],[77,11895,77,11902],[77,11903,77,11910],[77,11911,77,11918],[77,11919,77,11926],[77,11927,77,11934],[77,11935,77,11942],[77,11799,77,11806],[77,11807,77,11814],[77,11815,77,11822],[77,11823,77,11830],[77,11831,77,11838],[77,11839,77,11846],[77,11847,77,11854],[77,11855,77,11862],[77,11863,77,11870],[77,11727,77,11734],[77,11735,77,11742],[77,11743,77,11750],[77,11751,77,11758],[77,11759,77,11766],[77,11767,77,11774],[77,11775,77,11782],[77,11783,77,11790],[77,11791,77,11798],[77,11655,77,11662],[77,11663,77,11670],[77,11671,77,11678],[77,11679,77,11686],[77,11687,77,11694],[77,11695,77,11702],[77,11703,77,11710],[77,11711,77,11718],[77,11719,77,11726],[77,11583,77,11590],[77,11591,77,11598],[77,11599,77,11606],[77,11607,77,11614],[77,11615,77,11622],[77,11623,77,11630],[77,11631,77,11638],[77,11639,77,11646],[77,11647,77,11654],[77,11511,77,11518],[77,11519,77,11526],[77,11527,77,11534],[77,11535,77,11542],[77,11543,77,11550],[77,11551,77,11558],[77,11559,77,11566],[77,11567,77,11574],[77,11575,77,11582],[77,11439,77,11446],[77,11447,77,11454],[77,11455,77,11462],[77,11463,77,11470],[77,11471,77,11478],[77,11479,77,11486],[77,11487,77,11494],[77,11495,77,11502],[77,11503,77,11510],[77,11367,77,11374],[77,11375,77,11382],[77,11383,77,11390],[77,11391,77,11398],[77,11399,77,11406],[77,11407,77,11414],[77,11415,77,11422],[77,11423,77,11430],[77,11431,77,11438],[77,11295,77,11302],[77,11303,77,11310],[77,11311,77,11318],[77,11319,77,11326],[77,11327,77,11334],[77,11335,77,11342],[77,11343,77,11350],[77,11351,77,11358],[77,11359,77,11366],[77,11223,77,11230],[77,11231,77,11238],[77,11239,77,11246],[77,11247,77,11254],[77,11255,77,11262],[77,11263,77,11270],[77,11271,77,11278],[77,11279,77,11286],[77,11287,77,11294],[77,11151,77,11158],[77,11159,77,11166],[77,11167,77,11174],[77,11175,77,11182],[77,11183,77,11190],[77,11191,77,11198],[77,11199,77,11206],[77,11207,77,11214],[77,11215,77,11222],[77,11079,77,11086],[77,11087,77,11094],[77,11095,77,11102],[77,11103,77,11110],[77,11111,77,11118],[77,11119,77,11126],[77,11127,77,11134],[77,11135,77,11142],[77,11143,77,11150],[77,11007,77,11014],[77,11015,77,11022],[77,11023,77,11030],[77,11031,77,11038],[77,11039,77,11046],[77,11047,77,11054],[77,11055,77,11062],[77,11063,77,11070],[77,11071,77,11078],[77,10935,77,10942],[77,10943,77,10950],[77,10951,77,10958],[77,10959,77,10966],[77,10967,77,10974],[77,10975,77,10982],[77,10983,77,10990],[77,10991,77,10998],[77,10999,77,11006],[77,10863,77,10870],[77,10871,77,10878],[77,10879,77,10886],[77,10887,77,10894],[77,10895,77,10902],[77,10903,77,10910],[77,10911,77,10918],[77,10919,77,10926],[77,10927,77,10934],[77,10791,77,10798],[77,10799,77,10806],[77,10807,77,10814],[77,10815,77,10822],[77,10823,77,10830],[77,10831,77,10838],[77,10839,77,10846],[77,10847,77,10854],[77,10855,77,10862],[77,10719,77,10726],[77,10727,77,10734],[77,10735,77,10742],[77,10743,77,10750],[77,10751,77,10758],[77,10759,77,10766],[77,10767,77,10774],[77,10775,77,10782],[77,10783,77,10790],[77,10647,77,10654],[77,10655,77,10662],[77,10663,77,10670],[77,10671,77,10678],[77,10679,77,10686],[77,10687,77,10694],[77,10695,77,10702],[77,10703,77,10710],[77,10711,77,10718],[77,10575,77,10582],[77,10583,77,10590],[77,10591,77,10598],[77,10599,77,10606],[77,10607,77,10614],[77,10615,77,10622],[77,10623,77,10630],[77,10631,77,10638],[77,10639,77,10646],[77,10503,77,10510],[77,10511,77,10518],[77,10519,77,10526],[77,10527,77,10534],[77,10535,77,10542],[77,10543,77,10550],[77,10551,77,10558],[77,10559,77,10566],[77,10567,77,10574],[77,10431,77,10438],[77,10439,77,10446],[77,10447,77,10454],[77,10455,77,10462],[77,10463,77,10470],[77,10471,77,10478],[77,10479,77,10486],[77,10487,77,10494],[77,10495,77,10502],[77,10359,77,10366],[77,10367,77,10374],[77,10375,77,10382],[77,10383,77,10390],[77,10391,77,10398],[77,10399,77,10406],[77,10407,77,10414],[77,10415,77,10422],[77,10423,77,10430],[77,10287,77,10294],[77,10295,77,10302],[77,10303,77,10310],[77,10311,77,10318],[77,10319,77,10326],[77,10327,77,10334],[77,10335,77,10342],[77,10343,77,10350],[77,10351,77,10358],[77,10215,77,10222],[77,10223,77,10230],[77,10231,77,10238],[77,10239,77,10246],[77,10247,77,10254],[77,10255,77,10262],[77,10263,77,10270],[77,10271,77,10278],[77,10279,77,10286],[77,10143,77,10150],[77,10151,77,10158],[77,10159,77,10166],[77,10167,77,10174],[77,10175,77,10182],[77,10183,77,10190],[77,10191,77,10198],[77,10199,77,10206],[77,10207,77,10214],[77,10071,77,10078],[77,10079,77,10086],[77,10087,77,10094],[77,10095,77,10102],[77,10103,77,10110],[77,10111,77,10118],[77,10119,77,10126],[77,10127,77,10134],[77,10135,77,10142],[77,9999,77,10006],[77,10007,77,10014],[77,10015,77,10022],[77,10023,77,10030],[77,10031,77,10038],[77,10039,77,10046],[77,10047,77,10054],[77,10055,77,10062],[77,10063,77,10070],[77,9927,77,9934],[77,9935,77,9942],[77,9943,77,9950],[77,9951,77,9958],[77,9959,77,9966],[77,9967,77,9974],[77,9975,77,9982],[77,9983,77,9990],[77,9991,77,9998],[77,9855,77,9862],[77,9863,77,9870],[77,9871,77,9878],[77,9879,77,9886],[77,9887,77,9894],[77,9895,77,9902],[77,9903,77,9910],[77,9911,77,9918],[77,9919,77,9926],[77,9783,77,9790],[77,9791,77,9798],[77,9799,77,9806],[77,9807,77,9814],[77,9815,77,9822],[77,9823,77,9830],[77,9831,77,9838],[77,9839,77,9846],[77,9847,77,9854],[77,9711,77,9718],[77,9719,77,9726],[77,9727,77,9734],[77,9735,77,9742],[77,9743,77,9750],[77,9751,77,9758],[77,9759,77,9766],[77,9767,77,9774],[77,9775,77,9782],[77,9639,77,9646],[77,9647,77,9654],[77,9655,77,9662],[77,9663,77,9670],[77,9671,77,9678],[77,9679,77,9686],[77,9687,77,9694],[77,9695,77,9702],[77,9703,77,9710],[77,9567,77,9574],[77,9575,77,9582],[77,9583,77,9590],[77,9591,77,9598],[77,9599,77,9606],[77,9607,77,9614],[77,9615,77,9622],[77,9623,77,9630],[77,9631,77,9638],[77,9495,77,9502],[77,9503,77,9510],[77,9511,77,9518],[77,9519,77,9526],[77,9527,77,9534],[77,9535,77,9542],[77,9543,77,9550],[77,9551,77,9558],[77,9559,77,9566],[77,9423,77,9430],[77,9431,77,9438],[77,9439,77,9446],[77,9447,77,9454],[77,9455,77,9462],[77,9463,77,9470],[77,9471,77,9478],[77,9479,77,9486],[77,9487,77,9494],[77,9351,77,9358],[77,9359,77,9366],[77,9367,77,9374],[77,9375,77,9382],[77,9383,77,9390],[77,9391,77,9398],[77,9399,77,9406],[77,9407,77,9414],[77,9415,77,9422],[77,9279,77,9286],[77,9287,77,9294],[77,9295,77,9302],[77,9303,77,9310],[77,9311,77,9318],[77,9319,77,9326],[77,9327,77,9334],[77,9335,77,9342],[77,9343,77,9350],[77,9207,77,9214],[77,9215,77,9222],[77,9223,77,9230],[77,9231,77,9238],[77,9239,77,9246],[77,9247,77,9254],[77,9255,77,9262],[77,9263,77,9270],[77,9271,77,9278],[77,9135,77,9142],[77,9143,77,9150],[77,9151,77,9158],[77,9159,77,9166],[77,9167,77,9174],[77,9175,77,9182],[77,9183,77,9190],[77,9191,77,9198],[77,9199,77,9206],[77,9063,77,9070],[77,9071,77,9078],[77,9079,77,9086],[77,9087,77,9094],[77,9095,77,9102],[77,9103,77,9110],[77,9111,77,9118],[77,9119,77,9126],[77,9127,77,9134],[77,8991,77,8998],[77,8999,77,9006],[77,9007,77,9014],[77,9015,77,9022],[77,9023,77,9030],[77,9031,77,9038],[77,9039,77,9046],[77,9047,77,9054],[77,9055,77,9062],[77,8919,77,8926],[77,8927,77,8934],[77,8935,77,8942],[77,8943,77,8950],[77,8951,77,8958],[77,8959,77,8966],[77,8967,77,8974],[77,8975,77,8982],[77,8983,77,8990],[77,8847,77,8854],[77,8855,77,8862],[77,8863,77,8870],[77,8871,77,8878],[77,8879,77,8886],[77,8887,77,8894],[77,8895,77,8902],[77,8903,77,8910],[77,8911,77,8918],[77,8775,77,8782],[77,8783,77,8790],[77,8791,77,8798],[77,8799,77,8806],[77,8807,77,8814],[77,8815,77,8822],[77,8823,77,8830],[77,8831,77,8838],[77,8839,77,8846],[77,8703,77,8710],[77,8711,77,8718],[77,8719,77,8726],[77,8727,77,8734],[77,8735,77,8742],[77,8743,77,8750],[77,8751,77,8758],[77,8759,77,8766],[77,8767,77,8774],[77,8631,77,8638],[77,8639,77,8646],[77,8647,77,8654],[77,8655,77,8662],[77,8663,77,8670],[77,8671,77,8678],[77,8679,77,8686],[77,8687,77,8694],[77,8695,77,8702],[77,8559,77,8566],[77,8567,77,8574],[77,8575,77,8582],[77,8583,77,8590],[77,8591,77,8598],[77,8599,77,8606],[77,8607,77,8614],[77,8615,77,8622],[77,8623,77,8630],[77,8487,77,8494],[77,8495,77,8502],[77,8503,77,8510],[77,8511,77,8518],[77,8519,77,8526],[77,8527,77,8534],[77,8535,77,8542],[77,8543,77,8550],[77,8551,77,8558],[77,8415,77,8422],[77,8423,77,8430],[77,8431,77,8438],[77,8439,77,8446],[77,8447,77,8454],[77,8455,77,8462],[77,8463,77,8470],[77,8471,77,8478],[77,8479,77,8486]],"merged_total":2130,"flags":["merged_cut"]}
[null,null,null,null,null,null,null,null,null,null,null,null,null,null,null,null,null,null,null,"Verze k odeslání klientovi","Verze zpracovat","Verze k odeslání do pojišťovny (skrýt nevyplněné informace)"]
[null,null,null,null,null,null,null,null,null,null,null,null,null,null,null,null,null,null,null,1,1,1]
[null,null,null,null,null,null,null,null,null,null,null,null,null,null,null,null,null,null,null,1,1,1]
[null,null,null,null,null,null,null,null,null,null,null,null,null,null,null,null,null,null,null,1,1,1]
[null,null,null,null,null,null,null,null,null,null,null,null,null,null,null,null,null,null,null,1,1,1]
[null,null,null,null,null,null,null,null,null,null,null,null,null,null,null,null,null,null,null,null,null,1]
["Pojištění přerušení provozu - informace o riziku, výpočet pojistné částky",null,null,null,null,null,null,null,null,null,null,null,null,null,null,null,null,null,null,1,1,1]
[null,null,null,null,null,null,null,null,null,null,null,null,null,null,null,null,null,null,null,null,null,1]
["Informace o pojišťovaném provozu",null,null,null,null,null,null,null,null,null,null,null,null,null,null,null,null,null,null,1,1,1]
[null,null,null,null,null,null,null,null,null,null,null,null,null,null,null,null,null,null,null,1,1,1]
["Pracovní doba od:",null,"do:",null,"Počet směn:",null,null,null,null,null,null,null,null,null,null,null,null,null,null,1,1,1]
[null,null,null,null,null,null,null,null,null,null,null,null,null,null,null,null,null,null,null,1,1,1]
[null,null,null,null,null,null,"Ano/ Ne",null,null,null,null,null,null,null,null,null,null,null,null,1,1,1]
["Jedná se o sezónní provoz nebo máte rozdílné příjmy v různých částech roku?",null,null,null,null,null,null,null,null,"POZOR, sezónnost provozu je nutné zohlednit při výpočtu pojistné částky.",null,null,null,null,null,null,null,null,null,1,1,1]
["Existují suroviny/ díly apod., u kterých byste v případě výpadku dodávek obtížně hledali alternativního dodavatele?",null,null,null,null,null,null,null,null,"POZOR na připojištění dodavatelů.",null,null,null,null,null,null,null,null,null,1,1,1]
["Existují odběratelé, jejichž ztrátu lze jen obtížně nahradit jinými? ",null,null,null,null,null,null,null,null,"POZOR na připojištění odběratelů.",null,null,null,null,null,null,null,null,null,1,1,1]
["Může se stát, že areál firmy bude nedostupný v souvislosti s živelní událostí? ",null,null,null,null,null,null,null,null,null,null,null,null,null,null,null,null,null,null,1,1,1]
["Hrozí vám sankce ze strany odběratelů či dodavatelů v případě přerušení provozu? ",null,null,null,null,null,null,null,null,null,null,null,null,null,null,null,null,null,null,1,1,1]
["Existuje možnost, jak zabezpečit náhradní provoz do obnovení dodávky v případě výpadku dodávky energií či médií?",null,null,null,null,null,null,null,null,null,null,null,null,null,null,null,null,null,null,1,1,1]
["Uveďte stupeň závislosti výrobního procesu na IT technologií (nízká/ střední/ vysoká):",null,null,null,null,null,null,null,null,null,null,null,null,null,null,null,null,null,null,1,1,1]
["Kolik měsíců bude potřeba na obnovu provozu, pokud by došlo k úplnému zničení provozu? ",null,null,null,null,null,null,null,null,null,null,null,null,null,null,null,null,null,null,1,1,1]
["Jaké vícenáklady či zvýšené provozní náklady očekáváte v souvislosti se vznikem přerušení provozu? \n(Např. nájem za provizorní provozovny; náklady na úklid a úpravy provizorních provozoven; nájem za provizorní stroje a zařízení; náklady na dopravu zařízení včetně nákladů na přemístění zařízení do provizorních provozoven; zvýšené náklady na zásobování energiemi; příplatky za přesčasové práce při náhradní činnosti; zvýšené pojistné za provizorní provozovny; zvýšené náklady na ostrahu a vrátné; ostatní náklady vzniklé v souvislosti s nájmem provizorních provozoven, tj. zvýšené náklady na reklamu, telefony, správní poplatky apod.)",null,null,null,null,null,null,null,null,null,null,null,null,null,null,null,null,null,null,1,1,1]
[null,null,null,null,null,null,null,null,null,null,null,null,null,null,null,null,null,null,null,1,1]
["Závislost na dodavatelích a odběratelích",null,null,null,null,null,null,null,null,null,null,null,null,null,null,null,null,null,null,1,1,{"$f":"IF(V26=\"SKRÝT\",\"SKRÝT\",1)","v":"SKRÝT"}]
["Uveďte prosím dodavatele a odběratele, jejichž výpadek by měl vliv na celkový obrat 10 % nebo více."]
["Surovina/ výrobek",null,null,"Jméno dodavatele/ odběratele",null,null,"Dodací lhůta ve dnech","Podíl na celkovém obratu v %",null,null,null,null,null,null,null,null,null,null,null,1,1,{"$f":"IF(AND(V27=\"SKRÝT\",V28=\"SKRÝT\",V29=\"SKRÝT\",V30=\"SKRÝT\",V31=\"SKRÝT\"),\"SKRÝT\",1)","v":"SKRÝT"}]
[null,null,null,null,null,null,null,null,null,null,null,null,null,null,null,{"$f":"IF(ISBLANK(A27),\"SKRÝT\",1)","v":"SKRÝT"},{"$f":"IF(ISBLANK(D27),\"SKRÝT\",1)","v":"SKRÝT"},{"$f":"IF(ISBLANK(G27),\"SKRÝT\",1)","v":"SKRÝT"},"SKRÝT",1,1,{"$f":"IF(AND(P27=\"SKRÝT\",Q27=\"SKRÝT\",R27=\"SKRÝT\",S27=\"SKRÝT\"),\"SKRÝT\",1)","v":"SKRÝT"}]
[null,null,null,null,null,null,null,null,null,null,null,null,null,null,null,{"$f":"IF(ISBLANK(A28),\"SKRÝT\",1)","v":"SKRÝT"},{"$f":"IF(ISBLANK(D28),\"SKRÝT\",1)","v":"SKRÝT"},"SKRÝT","SKRÝT",1,1,{"$f":"IF(AND(P28=\"SKRÝT\",Q28=\"SKRÝT\",R28=\"SKRÝT\",S28=\"SKRÝT\"),\"SKRÝT\",1)","v":"SKRÝT"}]
[null,null,null,null,null,null,null,null,null,null,null,null,null,null,null,{"$f":"IF(ISBLANK(A29),\"SKRÝT\",1)","v":"SKRÝT"},{"$f":"IF(ISBLANK(D29),\"SKRÝT\",1)","v":"SKRÝT"},"SKRÝT","SKRÝT",1,1,{"$f":"IF(AND(P29=\"SKRÝT\",Q29=\"SKRÝT\",R29=\"SKRÝT\",S29=\"SKRÝT\"),\"SKRÝT\",1)","v":"SKRÝT"}]
[null,null,null,null,null,null,null,null,null,null,null,null,null,null,null,{"$f":"IF(ISBLANK(A30),\"SKRÝT\",1)","v":"SKRÝT"},{"$f":"IF(ISBLANK(D30),\"SKRÝT\",1)","v":"SKRÝT"},"SKRÝT","SKRÝT",1,1,{"$f":"IF(AND(P30=\"SKRÝT\",Q30=\"SKRÝT\",R30=\"SKRÝT\",S30=\"SKRÝT\"),\"SKRÝT\",1)","v":"SKRÝT"}]
[null,null,null,null,null,null,null,null,null,null,null,null,null,null,null,{"$f":"IF(ISBLANK(A31),\"SKRÝT\",1)","v":"SKRÝT"},{"$f":"IF(ISBLANK(D31),\"SKRÝT\",1)","v":"SKRÝT"},"SKRÝT","SKRÝT",1,1,{"$f":"IF(AND(P31=\"SKRÝT\",Q31=\"SKRÝT\",R31=\"SKRÝT\",S31=\"SKRÝT\"),\"SKRÝT\",1)","v":"SKRÝT"}]
[null,null,null,null,null,null,null,null,null,null,null,null,null,null,null,null,null,null,null,1,1,1]
["Klíčové stroje a technologie",null,null,null,null,null,null,null,null,null,null,null,null,null,null,null,null,null,null,1,1,{"$f":"IF(V34=\"SKRÝT\",\"SKRÝT\",1)","v":"SKRÝT"}]
["Uveďte prosím jednotlivé stroje nebo soubory zařízení, jejichž poškození by mělo za následek snížení celkového obratu o 10 % a více.",null,null,null,null,null,null,null,null,null,null,null,null,null,null,null,null,null,null,1,1,{"$f":"IF(V35=\"SKRÝT\",\"SKRÝT\",1)","v":"SKRÝT"}]
["Název zařízení",null,null,"Popis postupu znovupořízení (oprava, náhrada…)",null,null,"Odhad času potřebného k znovupořízení při úplném zničení zařízení","Vliv na celkový obrat %",null,null,null,null,null,null,null,null,null,null,null,1,1,{"$f":"IF(AND(V36=\"SKRÝT\",V37=\"SKRÝT\",V38=\"SKRÝT\",V39=\"SKRÝT\",V40=\"SKRÝT\"),\"SKRÝT\",1)","v":"SKRÝT"}]
[null,null,null,null,null,null,null,null,null,null,null,null,null,null,null,{"$f":"IF(ISBLANK(A36),\"SKRÝT\",1)","v":"SKRÝT"},{"$f":"IF(ISBLANK(D36),\"SKRÝT\",1)","v":"SKRÝT"},{"$f":"IF(ISBLANK(G36),\"SKRÝT\",1)","v":"SKRÝT"},"SKRÝT",1,1,{"$f":"IF(AND(P36=\"SKRÝT\",Q36=\"SKRÝT\",R36=\"SKRÝT\",S36=\"SKRÝT\"),\"SKRÝT\",1)","v":"SKRÝT"}]
[null,null,null,null,null,null,null,null,null,null,null,null,null,null,null,{"$f":"IF(ISBLANK(A37),\"SKRÝT\",1)","v":"SKRÝT"},{"$f":"IF(ISBLANK(D37),\"SKRÝT\",1)","v":"SKRÝT"},"SKRÝT","SKRÝT",1,1,{"$f":"IF(AND(P37=\"SKRÝT\",Q37=\"SKRÝT\",R37=\"SKRÝT\",S37=\"SKRÝT\"),\"SKRÝT\",1)","v":"SKRÝT"}]
[null,null,null,null,null,null,null,null,null,null,null,null,null,null,null,{"$f":"IF(ISBLANK(A38),\"SKRÝT\",1)","v":"SKRÝT"},{"$f":"IF(ISBLANK(D38),\"SKRÝT\",1)","v":"SKRÝT"},"SKRÝT","SKRÝT",1,1,{"$f":"IF(AND(P38=\"SKRÝT\",Q38=\"SKRÝT\",R38=\"SKRÝT\",S38=\"SKRÝT\"),\"SKRÝT\",1)","v":"SKRÝT"}]
[null,null,null,null,null,null,null,null,null,null,null,null,null,null,null,{"$f":"IF(ISBLANK(A39),\"SKRÝT\",1)","v":"SKRÝT"},{"$f":"IF(ISBLANK(D39),\"SKRÝT\",1)","v":"SKRÝT"},"SKRÝT","SKRÝT",1,1,{"$f":"IF(AND(P39=\"SKRÝT\",Q39=\"SKRÝT\",R39=\"SKRÝT\",S39=\"SKRÝT\"),\"SKRÝT\",1)","v":"SKRÝT"}]
[null,null,null,null,null,null,null,null,null,null,null,null,null,null,null,{"$f":"IF(ISBLANK(A40),\"SKRÝT\",1)","v":"SKRÝT"},{"$f":"IF(ISBLANK(D40),\"SKRÝT\",1)","v":"SKRÝT"},"SKRÝT","SKRÝT",1,1,{"$f":"IF(AND(P40=\"SKRÝT\",Q40=\"SKRÝT\",R40=\"SKRÝT\",S40=\"SKRÝT\"),\"SKRÝT\",1)","v":"SKRÝT"}]
[null,null,null,null,null,null,null,null,null,null,null,null,null,null,null,null,null,null,null,1,1,1]
["Výpočet pojistné částky pro přerušení provozu",null,null,null,null,null,null,null,null,null,null,null,null,null,null,null,null,null,null,1,1,1]
[null,null,null,null,null,null,null,null,null,null,null,null,null,null,null,null,null,null,null,1,1,{"$f":"IF(AND(P43=\"SKRÝT\",Q43=\"SKRÝT\",R43=\"SKRÝT\",S43=\"SKRÝT\"),\"SKRÝT\",1)","v":1}]
["Počátek pojistného období:",null,null,"Konec pojistného období:",null,null,null,null,null,null,null,null,null,null,null,null,null,null,null,1,1,1]
[null,null,null,null,null,null,null,null,null,null,null,null,null,null,null,null,null,null,null,1,1,1]
["Výpočet ušlého zisku a stálých nákladů                                                                                                                         ",null,null,null,null,null,null,null,null,null,null,null,null,null,null,null,null,null,null,1,1,1]
["Princip výpočtu pojistné částky spočívá v tom, že od ročního dosaženého obratu (tržeb netto) budou odečteny všechny náklady, které v době přerušení provozu evidentně nenabíhají (tzn. variabilní náklady).",null,null,null,null,null,null,null,null,null,null,null,null,null,null,null,null,null,null,1,1,1]
["Struktura výpočtu je založena na Výkazu zisků a ztrát. Při vyplňování údajů doporučujeme co nejvíce vycházet z obchodních plánů, protože účetní výkazy nereflektují očekávaný vývoj.",null,null,null,null,null,null,null,null,null,null,null,null,null,null,null,null,null,null,1,1,1]
["Označení/ řádek ve Výkazu zisků \na ztrát","Položka",null,null,null,null,"Hodnoty jsou uvedeny v jednotkách/ v tisících/ v miliónech:",null,null,null,null,null,null,null,null,null,null,null,null,1,1,1]
["I.      01","Tržby z prodeje výrobků a služeb \n(Zahrnují tržby z prodeje výrobků, zboží a služeb z vlastní provozní činnosti podniku, a to po odečtení snížení výnosů (např. o slevy), daně z přidané hodnoty a spotřební daně (nemají vliv na hospodářský výsledek). Výpočet je stejný jako u Výkazu zisků a ztrát, řádku 01.)",null,null,null,null,null,null,null,null,null,null,null,null,null,null,null,null,null,1,1,1]
["II.     02","Tržby za prodej zboží \n(Výpočet je stejný jako u Výkazu zisků a ztrát, řádku 02.)",null,null,null,null,null,null,null,null,null,null,null,null,null,null,null,null,null,1,1,1]
["A.1  04","Náklady vynaložené na prodané zboží \n(Výpočet je stejný jako u Výkazu zisků a ztrát, řádku 04.)",null,null,null,null,null,null,null,null,null,null,null,null,null,null,null,null,null,1,1,1]
["A.2  05","Spotřeba materiálu a energie\n(Výpočet je stejný jako u Výkazu zisků a ztrát, řádku 05.)",null,null,null,null,null,null,null,null,null,null,null,null,null,null,null,null,null,1,1,1]
[null,"z toho podíl fixních nákladů  \n(Není součástí Výkazu zisku a ztrát, hodnotu určí klient. Jedná se o náklady, které je nezbytně nutné hradit i v případě přerušení provozu - např. platba za rezervovanou kapacitu.)",null,null,null,null,null,null,null,null,null,null,null,null,null,null,null,null,null,1,1,1]
["A.3  06","Služby\n(Výpočet je stejný jako u Výkazu zisků a ztrát, řádku 06.)",null,"Pro výpočet fixních nákladů chci použit pomocnou tabulku",null,null,null,null,null,null,null,null,null,null,null,null,null,null,null,1,1,1]
[null," z toho podíl fixních nákladů\n(Není součástí Výkazu zisku a ztrát, hodnotu určí klient. Jedná se o náklady, které je nezbytně nutné hradit i v případě přerušení provozu - např. ostraha, auditorské služby.)",null,null,null,null,null,null,null,null,null,null,null,null,null,null,null,null,null,1,1,1]
["B.     07","Změna stavu zásob vlastní činností (+/-)\n(Uvádí se včetně znaménka. Výpočet je stejný jako u Výkazu zisků a ztrát, řádku 07.)",null,null,null,null,null,null,null,null,null,null,null,null,null,null,null,null,null,1,1,1]
["C.     08","Aktivace (-)\n(Uvádí se včetně znaménka. Výpočet je stejný jako u Výkazu zisků a ztrát, řádku 08.)",null,null,null,null,null,null,null,null,null,null,null,null,null,null,null,null,null,1,1,1]
["D.     09","Osobní náklady\n(Výpočet je stejný jako u Výkazu zisků a ztrát, řádku 09.)",null,null,null,null,null,null,null,null,null,null,null,null,null,null,null,null,null,1,1,1]
["-"," z toho podíl fixních nákladů\n(Není součástí Výkazů zisků a ztrát. Minimální výši náhrady mzdy upravuje zákoník práce. Výše náhrady může být upravena vnitropodnikovou směrnicí nebo kolektivní smlouvou. Doporučujeme počítat s náhradou ve výši 100% a tím omezit riziko uplatnění podpojištění ze strany pojistitele.\nDle §207 Zákoníku práce je stanovena minimální náhrada ve výši 60% průměrného výdělku v případě živelní události a 80% průměrného výdělku v případě poruchy, kterou zaměstnanec nezavinil.)",null,null,null,null,null,{"$f":"G59","v":0},null,null,null,null,null,null,null,null,null,null,null,1,1,1]
["E.     14","Úpravy hodnot v provozní oblasti\n(Výpočet je stejný jako u Výkazu zisků a ztrát, řádku 14.)",null,null,null,null,null,null,null,null,null,null,null,null,null,null,null,null,null,1,1,1]
[16,"z toho trvalé\n(Odpisy. Výpočet je stejný jako u Výkazu zisků a ztrát, řádku 16.)",null,null,null,null,null,null,null,null,null,null,null,null,null,null,null,null,null,1,1,1]
["III.     20","Ostatní provozní výnosy \n(Zahrnuje část výnosů uvedených ve Výkazu zisků a ztrát na řádku č. 20. Zisky, které nesouvisí s provozem např. z finančních operací, obchodů s nemovitostmi, spekulativními obchody apod. nezapočítávejte)",null,null,null,null,null,null,null,null,null,null,null,null,null,null,null,null,null,1,1,1]
["F.      24","Ostatní provozní náklady\n(Výpočet je stejný jako u Výkazu zisků a ztrát, řádku 24.)",null,null,null,null,null,null,null,null,null,null,null,null,null,null,null,null,null,1,1,1]
["-"," z toho podíl fixních nákladů\n(Není součástí Výkazů zisků a ztrát, hodnotu určí klient. Jedná se o náklady, které je nezbytně nutné hradit i v případě přerušení provozu - např. pojistné. Náklady, které nesouvisí s provozem (např. z finanční operace, obchody s nemovitostmi, spekulativní obchody) nezapočítávejte.)",null,null,null,null,null,null,null,null,null,null,null,null,null,null,null,null,null,1,1,1]
["Souhrny",null,null,null,null,null,{"$f":"SUM(G50:G65)","v":0},{"$f":"SUM(H50:H65)","v":0},null,null,null,null,null,null,null,null,null,null,null,1,1,1]
["Základ pro výpočet pojistné částky pro zisk a stálé náklady:",null,null,null,null,null,null,{"$f":"(H66-G66)","v":0},null,null,null,null,null,null,null,{"$f":"IF(H49=\"V jednotkách\",(H66-G66),IF(H49=\"V tisících\",(H66-G66)*1000,IF(H49=\"V miliónech\",(H66-G66)*1000000,H66-G66)))","v":0},{"$f":"IF(H49=List_seznamy_bunky!C17,H67=(G66-H66)*1000)","v":false},null,null,1,1,1]
["Předpokládaný meziroční nárůst (+)/ pokles (-)\n(%, uvádí se včetně znaménka)",null,null,null,null,null,null,null,null,null,null,null,null,null,null,null,null,null,null,1,1,1]
["Komentář k předpokládanému meziročnímu nárůstu/ poklesu",null,null,null,null,null,null,null,null,null,null,null,null,null,null,null,null,null,null,1,1,1]
[null,null,null,null,null,null,null,null,null,null,null,null,null,null,null,null,null,null,null,1,1,1]
["Návrh roční pojistné částky pro ušlý zisk a stálé náklady (bez zohlednění sezónnosti provozu)",null,null,null,null,null,null,{"$f":"P67*(1+H68)","v":0},null,null,null,null,null,null,null,null,null,null,null,1,1,1]
["Požadovaná doba ručení (měsíců)\n(Zvolená doba by měla odpovídat času potřebnému na obnovu provozu v případě totální škody. Je potřeba zohlednit všechny faktory, které mají vliv na rychlost obnovy provozu (vč. např. vyřízení stavebního povolení). Například pokud využíváte technologii, která je vyráběna na zakázku, je potřeba zohlednit dobu, kterou bude dodavatel potřebovat na výrobu, dopravu a zprovoznění této technologie. Podle našich zkušeností není v těchto případech výjimkou, že obnova trvá i víc než 12 měsíců.)",null,null,null,null,null,null,{"$f":"F21","v":0},null,null,null,null,null,null,null,null,null,null,null,1,1,1]
["Návrh pojistné částky pro ušlý zisk a stálé náklady za požadovanou dobu ručení (bez zohlednění sezónnosti)",null,null,null,null,null,null,{"$f":"(H71/12)*H72","v":0},null,null,null,null,null,null,null,null,null,null,null,1,1,1]
["Při stanovení výše pojistné částky prosím zohledněte sezónní vlivy.",null,null,null,null,null,null,null,null,null,null,null,null,null,null,null,null,null,null,1,1,"SKRÝT"]
["Výše pojistné částky pro ušlý zisk a stálé náklady za požadovanou dobu ručení po zohlednění sezónnosti",null,null,null,null,null,null,null,null,null,null,null,null,null,null,null,null,null,null,1,1,1]
[null,null,null,null,null,null,null,null,null,null,null,null,null,null,null,null,null,null,null,1,1,1]
["Výpočet vícenákladů na zamezení poklesu obratu nad rámec stanovené pojistné částky",null,null,null,null,null,null,null,null,null,null,null,null,null,null,null,null,null,null,1,1,{"$f":"IF(V79=\"SKRÝT\",\"SKRÝT\",1)","v":"SKRÝT"}]
["Ve vypočtené pojistné částce je zahrnuto pojištění zvýšených provozních nákladů, které v případě škodní události slouží ke zmírnění poklesu obratu. Pokud by ke zmírnění nebo odstranění následků pojistné události bylo zapotřebí vynaložení vícenákladů nad rámec výše stanovené pojistné částky, prosíme uveďte tyto vícenáklady níže.",null,null,null,null,null,null,null,null,null,null,null,null,null,null,null,null,null,null,1,1,"SKRÝT"]
["Název položky",null,null,null,null,null,"Předpokládaná výše vícenákladů za požadovanou dobu ručení",null,null,null,null,null,null,null,null,null,null,null,null,1,1,{"$f":"IF(AND(V80=\"SKRÝT\",V81=\"SKRÝT\",V82=\"SKRÝT\",V83=\"SKRÝT\",V84=\"SKRÝT\",V85=\"SKRÝT\"),\"SKRÝT\",1)","v":"SKRÝT"}]
[null,null,null,null,null,null,null,null,null,null,null,null,null,null,null,{"$f":"IF(ISBLANK(A80),\"SKRÝT\",1)","v":"SKRÝT"},null,{"$f":"IF(ISBLANK(G80),\"SKRÝT\",1)","v":"SKRÝT"},null,1,1,{"$f":"IF(AND(P80=\"SKRÝT\",R80=\"SKRÝT\"),\"SKRÝT\",1)","v":"SKRÝT"}]
[null,null,null,null,null,null,null,null,null,null,null,null,null,null,null,{"$f":"IF(ISBLANK(A81),\"SKRÝT\",1)","v":"SKRÝT"},null,{"$f":"IF(ISBLANK(G81),\"SKRÝT\",1)","v":"SKRÝT"},null,1,1,{"$f":"IF(AND(P81=\"SKRÝT\",R81=\"SKRÝT\"),\"SKRÝT\",1)","v":"SKRÝT"}]
[null,null,null,null,null,null,null,null,null,null,null,null,null,null,null,{"$f":"IF(ISBLANK(A82),\"SKRÝT\",1)","v":"SKRÝT"},null,{"$f":"IF(ISBLANK(G82),\"SKRÝT\",1)","v":"SKRÝT"},null,1,1,{"$f":"IF(AND(P82=\"SKRÝT\",R82=\"SKRÝT\"),\"SKRÝT\",1)","v":"SKRÝT"}]
[null,null,null,null,null,null,null,null,null,null,null,null,null,null,null,{"$f":"IF(ISBLANK(A83),\"SKRÝT\",1)","v":"SKRÝT"},null,{"$f":"IF(ISBLANK(G83),\"SKRÝT\",1)","v":"SKRÝT"},null,1,1,{"$f":"IF(AND(P83=\"SKRÝT\",R83=\"SKRÝT\"),\"SKRÝT\",1)","v":"SKRÝT"}]
[null,null,null,null,null,null,null,null,null,null,null,null,null,null,null,{"$f":"IF(ISBLANK(A84),\"SKRÝT\",1)","v":"SKRÝT"},null,{"$f":"IF(ISBLANK(G84),\"SKRÝT\",1)","v":"SKRÝT"},null,1,1,{"$f":"IF(AND(P84=\"SKRÝT\",R84=\"SKRÝT\"),\"SKRÝT\",1)","v":"SKRÝT"}]
["Návrh limitu plnění pro vícenáklady za požadovanou dobu ručení",null,null,null,null,null,{"$f":"SUM(G80:H84)","v":0},null,null,null,null,null,null,null,null,null,null,null,null,1,1,{"$f":"IF(G85=0,\"SKRÝT\",1)","v":"SKRÝT"}]
[null,null,null,null,null,null,null,null,null,null,null,null,null,null,null,null,null,null,null,1,1,1]

{"sheet":"Preruseni_pomocny_vypocet","index":11,"n_rows":30,"n_cols":22,"rows_kept":30,"cut":false,"hidden":true,"merged":[[25,0,25,1],[26,0,26,1],[19,2,19,3],[20,2,20,3],[22,0,22,1],[23,0,23,1],[24,0,24,1],[24,2,24,3],[25,2,25,3],[22,2,22,3],[23,2,23,3],[29,6,29,7],[29,0,29,5],[27,2,27,3],[18,4,27,7],[28,0,28,1],[28,4,28,5],[28,6,28,7],[27,0,27,1],[18,0,18,1],[19,0,19,1],[20,0,20,1],[21,0,21,1],[28,2,28,3],[18,2,18,3],[26,2,26,3],[21,2,21,3],[16,2,16,3],[17,2,17,3],[12,0,12,1],[13,0,13,1],[14,0,14,1],[15,0,15,1],[16,0,16,1],[17,0,17,1],[12,2,12,3],[13,2,13,3],[14,2,14,3],[15,2,15,3],[17,6,17,7],[12,4,12,5],[13,4,13,5],[14,4,14,5],[15,4,15,5],[16,4,16,5],[17,4,17,5],[12,6,12,7],[13,6,13,7],[14,6,14,7],[15,6,15,7],[16,6,16,7],[6,0,6,7],[8,0,8,7],[9,0,9,7],[11,4,11,5],[10,4,10,7],[11,6,11,7],[10,0,11,1],[10,2,11,3]]}
[null,null,null,null,null,null,null,null,null,null,null,null,null,null,null,null,null,null,null,"Verze Klient","Verze zpracovat","Verze odeslat do pojišťovny (skrýt nevyplněné informace)"]
[null,null,null,null,null,null,null,null,null,null,null,null,null,null,null,null,null,null,null,1,1,1]
[null,null,null,null,null,null,null,null,null,null,null,null,null,null,null,null,null,null,null,1,1,1]
[null,null,null,null,null,null,null,null,null,null,null,null,null,null,null,null,null,null,null,1,1,1]
[null,null,null,null,null,null,null,null,null,null,null,null,null,null,null,null,null,null,null,1,1,1]
[null,null,null,null,null,null,null,null,null,null,null,null,null,null,null,null,null,null,null,1,1,1]
["Pojištění přerušení provozu - Pomocný výpočet - služby spotřebovávané v době přerušení provozu",null,null,null,null,null,null,null,null,null,null,null,null,null,null,null,null,null,null,1,1,1]
[null,null,null,null,null,null,null,null,null,null,null,null,null,null,null,null,null,null,null,1,1,1]
["Níže uvedená tabulka Vám může posloužit k výpočtu hodnoty Služeb spotřebovávaných i v době přerušení provozu.",null,null,null,null,null,null,null,null,null,null,null,null,null,null,null,null,null,null,1,1,"SKRÝT"]
["Uvedená struktura je čistě orientační a jako takovou jí nelze použít pro všechny typy společností. Tabulku můžete upravit dle specifik Vašeho podnikání.",null,null,null,null,null,null,null,null,null,null,null,null,null,null,null,null,null,null,1,1,"SKRÝT"]
["Detailní rozklad položky Služby",null,"Hodnota služeb spotřebovávaná při plánované provozu",null,"Hodnota služeb spotřebovávaná při zastavení/ omezení provozu ",null,null,null,null,null,null,null,null,null,null,null,null,null,null,1,1,1]
[null,null,null,null,"Kolik \"Služeb\" je spotřebováno při přerušení (v %)?",null,"Výpočet",null,null,null,null,null,null,null,null,null,null,null,null,1,1,1]
["Údržba celkem",null,null,null,null,null,{"$f":"C13*E13","v":0},null,null,null,null,null,null,null,null,null,null,null,null,1,1,1]
["Náklady na ekologii + stočné",null,null,null,null,null,0,null,null,null,null,null,null,null,null,null,null,null,null,1,1,1]
["Náklady na dopravu",null,null,null,null,null,0,null,null,null,null,null,null,null,null,null,null,null,null,1,1,1]
["Náklady na obchod a PR",null,null,null,null,null,0,null,null,null,null,null,null,null,null,null,null,null,null,1,1,1]
["Leasing a nájmy",null,null,null,null,null,0,null,null,null,null,null,null,null,null,null,null,null,null,1,1,1]
["Další služby (celkem)",null,{"$f":"SUM(C19:D28)","v":0},null,null,null,0,null,null,null,null,null,null,null,null,null,null,null,null,1,1,1]
["- ostraha",null,null,null,null,null,null,null,null,null,null,null,null,null,null,null,null,null,null,1,1,1]
["- IT a výzkum",null,null,null,null,null,null,null,null,null,null,null,null,null,null,null,null,null,null,1,1,1]
["- audit a poradenství",null,null,null,null,null,null,null,null,null,null,null,null,null,null,null,null,null,null,1,1,1]
["- přepracování polotovarů",null,null,null,null,null,null,null,null,null,null,null,null,null,null,null,null,null,null,1,1,1]
["- pojištění",null,null,null,null,null,null,null,null,null,null,null,null,null,null,null,null,null,null,1,1,1]
["- telekomunikace a spoje",null,null,null,null,null,null,null,null,null,null,null,null,null,null,null,null,null,null,1,1,1]
["- stravování",null,null,null,null,null,null,null,null,null,null,null,null,null,null,null,null,null,null,1,1,1]
["- vzdělávání",null,null,null,null,null,null,null,null,null,null,null,null,null,null,null,null,null,null,1,1,1]
["- služby spojené s obchodem",null,null,null,null,null,null,null,null,null,null,null,null,null,null,null,null,null,null,1,1,1]
["- ostatní",null,null,null,null,null,null,null,null,null,null,null,null,null,null,null,null,null,null,1,1,1]
["Náklady doprava vlastní výroba",null,null,null,null,null,{"$f":"B29*E29","v":0},null,null,null,null,null,null,null,null,null,null,null,null,1,1,1]
["Celkem",null,null,null,null,null,{"$f":"SUM(G13:H18,G29)","v":0},null,null,null,null,null,null,null,null,null,null,null,null,1,1,1]

{"sheet":"Preruseni_provozu_zivel","index":12,"n_rows":92,"n_cols":22,"rows_kept":92,"cut":false,"hidden":true,"merged":[[16,4,16,5],[16,6,16,7],[28,0,28,3],[20,0,20,3],[33,0,33,1],[33,2,33,3],[32,0,32,3],[22,0,22,3],[23,0,23,3],[24,0,24,3],[25,0,25,3],[26,0,26,3],[31,0,31,3],[29,0,29,3],[30,0,30,3],[6,0,6,7],[8,0,8,7],[13,0,13,3],[13,4,13,5],[13,6,13,7],[11,0,11,7],[10,0,10,7],[9,0,9,2],[36,1,36,7],[37,1,37,7],[12,4,12,5],[12,6,12,7],[15,4,15,5],[15,6,15,7],[14,4,14,5],[14,6,14,7],[34,1,34,7],[35,0,35,7],[14,0,14,3],[18,0,18,3],[19,0,19,3],[21,0,21,3],[15,0,15,3],[16,0,16,3]]}
[null,null,null,null,null,null,null,null,null,null,null,null,null,null,null,null,null,null,null,"Verze k odeslání klientovi","Verze zpracovat","Verze k odeslání do pojišťovny (skrýt nevyplněné informace)"]
[null,null,null,null,null,null,null,null,null,null,null,null,null,null,null,null,null,null,null,1,1,1]
[null,null,null,null,null,null,null,null,null,null,null,null,null,null,null,null,null,null,null,1,1,1]
[null,null,null,null,null,null,null,null,null,null,null,null,null,null,null,null,null,null,null,1,1,1]
[null,null,null,null,null,null,null,null,null,null,null,null,null,null,null,null,null,null,null,1,1,1]
[null,null,null,null,null,null,null,null,null,null,null,null,null,null,null,null,null,null,null,null,null,1]
["Pojištění živelního přerušení provozu",null,null,null,null,null,null,null,null,null,null,null,null,null,null,null,null,null,null,1,1,1]
[null,null,null,null,null,null,null,null,null,null,null,null,null,null,null,null,null,null,null,null,null,1]
["Pojistná částka",null,null,null,null,null,null,null,null,null,null,null,null,null,null,null,null,null,null,1,1,1]
["Roční pojistná částka (bez zohlednění sezónnosti):",null,null,{"$f":"Preruseni_provozu_info_PC!H71","v":0},null,null,null,null,null,"POZOR, v této pojistné částce není zohledněna sezónnost provozu.",null,null,null,null,null,null,null,null,null,1,1,1]
[null,null,null,null,null,null,null,null,null,null,null,null,null,null,null,null,null,null,null,1,1,1]
["Živelní přerušení provozu"]
[null,null,null,null,"Varianta  I.",null,"Varianta  II.",null,null,"Automaticky se vyplní požadovaná doba ručení z Výpočtu pojistné částky pro přerušení provozu. Hodnotu lze měnit.",null,null,null,null,null,null,null,null,null,1,1,1]
["Doba ručení (v měsících)",null,null,null,null,null,null,null,null,"Automaticky se vyplní požadovaná doba ručení z Výpočtu pojistné částky pro přerušení provozu. Hodnotu lze měnit.",null,null,null,null,null,null,null,null,null,1,1,1]
["Pojistná částka za dobu ručení",null,null,null,{"$f":"Preruseni_provozu_info_PC!H75","v":0},null,null,null,null,null,null,null,null,null,null,null,null,null,null,1,1,1]
["Pojištěná nebezpečí",null,null,null,null,null,null,null,null,null,null,null,null,null,null,null,null,null,null,1,1,1]
["Uvedené limity jsou samostatné/ kombinované:",null,null,null,null,null,null,null,null,"Doporučujeme požadovat samostatné limity.",null,null,null,null,null,null,null,null,null,1,1,1]
[null,null,null,null,"Limit plnění","Spoluúčast  (dny/ Kč)","Limit plnění","Spoluúčast  (dny/ Kč)",null,null,null,null,null,null,null,null,null,null,null,1,1,1]
["FLEXA (požár, výbuch, úder blesku, pád letadla nebo jeho částí)",null,null,null,"bez limitu",null,"bez limitu",null,null,null,null,null,null,null,null,{"$f":"IF(ISBLANK(E19),\"SKRÝT\",1)","v":1},"SKRÝT",1,"SKRÝT",1,1,{"$f":"IF(AND(P19=\"SKRÝT\",Q19=\"SKRÝT\",R19=\"SKRÝT\",S19=\"SKRÝT\"),\"SKRÝT\",1)","v":1}]
["Povodeň nebo záplava, zemětřesení, zřícení lavin",null,null,null,null,{"$f":"F19","v":0},null,{"$f":"H19","v":0},null,null,null,null,null,null,null,"SKRÝT",1,"SKRÝT",1,1,1,1]
["Vichřice, krupobití; sesuv půdy, zřícení skal nebo zemin; tíha sněhu, námrazy; pád stromů, stožárů nebo jiných předmětů ",null,null,null,null,null,null,null,null,null,null,null,null,null,null,{"$f":"IF(ISBLANK(E21),\"SKRÝT\",1)","v":"SKRÝT"},{"$f":"IF(ISBLANK(F21),\"SKRÝT\",1)","v":"SKRÝT"},{"$f":"IF(ISBLANK(G21),\"SKRÝT\",1)","v":"SKRÝT"},{"$f":"IF(ISBLANK(H21),\"SKRÝT\",1)","v":"SKRÝT"},1,1,"SKRÝT"]
["Vodovodní škody, vč. úniku vody z vnitřních okapových svodů, odpadního potrubí a kanalizace",null,null,null,null,null,null,null,null,null,null,null,null,null,null,"SKRÝT","SKRÝT","SKRÝT","SKRÝT",1,1,"SKRÝT"]
["Náraz dopravního prostředku; aerodynamický třesk; kouř",null,null,null,null,null,null,null,null,"V případě, že požadujete All risk, doporučujeme neuvádět zvláštní limit ani spoluúčast.  Doporučujeme uvést např.: \"viz Ostatní\".",null,null,null,null,null,"SKRÝT","SKRÝT","SKRÝT","SKRÝT",1,1,"SKRÝT"]
["Atmosférické srážky",null,null,null,null,null,null,null,null,"V případě, že požadujete All risk, doporučujeme neuvádět zvláštní limit ani spoluúčast.  Doporučujeme uvést např.: \"viz Ostatní\".",null,null,null,null,null,"SKRÝT","SKRÝT","SKRÝT","SKRÝT",1,1,"SKRÝT"]
["Nepřímý úder blesku",null,null,null,null,null,null,null,null,"V případě, že požadujete All risk, doporučujeme neuvádět zvláštní limit ani spoluúčast.  Doporučujeme uvést např.: \"viz Ostatní\".",null,null,null,null,null,"SKRÝT","SKRÝT","SKRÝT","SKRÝT",1,1,{"$f":"IF(AND(P25=\"SKRÝT\",Q25=\"SKRÝT\",R25=\"SKRÝT\",S25=\"SKRÝT\"),\"SKRÝT\",1)","v":"SKRÝT"}]
["Mechanické poškození zateplení budov ptactvem, hmyzem, hlodavci",null,null,null,null,null,null,null,null,null,null,null,null,null,null,"SKRÝT","SKRÝT","SKRÝT","SKRÝT",1,1,{"$f":"IF(AND(P26=\"SKRÝT\",Q26=\"SKRÝT\",R26=\"SKRÝT\",S26=\"SKRÝT\"),\"SKRÝT\",1)","v":"SKRÝT"}]
["Ostatní (v případě All risk)",null,null,null,null,null,null,null,null,null,null,null,null,null,null,"SKRÝT","SKRÝT","SKRÝT","SKRÝT",1,1,{"$f":"IF(AND(P27=\"SKRÝT\",Q27=\"SKRÝT\",R27=\"SKRÝT\",S27=\"SKRÝT\"),\"SKRÝT\",1)","v":"SKRÝT"}]
["Odcizení",null,null,null,null,null,null,null,null,null,null,null,null,null,null,"SKRÝT","SKRÝT","SKRÝT","SKRÝT",1,1,{"$f":"IF(AND(P28=\"SKRÝT\",Q28=\"SKRÝT\",R28=\"SKRÝT\",S28=\"SKRÝT\"),\"SKRÝT\",1)","v":"SKRÝT"}]
["Přerušení provozu v důsledku úředního rozhodnutí",null,null,null,null,"Viz jednotlivá nebezpečí",null,"Viz jednotlivá nebezpečí",null,null,null,null,null,null,null,"SKRÝT",null,"SKRÝT",null,1,1,{"$f":"IF(AND(P29=\"SKRÝT\",R29=\"SKRÝT\"),\"SKRÝT\",1)","v":"SKRÝT"}]
["Škody u odběratelů/ dodavatelů",null,null,null,null,"Viz jednotlivá nebezpečí",null,"Viz jednotlivá nebezpečí",null,null,null,null,null,null,null,"SKRÝT",null,"SKRÝT",null,1,1,"SKRÝT"]
["Škody u dodavatelů elektřiny, plynu, vody, tepla nebo stlačeného vzduchu a jejich distribuční síti",null,null,null,null,"Viz jednotlivá nebezpečí",null,"Viz jednotlivá nebezpečí",null,null,null,null,null,null,null,"SKRÝT",null,"SKRÝT",null,1,1,"SKRÝT"]
["Závislost v holdingu",null,null,null,null,"Viz jednotlivá nebezpečí",null,"Viz jednotlivá nebezpečí",null,null,null,null,null,null,null,"SKRÝT",null,"SKRÝT",null,1,1,"SKRÝT"]
["Vícenáklady",null,null,null,null,"Viz jednotlivá nebezpečí",null,"Viz jednotlivá nebezpečí",null,"Pokud chcete pojistit i jiné nebezpečí, doplňte.",null,null,null,null,null,"SKRÝT",null,"SKRÝT",null,1,1,"SKRÝT"]
["Jiné (uveďte):",null,null,null,null,"Viz jednotlivá nebezpečí",null,"Viz jednotlivá nebezpečí",null,null,null,null,null,null,null,"SKRÝT",{"$f":"IF(ISBLANK(D35),\"SKRÝT\",1)","v":"SKRÝT"},"SKRÝT",{"$f":"IF(ISBLANK(H35),\"SKRÝT\",1)","v":"SKRÝT"},1,1,"SKRÝT"]
["Poznámka",null,null,null,null,null,null,null,null,null,null,null,null,null,null,null,null,null,null,1,1,{"$f":"IF(ISBLANK(A36),\"SKRÝT\",1)","v":"SKRÝT"}]
[null,null,null,null,null,null,null,null,null,"Zde můžete uvést své poznámky.",null,null,null,null,null,null,null,null,null,1,1,{"$f":"IF(ISBLANK(A36),\"SKRÝT\",1)","v":"SKRÝT"}]
["Použité pojmy",null,null,null,null,null,null,null,null,null,null,null,null,null,null,null,null,null,null,1,1]
["Vícenáklady","Nezbytné a účelné náklady vynaložené nad rámec zvýšených provozních nákladů za účelem snížení poklesu obratu, ke kterému by došlo během doby ručení, kdyby nebyly tyto vícenáklady vynaloženy. Jedná se například o nájem za provizorní provozovny; náklady na úklid a úpravy provizorních provozoven; nájem za provizorní stroje a zařízení; náklady na dopravu zařízení včetně nákladů na přemístění zařízení do provizorních provozoven; zvýšené náklady na zásobování energiemi; příplatky za přesčasové práce při náhradní činnosti; zvýšené pojistné za provizorní provozovny; zvýšené náklady na ostrahu a vrátné; ostatní náklady vzniklé v souvislosti s nájmem provizorních provozoven, tj. zvýšené náklady na reklamu, telefony, správní poplatky apod. ",null,null,null,null,null,null,null,null,null,null,null,null,null,null,null,null,null,1,1,{"$f":"IF(AND(P38=\"SKRÝT\",Q38=\"SKRÝT\",R38=\"SKRÝT\",S38=\"SKRÝT\"),\"SKRÝT\",1)","v":1}]
[null,null,null,null,null,null,null,null,null,null,null,null,null,null,null,null,null,null,null,1,1,1]
[null,null,null,null,null,null,null,null,null,null,null,null,null,null,null,null,null,null,null,1,1,1]
[null,null,null,null,null,null,null,null,null,null,null,null,null,null,null,null,null,null,null,1,1,{"$f":"IF(AND(P41=\"SKRÝT\",Q41=\"SKRÝT\",R41=\"SKRÝT\",S41=\"SKRÝT\"),\"SKRÝT\",1)","v":1}]
[null,null,null,null,null,null,null,null,null,null,null,null,null,null,null,null,null,null,null,1,1,"SKRÝT"]
[null,null,null,null,null,null,null,null,null,null,null,null,null,null,null,null,null,null,null,1,1,1]
[null,null,null,null,null,null,null,null,null,null,null,null,null,null,null,null,null,null,null,1,1,1]
[null,null,null,null,null,null,null,null,null,null,null,null,null,null,null,null,null,null,null,1,1,1]
[null,null,null,null,null,null,null,null,null,null,null,null,null,null,null,null,null,null,null,1,1,1]
[null,null,null,null,null,null,null,null,null,null,null,null,null,null,null,null,null,null,null,1,1,1]
[null,null,null,null,null,null,null,null,null,null,null,null,null,null,null,null,null,null,null,1,1,1]
[null,null,null,null,null,null,null,null,null,null,null,null,null,null,null,null,null,null,null,1,1,1]
[null,null,null,null,null,null,null,null,null,null,null,null,null,null,null,null,null,null,null,1,1,1]
[null,null,null,null,null,null,null,null,null,null,null,null,null,null,null,null,null,null,null,1,1,1]
[null,null,null,null,null,null,null,null,null,null,null,null,null,null,null,null,null,null,null,1,1,1]
[null,null,null,null,null,null,null,null,null,null,null,null,null,null,null,null,null,null,null,1,1,1]
[null,null,null,null,null,null,null,null,null,null,null,null,null,null,null,null,null,null,null,1,1,1]
[null,null,null,null,null,null,null,null,null,null,null,null,null,null,null,null,null,null,null,1,1,1]
[null,null,null,null,null,null,null,null,null,null,null,null,null,null,null,null,null,null,null,1,1,1]
[null,null,null,null,null,null,null,null,null,null,null,null,null,null,null,null,null,null,null,1,1,1]
[null,null,null,null,null,null,null,null,null,null,null,null,null,null,null,null,null,null,null,1,1,1]
[null,null,null,null,null,null,null,null,null,null,null,null,null,null,null,null,null,null,null,1,1,1]
[null,null,null,null,null,null,null,null,null,null,null,null,null,null,null,null,null,null,null,1,1,1]
[null,null,null,null,null,null,null,null,null,null,null,null,null,null,null,null,null,null,null,1,1,1]
[null,null,null,null,null,null,null,null,null,null,null,null,null,null,null,null,null,null,null,1,1,1]
[null,null,null,null,null,null,null,null,null,null,null,null,null,null,null,null,null,null,null,1,1,1]
[null,null,null,null,null,null,null,null,null,null,null,null,null,null,null,null,null,null,null,1,1,1]
[null,null,null,null,null,null,null,null,null,null,null,null,null,null,null,null,null,null,null,1,1,1]
[null,null,null,null,null,null,null,null,null,null,null,null,null,null,null,null,null,null,null,1,1,1]
[null,null,null,null,null,null,null,null,null,null,null,null,null,null,null,null,null,null,null,1,1,1]
[null,null,null,null,null,null,null,null,null,null,null,null,null,null,null,null,null,null,null,1,1,1]
[null,null,null,null,null,null,null,null,null,null,null,null,null,null,null,null,null,null,null,1,1,1]
[null,null,null,null,null,null,null,null,null,null,null,null,null,null,null,null,null,null,null,1,1,1]
[null,null,null,null,null,null,null,null,null,null,null,null,null,null,null,null,null,null,null,1,1,1]
[null,null,null,null,null,null,null,null,null,null,null,null,null,null,null,null,null,null,null,1,1,1]
[null,null,null,null,null,null,null,null,null,null,null,null,null,null,null,null,null,null,null,1,1,"SKRÝT"]
[null,null,null,null,null,null,null,null,null,null,null,null,null,null,null,null,null,null,null,1,1,1]
[null,null,null,null,null,null,null,null,null,null,null,null,null,null,null,null,null,null,null,1,1,1]
[null,null,null,null,null,null,null,null,null,null,null,null,null,null,null,null,null,null,null,1,1,{"$f":"IF(V78=\"SKRÝT\",\"SKRÝT\",1)","v":"SKRÝT"}]
[null,null,null,null,null,null,null,null,null,null,null,null,null,null,null,null,null,null,null,1,1,"SKRÝT"]
[null,null,null,null,null,null,null,null,null,null,null,null,null,null,null,null,null,null,null,1,1,{"$f":"IF(AND(V79=\"SKRÝT\",V80=\"SKRÝT\",V81=\"SKRÝT\",V82=\"SKRÝT\",V83=\"SKRÝT\",V84=\"SKRÝT\"),\"SKRÝT\",1)","v":"SKRÝT"}]
[null,null,null,null,null,null,null,null,null,null,null,null,null,null,null,{"$f":"IF(ISBLANK(A80),\"SKRÝT\",1)","v":"SKRÝT"},null,{"$f":"IF(ISBLANK(G80),\"SKRÝT\",1)","v":"SKRÝT"},null,1,1,{"$f":"IF(AND(P79=\"SKRÝT\",R79=\"SKRÝT\"),\"SKRÝT\",1)","v":"SKRÝT"}]
[null,null,null,null,null,null,null,null,null,null,null,null,null,null,null,{"$f":"IF(ISBLANK(A81),\"SKRÝT\",1)","v":"SKRÝT"},null,{"$f":"IF(ISBLANK(G81),\"SKRÝT\",1)","v":"SKRÝT"},null,1,1,{"$f":"IF(AND(P80=\"SKRÝT\",R80=\"SKRÝT\"),\"SKRÝT\",1)","v":"SKRÝT"}]
[null,null,null,null,null,null,null,null,null,null,null,null,null,null,null,{"$f":"IF(ISBLANK(A82),\"SKRÝT\",1)","v":"SKRÝT"},null,{"$f":"IF(ISBLANK(G82),\"SKRÝT\",1)","v":"SKRÝT"},null,1,1,{"$f":"IF(AND(P81=\"SKRÝT\",R81=\"SKRÝT\"),\"SKRÝT\",1)","v":"SKRÝT"}]
[null,null,null,null,null,null,null,null,null,null,null,null,null,null,null,{"$f":"IF(ISBLANK(A83),\"SKRÝT\",1)","v":"SKRÝT"},null,{"$f":"IF(ISBLANK(G83),\"SKRÝT\",1)","v":"SKRÝT"},null,1,1,{"$f":"IF(AND(P82=\"SKRÝT\",R82=\"SKRÝT\"),\"SKRÝT\",1)","v":"SKRÝT"}]
[null,null,null,null,null,null,null,null,null,null,null,null,null,null,null,{"$f":"IF(ISBLANK(A84),\"SKRÝT\",1)","v":"SKRÝT"},null,{"$f":"IF(ISBLANK(G84),\"SKRÝT\",1)","v":"SKRÝT"},null,1,1,{"$f":"IF(AND(P83=\"SKRÝT\",R83=\"SKRÝT\"),\"SKRÝT\",1)","v":"SKRÝT"}]
[null,null,null,null,null,null,null,null,null,null,null,null,null,null,null,null,null,null,null,1,1,{"$f":"IF(G85=0,\"SKRÝT\",1)","v":"SKRÝT"}]
[null,null,null,null,null,null,null,null,null,null,null,null,null,null,null,null,null,null,null,1,1,1]
[null,null,null,null,null,null,null,null,null,null,null,null,null,null,null,null,null,null,null,1,1,1]
[null,null,null,null,null,null,null,null,null,null,null,null,null,null,null,null,null,null,null,1,1,"SKRÝT"]
[null,null,null,null,null,null,null,null,null,null,null,null,null,null,null,null,null,null,null,1,1,1]
[null,null,null,null,null,null,null,null,null,null,null,null,null,null,null,null,null,null,null,1,1,1]
[null,null,null,null,null,null,null,null,null,null,null,null,null,null,null,{"$f":"IF(ISBLANK(A91),\"SKRÝT\",1)","v":"SKRÝT"},null,{"$f":"IF(ISBLANK(G91),\"SKRÝT\",1)","v":"SKRÝT"},null,1,1,{"$f":"IF(AND(P90=\"SKRÝT\",R90=\"SKRÝT\"),\"SKRÝT\",1)","v":"SKRÝT"}]
[null,null,null,null,null,null,null,null,null,null,null,null,null,null,null,{"$f":"IF(ISBLANK(A92),\"SKRÝT\",1)","v":"SKRÝT"},null,{"$f":"IF(ISBLANK(G92),\"SKRÝT\",1)","v":"SKRÝT"},null,1,1,{"$f":"IF(AND(P91=\"SKRÝT\",R91=\"SKRÝT\"),\"SKRÝT\",1)","v":"SKRÝT"}]
[null,null,null,null,null,null,null,null,null,null,null,null,null,null,null,{"$f":"IF(ISBLANK(A93),\"SKRÝT\",1)","v":"SKRÝT"},null,{"$f":"IF(ISBLANK(G93),\"SKRÝT\",1)","v":"SKRÝT"},null,1,1,{"$f":"IF(AND(P92=\"SKRÝT\",R92=\"SKRÝT\"),\"SKRÝT\",1)","v":"SKRÝT"}]

{"sheet":"Preruseni_provozu_techn_rizika","index":13,"n_rows":31,"n_cols":22,"rows_kept":31,"cut":false,"hidden":true,"merged":[[27,1,27,7],[21,0,21,3],[22,0,22,3],[24,1,24,7],[25,0,25,7],[26,1,26,7],[23,0,23,1],[23,2,23,3],[19,0,19,3],[20,0,20,3],[18,0,18,3],[15,0,15,3],[15,4,15,5],[15,6,15,7],[16,0,16,3],[16,4,16,5],[16,6,16,7],[14,0,14,3],[14,4,14,5],[14,6,14,7],[6,0,6,7],[8,0,8,7],[12,4,12,5],[12,6,12,7],[13,0,13,3],[13,4,13,5],[13,6,13,7],[11,0,11,7],[9,0,9,2]]}
[null,null,null,null,null,null,null,null,null,null,null,null,null,null,null,null,null,null,null,"Verze k odeslání klientovi","Verze zpracovat","Verze k odeslání do pojišťovny (skrýt nevyplněné informace)"]
[null,null,null,null,null,null,null,null,null,null,null,null,null,null,null,null,null,null,null,1,1,1]
[null,null,null,null,null,null,null,null,null,null,null,null,null,null,null,null,null,null,null,1,1,1]
[null,null,null,null,null,null,null,null,null,null,null,null,null,null,null,null,null,null,null,1,1,1]
[null,null,null,null,null,null,null,null,null,null,null,null,null,null,null,null,null,null,null,1,1,1]
[null,null,null,null,null,null,null,null,null,null,null,null,null,null,null,null,null,null,null,null,null,1]
["Pojištění přerušení provozu z důvodu technických rizik",null,null,null,null,null,null,null,null,null,null,null,null,null,null,null,null,null,null,1,1,1]
[null,null,null,null,null,null,null,null,null,null,null,null,null,null,null,null,null,null,null,null,null,1]
["Pojistná částka",null,null,null,null,null,null,null,null,null,null,null,null,null,null,null,null,null,null,1,1,1]
["Roční pojistná částka (bez zohlednění sezónnosti):",null,null,{"$f":"Preruseni_provozu_info_PC!I71","v":0},null,null,null,null,null,"POZOR, v této pojistné částce není zohledněna sezónnost provozu.",null,null,null,null,null,null,null,null,null,1,1,1]
[null,null,null,null,null,null,null,null,null,null,null,null,null,null,null,null,null,null,null,1,1,1]
["Přerušení provozu z důvodu technických rizik"]
[null,null,null,null,"Varianta  I.",null,"Varianta  II.",null,null,"Požadujte především různé varianty limitů. ",null,null,null,null,null,null,null,null,null,1,1,1]
["Doba ručení (v měsících)",null,null,null,{"$f":"Preruseni_provozu_info_PC!H72","v":0},null,null,null,null,"Automaticky se vyplní požadovaná doba ručení z Výpočtu pojistné částky pro přerušení provozu. Hodnotu lze měnit.",null,null,null,null,null,null,null,null,null,1,1,1]
["Pojistná částka za dodu ručení",null,null,null,{"$f":"Preruseni_provozu_info_PC!H75","v":0},null,null,null,null,"Automaticky se vyplní požadovaná doba ručení z Výpočtu pojistné částky pro přerušení provozu. Hodnotu lze měnit.",null,null,null,null,null,null,null,null,null,1,1,1]
["Pojištěná nebezpečí",null,null,null,null,null,null,null,null,null,null,null,null,null,null,null,null,null,null,1,1,1]
["Uvedené limity jsou samostatné/ kombinované:",null,null,null,null,null,null,null,null,"Doporučujeme požadovat samostatné limity.",null,null,null,null,null,null,null,null,null,1,1,1]
[null,null,null,null,"Limit plnění","Spoluúčast\n(dny/ Kč)","Limit plnění","Spoluúčast\n(dny/ Kč)",null,null,null,null,null,null,null,null,null,null,null,1,1,1]
["Pro všechna nebezpečí",null,null,null,null,null,null,null,null,null,null,null,null,null,null,{"$f":"IF(ISBLANK(E19),\"SKRÝT\",1)","v":"SKRÝT"},{"$f":"IF(ISBLANK(F19),\"SKRÝT\",1)","v":"SKRÝT"},{"$f":"IF(ISBLANK(G19),\"SKRÝT\",1)","v":"SKRÝT"},{"$f":"IF(ISBLANK(H19),\"SKRÝT\",1)","v":"SKRÝT"},1,1,{"$f":"IF(AND(P19=\"SKRÝT\",Q19=\"SKRÝT\",R19=\"SKRÝT\",S19=\"SKRÝT\"),\"SKRÝT\",1)","v":"SKRÝT"}]
["Škody u odběratelů/ dodavatelů",null,null,null,null,"Viz jednotlivá nebezpečí",null,"Viz jednotlivá nebezpečí",null,null,null,null,null,null,null,{"$f":"IF(ISBLANK(E20),\"SKRÝT\",1)","v":"SKRÝT"},null,{"$f":"IF(ISBLANK(G21),\"SKRÝT\",1)","v":"SKRÝT"},null,1,1,{"$f":"IF(AND(P20=\"SKRÝT\",R20=\"SKRÝT\"),\"SKRÝT\",1)","v":"SKRÝT"}]
["Škody u dodavatelů elektřiny, plynu, vody, tepla nebo stlačeného vzduchu a jejich distribuční síti",null,null,null,null,"Viz jednotlivá nebezpečí",null,"Viz jednotlivá nebezpečí",null,null,null,null,null,null,null,{"$f":"IF(ISBLANK(E21),\"SKRÝT\",1)","v":"SKRÝT"},null,{"$f":"IF(ISBLANK(G22),\"SKRÝT\",1)","v":"SKRÝT"},null,1,1,{"$f":"IF(AND(P21=\"SKRÝT\",R21=\"SKRÝT\"),\"SKRÝT\",1)","v":"SKRÝT"}]
["Závislost v holdingu",null,null,null,null,"Viz jednotlivá nebezpečí",null,"Viz jednotlivá nebezpečí",null,null,null,null,null,null,null,{"$f":"IF(ISBLANK(E22),\"SKRÝT\",1)","v":"SKRÝT"},null,{"$f":"IF(ISBLANK(G23),\"SKRÝT\",1)","v":"SKRÝT"},null,1,1,{"$f":"IF(AND(P22=\"SKRÝT\",R22=\"SKRÝT\"),\"SKRÝT\",1)","v":"SKRÝT"}]
["Vícenáklady",null,null,null,null,"Viz jednotlivá nebezpečí",null,"Viz jednotlivá nebezpečí",null,null,null,null,null,null,null,{"$f":"IF(ISBLANK(E23),\"SKRÝT\",1)","v":"SKRÝT"},null,{"$f":"IF(ISBLANK(G24),\"SKRÝT\",1)","v":"SKRÝT"},null,1,1,{"$f":"IF(AND(P23=\"SKRÝT\",R23=\"SKRÝT\"),\"SKRÝT\",1)","v":"SKRÝT"}]
["Jiné (uveďte)",null,null,null,null,null,null,null,null,"Pokud chcete pojistit i jiné nebezpečí, doplňte.",null,null,null,null,null,{"$f":"IF(ISBLANK(E24),\"SKRÝT\",1)","v":"SKRÝT"},{"$f":"IF(ISBLANK(D25),\"SKRÝT\",1)","v":"SKRÝT"},{"$f":"IF(ISBLANK(G25),\"SKRÝT\",1)","v":"SKRÝT"},{"$f":"IF(ISBLANK(H25),\"SKRÝT\",1)","v":"SKRÝT"},1,1,{"$f":"IF(AND(P24=\"SKRÝT\",Q24=\"SKRÝT\",R24=\"SKRÝT\",S24=\"SKRÝT\"),\"SKRÝT\",1)","v":"SKRÝT"}]
["Poznámka",null,null,null,null,null,null,null,null,null,null,null,null,null,null,null,null,null,null,1,1,{"$f":"IF(ISBLANK(A26),\"SKRÝT\",1)","v":"SKRÝT"}]
[null,null,null,null,null,null,null,null,null,"Zde můžete uvést své poznámky.",null,null,null,null,null,null,null,null,null,1,1,{"$f":"IF(ISBLANK(A26),\"SKRÝT\",1)","v":"SKRÝT"}]
["Použité pojmy",null,null,null,null,null,null,null,null,null,null,null,null,null,null,null,null,null,null,1,1,{"$f":"IF(AND(P27=\"SKRÝT\",Q27=\"SKRÝT\",R27=\"SKRÝT\",S27=\"SKRÝT\"),\"SKRÝT\",1)","v":1}]
["Vícenáklady","Nezbytné a účelné náklady vynaložené nad rámec zvýšených provozních nákladů za účelem snížení poklesu obratu, ke kterému by došlo během doby ručení, kdyby nebyly tyto vícenáklady vynaloženy. Jedná se například o nájem za provizorní provozovny; náklady na úklid a úpravy provizorních provozoven; nájem za provizorní stroje a zařízení; náklady na dopravu zařízení včetně nákladů na přemístění zařízení do provizorních provozoven; zvýšené náklady na zásobování energiemi; příplatky za přesčasové práce při náhradní činnosti; zvýšené pojistné za provizorní provozovny; zvýšené náklady na ostrahu a vrátné; ostatní náklady vzniklé v souvislosti s nájmem provizorních provozoven, tj. zvýšené náklady na reklamu, telefony, správní poplatky apod. ",null,null,null,null,null,null,null,null,null,null,null,null,null,null,null,null,null,1,1,{"$f":"IF(AND(P28=\"SKRÝT\",Q28=\"SKRÝT\",R28=\"SKRÝT\",S28=\"SKRÝT\"),\"SKRÝT\",1)","v":1}]
[null,null,null,null,null,null,null,null,null,null,null,null,null,null,null,{"$f":"IF(ISBLANK(A30),\"SKRÝT\",1)","v":"SKRÝT"},null,{"$f":"IF(ISBLANK(G30),\"SKRÝT\",1)","v":"SKRÝT"},null,1,1,{"$f":"IF(AND(P29=\"SKRÝT\",R29=\"SKRÝT\"),\"SKRÝT\",1)","v":"SKRÝT"}]
[null,null,null,null,null,null,null,null,null,null,null,null,null,null,null,{"$f":"IF(ISBLANK(A31),\"SKRÝT\",1)","v":"SKRÝT"},null,{"$f":"IF(ISBLANK(G31),\"SKRÝT\",1)","v":"SKRÝT"},null,1,1,{"$f":"IF(AND(P30=\"SKRÝT\",R30=\"SKRÝT\"),\"SKRÝT\",1)","v":"SKRÝT"}]
[null,null,null,null,null,null,null,null,null,null,null,null,null,null,null,{"$f":"IF(ISBLANK(A32),\"SKRÝT\",1)","v":"SKRÝT"},null,{"$f":"IF(ISBLANK(G32),\"SKRÝT\",1)","v":"SKRÝT"},null,1,1,{"$f":"IF(AND(P31=\"SKRÝT\",R31=\"SKRÝT\"),\"SKRÝT\",1)","v":"SKRÝT"}]

{"sheet":"Flotiolové pojištění ","index":14,"n_rows":120,"n_cols":35,"rows_kept":120,"cut":false,"hidden":false,"merged":[[0,0,0,22],[5,3,5,13],[6,3,6,13],[7,0,7,16],[8,1,8,2],[8,3,8,13],[18,0,20,0],[18,1,20,1],[18,2,20,2],[18,3,20,3],[18,4,20,4],[18,13,20,13],[18,8,20,8],[18,9,20,9],[18,10,20,10],[13,1,13,2],[13,3,13,13],[14,1,14,2],[14,3,14,13],[15,1,16,2],[15,3,15,13],[16,3,16,13],[18,11,20,11],[18,5,20,5],[9,3,9,13],[10,3,10,13],[18,23,18,26],[19,25,20,26],[18,27,18,33],[19,19,20,19],[1,0,1,16],[3,0,3,1],[3,3,3,13],[4,3,4,13],[19,20,20,20],[19,21,20,21],[19,22,20,22],[19,16,19,17],[11,1,11,2],[11,3,11,13],[12,1,12,2],[12,3,12,13],[19,31,20,31],[19,32,20,32],[19,30,20,30],[18,6,20,6],[18,7,20,7],[35,34,35,35],[26,34,26,35],[27,34,27,35],[28,34,28,35],[29,34,29,35],[30,34,30,35],[19,18,20,18],[19,14,19,15],[18,14,18,22],[19,33,20,33],[19,23,20,23],[19,24,20,24],[19,27,20,27],[19,28,20,28],[19,29,20,29],[22,34,22,35],[23,34,23,35],[24,34,24,35],[25,34,25,35],[21,34,21,35],[69,34,69,35],[60,34,60,35],[61,34,61,35],[62,34,62,35],[63,34,63,35],[64,34,64,35],[75,34,75,35],[76,34,76,35],[18,34,20,35],[70,34,70,35],[71,34,71,35],[72,34,72,35],[73,34,73,35],[74,34,74,35],[65,34,65,35],[50,34,50,35],[51,34,51,35],[52,34,52,35],[53,34,53,35],[54,34,54,35],[45,34,45,35],[46,34,46,35],[47,34,47,35],[48,34,48,35],[55,34,55,35],[56,34,56,35],[57,34,57,35],[58,34,58,35],[59,34,59,35],[2,3,2,7],[66,34,66,35],[67,34,67,35],[68,34,68,35],[18,12,20,12],[49,34,49,35],[40,34,40,35],[41,34,41,35],[42,34,42,35],[43,34,43,35],[44,34,44,35],[36,34,36,35],[37,34,37,35],[38,34,38,35],[39,34,39,35],[31,34,31,35],[32,34,32,35],[33,34,33,35],[34,34,34,35]]}
["Městská doprava Teplice, p.o.  - požadovaný rozsah a seznam vozidel "]
[]
[null,null,null,"ČÁST C - pojištění odpovědnosti za újmu způsobenou provozem vozidla a havarijní pojištění vozidel"]
["Produkt",null,"Barva pole","Nezbytné údaje pro nabídku pojištění"]
["A) ","Povinné ručení",null,"druh vozidla, rok první registrace (rok výroby), zdvihový objem (u motocyklů, osobních a užitkových vozidel), hmotnost v kg, nestandardní způsob užití vozidla"]
["B) ","Havarijní pojištění",null,"údaje pro povinné ručení +  tovární značka, model, cena vozidla, odpočet DPH, zabezpečení"]
["C) ","Doplňková pojištění",null,"požadovaná pojištění a pojistné částky, úrazové pojištění - počet míst k sezení uvedený v technickém průkazu"]
["Vysvětlivky k vybraným položkám seznamu"]
["1) ","Druh vozidla ",null,"osobní automobil, nákladní automobil (také nákladní automobil vzniklý přestavbou osobního - kategorie N1) , tahač, přívěs, návěs, autobus, autobus MHD, speciální automobil, traktor, motocykl, pojízný pracovní stoj, vysokozdvižný vozík, ruční motorový vozík, obytný automobil, sanitní automobil, sněhová rolba, sněžný skůtr"]
["2)","Nestandardní způsob užití vozidla",null,"převoz nebezpečných věcí - ADR,  autopůjčovna - půjčováno za úplatu, taxi, autoškola, sanitní vozidlo, odvoz komunálního odpadu, zajištění sjízdnosti / schůdnosti / čistoty komunikací, spec. automobil pro přepravu cenností, kurýrní služba, historické vozidlo"]
["3) ","Hodnota vozidla",null,"uvádí se cena vozidla vč. výbavy, u nákladních vozidel cena vozidla vč. nástavby, "]
[null,"nová cena",null,"pořizovací cena vozidla jako nového dle faktury nebo ceníku prodejce, tzn. cena nového vozidla v době jeho uvedení do provozu\n(suma kterou je třeba vynaložit na znovupořízení vozidla stejného nebo srovnatelného druhu a kvality jako nového)"]
[null,"obvyklá cena",null,"aktuální \"tržní\" hodnota vozidla;   cena, která by byla dosažena při prodeji stejné, popř. obdobné věci v obvyklém obchodním styku"]
[null,"odpočet DPH",null,"specifikujte zda byl uplatněn odpočet DPH (uváděná hodnota vozidla je bez DPH) nebo nebyl uplatněn odpočet DPH (uváděná hodnota vozidla je včetně DPH)"]
[null,"neplátci DPH ",null,"odpočet DPH nelze, uváděné ceny vozidel jsou vč. DPH       "]
[null,"plátci DPH  ",null,"a) osobní automobily - odpočet DPH je možný dle novely zákona o DPH z 1.4.2009,\n    cena vozidel vč. DPH nebo bez DPH dle data uvedení vozidla do provozu a dalších paramerů nákupu vozidla"]
[null,null,null,"b) ostatní katogorie vozidel (včetně nákladních automobilů vzniklých přestavbou osobního automobilu - N1)  - odpočet DPH možný, cena vozidel obvykle bez DPH"]
[]
["Pořadové číslo vozidla","Druh vozidla1)\nnapř.\nosobní / nákladní / \ntahač návěsů / návěs /\npřípojné vozidlo / traktor /\nvysokozdvižný vozík","Tovární značka vozidla\nnapř.\nŠkoda, Audi,\nBMW, Volvo","Typ nebo obchodní označení modelu vozidla\nnapř.\nOctavia 1,9 TDI Elegance","SPZ / RZ poznávací značka / registrační značka           ","VIN                                                 číslo karosérie nebo podvozku","Datum první registrace pokud není, uvede se rok výroby","Výkon motoru\nv kW","Zdvihový objem motoru\nv cm3","Počet míst k sezení a (stání)","Hmotnost v kg                           maximální technicky přípustná, dříve celková ","Číslo technického průkazu","Limit povinného ručení ","Nestandardní způsob užití  vozidla 2)\nnapř.\npřevoz nebezpečných věcí - ADR,\nautopůjčovna,\ntaxi, atd.","D o p l ň u j í c í      ú d a j e    pro   h a v a r i j n í     p o j i š t ě n í",null,null,null,null,null,null,null,null,"Doplňková pojištění",null,null,null,"Roční pojistné v Kč",null,null,null,null,null,null,"Poznámka"]
[null,null,null,null,null,null,null,null,null,null,null,null,null,null,"Cena vozidla v Kč 3)\nStávající pojistné částky                                                                                                                                      ",null,"Cena vozidla v Kč 3)\nNÁVRH\nna nové pojistné období                                                                                                                                      ",null,"Uplatněn odpočet DPH\nANO / NE\nANO = uvádí se cena bez DPH\nNE = uvádí se cena vč. DPH ","Spoluúčast\nnapř.\n5%, min.5 000 Kč,\n10%, min.10 000 Kč,\npřípadně jiná","Územní rozsah pojištění\nČR\nEvropa\nEvropa vč.výběru států uvedených dále:\nRusko;Bělorusko;\nMoldavsko;Ukrajina","Připojitění činnosti pracovního stroje ","Speciální / mimořádná výbava vozidla\nnapř.\nhydraulická ruka, polepy, nápisy, maják, atd.","Pojištění skel vozidla\n(pojistná částka v Kč)","Pojištění zavazadel\n(pojistná částka v Kč)","Jiná pojištění\nnapř.\núraz, náhradní vozidlo,\nprávní ochrana,\nstrojní pojištění, atd.",null,"Povinné ručení","Havarijní pojištění","Pojištění skel vozidla","Pojištění zavazadel","Úrazové pojištění osob","Pojištění náhradního vozidla","Pojištění rozšířených asistenčních služeb"]
[null,null,null,null,null,null,null,null,null,null,null,null,null,null,"Nová cena\n(pořizovací cena nového vozidla)","Obvyklá (obecná) cena\n(aktuální cena ojetého vozidla)","Nová cena\n(pořizovací cena nového vozidla)","Obvyklá (obecná) cena\n(aktuální cena ojetého vozidla)"]
["1.","osobní","ŠKODA","Octavia 1,5 TSI DSG","1UR 3482","TMBAR0NX7RY022270","2023",110,1498,5,1920,"UN079026","100.mil Kč/100. mil Kč",null,690619.84,null,690620,null,"ANO","5% min 30 000 Kč ","Evropa",null,null,10000,null,"úraz pro posádku",null,null,null,null,null,null,null,null,"*úraz = 4x násobek"]
["2.","osobní","ŠKODA","Octavia 1,5 TSI DSG","1UR 3501","TMBAR0NXXRY022313","2023",110,1498,5,1920,"UN079025","100.mil Kč/100. mil Kč",null,690619.84,null,690620,null,"ANO","5% min 30 000 Kč ","Evropa",null,null,10000,null,"úraz pro posádku",null,null,null,null,null,null,null,null,"*úraz = 4x násobek"]
["3.","osobní","VW","Caddy 1,5 TSI DSG","1UR 5033 ","WV2ZZZSK5RX041889 ","2023",84,1498,5,2150,"UN416590","100.mil Kč/100. mil Kč",null,623672,null,623672,null,"ANO","5% min 30 000 Kč ","ČR",null,"polepy, majáky",10000,null,"úraz pro posádku","GAP",null,null,null,null,null,null,null,"*úraz = 4x násobek"]
["4.","osobní","VW","Caddy 1,5 TSI","1UR 4869 ","WV2ZZZSK5RX041892","2023",84,1498,5,2150,"UN416640","100.mil Kč/100. mil Kč",null,582084,null,582084,null,"ANO","5% min 30 000 Kč ","ČR",null,"polepy, majáky",10000,null,"úraz pro posádku","GAP",null,null,null,null,null,null,null,"*úraz = 4x násobek"]
["5.","osobní","VW","Caddy 1,5 TSI","1UR 4960","WV2ZZZSK5RX041896","2023",84,1498,5,2150,"UN416780","100.mil Kč/100. mil Kč",null,582084,null,582084,null,"ANO","5% min 30 000 Kč ","ČR",null,"polepy",10000,null,"úraz pro posádku","GAP",null,null,null,null,null,null,null,"*úraz = 4x násobek"]
["6.","nákladní N2","IVECO","60C18","1UL 2976","ZCFC660DX05457153","10.2022",132,2998,3,6000,"UM338007","100.mil Kč/100. mil Kč","košová plošina vrchního vedení",2023800,null,2023800,null,"ANO","5% min 30 000 Kč ","ČR","Ano","polepy, majáky",25000,null,"úraz pro posádku",null,null,null,null,null,null,null,null,"*úraz = 4x násobek"]
["7.","přípojné vozidlo","VEZEKO","R2B2X","1UM 5955","TJ5R2B2X0M1094444","10.2022","x","x",0,2700,"UM070683","100.mil Kč/100. mil Kč",null,56000,null,56000,null,"ANO","5% min 30 000 Kč ","ČR",null,null,"x",null,"x",null,null,null,null,null,null,null,null,"x"]
["8.","osobní M3","Irisbus","Crossway LE 12M","6U4 2977","VNESFR1610M008827","2010",243,7790,"100 (37)",18700,"UD819704","100.mil Kč/100. mil Kč",null,210000,null,210000,null,"ANO","5% min 30 000 Kč ","ČR",null,null,100000,null,"úraz pro cestující a  posádku",null,null,null,null,null,null,null,null,"*úraz = 4x násobek"]
["9.","osobní M3","Irisbus","Crossway LE 12,8M","6U4 2976","VNESFR1610M008628","2010",243,7790,"105(32)",18700,"UD819945","100.mil Kč/100. mil Kč",null,310000,null,310000,null,"ANO","5% min 30 000 Kč ","ČR",null,null,100000,null,"úraz pro cestující a  posádku",null,null,null,null,null,null,null,null,"*úraz = 4x násobek"]
["10.","osobní M3","ISUZU","NovoCiti Life","1UR 5107","NNAM0BULAGB000230","2023",137,4500,19,10755,"UN416462","100.mil Kč/100. mil Kč",null,4830000,null,4830000,null,"ANO","5% min 30 000 Kč ","ČR",null,null,100000,null,"úraz pro cestující a  posádku",null,null,null,null,null,null,null,null,"*úraz = 4x násobek"]
["11.","osobní M3","ISUZU","NovoCiti Life","1UR 5094 ","NNAM0BULAGB000229","2023",137,4500,19,10755,"UN416461","100.mil Kč/100. mil Kč",null,4830000,null,4830000,null,"ANO","5% min 30 000 Kč ","ČR",null,null,100000,null,"úraz pro cestující a  posádku",null,null,null,null,null,null,null,null,"*úraz = 4x násobek"]
["12.","osobní M3","Scania","Citywide LF 11,6M","1UR 5118 ","YS2C4X20001925993","2023",206,7000,27,19500,"UN416460","100.mil Kč/100. mil Kč",null,5840783,null,5840783,null,"ANO","5% min 30 000 Kč ","ČR",null,null,100000,null,"úraz pro cestující a  posádku",null,null,null,null,null,null,null,null,"*úraz = 4x násobek"]
["13.","osobní M3","Scania","Citywide LF 11,6M","1UR 5113 ","YS2C4X20001925740","2023",206,7000,27,19500,"UN416456","100.mil Kč/100. mil Kč",null,5840783,null,5840783,null,"ANO","5% min 30 000 Kč ","ČR",null,null,100000,null,"úraz pro cestující a  posádku",null,null,null,null,null,null,null,null,"*úraz = 4x násobek"]
["14.","osobní M3","Scania","Citywide LF 11,6M","1UR 5111 ","YS2C4X20001925991","2023",206,7000,27,19500,"UN416458","100.mil Kč/100. mil Kč",null,5840783,null,5840783,null,"ANO","5% min 30 000 Kč ","ČR",null,null,100000,null,"úraz pro cestující a  posádku",null,null,null,null,null,null,null,null,"*úraz = 4x násobek"]
["15.","osobní M3","Scania","Citywide LF 11,6M","1UR 5106 ","YS2C4X20001925990","2023",206,7000,27,19500,"UN416457","100.mil Kč/100. mil Kč",null,5840783,null,5840783,null,"ANO","5% min 30 000 Kč ","ČR",null,null,100000,null,"úraz pro cestující a  posádku",null,null,null,null,null,null,null,null,"*úraz = 4x násobek"]
["16.","osobní M3","Scania","Citywide LF 11,6M","1UR 5104 ","YS2C4X20001925992","2023",206,7000,27,19500,"UN416459","100.mil Kč/100. mil Kč",null,5840783,null,5840783,null,"ANO","5% min 30 000 Kč ","ČR",null,null,100000,null,"úraz pro cestující a  posádku",null,null,null,null,null,null,null,null,"*úraz = 4x násobek"]
["17.","nákladní","Renault",null,"9U1 7543","VF640J564JB009366","2018",158,5132,3,12000,"UI277920","100.mil Kč/100. mil Kč","nůžková plošina vrchního vedení",null,null,null,null,"ANO",null,"ČR",null,"majáky",25000,null,"úraz pro posádku",null,null,null,null,null,null,null,null,"*úraz = 4x násobek"]
["18.","nákladní","IVECO","Eurocargo VNP","TPA 81-74","ZCFA1EG0002170243","1996",167,5861,3,12000,"UJ112169","100.mil Kč/100. mil Kč","nůžková plošina vrchního vedení",null,null,null,null,"ANO",null,"ČR",null,"majáky",25000,null,"úraz pro posádku",null,null,null,null,null,null,null,null,"*úraz = 4x násobek"]
["19.","trolejbus","Škoda","9TrHT28",105,7718,"1980",100,"x","28 (42)",16000,"PZ 3489/98-V.88","100.mil Kč/100. mil Kč",null,null,null,null,null,"ANO",null,"ČR",null,null,100000,null,"úraz pro cestující a  posádku",null,null,null,null,null,null,null,null,"*úraz = 4x násobek"]
["20.","trolejbus","Škoda","14Tr17/6M",163,"TMP14TR1716012201","1995",100,"x","28 (54)",16000,"PZ 0876/96-V.83","100.mil Kč/100. mil Kč",null,3999280,null,3999280,null,"ANO","5% min 30 000 Kč ","ČR",null,null,100000,null,"úraz pro cestující a  posádku",null,null,null,null,null,null,null,null,"*úraz = 4x násobek"]
["21.","trolejbus","Škoda","15Tr07/7",205,"TMP15TR07L6011301","1990",120,"x","44 (106)",26600,"PZ 7652/98-V.83","100.mil Kč/100. mil Kč",null,null,null,null,null,"ANO",null,"ČR",null,null,100000,null,"úraz pro cestující a  posádku",null,null,null,null,null,null,null,null,"*úraz = 4x násobek"]
["22.","trolejbus","Škoda","24Tr Citelis 1B",100,"TM96TAJ6V8ASE3413","2008",210,"x","30 (56)",18000,"PZ 11743/08-V.83","100.mil Kč/100. mil Kč",null,9475370,null,9475370,null,"ANO","5% min 30 000 Kč ","ČR",null,null,100000,null,"úraz pro cestující a  posádku",null,null,null,null,null,null,null,null,"*úraz = 4x násobek"]
["23.","trolejbus","Škoda","24Tr Citelis 1B",101,"TM96TAJ6V8ASE3414","2008",210,"x","30 (56)",18000,"PZ 11744/08-V.83","100.mil Kč/100. mil Kč",null,9475370,null,9475370,null,"ANO","5% min 30 000 Kč ","ČR",null,null,100000,null,"úraz pro cestující a  posádku",null,null,null,null,null,null,null,null,"*úraz = 4x násobek"]
["24.","trolejbus","Škoda","24Tr Citelis 1B",102,"TM96TAJ6V8ASE3415","2008",210,"x","30 (56)",18000,"PZ 11745/08-V.83","100.mil Kč/100. mil Kč",null,9475370,null,9475370,null,"ANO","5% min 30 000 Kč ","ČR",null,null,100000,null,"úraz pro cestující a  posádku",null,null,null,null,null,null,null,null,"*úraz = 4x násobek"]
["25.","trolejbus","Škoda","25Tr Citelis 1B",212,"TM97TAJ6C8ASE3416","2008",240,"x","40 (95)",28000,"PZ 11748/08-V.83","100.mil Kč/100. mil Kč",null,12730370,null,12730370,null,"ANO","5% min 30 000 Kč ","ČR",null,null,100000,null,"úraz pro cestující a  posádku",null,null,null,null,null,null,null,null,"*úraz = 4x násobek"]
["26.","trolejbus","Škoda","25Tr Citelis 1B",213,"TM97TAJ6C8ASE3417","2008",240,"x","40 (95)",28000,"PZ 11749/08-V.83","100.mil Kč/100. mil Kč",null,12730370,null,12730370,null,"ANO","5% min 30 000 Kč ","ČR",null,null,100000,null,"úraz pro cestující a  posádku",null,null,null,null,null,null,null,null,"*úraz = 4x násobek"]
["27.","trolejbus","Škoda","26Tr",103,"TM98TAJ6V9ASE3502","2009",160,"x","34 (68)",18000,"PZ 11992/09-V.83","100.mil Kč/100. mil Kč",null,9730370,null,9730370,null,"ANO","5% min 30 000 Kč ","ČR",null,null,100000,null,"úraz pro cestující a  posádku",null,null,null,null,null,null,null,null,"*úraz = 4x násobek"]
["28.","trolejbus","Škoda","26Tr",104,"TM98TAJ6V9ASE3503","2009",160,"x","34 (68)",18000,"PZ 11988/09-V.83","100.mil Kč/100. mil Kč",null,9730370,null,9730370,null,"ANO","5% min 30 000 Kč ","ČR",null,null,100000,null,"úraz pro cestující a  posádku",null,null,null,null,null,null,null,null,"*úraz = 4x násobek"]
["29.","trolejbus","Škoda","26Tr",106,"TM98TAJ6V9ASE3504","2009",160,"x","34 (68)",18000,"PZ 11993/09-V.83","100.mil Kč/100. mil Kč",null,9730370,null,9730370,null,"ANO","5% min 30 000 Kč ","ČR",null,null,100000,null,"úraz pro cestující a  posádku",null,null,null,null,null,null,null,null,"*úraz = 4x násobek"]
["30.","trolejbus","Škoda","26Tr",107,"TM98TAJ6V9ASE3505","2009",160,"x","34 (68)",18000,"PZ 11994/09-V.83","100.mil Kč/100. mil Kč",null,9730370,null,9730370,null,"ANO","5% min 30 000 Kč ","ČR",null,null,100000,null,"úraz pro cestující a  posádku",null,null,null,null,null,null,null,null,"*úraz = 4x násobek"]
["31.","trolejbus","Škoda","26Tr",108,"TM98TAJ6VAASE3519","2010",160,"x","34 (68)",18000,"PZ 12140/10-V.83","100.mil Kč/100. mil Kč",null,9820483,null,9820483,null,"ANO","5% min 30 000 Kč ","ČR",null,null,100000,null,"úraz pro cestující a  posádku",null,null,null,null,null,null,null,null,"*úraz = 4x násobek"]
["32.","trolejbus","Škoda","26Tr",109,"TM98TAJ6VAASE3520","2010",160,"x","34 (68)",18000,"PZ 12141/10-V.83","100.mil Kč/100. mil Kč",null,9820483,null,9820483,null,"ANO","5% min 30 000 Kč ","ČR",null,null,100000,null,"úraz pro cestující a  posádku",null,null,null,null,null,null,null,null,"*úraz = 4x násobek"]
["33.","trolejbus","Škoda","28Tr",214,"TM9ATAJ6V9ASE3501","2009",240,"x","43 (88)",24000,"PZ 11997/09-V.83","100.mil Kč/100. mil Kč",null,11750370,null,11750370,null,"ANO","5% min 30 000 Kč ","ČR",null,null,100000,null,"úraz pro cestující a  posádku",null,null,null,null,null,null,null,null,"*úraz = 4x násobek"]
["34.","trolejbus","Škoda","28Tr",215,"TM9ATAJ6VAASE3563","2010",240,"x","43 (88)",24000,"PZ 12151/10-V.83","100.mil Kč/100. mil Kč",null,11820483,null,11820483,null,"ANO","5% min 30 000 Kč ","ČR",null,null,100000,null,"úraz pro cestující a  posádku",null,null,null,null,null,null,null,null,"*úraz = 4x násobek"]
["35.","trolejbus","Škoda","28Tr",216,"TM9ATAJ6VAASE3564","2010",240,"x","43 (88)",24000,"PZ 12152/10-V.83","100.mil Kč/100. mil Kč",null,11820483,null,11820483,null,"ANO","5% min 30 000 Kč ","ČR",null,null,100000,null,"úraz pro cestující a  posádku",null,null,null,null,null,null,null,null,"*úraz = 4x násobek"]
["36.","trolejbus","Škoda","28Tr",217,"TM9ATAJ6VBASE3641","2011",240,"x","43 (88)",24000,"PZ 12493/11-V.83","100.mil Kč/100. mil Kč",null,11820266,null,11820266,null,"ANO","5% min 30 000 Kč ","ČR",null,null,100000,null,"úraz pro cestující a  posádku",null,null,null,null,null,null,null,null,"*úraz = 4x násobek"]
["37.","trolejbus","Škoda","28Tr",218,"TM9ATAJ6VBASE3642","2011",240,"x","43 (88)",24000,"PZ 12494/11-V.83","100.mil Kč/100. mil Kč",null,11820266,null,11820266,null,"ANO","5% min 30 000 Kč ","ČR",null,null,100000,null,"úraz pro cestující a  posádku",null,null,null,null,null,null,null,null,"*úraz = 4x násobek"]
["38.","trolejbus","Škoda","28Tr",219,"TM9ATAJ6VBASE3643","2011",240,"x","43 (88)",24000,"PZ 12495/11-V.83","100.mil Kč/100. mil Kč",null,11820266,null,11820266,null,"ANO","5% min 30 000 Kč ","ČR",null,null,100000,null,"úraz pro cestující a  posádku",null,null,null,null,null,null,null,null,"*úraz = 4x násobek"]
["39.","trolejbus","Škoda","28Tr",220,"TM9ATAJ6VFBSE3123","2015",240,"x","43 (88)",24000,"PZ173056/15-V.83","100.mil Kč/100. mil Kč",null,11795840,null,11795840,null,"ANO","5% min 30 000 Kč ","ČR",null,null,100000,null,"úraz pro cestující a  posádku",null,null,null,null,null,null,null,null,"*úraz = 4x násobek"]
["40.","trolejbus","Škoda","30Tr",110,"TM9CTAJ6VDASE3719","2013",160,"x","32 (70)",17300,"PZ169552/13-V.83","100.mil Kč/100. mil Kč",null,9365533,null,9365533,null,"ANO","5% min 30 000 Kč ","ČR",null,null,100000,null,"úraz pro cestující a  posádku",null,null,null,null,null,null,null,null,"*úraz = 4x násobek"]
["41.","trolejbus","Škoda","30Tr",111,"TM9CTAJ6VDASE3720","2013",160,"x","32 (70)",17300,"PZ169553/13-V.83","100.mil Kč/100. mil Kč",null,9365533,null,9365533,null,"ANO","5% min 30 000 Kč ","ČR",null,null,100000,null,"úraz pro cestující a  posádku",null,null,null,null,null,null,null,null,"*úraz = 4x násobek"]
["42.","trolejbus","Škoda","30Tr",112,"TM9CTAJ6VDASE3721","2013",160,"x","32 (70)",17300,"PZ169554/13-V.83","100.mil Kč/100. mil Kč",null,9365533,null,9365533,null,"ANO","5% min 30 000 Kč ","ČR",null,null,100000,null,"úraz pro cestující a  posádku",null,null,null,null,null,null,null,null,"*úraz = 4x násobek"]
["43.","trolejbus","Škoda","30Tr",115,"TM9CBAJ6VJBSE3350","2018",160,"x","32 (70)",17300,"PZ177861/18-V.83","100.mil Kč/100. mil Kč",null,12580088,null,12580088,null,"ANO","5% min 30 000 Kč ","ČR",null,null,100000,null,"úraz pro cestující a  posádku","Strojní pojištění ",null,null,null,null,null,null,null,"*úraz = 4x násobek"]
["44.","trolejbus","Škoda","30Tr",116,"TM9CBAJ6VJBSE3351","2018",160,"x","32 (70)",17300,"PZ177862/18-V.83","100.mil Kč/100. mil Kč",null,12580088,null,12580088,null,"ANO","5% min 30 000 Kč ","ČR",null,null,100000,null,"úraz pro cestující a  posádku","Strojní pojištění ",null,null,null,null,null,null,null,"*úraz = 4x násobek"]
["45.","trolejbus","Škoda","30Tr",117,"TM9CBAJ6VJBSE3352","2018",160,"x","32 (70)",17300,"PZ177863/18-V.83","100.mil Kč/100. mil Kč",null,12580088,null,12580088,null,"ANO","5% min 30 000 Kč ","ČR",null,null,100000,null,"úraz pro cestující a  posádku","Strojní pojištění ",null,null,null,null,null,null,null,"*úraz = 4x násobek"]
["46.","trolejbus","Škoda","30Tr",118,"TM9CBAJ6VJBSE3353","2018",160,"x","32 (70)",17300,"PZ177864/18-V.83","100.mil Kč/100. mil Kč",null,12580088,null,12580088,null,"ANO","5% min 30 000 Kč ","ČR",null,null,100000,null,"úraz pro cestující a  posádku","Strojní pojištění ",null,null,null,null,null,null,null,"*úraz = 4x násobek"]
["47.","trolejbus","Škoda","30Tr",119,"TM9CBAJ6VJBSE3354","2018",160,"x","32 (70)",17300,"PZ177865/18-V.83","100.mil Kč/100. mil Kč",null,12580088,null,12580088,null,"ANO","5% min 30 000 Kč ","ČR",null,null,100000,null,"úraz pro cestující a  posádku","Strojní pojištění ",null,null,null,null,null,null,null,"*úraz = 4x násobek"]
["48.","trolejbus","Škoda","32Tr",113,"TM9GTAJ6VKBSE3410","2019",160,"x","33 (62)",17685,"PZ181166/19-V.83","100.mil Kč/100. mil Kč",null,10640148,null,10640148,null,"ANO","5% min 30 000 Kč ","ČR",null,null,100000,null,"úraz pro cestující a  posádku","Strojní pojištění ",null,null,null,null,null,null,null,"*úraz = 4x násobek"]
["49.","trolejbus","Škoda","32Tr",114,"TM9GTAJ6VKBSE3411","2019",160,"x","33 (62)",17685,"PZ181167/19-V.83","100.mil Kč/100. mil Kč",null,10640148,null,10640148,null,"ANO","5% min 30 000 Kč ","ČR",null,null,100000,null,"úraz pro cestující a  posádku","Strojní pojištění ",null,null,null,null,null,null,null,"*úraz = 4x násobek"]
["50.","trolejbus","Škoda","32Tr",120,"TM9GBAJ6VKBSE3432","2020",160,"x","33 (62)",17685,"PZ182262/20-V.83","100.mil Kč/100. mil Kč",null,13220088,null,13220088,null,"ANO","5% min 30 000 Kč ","ČR",null,null,100000,null,"úraz pro cestující a  posádku","Strojní pojištění ",null,null,null,null,null,null,null,"*úraz = 4x násobek"]
["51.","trolejbus","Škoda","32Tr",121,"TM9GBAJ6VKBSE3433","2020",160,"x","33 (62)",17685,"PZ182160/20-V.83","100.mil Kč/100. mil Kč",null,13220088,null,13220088,null,"ANO","5% min 30 000 Kč ","ČR",null,null,100000,null,"úraz pro cestující a  posádku","Strojní pojištění ",null,null,null,null,null,null,null,"*úraz = 4x násobek"]
["52.","trolejbus","Škoda","32Tr",122,"TM9GBAJ6VKBSE3434","2020",160,"x","33 (62)",17685,"PZ182542/20-V.83","100.mil Kč/100. mil Kč",null,13220088,null,13220088,null,"ANO","5% min 30 000 Kč ","ČR",null,null,100000,null,"úraz pro cestující a  posádku","Strojní pojištění ",null,null,null,null,null,null,null,"*úraz = 4x násobek"]
["53.","trolejbus","Škoda","32Tr",123,"TM9GBAJ6VKBSE3435","2020",160,"x","33 (62)",17685,"PZ182161/20-V.83","100.mil Kč/100. mil Kč",null,13220088,null,13220088,null,"ANO","5% min 30 000 Kč ","ČR",null,null,100000,null,"úraz pro cestující a  posádku","Strojní pojištění ",null,null,null,null,null,null,null,"*úraz = 4x násobek"]
["54.","trolejbus","Škoda","32Tr",124,"TM9GBAJ6VKBSE3436","2020",160,"x","33 (62)",17685,"PZ182263/20-V.83","100.mil Kč/100. mil Kč",null,13220088,null,13220088,null,"ANO","5% min 30 000 Kč ","ČR",null,null,100000,null,"úraz pro cestující a  posádku","Strojní pojištění ",null,null,null,null,null,null,null,"*úraz = 4x násobek"]
["55.","trolejbus","Škoda","33Tr",221,"TM9HTAJ6CKBSE3409","2019",250,"x","47 (111)",27679,"PZ183433/20-V.83","100.mil Kč/100. mil Kč",null,14220148,null,14220148,null,"ANO","5% min 30 000 Kč ","ČR",null,null,100000,null,"úraz pro cestující a  posádku","Strojní pojištění ",null,null,null,null,null,null,null,"*úraz = 4x násobek"]
["56.","přípojné vozidlo","HL 31.91","x","TP 47-28",4294,"1987","x","x",0,5300,"UJ222645","100.mil Kč/100. mil Kč","kabelový vozík",null,null,null,null,"ANO","5% min 30 000 Kč ","ČR",null,null,"x",null,"x","x",null,null,null,null,null,null,null,"x"]
[58,null,null,null,null,null,null,null,null,null,null,null,null,null,null,null,null,null,"……….","………."]
[59,null,null,null,null,null,null,null,null,null,null,null,null,null,null,null,null,null,"……….","………."]
[60,null,null,null,null,null,null,null,null,null,null,null,null,null,null,null,null,null,"……….","………."]
[61,null,null,null,null,null,null,null,null,null,null,null,null,null,null,null,null,null,"……….","………."]
[62,null,null,null,null,null,null,null,null,null,null,null,null,null,null,null,null,null,"……….","………."]
[63,null,null,null,null,null,null,null,null,null,null,null,null,null,null,null,null,null,"……….","………."]
[64,null,null,null,null,null,null,null,null,null,null,null,null,null,null,null,null,null,"……….","………."]
[65,null,null,null,null,null,null,null,null,null,null,null,null,null,null,null,null,null,"……….","………."]
[66,null,null,null,null,null,null,null,null,null,null,null,null,null,null,null,null,null,"……….","………."]
[67,null,null,null,null,null,null,null,null,null,null,null,null,null,null,null,null,null,"……….","………."]
[68,null,null,null,null,null,null,null,null,null,null,null,null,null,null,null,null,null,"……….","………."]
[69,null,null,null,null,null,null,null,null,null,null,null,null,null,null,null,null,null,"……….","………."]
[70,null,null,null,null,null,null,null,null,null,null,null,null,null,null,null,null,null,"……….","………."]
[71,null,null,null,null,null,null,null,null,null,null,null,null,null,null,null,null,null,"……….","………."]
[72,null,null,null,null,null,null,null,null,null,null,null,null,null,null,null,null,null,"……….","………."]
[73,null,null,null,null,null,null,null,null,null,null,null,null,null,null,null,null,null,"……….","………."]
[74,null,null,null,null,null,null,null,null,null,null,null,null,null,null,null,null,null,"……….","………."]
[75,null,null,null,null,null,null,null,null,null,null,null,null,null,null,null,null,null,"……….","………."]
[76,null,null,null,null,null,null,null,null,null,null,null,null,null,null,null,null,null,"……….","………."]
[77,null,null,null,null,null,null,null,null,null,null,null,null,null,null,null,null,null,"……….","………."]
[78,null,null,null,null,null,null,null,null,null,null,null,null,null,null,null,null,null,"……….","………."]
[79,null,null,null,null,null,null,null,null,null,null,null,null,null,null,null,null,null,"……….","………."]
[80,null,null,null,null,null,null,null,null,null,null,null,null,null,null,null,null,null,"……….","………."]
[81,null,null,null,null,null,null,null,null,null,null,null,null,null,null,null,null,null,"……….","………."]
[82,null,null,null,null,null,null,null,null,null,null,null,null,null,null,null,null,null,"……….","………."]
[83,null,null,null,null,null,null,null,null,null,null,null,null,null,null,null,null,null,"……….","………."]
[84,null,null,null,null,null,null,null,null,null,null,null,null,null,null,null,null,null,"……….","………."]
[85,null,null,null,null,null,null,null,null,null,null,null,null,null,null,null,null,null,"……….","………."]
[86,null,null,null,null,null,null,null,null,null,null,null,null,null,null,null,null,null,"……….","………."]
[87,null,null,null,null,null,null,null,null,null,null,null,null,null,null,null,null,null,"……….","………."]
[88,null,null,null,null,null,null,null,null,null,null,null,null,null,null,null,null,null,"……….","………."]
[89,null,null,null,null,null,null,null,null,null,null,null,null,null,null,null,null,null,"……….","………."]
[90,null,null,null,null,null,null,null,null,null,null,null,null,null,null,null,null,null,"……….","………."]
[91,null,null,null,null,null,null,null,null,null,null,null,null,null,null,null,null,null,"……….","………."]
[92,null,null,null,null,null,null,null,null,null,null,null,null,null,null,null,null,null,"……….","………."]
[93,null,null,null,null,null,null,null,null,null,null,null,null,null,null,null,null,null,"……….","………."]
[94,null,null,null,null,null,null,null,null,null,null,null,null,null,null,null,null,null,"……….","………."]
[95,null,null,null,null,null,null,null,null,null,null,null,null,null,null,null,null,null,"……….","………."]
[96,null,null,null,null,null,null,null,null,null,null,null,null,null,null,null,null,null,"……….","………."]
[97,null,null,null,null,null,null,null,null,null,null,null,null,null,null,null,null,null,"……….","………."]
[98,null,null,null,null,null,null,null,null,null,null,null,null,null,null,null,null,null,"……….","………."]
[99,null,null,null,null,null,null,null,null,null,null,null,null,null,null,null,null,null,"……….","………."]
[100,null,null,null,null,null,null,null,null,null,null,null,null,null,null,null,null,null,"……….","………."]

{"sheet":"odp. drážního dopravce","index":15,"n_rows":81,"n_cols":24,"rows_kept":81,"cut":false,"hidden":false,"merged":[[80,0,80,7],[60,0,60,3],[73,0,73,3],[74,0,74,3],[75,0,75,3],[76,1,76,3],[77,1,77,3],[79,0,79,7],[67,0,67,3],[68,0,68,3],[69,0,69,3],[70,0,70,3],[71,0,71,3],[72,0,72,3],[61,0,61,3],[62,0,62,3],[64,0,64,3],[63,0,63,3],[65,0,65,3],[66,0,66,3],[59,0,59,3],[54,0,54,3],[55,0,55,3],[56,0,56,3],[57,0,57,3],[58,0,58,3],[53,0,53,3],[42,0,42,3],[42,4,42,5],[42,6,42,7],[43,0,43,3],[43,4,43,5],[43,6,43,7],[44,0,44,3],[45,0,45,3],[49,0,49,3],[51,0,51,3],[52,0,52,3],[50,0,50,3],[46,0,46,3],[47,0,47,3],[48,0,48,3],[40,0,40,3],[40,4,40,5],[40,6,40,7],[41,0,41,3],[41,4,41,5],[41,6,41,7],[39,4,39,5],[28,0,28,1],[28,2,28,3],[28,4,28,5],[28,6,28,7],[39,6,39,7],[30,2,30,3],[30,4,30,5],[30,6,30,7],[31,2,31,3],[31,4,31,5],[31,6,31,7],[33,2,33,3],[33,4,33,5],[34,2,34,3],[34,4,34,5],[23,0,23,3],[23,4,23,5],[23,6,23,7],[27,0,27,1],[27,2,27,3],[27,4,27,5],[27,6,27,7],[21,0,21,3],[21,4,21,5],[21,6,21,7],[22,0,22,3],[22,4,22,5],[22,6,22,7],[19,0,19,3],[19,4,19,5],[19,6,19,7],[20,0,20,3],[20,4,20,5],[20,6,20,7],[2,2,2,4],[13,3,13,7],[6,0,6,8],[16,0,16,7],[18,0,18,3],[18,4,18,5],[18,6,18,7],[14,1,14,2],[11,1,11,7],[12,1,12,5],[12,6,12,7],[13,1,13,2]]}
[null,null,null,null,null,null,null,null,null,null,null,null,null,null,null,null,null,null,null,null,null,"Verze Klient","Verze zpracovat","Verze odeslat do pojišťovny (skrýt nevyplněné informace)"]
[null,null,null,null,null,null,null,null,null,null,null,null,null,null,null,null,null,null,null,null,null,1,1,1]
[null,null,"ČÁST D - POJIŠTĚNÍ DRÁŽNÍHO DOPRAVCE ",null,null,null,null,null,null,null,null,null,null,null,null,null,null,null,null,null,null,1,1,1]
[null,null,null,null,null,null,null,null,null,null,null,null,null,null,null,null,null,null,null,null,null,1,1,1]
[null,null,null,null,null,null,null,null,null,null,null,null,null,null,null,null,null,null,null,null,null,1,1,1]
[null,null,null,null,null,null,null,null,null,null,null,null,null,null,null,null,null,null,null,null,null,1,1,1]
["Pojištění odpovědnosti za újmu v souvislosti s veřejnou drážní dopravou, provozováním trolejbusové dráhy a opravou dráhy.",null,null,null,null,null,null,null,null,null,null,null,null,null,null,null,null,null,null,null,null,1,1,1]
[null,null,null,null,null,null,null,null,null,null,null,null,null,null,null,null,null,null,null,null,null,1,1,1]
["Pojištěné činnosti",null,null,null,null,null,null,null,null,null,null,null,null,null,null,null,null,null,null,null,null,1,1,1]
[null,null,null,null,null,null,null,null,null,null,null,null,null,null,null,null,null,null,null,null,null,1,1,1]
["Ano/ Ne",null,null,null,null,null,null,null,null,null,null,null,null,null,null,null,null,null,null,null,null,1,1,1]
["ANO","Všechny činnosti uvedené v obchodním rejstříku, živnostenském rejstříku",null,null,null,null,null,null,null,null,null,"Činnosti klienta doporučujeme ověřit v aplikaci ARES (https://wwwinfo.mfcr.cz/ares/ares_es.html.cz). POZOR na činnosti spadající do profesní odpovědnosti.",null,null,null,null,null,null,null,null,null,1,1,{"$f":"IF(A12<>\"ANO\",\"SKRÝT\",1)","v":1}]
["ANO","Všechny činnosti uvedené v obchodním rejstříku, živnostenském rejstříku s výjimkou:",null,null,null,null,null,null,null,null,null,null,null,null,null,null,null,null,null,null,null,1,1,{"$f":"IF(A13<>\"ANO\",\"SKRÝT\",1)","v":1}]
[null,null,null,null,null,null,null,null,null,null,null,null,null,null,null,null,null,null,null,null,null,1,1,{"$f":"IF(A14<>\"ANO\",\"SKRÝT\",1)","v":"SKRÝT"}]
[null,"Individuální zakázka (popis):",null,null,null,null,null,null,null,null,null,null,null,null,null,null,null,null,null,null,null,1,1,{"$f":"IF(A15<>\"ANO\",\"SKRÝT\",1)","v":"SKRÝT"}]
[null,null,null,null,null,null,null,null,null,null,null,null,null,null,null,null,null,null,null,null,null,1,1,1]
[null,null,null,null,null,null,null,null,null,null,null,null,null,null,null,null,null,null,null,null,null,1,1,"SKRÝT"]
[null,null,null,null,null,null,null,null,null,null,null,null,null,null,null,null,null,null,null,null,null,1,1,1]
["Popis činnosti ",null,null,null,"Podíl činnosti na obratu %",null,"Činnost je provozována od roku",null,null,null,null,null,null,null,null,null,null,null,null,null,null,1,1,1]
["Poskytování veřejných služeb v přepravě cestujících v rozsahu, způsobem a za podmínek stanovených ve smlouvách o veřejných službách v přepravě cestujících. Provozování trojelbusové dráhy, autobusové dopravy, dopravy",null,null,null,null,null,null,null,null,null,null,null,null,null,null,null,null,null,null,null,null,1,1,1]
[null,null,null,null,null,null,null,null,null,null,null,null,null,null,null,null,null,null,{"$f":"IF(ISBLANK(A21),\"SKRÝT\",1)","v":"SKRÝT"},{"$f":"IF(ISBLANK(E21),\"SKRÝT\",1)","v":"SKRÝT"},{"$f":"IF(ISBLANK(G21),\"SKRÝT\",1)","v":"SKRÝT"},1,1,{"$f":"IF(AND(S21=\"SKRÝT\",T21=\"SKRÝT\",U21=\"SKRÝT\"),\"SKRÝT\",1)","v":"SKRÝT"}]
[null,null,null,null,null,null,null,null,null,null,null,null,null,null,null,null,null,null,{"$f":"IF(ISBLANK(A22),\"SKRÝT\",1)","v":"SKRÝT"},{"$f":"IF(ISBLANK(E22),\"SKRÝT\",1)","v":"SKRÝT"},{"$f":"IF(ISBLANK(G22),\"SKRÝT\",1)","v":"SKRÝT"},1,1,{"$f":"IF(AND(S22=\"SKRÝT\",T22=\"SKRÝT\",U22=\"SKRÝT\"),\"SKRÝT\",1)","v":"SKRÝT"}]
[null,null,null,null,null,null,null,null,null,null,null,null,null,null,null,null,null,null,{"$f":"IF(ISBLANK(A23),\"SKRÝT\",1)","v":"SKRÝT"},{"$f":"IF(ISBLANK(E23),\"SKRÝT\",1)","v":"SKRÝT"},{"$f":"IF(ISBLANK(G23),\"SKRÝT\",1)","v":"SKRÝT"},1,1,{"$f":"IF(AND(S23=\"SKRÝT\",T23=\"SKRÝT\",U23=\"SKRÝT\"),\"SKRÝT\",1)","v":"SKRÝT"}]
[null,null,null,null,null,null,null,null,null,null,null,null,null,null,null,null,null,null,{"$f":"IF(ISBLANK(A24),\"SKRÝT\",1)","v":"SKRÝT"},{"$f":"IF(ISBLANK(E24),\"SKRÝT\",1)","v":"SKRÝT"},{"$f":"IF(ISBLANK(G24),\"SKRÝT\",1)","v":"SKRÝT"},1,1,{"$f":"IF(AND(S24=\"SKRÝT\",T24=\"SKRÝT\",U24=\"SKRÝT\"),\"SKRÝT\",1)","v":"SKRÝT"}]
[null,null,null,null,null,null,null,null,null,null,null,null,null,null,null,null,null,null,null,null,null,1,1,1]
[null,null,null,null,null,null,null,null,null,null,null,null,null,null,null,null,null,null,null,null,null,1,1,1]
[null,null,null,null,null,null,null,null,null,null,null,null,null,null,null,null,null,null,null,null,null,1,1,1]
[null,null,"Poslední uzavřený účetní rok",null,"Aktuální účetní rok (odhad)",null,"Plánovaný na následující účetní rok",null,null,null,null,null,null,null,null,null,null,null,null,null,null,1,1,1]
["Celková výše obratu (v Kč)",null,null,null,null,null,null,null,null,null,null,null,null,null,null,null,null,null,null,null,null,1,1,1]
[null,null,null,null,null,null,null,null,null,null,null,null,null,null,null,null,null,null,null,null,null,1,1,1]
[null,"ČR","Evropa s výjimkou ČR (geograficky)",null,"USA a Kanada",null,"Ostatní",null,null,null,null,null,null,null,null,null,null,null,null,null,null,1,1,1]
["Rozdělení obratu podle teritoria (%)",1,0,null,0,null,0,null,null,null,null,null,null,null,null,null,null,null,null,null,null,1,1,1]
[null,null,null,null,null,null,null,null,null,null,null,null,null,null,null,null,null,null,null,null,null,1,1,1]
[null,"THP","Dělníci",null,"Ostatní profese (řidiči)",null,null,null,null,null,null,null,null,null,null,null,null,null,null,null,null,1,1,1]
["Celkový počet zaměstnanců \n(aktuální)",null,null,null,null,null,"Počet směn",null,null,null,null,null,null,null,null,null,null,null,null,null,null,1,1,1]
[null,null,null,null,null,null,null,null,null,null,null,null,null,null,null,null,null,null,null,null,null,1,1,1]
[null,null,null,null,null,null,null,null,null,null,null,null,null,null,null,null,null,null,null,null,null,1,1,1]
["Pojištění odpovědnosti za újmu",null,null,null,null,null,null,null,null,null,null,null,null,null,null,null,null,null,null,null,null,1,1,1]
[null,null,null,null,null,null,null,null,null,null,null,null,null,null,null,null,null,null,null,null,null,1,1,1]
[null,null,null,null,"Varianta  I.",null,"Varianta  II.",null,null,null,null,"Požadujte především různé varianty limitů. ",null,null,null,null,null,null,null,null,null,1,1,1]
["Retroaktivita pojištění pro újmu/ škody, k jejichž příčina a vznik spadá před počátkem pojištění (datum)",null,null,null,"2024-01-01",null,null,null,null,null,null,"Požadujte vždy, pokud bylo nebo bude sjednáno pojištění na principu Act Committed nebo Claims Made, protože tyto principy podmiňují poskytnutí plnění tím, že příčina škody musí nastat v době trvání pojištění.",null,null,null,null,null,null,null,null,null,1,1,1]
["Retroaktivita pojištění pro výrobky uvedené na trh před počátkem pojištění (datum)",null,null,null,null,null,null,null,null,null,null,"U výrobců, distributorů a dovozců požadujte vždy, pokud se nejedná o rychlokazitelné zboží. Obvykle se totiž pojištění odpovědnosti za výrobek vztahuje jen na škody způsobené výrobky uvedenými na trh po počátku pojištění",null,null,null,null,null,null,null,null,null,1,1,1]
["Doba pro nahlašování vznesených nároků pojistiteli po skončení pojištění (měsíců)",null,null,null,null,null,null,null,null,null,null,"Požadujte vždy, pokud bylo nebo bude sjednáno pojištění na principu Claims Made (POZOR – někteří pojistitelé upravují princip pro odpovědnost za výrobek ve smlouvě). Pojistitelé obvykle akceptují prodlouženou dobu pro nahlášení minimálně  6 měsíců.",null,null,null,null,null,null,null,null,null,1,1,1]
["Územní rozsah pojištění",null,null,null,"Česká republika",null,null,null,null,null,null,"POZOR např. na újmy na zdraví cizinců, které se mohou projevit až po jejich návratu domů, nebo na nepřímé exporty.",null,null,null,null,null,null,null,null,null,1,1,1]
[null,null,null,null,"Limit plnění","Spoluúčast","Limit plnění","Spoluúčast",null,null,null,null,null,null,null,null,null,null,null,null,null,1,1,1]
["Obecná odpovědnost za újmu vč. následných finančních škod, újmy na životním prostředí v důsledku nenadálého selhání ochranného zařízení, vlastnictví a držby nemovitostí a pronájmu nemovitosti od 3. osoby",null,null,null,100000000,5000,null,null,null,null,null,"Doporučujeme požadovat vždy základní limit min. 10 mil. Kč. Při stanovení základního limitu zároveň doporučujeme zohlednit i možné újmy na zdraví, kdy náhrada újmy může v jednotlivých případech dosahovat i 30 mil. Kč (zejm. u dětí a mladých lidí).",null,null,null,null,null,null,null,null,null,1,1,{"$f":"IF(AND(R46=\"SKRÝT\",S46=\"SKRÝT\",T46=\"SKRÝT\",U46=\"SKRÝT\"),\"SKRÝT\",1)","v":1}]
["Odpovědnost za újmu způsobenou v souvislosti s vlastnictvím nebo provozováním/provozem trojelbusové dráhy a trojelbusové veřejné dorpavy, dráždní dopravy.",null,null,null,100000000,5000]
["Odpovědnost za újmu způsobenou při přepravě, vč. přepravy na základě přepravních smluv souvislosti s  provozováním/provozem drážní dopravy a k provozování drážní osobní dopravy, trojlebusové dopravy a dráhy.",null,null,null,100000000,5000]
["Odpovědnost za újmu způsobenou v souvislosti s opravou trolejbusové dráhy a vedení. ",null,null,null,100000000,5000]
["Duševní útrapy osoby blízké při zvlášť závažném ublížení na zdraví nebo při usmrcení",null,null,null,"V rámci limitu odpovědnosti",5000,null,null,null,null,null,"Požadujte na plný limit. Obvykle bývá součástí základního krytí, některé pojišťovny však připojišťují zvlášť. ",null,null,null,null,null,{"$f":"IF(ISBLANK(E50),\"SKRÝT\",1)","v":1},{"$f":"IF(ISBLANK(F50),\"SKRÝT\",1)","v":1},{"$f":"IF(ISBLANK(G50),\"SKRÝT\",1)","v":"SKRÝT"},{"$f":"IF(ISBLANK(H50),\"SKRÝT\",1)","v":"SKRÝT"},1,1,{"$f":"IF(AND(R50=\"SKRÝT\",S50=\"SKRÝT\",T50=\"SKRÝT\",U50=\"SKRÝT\"),\"SKRÝT\",1)","v":1}]
["Regresy zdravotních pojišťoven v důsledky újmy na zdraví třetích osob",null,null,null,"V rámci limitu odpovědnosti",5000,null,null,null,null,null,"U některých pojišťoven součást základního krytí, jiné připojišťují zvlášť. Vzhledem k obvyklým nárokům doporučujeme jako minimální limit 3 mil. Kč (dostatečný k pokrytí 1 škody). Pokud pojišťovna nabídne společný limit i pro regresy orgánů nemocenského pojištění, je nutné limit přizpůsobit.",null,null,null,null,null,1,1,"SKRÝT","SKRÝT",1,1,1]
["Regresy orgánů nemocenského pojištění třetích osob",null,null,null,"V rámci limitu odpovědnosti",5000,null,null,null,null,null,"U některých pojišťoven součást základního krytí, jiné připojišťují zvlášť. Vzhledem k obvyklým nárokům doporučujeme jako minimální limit 3 mil. Kč (dostatečný k pokrytí 1 škody). Pokud pojišťovna nabídne společný limit i pro regresy orgánů nemocenského pojištění, je nutné limit přizpůsobit.",null,null,null,null,null,1,1,"SKRÝT","SKRÝT",1,1,1]
["Regresy zdravotních pojišťoven v důsledky újmy na zdraví zaměstnanců",null,null,null,"V rámci limitu odpovědnosti",1000,null,null,null,null,null,"U některých pojišťoven součást základního krytí, jiné připojišťují zvlášť. Vzhledem k obvyklým nárokům doporučujeme jako minimální limit 3 mil. Kč (dostatečný k pokrytí 1 škody). Pokud pojišťovna nabídne společný limit i pro regresy ZP, je nutné limit přizpůsobit.",null,null,null,null,null,1,1,"SKRÝT","SKRÝT",1,1,1]
["Regresy orgánů nemocenského pojištění zaměstnanců",null,null,null,"V rámci limitu odpovědnosti",1000,null,null,null,null,null,"U některých pojišťoven součást základního krytí, jiné připojišťují zvlášť. Vzhledem k obvyklým nárokům doporučujeme jako minimální limit 3 mil. Kč (dostatečný k pokrytí 1 škody). Pokud pojišťovna nabídne společný limit i pro regresy ZP, je nutné limit přizpůsobit.",null,null,null,null,null,1,1,"SKRÝT","SKRÝT",1,1,1]
["Osobnostní nemajetková újma (spočívající v jiném zásahu do přirozených práv člověka než ublížení na zdraví nebo usmrcení)",null,null,null,2000000,5000,null,null,null,null,null,"Zásah do přirozených práv.",null,null,null,null,null,1,1,"SKRÝT","SKRÝT",1,1,1]
["Odpovědnost za věci převzaté (k opravě, úpravě)",null,null,null,null,null,null,null,null,null,null,"POZOR na automobily a jiná vozidla, jejich připojištění je nutné žádat zvlášť.",null,null,null,null,null,"SKRÝT","SKRÝT","SKRÝT","SKRÝT",1,1,"SKRÝT"]
["Odpovědnost za věci movité užívané (pronajaté, na leasing, kromě automobilů)",null,null,null,null,null,null,null,null,null,null,"POZOR na automobily a jiná vozidla, jejich připojištění je nutné žádat zvlášť.",null,null,null,null,null,"SKRÝT","SKRÝT","SKRÝT","SKRÝT",1,1,"SKRÝT"]
["Odpovědnost za věci zaměstnanců, vč. mobilních telefonů, notebooků, ostatních elektronických zařízení a jízdních kol",null,null,null,"V rámci limitu obecné odpovědnosti",500,null,null,null,null,null,"Obvyklé bývá součástí základního krytí, některé pojišťovny však připojišťují zvlášť.",null,null,null,null,null,1,1,"SKRÝT","SKRÝT",1,1,1]
["Odpovědnost za věci vnesené, odložené (věci návštěv apod.)",null,null,null,"V rámci limitu obecné odpovědnosti",500,null,null,null,null,null,"POZOR zejm. u hotelů a v pohostinství, provozování hlídaných garáží apod. POZOR na automobily a jiná vozidla, jejich připojištění je nutné žádat zvlášť.",null,null,null,null,null,1,1,"SKRÝT","SKRÝT",1,1,1]
["Odpovědnost za újmu způsobenou vadným výrobkem, vč. vadně vykonané práce",null,null,null,null,null,null,null,null,null,null,"POZOR na definici výrobku, pojišťovny mají nastaveno různě.",null,null,null,null,null,"SKRÝT","SKRÝT","SKRÝT","SKRÝT",1,1,"SKRÝT"]
["Čisté finanční škody",null,null,null,2000000,5000,null,null,null,null,null,null,null,null,null,null,null,{"$f":"IF(ISBLANK(E61),\"SKRÝT\",1)","v":1},{"$f":"IF(ISBLANK(F61),\"SKRÝT\",1)","v":1},{"$f":"IF(ISBLANK(G60),\"SKRÝT\",1)","v":"SKRÝT"},{"$f":"IF(ISBLANK(H61),\"SKRÝT\",1)","v":"SKRÝT"},1,1,1]
["Čisté finanční z vady výrobku a vadně vykonané práce ",null,null,null,null,null,null,null,null,null,null,"Finanční škoda ve formě např. ušlého zisku vzniklého v důsledku vady výrobku (vady provedené práce).",null,null,null,null,null,"SKRÝT","SKRÝT",{"$f":"IF(ISBLANK(G61),\"SKRÝT\",1)","v":"SKRÝT"},"SKRÝT",1,1,"SKRÝT"]
["Škody způsobené spojením/ smícháním (vadného výrobku s výrobkem bez vady)",null,null,null,null,null,null,null,null,null,null,"Kryje pouze škody vzniklé spojením/ smícháním.",null,null,null,null,null,"SKRÝT","SKRÝT",{"$f":"IF(ISBLANK(G63),\"SKRÝT\",1)","v":"SKRÝT"},"SKRÝT",1,1,"SKRÝT"]
["Náklady na montáž/ demontáž vadného výrobku",null,null,null,null,null,null,null,null,null,null,"Kryje pouze náklady na montáž/ demontáž vadného výrobku, nikoliv čisté finanční škody způsobené výrobkem obecně (např. ušlý zisk odběratele).",null,null,null,null,null,"SKRÝT","SKRÝT","SKRÝT","SKRÝT",1,1,"SKRÝT"]
["Odpovědnost za újmu v důsledku rozšíření salmonely a jiných přenosných chorob v souvislosti s mikrobiologickou kontaminací výrobku",null,null,null,null,null,null,null,null,null,null,"Vhodné zejm. v pohostinství, škol s vlastní jídelnou. POZOR na způsobenou újmu na zdraví (viz výše).",null,null,null,null,null,"SKRÝT","SKRÝT","SKRÝT","SKRÝT",1,1,"SKRÝT"]
["Náklady na stažení výrobku z trhu",null,null,null,null,null,null,null,null,null,null,"Doporučujeme vždy řešit nezávisle včetně samostatného dotazníku dostupného na Intranetu. Na českém trhu se nabízí pouze společně s pojištěním odpovědnosti.",null,null,null,null,null,"SKRÝT","SKRÝT","SKRÝT","SKRÝT",1,1,"SKRÝT"]
["Křížová odpovědnost vůči majetkově propojeným společnostem/institucím/státního majetku/municipalitám, apod..",null,null,null,2000000,5000,null,null,null,null,null,"Vhodné u holdingů.",null,null,null,null,null,1,1,"SKRÝT","SKRÝT",1,1,1]
["Křížová odpovědnost mezi pojištěnými",null,null,null,null,null,null,null,null,null,null,"Vhodné u holdingových smluv.",null,null,null,null,null,"SKRÝT","SKRÝT","SKRÝT","SKRÝT",1,1,"SKRÝT"]
["Odpovědnost za újmu na životním prostředí vzniklou jinak než v důsledku nenadálého selhání ochranného zařízení",null,null,null,null,null,null,null,null,null,null,"Vhodné zejm. pro společnosti nakládající s nebezpečnými látkami nebo jinak potencionálně ohrožující životní prostředí.",null,null,null,null,null,"SKRÝT","SKRÝT","SKRÝT","SKRÝT",1,1,"SKRÝT"]
["Odpovědnost za ekologickou újmu",null,null,null,2000000,5000,null,null,null,null,null,"Je nutné zeptat se klienta, zda má povinnost obstarat pojištění nebo jinou formu zajištění ekologické újmy.",null,null,null,null,null,1,1,"SKRÝT","SKRÝT",1,1,1]
["Odpovědnost za újmu vzniklou přerušením, kolísáním nebo omezením dodávek elektřiny, plynu, vody nebo tepla",null,null,null,null,null,null,null,null,null,null,"Vhodné pro distributory elektřiny, plynu, vody, tepla apod.",null,null,null,null,null,"SKRÝT","SKRÝT","SKRÝT","SKRÝT",1,1,"SKRÝT"]
["Odpovědnost za újmu způsobenou činností silniční doprava nákladní, vyjma škod přímo na přepravovaném nákladu",null,null,null,null,null,null,null,null,null,null,"Vhodné pro silniční dopravce (POZOR škody přímo na přepravovaném nákladu zůstávají stále vyloučeny - ty kryje pojištění odpovědnosti dopravce).",null,null,null,null,null,"SKRÝT","SKRÝT","SKRÝT","SKRÝT",1,1,"SKRÝT"]
["Odpovědnost za újmu způsobenou pozvolným vnikáním vlhka a kapalin všeho druhu, působením plynů, par, vlhkostí nebo srážek",null,null,null,null,null,null,null,null,null,null,"Vhodné např. pro stavební společnosti.",null,null,null,null,null,"SKRÝT","SKRÝT","SKRÝT","SKRÝT",1,1,"SKRÝT"]
["Odpovědnost za újmu způsobenou sesedáním, sesuvem půdy, poddolováním",null,null,null,null,null,null,null,null,null,null,"Vhodné např. pro stavební společnosti.",null,null,null,null,null,"SKRÝT","SKRÝT","SKRÝT","SKRÝT",1,1,"SKRÝT"]
["Odpovědnost za újmu způsobenou vibracemi",null,null,null,null,null,null,null,null,null,null,"Vhodné např. pro stavební společnosti.",null,null,null,null,null,"SKRÝT","SKRÝT","SKRÝT","SKRÝT",1,1,"SKRÝT"]
["Odpovědnost za újmu vzniklou odcizením věci ve střeženém objektu při zajišťování ostrahy majetku",null,null,null,null,null,null,null,null,null,null,"Vhodné pro společnosti zabývající se ostrahou objektů.",null,null,null,null,null,"SKRÝT","SKRÝT","SKRÝT","SKRÝT",1,1,"SKRÝT"]
["Jiné (uveďte):",null,null,null,null,null,null,null,null,null,null,"Doplňte jiné připojištění, pokud chcete požadovat.",null,null,null,null,null,"SKRÝT","SKRÝT","SKRÝT","SKRÝT",1,1,"SKRÝT"]
["Jiné (uveďte):",null,null,null,null,null,null,null,null,null,null,"Doplňte jiné připojištění, pokud chcete požadovat.",null,null,null,null,null,"SKRÝT","SKRÝT","SKRÝT","SKRÝT",1,1,"SKRÝT"]
["Poznámka",null,null,null,null,null,null,null,null,null,null,null,null,null,null,null,null,"SKRÝT","SKRÝT","SKRÝT","SKRÝT",1,1,{"$f":"IF(ISBLANK(A81),\"SKRÝT\",1)","v":"SKRÝT"}]
[null,null,null,null,null,null,null,null,null,null,null,"Příklad poznámky",null,null,null,null,null,null,null,null,null,"SKRÝT",1,{"$f":"IF(ISBLANK(A80),\"SKRÝT\",1)","v":"SKRÝT"}]
[null,null,null,null,null,null,null,null,null,null,null,"Zde můžete doplnit poznámky.",null,null,null,null,null,null,null,null,null,1,1,{"$f":"IF(ISBLANK(A81),\"SKRÝT\",1)","v":"SKRÝT"}]

{"sheet":"Vyrobci_distributori_dovozci","index":16,"n_rows":50,"n_cols":22,"rows_kept":50,"cut":false,"hidden":true,"merged":[[20,0,20,1],[6,0,6,7],[7,0,7,7],[8,0,8,7],[12,0,12,1],[13,0,13,1],[14,0,14,1],[15,0,15,1],[16,0,16,1],[17,0,17,1],[18,0,18,1],[19,0,19,1],[28,0,28,1],[29,0,29,1],[33,0,33,7],[26,5,26,7],[27,5,27,7],[28,5,28,7],[29,5,29,7],[26,3,26,4],[27,3,27,4],[28,3,28,4],[29,3,29,4],[21,0,21,1],[22,0,22,1],[23,0,23,1],[26,0,26,1],[27,0,27,1],[35,0,35,3],[35,4,35,7],[37,0,37,3],[37,4,37,7],[38,0,38,3],[38,4,38,7],[49,0,49,3],[49,4,49,7],[45,0,45,3],[45,4,45,7],[46,0,46,3],[46,4,46,7],[47,0,47,3],[47,4,47,7],[44,0,44,3],[44,4,44,7],[36,0,36,3],[36,4,36,7],[48,0,48,3],[48,4,48,7],[40,0,40,3],[40,4,40,7],[42,0,42,7],[39,0,39,3],[39,4,39,7]]}
[null,null,null,null,null,null,null,null,null,null,null,null,null,null,null,null,null,null,null,"Verze Klient","Verze zpracovat","Verze odeslat do pojišťovny (skrýt nevyplněné informace)"]
[null,null,null,null,null,null,null,null,null,null,null,null,null,null,null,null,null,null,null,1,1,1]
[null,null,null,null,null,null,null,null,null,null,null,null,null,null,null,null,null,null,null,1,1,1]
[null,null,null,null,null,null,null,null,null,null,null,null,null,null,null,null,null,null,null,1,1,1]
[null,null,null,null,null,null,null,null,null,null,null,null,null,null,null,null,null,null,null,1,1,1]
[null,null,null,null,null,null,null,null,null,null,null,null,null,null,null,null,null,null,null,1,1,1]
["Pojištění odpovědnosti za újmu - Informace k výrobě a výrobkům",null,null,null,null,null,null,null,null,null,null,null,null,null,null,null,null,null,null,1,1,1]
[null,null,null,null,null,null,null,null,null,null,null,null,null,null,null,null,null,null,null,1,1,1]
["Následující informace k výrobě a výrobků prosím vyplňte v případě, že se Vaše společnost zabývá jakoukoliv výrobou výrobků, distribucí výrobků pod vlastní značkou nebo jejich dovozem (blíže viz  v § 2939 z č. 89/2012 Sb., občanského zákoníku).",null,null,null,null,null,null,null,null,null,null,null,null,null,null,null,null,null,null,1,"SKRÝT","SKRÝT"]
[null,null,null,null,null,null,null,null,null,null,null,null,null,null,null,null,null,null,null,1,"SKRÝT","SKRÝT"]
["Podrobné informace k výrobě a výrobkům",null,null,null,null,null,null,null,null,null,null,null,null,null,null,null,null,null,null,1,1,1]
[null,null,null,null,null,null,null,null,null,null,null,null,null,null,null,null,null,null,null,1,1,1]
["Obchodní název výrobku nebo výrobkové skupiny",null,null,null,null,null,null,null,null,null,null,null,null,null,null,null,null,null,null,1,1,1]
["Popis, hlavní účel užití",null,null,null,null,null,null,null,null,null,null,null,null,null,null,null,null,null,null,1,1,1]
["Výrobky jsou:  distribuovány/ distribuovány pod vlastní značkou/ vyráběny",null,null,null,null,null,null,null,null,null,null,null,null,null,null,null,null,null,null,1,1,1]
["Výrobek je určen: pro konečného zákazníka/ k dalšímu zpracování",null,null,null,null,null,null,null,null,null,null,null,null,null,null,null,null,null,null,1,1,1]
["Výrobek je vyráběn: od začátku do konce/ z polotovarů dodavatele",null,null,null,null,null,null,null,null,null,null,null,null,null,null,null,null,null,null,1,1,1]
["Kdo projektuje/ vyvíjí vyráběné/ prodávané výrobky? (Vlastní oddělení/ oddělení zákazníka/ jiné způsoby)",null,null,null,null,null,null,null,null,null,null,null,null,null,null,null,null,null,null,1,1,1]
["Výroba je: velkosériová/ malosériová/ kusová",null,null,null,null,null,null,null,null,null,null,null,null,null,null,null,null,null,null,1,1,1]
["Je výrobek hořlavý/ jedovatý/ radioaktivní/ jinak nebezpečný? \n(Pokud ANO, uveďte vlastnost.)",null,null,null,null,null,null,null,null,null,null,null,null,null,null,null,null,null,null,1,1,1]
["Rok zahájení výroby",null,null,null,null,null,null,null,null,null,null,null,null,null,null,null,null,null,null,1,1,1]
["Je výrobek exportován? Pokud ANO, uveďte konkrétní geografickou oblast (např. Evropa, celý svět) nebo přímo zemi, kam je exportován.",null,null,null,null,null,null,null,null,null,null,null,null,null,null,null,null,null,null,1,1,1]
["Rok zahájení exportu",null,null,null,null,null,null,null,null,null,null,null,null,null,null,null,null,null,null,1,1,1]
["Roční obrat (Kč)",null,null,null,null,null,null,null,null,null,null,null,null,null,null,null,null,null,null,1,1,1]
[null,null,null,null,null,null,null,null,null,null,null,null,null,null,null,null,null,null,null,1,1,1]
[null,null,"Ano/ Ne",null,null,null,null,null,null,null,null,null,null,null,null,null,null,null,null,1,1,1]
["Bude během následujících 12 měsíců uveden na trh nový výrobek?",null,null,"Pokud ano, jaký/ jaké?",null,null,null,null,null,null,null,null,null,null,null,null,null,null,null,1,1,1]
["Vyrábíte pro zahraničního partnera pod jeho značkou?",null,null,"Pokud ano, jaký/ jaké?",null,null,null,null,null,null,null,null,null,null,null,null,null,null,null,1,1,1]
["Probíhá kontrola výrobků v procesu výroby?",null,null,"Pokud ano, popište:",null,null,null,null,null,null,null,null,null,null,null,null,null,null,null,1,1,1]
["Probíhá výstupní kontrola výrobků?",null,null,"Pokud ano, popište:",null,null,null,null,null,null,null,null,null,null,null,null,null,null,null,1,1,1]
[null,null,null,null,null,null,null,null,null,null,null,null,null,null,null,null,null,null,null,1,1,1]
["Údaje o odběratelích",null,null,null,null,null,null,null,null,null,null,null,null,null,null,null,null,null,null,1,1,1]
[null,null,null,null,null,null,null,null,null,null,null,null,null,null,null,null,null,null,null,1,1,1]
["Uveďte 5 největších odběratelů.",null,null,null,null,null,null,null,null,null,null,null,null,null,null,null,null,null,null,1,1,1]
[null,null,null,null,null,null,null,null,null,null,null,null,null,null,null,null,null,null,null,1,1,1]
["Název odběratele",null,null,null,"Roční objem obchodu (Kč)",null,null,null,null,null,null,null,null,null,null,null,null,null,null,1,1,1]
[null,null,null,null,null,null,null,null,null,null,null,null,null,null,null,null,null,null,null,1,1,1]
[null,null,null,null,null,null,null,null,null,null,null,null,null,null,null,null,null,null,null,1,1,1]
[null,null,null,null,null,null,null,null,null,null,null,null,null,null,null,null,null,null,null,1,1,1]
[null,null,null,null,null,null,null,null,null,null,null,null,null,null,null,null,null,null,null,1,1,1]
[null,null,null,null,null,null,null,null,null,null,null,null,null,null,null,null,null,null,null,1,1,1]
[null,null,null,null,null,null,null,null,null,null,null,null,null,null,null,null,null,null,null,1,1,1]
["Uveďte odběratele v USA a Kanadě.",null,null,null,null,null,null,null,null,null,null,null,null,null,null,null,null,null,null,1,1,1]
[null,null,null,null,null,null,null,null,null,null,null,null,null,null,null,null,null,null,null,1,1,1]
["Název odběratele v USA, Kanadě",null,null,null,"Roční objem obchodu (Kč)",null,null,null,null,null,null,null,null,null,null,null,null,null,null,1,1,1]
[null,null,null,null,null,null,null,null,null,null,null,null,null,null,null,null,null,null,null,1,1,1]
[null,null,null,null,null,null,null,null,null,null,null,null,null,null,null,null,null,{"$f":"IF(ISBLANK(A47),\"SKRÝT\",1)","v":"SKRÝT"},{"$f":"IF(ISBLANK(E47),\"SKRÝT\",1)","v":"SKRÝT"},1,1,{"$f":"IF(AND(R47=\"SKRÝT\",S47=\"SKRÝT\"),\"SKRÝT\",1)","v":"SKRÝT"}]
[null,null,null,null,null,null,null,null,null,null,null,null,null,null,null,null,null,{"$f":"IF(ISBLANK(A48),\"SKRÝT\",1)","v":"SKRÝT"},{"$f":"IF(ISBLANK(E48),\"SKRÝT\",1)","v":"SKRÝT"},1,1,{"$f":"IF(AND(R48=\"SKRÝT\",S48=\"SKRÝT\"),\"SKRÝT\",1)","v":"SKRÝT"}]
[null,null,null,null,null,null,null,null,null,null,null,null,null,null,null,null,null,{"$f":"IF(ISBLANK(A49),\"SKRÝT\",1)","v":"SKRÝT"},{"$f":"IF(ISBLANK(E49),\"SKRÝT\",1)","v":"SKRÝT"},1,1,{"$f":"IF(AND(R49=\"SKRÝT\",S49=\"SKRÝT\"),\"SKRÝT\",1)","v":"SKRÝT"}]
[null,null,null,null,null,null,null,null,null,null,null,null,null,null,null,null,null,{"$f":"IF(ISBLANK(A50),\"SKRÝT\",1)","v":"SKRÝT"},{"$f":"IF(ISBLANK(E50),\"SKRÝT\",1)","v":"SKRÝT"},1,1,{"$f":"IF(AND(R50=\"SKRÝT\",S50=\"SKRÝT\"),\"SKRÝT\",1)","v":"SKRÝT"}]

{"sheet":"Hotely_restaurace","index":17,"n_rows":30,"n_cols":22,"rows_kept":30,"cut":false,"hidden":true,"merged":[[23,0,23,7],[6,0,6,7],[7,0,7,7],[8,0,8,7],[11,1,11,7],[12,1,12,7]]}
[null,null,null,null,null,null,null,null,null,null,null,null,null,null,null,null,null,null,null,"Verze Klient","Verze zpracovat","Verze odeslat do pojišťovny (skrýt nevyplněné informace)"]
[null,null,null,null,null,null,null,null,null,null,null,null,null,null,null,null,null,null,null,1,1,1]
[null,null,null,null,null,null,null,null,null,null,null,null,null,null,null,null,null,null,null,1,1,1]
[null,null,null,null,null,null,null,null,null,null,null,null,null,null,null,null,null,null,null,1,1,1]
[null,null,null,null,null,null,null,null,null,null,null,null,null,null,null,null,null,null,null,1,1,1]
[null,null,null,null,null,null,null,null,null,null,null,null,null,null,null,null,null,null,null,1,1,1]
["Pojištění odpovědnosti za újmu - Informace k provozu hotelu, rekreačního střediska, restauračního zařízení",null,null,null,null,null,null,null,null,null,null,null,null,null,null,null,null,null,null,1,1,1]
[null,null,null,null,null,null,null,null,null,null,null,null,null,null,null,null,null,null,null,1,1,1]
["Následující informace prosím vyplňte v případě, že se Vaše společnost zabývá provozem hotelu, rekreačního střediska nebo restauračního zařízení.",null,null,null,null,null,null,null,null,null,null,null,null,null,null,null,null,null,null,1,"SKRÝT","SKRÝT"]
[null,null,null,null,null,null,null,null,null,null,null,null,null,null,null,null,null,null,null,1,"SKRÝT","SKRÝT"]
["Základní informace",null,null,null,null,null,null,null,null,null,null,null,null,null,null,null,null,null,null,1,1,1]
["Název zařízení",null,null,null,null,null,null,null,null,null,null,null,null,null,null,null,null,null,null,1,1,1]
["Adresa zařízení",null,null,null,null,null,null,null,null,null,null,null,null,null,null,null,null,null,null,1,1,1]
["Web:",null,null,null,null,null,null,null,null,null,null,null,null,null,null,null,null,null,null,1,1,1]
["Počet pokojů",null,"Počet lůžek",null,null,null,null,null,null,null,null,null,null,null,null,null,null,null,null,1,1,1]
["Průměrná roční obsazenost (%)",null,null,null,null,null,null,null,null,null,null,null,null,null,null,null,null,null,null,1,1,1]
[null,null,null,null,null,null,null,null,null,null,null,null,null,null,null,null,null,null,null,1,1,1]
[null,"Ano/ Ne",null,"Počet ","Kapacita (osob)",null,null,null,null,null,null,null,null,null,null,null,null,null,null,1,1,1]
["Restaurace",null,"Pokud ano",null,null,null,null,null,null,null,null,null,null,null,null,null,null,null,null,1,1,1]
["Salonky",null,"Pokud ano",null,null,null,null,null,null,null,null,null,null,null,null,null,null,null,null,1,1,1]
["Konferenční místnost",null,"Pokud ano",null,null,null,null,null,null,null,null,null,null,null,null,null,null,null,null,1,1,1]
["Jiné",null,"Pokud ano",null,null,null,null,null,null,null,null,null,null,null,null,null,null,null,null,1,1,1]
[null,null,null,null,null,null,null,null,null,null,null,null,null,null,null,null,null,null,null,1,1,1]
["Uveďte, zda poskytuje některé z níže uvedených speciálních služeb.",null,null,null,null,null,null,null,null,null,null,null,null,null,null,null,null,null,null,1,1,1]
[null,null,null,null,null,null,null,null,null,null,null,null,null,null,null,null,null,null,null,1,1,1]
[null,"Ano/ Ne",null,"Ano/ Ne",null,null,null,null,null,null,null,null,null,null,null,null,null,null,null,1,1,1]
["Fitness centrum",null,"Kolagenárium",null,null,null,null,null,null,null,null,null,null,null,null,null,null,null,null,1,1,1]
["Plavecký bazén",null,"Kadeřnictví",null,null,null,null,null,null,null,null,null,null,null,null,null,null,null,null,1,1,1]
["Sauna",null,"Obchody",null,null,null,null,null,null,null,null,null,null,null,null,null,null,null,null,1,1,1]
["Solárium",null,"Jiné",null,null,null,null,null,null,null,null,null,null,null,null,null,null,null,null,1,1,1]

{"sheet":"List_seznamy_bunky","index":18,"n_rows":53,"n_cols":10,"rows_kept":53,"cut":false,"hidden":true,"merged":[]}
["s provizí makléře","Roční"]
["bez provize makléře","Pololetní, bez přirážky za področní splátky"]
[null,"Čtvrtletní, bez přirážky za področní splátky"]
[null,"Měsíční, bez přirážky za področní splátky"]
["Přerušení provozu - info o riziku, výpočet PČ"]
["Ano","1 směna","Částečně","Nízká"]
["Ne","2 směny","Zcela","Střední"]
[null,"3 směny",null,"Vysoká"]
[]
["Živelní přerušení provozu"]
["Viz živelní pojištění majetku","Samostatné"]
["FLEXA","Kombinované s živelním pojištěním majetku"]
["Vyjmenovaná nebezpečí"]
[]
["Přerušení provozu  - technická rizika"]
["Viz pojištění strojů/ elektroniky","Samostatné","V jednotkách"]
[null,"Kombinované s pojištění strojů/ elektroniky","V tisících"]
[null,null,"V miliónech"]
["Stroje"]
["Území ČR","Elektronických prvků a základů","Elektronických prvků","Nová cena","Vlastní a cizí","All risk (technická rizika)","All risk (technická rizika)"]
["Území ČR a SR","Elektronických prvků",null,"První riziko - nová cena","Vlastní","All risk (technická rizika); Náraz, střet, havárie","All risk (technická rizika); Živel; Odcizení, vandalismus"]
["Území ČR a sousedních států","Základů",null,"Časová cena","Cizí","Náraz, střet, havárie","All risk (technická rizika); Živel; Odcizení, vandalismus; Náraz, střet, havárie,"]
["Území EU",null,null,"První riziko - časová cena",null,null,"All risk (technická rizika); Náraz, střet, havárie"]
["Území Evropy (geograficky)",null,null,"Jiná cena",null,null,"Živel; Odcizení, vandalismus; Náraz, střet, havárie"]
[null,null,null,"První riziko - jiná cena"]
[null,null,null,"Obvyklá cena"]
[null,null,null,"První  riziko - obvyklá cena"]
["Elektronika"]
["Území ČR","Základů","Příslušenství","Nová cena","Vlastní a cizí","All risk (technická rizika)","All risk (technická rizika)"]
["Území ČR a SR",null,null,"První riziko - nová cena","Vlastní",null,"All risk (technická rizika); Živel; Odcizení, vandalismus"]
["Území ČR a sousedních států",null,null,"Časová cena","Cizí"]
["Území EU",null,null,"První riziko - časová cena"]
["Území Evropy (geograficky)",null,null,"Jiná cena"]
[null,null,null,"První riziko - jiná cena"]
[null,null,null,"Obvyklá cena"]
[null,null,null,"První  riziko - obvyklá cena"]
["Majetek"]
["Vlastní","Vlastní","Nová cena","Obvyklá cena","All risk","Ano","Nová cena","Území ČR","První riziko - nová cena","První riziko - obvyklá cena"]
["Pronajaté","Vlastní a cizí","První riziko - nová cena","První riziko - obvyklá cena","Kompletní živel","Ne","První riziko - nová cena","Území ČR a SR","První riziko - časová cena","První riziko - jiná cena"]
["Vlastní i pronajaté","Cizí","Časová cena","Jiná cena","Vyjmenovaná nebezpečí",null,"K rozhodnému dni - nová cena","Území ČR a okolních států","První riziko - obvyklá cena"]
[null,"Vlastní a cizí","První riziko - časová cena","První riziko - jiná cena",null,null,null,"Území Evropy","První riziko - jiná cena"]
[null,"Vlastní","Obvyklá cena"]
[null,"Cizí","První riziko - obvyklá cena"]
[null,null,"Jiná cena"]
[null,null,"První riziko - jiná cena"]
[]
["Odpovědnost"]
["Česká republika","Ano","Vlastní oddělení","Vlastní výrobek","Hořlavý","Ano","Distribuovány","Pro konečného zákazníka","Od začátku do konce"]
["Česká republika a Slovensko","Ne","Oddělení zákazníka","Výrobek subdodavatele","Jedovatý","Ne","Distribuovány pod vlastní značkou","K dalšímu zpracování","Z polotovarů dodavatele"]
["Evropa (geograficky)",null,"Jiné způsoby",null,"Radioaktivní ",null,"Vyráběny"]
["Celý svět, vyjma USA a Kanady",null,null,"Velkosériová","Jinak nebezpečný"]
["Celý svět, včetně USA a Kanady",null,null,"Malosériová","Není nebezpečný"]
[null,null,null,"Kusová"]